Workbook

Sheet Economic IRRs
V4: Solar Cap Factor | Y4: ='Constant Inputs - Operation'!G250 -> 0.1810780121 | Z4: =TEXT(Y4,"##.00%") -> 18.11% | AA4: =CHAR(13) ->  | AB4: =V4&Z4&CHAR(10)&V5&Z5&CHAR(10)&V6&Z6 -> Solar Cap Factor 18.11% Solar Cost/kW 5,238 Solar Pre-tax IRR 1.37% | AJ4: Charging Stations | AN4: =TEXT(AM4,"###.##") -> . | AP4: =AJ4&AN4&CHAR(10)&AJ5&AN5&CHAR(10)&AJ6&AN6 -> Charging Stations. Capacity kW 66 IRR .00% | AW4: ='Constant Inputs - Operation'!F119 -> Artria EE Program | AZ4: ='Constant Inputs - Operation'!G132 -> 5.150629118 | BA4: =TEXT(AZ4,"###.00") -> 5.15 | BC4: =AW4&" "&BA4&CHAR(10)&AW5&BA5&CHAR(10)&AW6&BA6 -> Artria EE Program 5.15 EE kWh 1,213,444 EE IRR 1.96%
V5: Solar Cost/kW | Y5: ='Constant Inputs - Operation'!G258 -> 5238.095238 | Z5: =TEXT(Y5,"###,###") -> 5,238 | AJ5: Capacity kW | AM5: ='Constant Inputs - Operation'!G97*'Constant Inputs - Operation'!G99 -> 66 | AN5: =TEXT(AM5,"###,###") -> 66 | AW5: EE kWh | AZ5: ='Constant Inputs - Operation'!$G$131 -> 1213444 | BA5: =TEXT(AZ5,"###,###") -> 1,213,444
V6: Solar Pre-tax IRR | Y6: ='Operating Model - Monthly'!G351 -> 0.01365607126 | Z6: =TEXT(Y6,"##.00%") -> 1.37% | AJ6: IRR | AM6: ='Operating Model - Monthly'!G170 -> 0 | AN6: =TEXT(AM6,"##.00%") -> .00% | AW6: EE IRR | AZ6: ='Operating Model - Monthly'!G203 -> 0.01958745653 | BA6: =TEXT(AZ6,"##.00%") -> 1.96%
V9: Econ Pre-tax IRR | Y9: ='Operating Model - Monthly'!G49 -> 0.01856289854 | Z9: =TEXT(Y9,"##.00%") -> 1.86% | AB9: =V9&Z9&CHAR(10)&V10&Z10&CHAR(10)&V11&Z11 -> Econ Pre-tax IRR 1.86% Total Investment 9,662,925 SPV Allocated IRR 3.70%
V10: Total Investment | Y10: ='Operating Model - Monthly'!K21 -> 9662925 | Z10: =TEXT(Y10,"###,###") -> 9,662,925
V11: SPV Allocated IRR | Y11: ='ITC Allocation and After Tax'!H15 -> 0.03703955387 | Z11: =TEXT(Y11,"##.00%") -> 3.70%
V14: ='Constant Inputs - Operation'!F145 -> Artria EE 2 | Y14: ='Constant Inputs - Operation'!G156 -> 0 | Z14: =TEXT(Y14,"###.00") -> .00 | AB14: =V14&" "&Z14&CHAR(10)&V15&Z15&CHAR(10)&V16&Z16 -> Artria EE 2 .00 Energy Savings 6,853,798 EE IRR .00% | AJ14: ='Constant Inputs - Operation'!$G$170 -> Artria EE #3 | AM14: ='Constant Inputs - Operation'!$G$183 -> 0.2649783553 | AN14: =TEXT(AM14,"###,###") ->  | AP14: =AJ14&" "&AN14&CHAR(10)&AJ15&AN15&CHAR(10)&AJ16&AN16 -> Artria EE #3 Energy Savings EE IRR .00% | AW14: ='Constant Inputs - Operation'!$G$196 -> Artria #4 | AZ14: ='Constant Inputs - Operation'!$G$209 -> 1.5 | BA14: =TEXT(AZ14,"##.00") -> 1.50 | BC14: =AW14&" "&BA14&CHAR(10)&AW15&BA15&CHAR(10)&AW16&BA16 -> Artria #4 1.50 Energy Savings67,848 EE IRR .00%
V15: Energy Savings | Y15: ='Constant Inputs - Operation'!G155 -> 6853798.482 | Z15: =TEXT(Y15,"###,###") -> 6,853,798 | AJ15: Energy Savings | AM15: ='Constant Inputs - Operation'!$G$182 -> 0 | AN15: =TEXT(AM15,"###,###") ->  | AW15: Energy Savings | AZ15: ='Constant Inputs - Operation'!$G$208 -> 67848.15 | BA15: =TEXT(AZ15,"###,###") -> 67,848
V16: EE IRR | Y16: ='Operating Model - Monthly'!G235 -> 0 | Z16: =TEXT(Y16,"##.00%") -> .00% | AJ16: EE IRR | AM16: ='Operating Model - Monthly'!G267 -> 0 | AN16: =TEXT(AM16,"##.00%") -> .00% | AW16: EE IRR | AZ16: ='Operating Model - Monthly'!G298 -> 0 | BA16: =TEXT(AZ16,"##.00%") -> .00%
V19: CHP Capacity | Y19: ='Constant Inputs - Operation'!$G$285 -> 200 | Z19: =TEXT(Y19,"###") -> 200 | AB19: =V19&" "&Z19&CHAR(10)&V20&Z20&CHAR(10)&V21&Z21 -> CHP Capacity 200 Cost/kW 2,000 CHP IRR .00% | AJ19: Batteries - $/kWh | AM19: ='Constant Inputs - Operation'!$G$183 -> 0.2649783553 | AN19: =TEXT(AM19,"###,###") ->  | AP19: =AJ19&" "&AN19&CHAR(10)&AJ20&AN20&CHAR(10)&AJ21&AN21 -> Batteries - $/kWh Net Equialent Energy 1,356,963 Battery IRR 10.80%
V20: Cost/kW | Y20: ='Constant Inputs - Operation'!$G$296 -> 2000 | Z20: =TEXT(Y20,"###,###") -> 2,000 | AJ20: Net Equialent Energy | AM20: ='Operating Model - Monthly'!I420*12 -> 1356963 | AN20: =TEXT(AM20,"###,###") -> 1,356,963
V21: CHP IRR | Y21: ='Operating Model - Monthly'!G399 -> 0 | Z21: =TEXT(Y21,"##.00%") -> .00% | AJ21: Battery IRR | AM21: ='Operating Model - Monthly'!H433 -> 0.1079807323 | AN21: =TEXT(AM21,"###.00%") -> 10.80%
V24: SPV IRR ITC Incl | Y24: ='ITC Allocation and After Tax'!H23 -> 0.0630518441 | Z24: =TEXT(Y24,"##.00%") -> 6.31% | AB24: =V24&Z24&CHAR(10)&V25&Z25&CHAR(10)&V26&Z26 -> SPV IRR ITC Incl 6.31% Total Investment 7,615,170 After-tax IRR 4.49%
V25: Total Investment | Y25: ='ITC Allocation and After Tax'!K21 -> 7615170 | Z25: =TEXT(Y25,"###,###") -> 7,615,170
V26: After-tax IRR | Y26: ='ITC Allocation and After Tax'!H34 -> 0.04488270691 | Z26: =TEXT(Y26,"##.00%") -> 4.49%
G91: FALSE

Sheet Investor IRR and Tennant Saving
M2: Life time | N2: PerYear
L3: Electric Bill over PPA (with Inflation) | M3: ='Investor LLC Cash Flow'!$K$114 -> 7329216.222
L4: Gas Bill over PPA (with Inflation) | M4: ='Investor LLC Cash Flow'!$K$115+'Investor LLC Cash Flow'!$K$116 -> 1521483.6 | O4: Energy Services Fee | Q4: =energy_services -> 0
L5: Total Bill | M5: =SUM(M3:M4) -> 8850699.822 | O5: Lease Payment to Tenant | Q5: =lease_payment -> 0 | U5: Solar Cap Factor | X5: ='Constant Inputs - Operation'!G250 -> 0.1810780121 | Y5: =TEXT(X5,"##.00%") -> 18.11% | Z5: =CHAR(13) ->  | AA5: =U5&Y5&CHAR(10)&U6&Y6&CHAR(10)&U7&Y7 -> Solar Cap Factor 18.11% Solar Cost/kW 5,238 Solar Pre-tax IRR 1.37% | AI5: Batery kWh | AL5: ='Constant Inputs - Operation'!AC250 -> 0 | AM5: =TEXT(AL5,"###.##") -> . | AO5: =AI5&AM5&CHAR(10)&AI6&AM6&CHAR(10)&AI7&AM7 -> Batery kWh . Battery Cost/kWh Battery IRR .00% | AV5: EE Sqft | AZ5: =TEXT(AY5,"###,###") ->  | BB5: =AV5&AZ5&CHAR(10)&AV6&AZ6&CHAR(10)&AV7&AZ7 -> EE Sqft EE kWh EE IRR 1.96%
L6: Less: Lease Payment Received | M6: =-'Investor LLC Cash Flow'!$K$91 -> 0 | O6: Lease Percent | Q6: =M6/-M5 -> 0 | U6: Solar Cost/kW | X6: ='Constant Inputs - Operation'!G258 -> 5238.095238 | Y6: =TEXT(X6,"###,###") -> 5,238 | AI6: Battery Cost/kWh | AL6: ='Constant Inputs - Operation'!AC258 -> 0 | AM6: =TEXT(AL6,"###,###") ->  | AV6: EE kWh | AY6: ='Operating Model - Monthly'!G183 -> 0 | AZ6: =TEXT(AY6,"###,###") -> 
L7: Add: Energy Services Payment | M7: ='Investor LLC Cash Flow'!$K$93 -> 0 | O7: Avoided Refirbishment | Q7: ='Investor LLC Cash Flow'!H98 -> 0 | U7: Solar Pre-tax IRR | X7: ='Operating Model - Monthly'!G351 -> 0.01365607126 | Y7: =TEXT(X7,"##.00%") -> 1.37% | AI7: Battery IRR | AL7: ='Operating Model - Monthly'!U351 -> 0 | AM7: =TEXT(AL7,"##.00%") -> .00% | AV7: EE IRR | AY7: ='Operating Model - Monthly'!G203 -> 0.01958745653 | AZ7: =TEXT(AY7,"##.00%") -> 1.96%
L8: Less: Avoided Refirbishment | M8: =-'Investor LLC Cash Flow'!K98 -> 0
L9: Final Energy and Refurbishment | M9: =M3+M4+M6+M7+M8 -> 8850699.822
O10: Tax Credit Flags | U10: Economic IRR without Allocation | X10: =Summary!J6 -> 0.01856289854 | Y10: =TEXT(X10,"##.00%") -> 1.86% | AA10: =U10&Y10&CHAR(10)&U11&Y11&CHAR(10)&U12&Y12 -> Economic IRR without Allocation 1.86% Total ITC 2,047,755 Total Cap Exp 9,662,925
L11: Percent Savings | M11: =M9/(M4+M3) -> 1 | U11: =IF(R12,"Total ITC "," Nominal PTC ") -> Total ITC | X11: =-'Investor LLC Cash Flow'!K264+'Investor LLC Cash Flow'!K253 -> 2047755 | Y11: =TEXT(X11,"###,###") -> 2,047,755
O12: ITC/PTC Flag (ITC True) | R12: ='Tax Inputs'!F63 -> TRUE | U12: Total Cap Exp | X12: ='Investor LLC Cash Flow'!K18 -> 9662925 | Y12: =TEXT(X12,"###,###") -> 9,662,925
O13: Meets Labor | R13: ='Tax Inputs'!$F$65 -> TRUE
O14: Domestic Content Bonus | R14: ='Tax Inputs'!F68 -> TRUE | U14: Investor Perspective | AI14: Investor After Tax IRR | AV14: Building Persective
O15: Energy Community Bonus | R15: ='Tax Inputs'!F69 -> TRUE | U15: Pre-tax IRR | X15: ='Investor LLC Cash Flow'!H102 -> 0.03703955385 | Y15: =TEXT(X15,"##.00%") -> 3.70% | AA15: =U14&CHAR(10)&CHAR(10)&U15&Y15&CHAR(10)&U16&Y16&CHAR(10)&U17&Y17 -> Investor Perspective Pre-tax IRR 3.70% ITC % of Capital 21.19% Pre-tax IRR with ITC 6.30% | AI15: After-Tax No ITC | AL15: ='ITC Allocation and After Tax'!H37 -> 0.01897108709 | AM15: =TEXT(AL15,"##.00%") -> 1.90% | AO15: =AI14&CHAR(10)&CHAR(10)&AI15&AM15&CHAR(10)&AI16&AM16&CHAR(10)&AI17&AM17 -> Investor After Tax IRR After-Tax No ITC 1.90% After Tax with ITC 4.49% After tax with NOL 3.23% | AV15: kWh Energy Savings | AY15: 20000 | AZ15: =TEXT(AY15,"###,###") -> 20,000 | BB15: =AV14&CHAR(10)&CHAR(10)&AV15&AZ15&CHAR(10)&AV16&AZ16&CHAR(10)&AV17&AZ17 -> Building Persective kWh Energy Savings 20,000 Energy Savings Percent 10.00% Dollar Energy Savings 2000
O16: Less than 5 MW in LMI | R16: ='Tax Inputs'!F71 -> TRUE | U16: ITC % of Capital | X16: ='Investor LLC Cash Flow'!G379 -> 0.2119187513 | Y16: =TEXT(X16,"##.00%") -> 21.19% | AI16: After Tax with ITC | AL16: ='ITC Allocation and After Tax'!H34 -> 0.04488270691 | AM16: =TEXT(AL16,"##.00%") -> 4.49% | AV16: Energy Savings Percent | AY16: ='Investor and Consumer'!Q40 -> 0.1 | AZ16: =TEXT(AY16,"00.00%") -> 10.00%
O17: Indian Land | R17: ='Tax Inputs'!F72 -> TRUE | U17: Pre-tax IRR with ITC | X17: ='Investor LLC Cash Flow'!G378 -> 0.0630089432 | Y17: =TEXT(X17,"##.00%") -> 6.30% | AI17: After tax with NOL | AL17: ='ITC Allocation and After Tax'!H72 -> 0.03228690012 | AM17: =TEXT(AL17,"##.00%") -> 3.23% | AV17: Dollar Energy Savings | AY17: 2000 | AZ17: =TEXT(AY17,"###") -> 2000
O18: Low-income Residential | R18: ='Tax Inputs'!$F74 -> FALSE
O19: Low-income Economic Benefit | R19: ='Tax Inputs'!$F75 -> FALSE
O21: Applied ITC Percent | Q21: ='Investor LLC Cash Flow'!I224 -> 0.6 | R21: ='ITC Allocation and After Tax'!K17 -> 2047755
O23: Applied PTC Rate | Q23: ='Investor LLC Cash Flow'!I243 -> 0 | R23: ='ITC Allocation and After Tax'!K18 -> 0

Sheet Partnership with ITC Transfer
V3: Tax Investor
P4: Energy Services Fee | R4: =energy_services -> 0 | V4: ITC Percent | Y4: ='ITC Allocation and After Tax'!G96 -> 0.9 | Z4: =TEXT(Y4,"##.00%") -> 90.00% | AA4: =CHAR(13) ->  | AB4: =V3&CHAR(10)&CHAR(10)&V4&Z4&CHAR(10)&V5&Z5&CHAR(10)&V6&Z6 -> Tax Investor ITC Percent 90.00% Investment 1,842,980 ITC Receied 2,047,755 | AJ4: Batery kWh | AM4: ='Constant Inputs - Operation'!AC250 -> 0 | AN4: =TEXT(AM4,"###.##") -> . | AP4: =AJ4&AN4&CHAR(10)&AJ5&AN5&CHAR(10)&AJ6&AN6 -> Batery kWh . Battery Cost/kWh Battery IRR .00% | AW4: EE Sqft
P5: Lease Payment to Tenant | R5: =lease_payment -> 0 | V5: Investment | Y5: ='ITC Allocation and After Tax'!K96 -> 1842979.5 | Z5: =TEXT(Y5,"###,###") -> 1,842,980 | AJ5: Battery Cost/kWh | AM5: ='Constant Inputs - Operation'!AC258 -> 0 | AN5: =TEXT(AM5,"###,###") ->  | AW5: EE kWh | AZ5: ='Operating Model - Monthly'!G183 -> 0 | BA5: =TEXT(AZ5,"###,###") -> 
E6: Tax Investor | L6: Sponsor | P6: Investor ITC Percent | R6: ='Tax Equity Partner Inputs'!F8 -> 0.9 | V6: ITC Receied | Y6: ='ITC Allocation and After Tax'!K86 -> 2047755 | Z6: =TEXT(Y6,"###,###") -> 2,047,755 | AJ6: Battery IRR | AM6: ='Operating Model - Monthly'!U351 -> 0 | AN6: =TEXT(AM6,"##.00%") -> .00% | AW6: EE IRR | AZ6: ='Operating Model - Monthly'!G203 -> 0.01958745653 | BA6: =TEXT(AZ6,"##.00%") -> 1.96%
P8: Capital Stack (Uses and Sources) with ITC Transfer
V9: Total SPV Partnership
P10: Uses of Funds | V10: SPV Pre-tax IRR | Y10: ='ITC Allocation and After Tax'!H79 -> 0.03703955387 | Z10: =TEXT(Y10,"##.00%") -> 3.70% | AB10: =V9&CHAR(10)&CHAR(10)&V10&Z10&CHAR(10)&V11&Z11&CHAR(10)&V12&Z12 -> Total SPV Partnership SPV Pre-tax IRR 3.70% Total ITC 2,047,755 Pre-Tax Plus ITC IRR 6.31%
P11: Capital Expenditures | V11: =IF(S42,"Total ITC "," Nominal PTC ") -> Total ITC | Y11: ='ITC Allocation and After Tax'!K81 -> 2047755 | Z11: =TEXT(Y11,"###,###") -> 2,047,755
P12: Other (Fees, ITC) | V12: Pre-Tax Plus ITC IRR | Y12: ='ITC Allocation and After Tax'!H23 -> 0.0630518441 | Z12: =TEXT(Y12,"##.00%") -> 6.31%
P13: Developer Cost | AJ13: Tax Investor Return | AW13: Sponsor Pre-tax Analysis
P14: Developer Fees | V14: Project Debt % | Y14: 0 | Z14: =TEXT(Y14,"##.00%") -> .00% | AB14: =V14&Z14&CHAR(10)&V15&Z15&CHAR(10)&V16&Z16 -> Project Debt % .00% Interest Rate 4.00% DSCR 1.30 | AJ14: Tax Investor ROI | AM14: ='ITC Allocation and After Tax'!K98 -> 0.1111111111 | AN14: =TEXT(AM14,"##.00%") -> 11.11% | AP14: =AJ13&CHAR(10)&CHAR(10)&AJ14&AN14&CHAR(10)&AJ15&AN15&CHAR(10)&AJ16&AN16 -> Tax Investor Return Tax Investor ROI 11.11% Tax Investor IRR .00% Risk Premium -2.00% | AW14: Pre-tax IRR | AZ14: ='ITC Allocation and After Tax'!H108 -> 0.06003443649 | BA14: =TEXT(AZ14,"##.00%") -> 6.00% | BC14: =AW13&CHAR(10)&CHAR(10)&AW14&BA14&CHAR(10)&AW15&BA15&CHAR(10)&AW16&BA16 -> Sponsor Pre-tax Analysis Pre-tax IRR 6.00% Sponsor Investment 7,819,946 Risk Premium 4.00%
P15: Total Uses | V15: Interest Rate | Y15: 0.04 | Z15: =TEXT(Y15,"##.00%") -> 4.00% | AJ15: Tax Investor IRR | AM15: ='ITC Allocation and After Tax'!H101 -> 0 | AN15: =TEXT(AM15,"##.00%") -> .00% | AW15: Sponsor Investment | AZ15: ='ITC Allocation and After Tax'!K76-'ITC Allocation and After Tax'!K96 -> 7819945.5 | BA15: =TEXT(AZ15,"###,###") -> 7,819,946
V16: DSCR | Y16: 1.3 | Z16: =TEXT(Y16,"##.00") -> 1.30 | AJ16: Risk Premium | AM16: =AM15-2% -> -0.02 | AN16: =TEXT(AM16,"##.00%") -> -2.00% | AW16: Risk Premium | AZ16: =AZ14-2% -> 0.04003443649 | BA16: =TEXT(AZ16,"##.00%") -> 4.00%
P17: Sources of Funds
P18: ITC Transfer | V18: Sponsor After-tax Analysis
P19: Debt Funding | V19: After Tax Return | Y19: ='ITC Allocation and After Tax'!H124 -> 0 | Z19: =TEXT(Y19,"##.00%") -> .00% | AB19: =V18&CHAR(10)&CHAR(10)&V19&Z19&CHAR(10)&V20&Z20&CHAR(10)&V21&Z21 -> Sponsor After-tax Analysis After Tax Return .00% After Tax No NOL 4.04% IRR After Debt 5.92%
P20: Investor Funding | V20: After Tax No NOL | Y20: ='ITC Allocation and After Tax'!H132 -> 0.0404160743 | Z20: =TEXT(Y20,"##.00%") -> 4.04%
P21: Total Sources | V21: IRR After Debt | Y21: ='ITC Allocation and After Tax'!J162 -> 0.05921672483 | Z21: =TEXT(Y21,"##.00%") -> 5.92%
P41: Tax Credit Flags
P42: ITC/PTC Flag (ITC True) | S42: ='Tax Inputs'!F63 -> TRUE
P43: Meets Labor | S43: ='Tax Inputs'!$F$65 -> TRUE
P44: Domestic Content Bonus | S44: ='Tax Inputs'!F68 -> TRUE
P45: Energy Community Bonus | S45: ='Tax Inputs'!F69 -> TRUE
P46: Less than 5 MW in LMI | S46: ='Tax Inputs'!F71 -> TRUE
P47: Indian Land | S47: ='Tax Inputs'!F72 -> TRUE
P48: Low-income Residential | S48: ='Tax Inputs'!$F74 -> FALSE
P49: Low-income Economic Benefit | S49: ='Tax Inputs'!$F75 -> FALSE
P51: Applied ITC Percent | R51: ='Investor LLC Cash Flow'!I224 -> 0.6 | S51: ='ITC Allocation and After Tax'!K17 -> 2047755
P53: Applied PTC Rate | R53: ='Investor LLC Cash Flow'!I243 -> 0 | S53: ='ITC Allocation and After Tax'!K18 -> 0

Sheet Tax Equity Partnership
V3: Sponsor Financing | AJ3: Sponsor Returns
P4: Tax Equity Contribution Ratio | S4: ='Tax Equity Partner Inputs'!F16 -> 1.4 | V4: Sponsor Equity % | Y4: ='Tax Equity Allocation'!G72 -> 0.7062806107 | Z4: =TEXT(Y4,"##.00%") -> 70.63% | AA4: =CHAR(13) ->  | AB4: =V3&CHAR(10)&CHAR(10)&V4&Z4&CHAR(10)&V5&Z5&CHAR(10)&V6&Z6 -> Sponsor Financing Sponsor Equity % 70.63% Sponsor Investment 6,824,737 Cash Flow Percent 95.00% | AJ4: Pre-tax Return | AM4: ='Tax Equity Allocation'!G92 -> 0.06599876583 | AN4: =TEXT(AM4,"###.00%") -> 6.60% | AP4: =AJ3&CHAR(10)&CHAR(10)&AJ4&AN4&CHAR(10)&AJ5&AN5&CHAR(10)&AJ6&AN6 -> Sponsor Returns Pre-tax Return 6.60% After-tax IRR no NOL 4.62% After-tax NOL .00% | AW4: EE Sqft | AZ4: 0 | BA4: =TEXT(AZ4,"###,###") ->  | BC4: =AW4&BA4&CHAR(10)&AW5&BA5&CHAR(10)&AW6&BA6 -> EE Sqft EE kWh EE IRR 1.96%
D5: Tax Equity Investor | L5: Sponsor Investment | P5: Tax Investor Cash Flow Pre-Flip | V5: Sponsor Investment | Y5: ='Tax Equity Allocation'!I89 -> 6824736.57 | Z5: =TEXT(Y5,"###,###") -> 6,824,737 | AJ5: After-tax IRR no NOL | AM5: ='Tax Equity Allocation'!G116 -> 0.04624176323 | AN5: =TEXT(AM5,"###.00%") -> 4.62% | AW5: EE kWh | AZ5: ='Operating Model - Monthly'!G183 -> 0 | BA5: =TEXT(AZ5,"###,###") -> 
P6: Unlevered Pre-tax Target | S6: ='Constant Inputs - Operation'!$G$270 -> 0.07 | V6: Cash Flow Percent | Y6: ='Tax Equity Partner Inputs'!F30 -> 0.95 | Z6: =TEXT(Y6,"##.00%") -> 95.00% | AJ6: After-tax NOL | AM6: ='Operating Model - Monthly'!U351 -> 0 | AN6: =TEXT(AM6,"##.00%") -> .00% | AW6: EE IRR | AZ6: ='Operating Model - Monthly'!G203 -> 0.01958745653 | BA6: =TEXT(AZ6,"##.00%") -> 1.96%
V8: Partnership Returns
V9: Pre-tax IRR | Y9: ='ITC Allocation and After Tax'!H15 -> 0.03703955387 | Z9: =TEXT(Y9,"##.00%") -> 3.70% | AB9: =V8&CHAR(10)&CHAR(10)&V9&Z9&CHAR(10)&V10&Z10&CHAR(10)&V11&Z11 -> Partnership Returns Pre-tax IRR 3.70% IRR with ITC Benefit 6.31% Hypothetical After Tax 4.49%
P10: Tax Credit Flags | V10: IRR with ITC Benefit | Y10: ='ITC Allocation and After Tax'!H23 -> 0.0630518441 | Z10: =TEXT(Y10,"###.00%") -> 6.31%
P11: ITC/PTC Flag (ITC True) | S11: ='Tax Inputs'!F63 -> TRUE | V11: Hypothetical After Tax | Y11: ='ITC Allocation and After Tax'!H34 -> 0.04488270691 | Z11: =TEXT(Y11,"##.00%") -> 4.49%
P12: Meets Labor | S12: ='Tax Inputs'!$F$65 -> TRUE
P13: Domestic Content Bonus | S13: ='Tax Inputs'!F68 -> TRUE | AJ13: Tax Investor | AW13: Tax Investor IRR
P14: Energy Community Bonus | S14: ='Tax Inputs'!F69 -> TRUE | V14: Project Debt % | Y14: 0 | Z14: =TEXT(Y14,"##.00%") -> .00% | AB14: =V14&Z14&CHAR(10)&V15&Z15&CHAR(10)&V16&Z16 -> Project Debt % .00% Interest Rate 4.00% DSCR 1.30 | AJ14: Contribution Percent | AM14: ='Tax Equity Allocation'!G60 -> 1.4 | AN14: =TEXT(AM14,"##.00%") -> 140.00% | AP14: =AJ13&CHAR(10)&CHAR(10)&AJ14&AN14&CHAR(10)&AJ15&AN15&CHAR(10)&AJ16&AN16 -> Tax Investor Contribution Percent 140.00% Preferred Yield 3.00% Equity Percent 29.37% | AW14: Pre-tax IRR | AZ14: ='Tax Equity Allocation'!G81 -> 0.03504831314 | BA14: =TEXT(AZ14,"##.00%") -> 3.50% | BC14: =AW13&CHAR(10)&CHAR(10)&AW14&BA14&CHAR(10)&AW15&BA15&CHAR(10)&AW16&BA16 -> Tax Investor IRR Pre-tax IRR 3.50% After-tax IRR .38% ROI 1.19%
P15: Less than 5 MW in LMI | S15: ='Tax Inputs'!F71 -> TRUE | V15: Interest Rate | Y15: 0.04 | Z15: =TEXT(Y15,"##.00%") -> 4.00% | AJ15: Preferred Yield | AM15: ='Tax Equity Partner Inputs'!F18 -> 0.03 | AN15: =TEXT(AM15,"###.00%") -> 3.00% | AW15: After-tax IRR | AZ15: ='Tax Equity Allocation'!G106 -> 0.003836634755 | BA15: =TEXT(AZ15,"##.00%") -> .38%
P16: Indian Land | S16: ='Tax Inputs'!F72 -> TRUE | V16: DSCR | Y16: 1.3 | Z16: =TEXT(Y16,"##.00") -> 1.30 | AJ16: Equity Percent | AM16: ='Tax Equity Allocation'!H62 -> 0.2937193893 | AN16: =TEXT(AM16,"##.00%") -> 29.37% | AW16: ROI | AZ16: ='Tax Equity Allocation'!I110 -> 0.01189594775 | BA16: =TEXT(AZ16,"##.00%") -> 1.19%
P17: Low-income Residential | S17: ='Tax Inputs'!$F74 -> FALSE
P18: Low-income Economic Benefit | S18: ='Tax Inputs'!$F75 -> FALSE
V19: Back Leverage % | Y19: 0 | Z19: =TEXT(Y19,"##.00%") -> .00% | AB19: =V19&Z19&CHAR(10)&V20&Z20&CHAR(10)&V21&Z21 -> Back Leverage % .00% Interest Rate 4.00% DSCR 1.30
P20: Applied ITC Percent | R20: ='Investor LLC Cash Flow'!I224 -> 0.6 | S20: ='ITC Allocation and After Tax'!K17 -> 2047755 | V20: Interest Rate | Y20: 0.04 | Z20: =TEXT(Y20,"##.00%") -> 4.00%
V21: DSCR | Y21: 1.3 | Z21: =TEXT(Y21,"##.00") -> 1.30
P22: Applied PTC Rate | R22: ='Investor LLC Cash Flow'!I243 -> 0 | S22: ='ITC Allocation and After Tax'!K18 -> 0

Sheet CHP Diagram
J1: Current Gas Use | L1: Therms p.a. | N1: ='Constant Inputs - Operation'!G23+'Constant Inputs - Operation'!G26 -> 27866 | P1: PPA | Q1: Therm Savings | R1: $/Therm
J2: Heat Produced | L2: Therms p.a. | N2: =E23 -> 0 | Q2: Electricity Savings | R2: Spark Spread
J3: Therm Savings | L3: Therms p.a. | N3: =MIN(N2,N1) -> 0 | Q3: O&M Cost
C4: Capacity kW | E4: ='Constant Inputs - Operation'!G285 -> 200
C6: Capital Cost/kW | E6: ='Constant Inputs - Operation'!G296 -> 2000
C8: Production kWh p.a. | E8: =SUM('Operating Model - Monthly'!M525:X525) -> 0
C9: Capacity Factor | E9: =E8/8760/E4 -> 0
C13: Electric Efficiency | E13: ='Constant Inputs - Operation'!G288 -> 0.45
C14: BTU/kWh | E14: ='Constant Inputs - Operation'!G291 -> 7582.222222
C15: Therm/kWh | E15: ='Constant Inputs - Operation'!$G$292 -> 0.07582222222
W16: =C4&" "&TEXT(E4,"###,###") -> Capacity kW 200
C22: Gas Cost/Therm | E22: ='Constant Inputs - Operation'!$G$46 -> 0.5
C23: Therms p.a. | E23: =E8*E15 -> 0

Sheet Solar Diagram
B16: Capacity kWp | D16: ='Constant Inputs - Operation'!G241 -> 630
B17: Capacity kWac | D17: ='Constant Inputs - Operation'!G240 -> 567
B18: AC/DC Ratio | D18: =D17/D16 -> 0.9
B20: Yield - kWh/kWp | D20: ='Constant Inputs - Operation'!G245 -> 1427.619048
B21: Capacity Factor | D21: =D20/8760/D18 -> 0.1810780121
B23: Cost/kWp | D23: ='Constant Inputs - Operation'!G258 -> 5238.095238

Sheet EV Diagram
J3: Capacity per Unit | L3: kW | M3: ='Constant Inputs - Operation'!G99 -> 11
J4: Initial Utilization | L4: % | M4: ='Constant Inputs - Operation'!G100 -> 0.07
J5: Hours per Day | L5: hrs | M5: =M4*24 -> 1.68
J7: kWh per Day | L7: kWh | M7: =M5*M3 -> 18.48
J8: Price per kWh | L8: $/kWh | M8: ='Constant Inputs - Operation'!G103 -> 0.61
J9: Revenue per Day | L9: USD | M9: =M7*M8 -> 11.2728
J11: Total Cap Exp | L11: USD | M11: ='Operating Model - Monthly'!H153+'Operating Model - Monthly'!H154 -> 83994
J12: Cap Exp per kW | L12: $/kW | M12: =M11/M3 -> 7635.818182

Sheet Emission Reductions
J2: Emission Reductions | O2: Value of Emissions
B3: Electricity Saved | F3: Total | G3: Years | H3: Avg/Year | J3: Tons CO2/MWH | L3: CO2 Reduced | M3: Methane Reduced
C4: Energy Efficiency | D4: kWh | F4: ='Investor LLC Cash Flow'!K22 -> 24268880
C5: Solar | D5: kWh | F5: ='Investor LLC Cash Flow'!K23 -> 15399032.84
C6: Combined Heat and Power | D6: kWh | F6: ='Investor LLC Cash Flow'!K24 -> 0
B8: Natural Gas Saved
C9: Energy Efficiency | D9: Therms
C10: Combined Heat and Power | D10: Therms
B12: Gasoline Saved vs Electricity

Sheet ITC versus PTC Analysis
B4: Project Cost/kW | E4: ='Constant Inputs - Operation'!G258 -> 5238.095238
B5: Project Capacity Factor | E5: ='Constant Inputs - Operation'!G250 -> 0.1810780121
B7: Nominal ITC Available | E7: ='ITC Allocation and After Tax'!K51 -> 0
B8: Nominal PTC Available | E8: ='ITC Allocation and After Tax'!K52 -> 218442.6661
B10: IRR with PTC | E10: ='ITC Allocation and After Tax'!H51 -> 0.03554107409
B11: IRR with ITC | E11: ='ITC Allocation and After Tax'!H52 -> 0.04332792112
B13: IRR on PTC versus ITC | E13: ='ITC Allocation and After Tax'!H56 -> 0

Sheet Constant Inputs - Operation
D2: Scenario Number | E2: 7 | G2: =INDEX(I4:Y4,E2) -> Atria Crossroads Decarbonization | I2: PIRR | J2: ='Operating Model - Monthly'!G351 -> 0.01365607126
F4: =INDEX(I4:T4,E2) -> Atria Crossroads Decarbonization | G4: Applied | I4: Hutington Hilton - EE and CHP | J4: Hutington Hilton - Solar Only | K4: Hutington Hilton - EE Only | L4: Hutington Hilton - EV Charging | M4: Hutington Hilton - Solar Only | N4: 155 East 34th St, NY, NY 10016 | O4: Atria Crossroads Decarbonization | P4: Satish Solar | Q4: Alternative - No Battery High Cap Fac | R4: Alternative - No Battery 1 | S4: Alternative - No Battery | T4: Sensitivity 4 | Y4: Sensitivity 4
I5: 1 | J5: 2 | K5: 3 | L5: 4 | M5: 5 | N5: 6 | O5: 7 | P5: 8 | Q5: 9 | R5: 10 | S5: 11 | T5: 12 | Y5: 11
B6: General Assumptions
D7: Project Name | F7: =INDEX(I7:Y7,$E$2) -> Atria Crossroads Decarbonization | G7: Atria Crossroads Decarbonization | I7: =I4 -> Hutington Hilton - EE and CHP | J7: =J4 -> Hutington Hilton - Solar Only | K7: 1101 Walnut | L7: =L4 -> Hutington Hilton - EV Charging | M7: =M4 -> Hutington Hilton - Solar Only | N7: =N4 -> 155 East 34th St, NY, NY 10016 | O7: =O4 -> Atria Crossroads Decarbonization | P7: Virgina | Q7: Elif Solar Case | R7: Solar Example | S7: Elif Solar Case | T7: Solar Example | Y7: Solar Example
C9: Dates
D10: Model Start Date | E10: Date | F10: =INDEX(I10:Y10,$E$2) -> 2022-01-01 | G10: 2022-01-01 | I10: 2022-01-01 | J10: 2022-01-01 | K10: 2022-01-01 | L10: 2022-01-01 | M10: 2022-01-01 | N10: 2022-01-01 | O10: 2022-01-01 | P10: 2022-01-01 | Q10: 2022-01-01 | R10: 2022-01-01 | S10: 2022-01-01 | T10: 2022-01-01 | Y10: 2022-01-01
D11: Inflation index | E11: % p.a. | F11: =INDEX(I11:Y11,$E$2) -> 0.03 | G11: 0.03 | I11: 0.03 | J11: 0.03 | K11: 0.03 | L11: 0.03 | M11: 0.03 | N11: 0.03 | O11: 0.03 | P11: 0.03 | Q11: 0.03 | R11: 0.03 | S11: 0.03 | T11: 0.03 | Y11: 0.03
D12: Development Spend Period | E12: Date | F12: =INDEX(I12:Y12,$E$2) -> 2022-12-01 | G12: 2022-12-01 | I12: 2022-12-01 | J12: 2022-12-01 | K12: 2022-12-01 | L12: 2022-12-01 | M12: 2022-12-01 | N12: 2022-12-01 | O12: 2022-12-01 | P12: 2022-12-01 | Q12: 2022-12-01 | R12: 2022-12-01 | S12: 2022-12-01 | T12: 2022-12-01 | Y12: 2022-12-01
D13: Capitalization Date | E13: Date | F13: =INDEX(I13:Y13,$E$2) -> 2023-11-01 | G13: 2023-11-01 | I13: =I126 -> 2023-11-01 | J13: =J126 -> 2023-11-01 | K13: =K126 -> 2023-11-01 | L13: =L126 -> 2023-11-01 | M13: =M126 -> 2023-11-01 | N13: 2023-11-01 | O13: =O126 -> 2023-11-01 | P13: 2023-11-01 | Q13: 2023-11-01 | R13: =R126 -> 2023-11-01 | S13: 2023-11-01 | T13: 2023-11-01 | Y13: 2024-09-01
C15: Energy Usage at Facility
D16: Baseline Annual Electricity Energy Usage | E16: kWh | F16: =INDEX(I16:Y16,$E$2) -> 1356963 | G16: 1356963 | I16: ='Energy Bill Working'!$F$16 -> 3635262.679 | J16: ='Energy Bill Working'!$F$16 -> 3635262.679 | K16: ='Energy Bill Working'!$F$16 -> 3635262.679 | L16: ='Energy Bill Working'!$F$16 -> 3635262.679 | M16: 818713 | N16: =Notes!E126 -> 2730855 | O16: 1356963 | P16: 818713 | Q16: 818713 | R16: 818713 | S16: 818713 | T16: 818713 | Y16: 818713
D17: Code Number for Electricity Seasonality | E17: Code | F17: =INDEX(I17:Y17,$E$2) -> 2 | G17: 2 | I17: 1 | J17: 1 | K17: 1 | L17: 1 | M17: 1 | N17: 2 | O17: 2 | P17: 1 | Q17: 1 | R17: 1 | S17: 1 | T17: 1
D18: Average Usage per hour | E18: kW | F18: =INDEX(I18:Y18,$E$2) -> 154.9044521 | G18: 154.9044521 | I18: =I16/8760 -> 414.984324 | J18: =J16/8760 -> 414.984324 | K18: 414.984324 | L18: 414.984324 | M18: =M16/8760 -> 93.46038813 | N18: 311.7414384 | O18: =O16/8760 -> 154.9044521 | P18: 93.46038813 | Q18: 93.46038813 | R18: 93.46038813 | S18: 93.46038813 | T18: 93.46038813
D19: Annual Growth in Electricity Usage | E19: % | F19: =INDEX(I19:Y19,$E$2) -> 0 | G19: 0 | I19: 0 | J19: 0 | K19: 0 | L19: 0 | M19: 0 | N19: 0 | O19: 0 | P19: 0 | Q19: 0 | R19: 0 | S19: 0 | T19: 0
D21: Square Feet | F21: =INDEX(I21:Y21,$E$2) -> 95000 | G21: 95000 | I21: 161000 | J21: 161000 | K21: 161000 | L21: 161000 | M21: 161000 | N21: 161000 | O21: 95000 | P21: 161000 | Q21: 161000 | R21: 161000 | S21: 161000 | T21: 161000 | Y21: 161000
D23: Baseline Annual Natural Gas Usage - Common Areas | E23: Therm | F23: =INDEX(I23:Y23,$E$2) -> 0 | G23: 0 | I23: ='Energy Bill Working'!$L$16 -> 151139 | J23: ='Energy Bill Working'!$L$16 -> 151139 | K23: ='Energy Bill Working'!$L$16 -> 151139 | L23: ='Energy Bill Working'!$L$16 -> 151139 | M23: ='Energy Bill Working'!$L$16 -> 151139 | N23: 0 | O23: 0 | P23: ='Energy Bill Working'!$L$16 -> 151139 | Q23: ='Energy Bill Working'!$L$16 -> 151139 | R23: ='Energy Bill Working'!$L$16 -> 151139 | S23: ='Energy Bill Working'!$L$16 -> 151139 | T23: ='Energy Bill Working'!$L$16 -> 151139
D24: Code Number for Natural Gas Seasonality - Common Areas | E24: Code | F24: =INDEX(I24:Y24,$E$2) -> 2 | G24: 2 | I24: 1 | J24: 1 | K24: 1 | L24: 1 | M24: 1 | N24: 2 | O24: 2 | P24: 1 | Q24: 1 | R24: 1 | S24: 1 | T24: 1
D26: Baseline Annual Natural Gas Usage - Other | E26: Therm | F26: =INDEX(I26:Y26,$E$2) -> 27866 | G26: 27866 | I26: 0 | J26: 0 | K26: 0 | L26: 0 | M26: 0 | N26: =Notes!E127 -> 373848 | O26: 27866 | P26: 0 | Q26: 0 | R26: 0 | S26: 0 | T26: 0
D27: Code Number for Natural Gas Seasonality - Other | E27: Code | F27: =INDEX(I27:Y27,$E$2) -> 2 | G27: 2 | I27: 1 | J27: 1 | K27: 1 | L27: 1 | M27: 1 | N27: 2 | O27: 2 | P27: 1 | Q27: 1 | R27: 1 | S27: 1 | T27: 1
C29: Energy Prices
D30: Variable Electricity Price Code Number | E30: Code | F30: =INDEX(I30:Y30,$E$2) -> 3 | G30: 3 | I30: 1 | J30: 1 | K30: 1 | L30: 1 | M30: 1 | N30: 3 | O30: 3 | P30: 1 | Q30: 1 | R30: 1 | S30: 1 | T30: 1
D31: Average Electricity Price | E31: $/kWh | F31: =INDEX(I31:Y31,$E$2) -> 0.2 | G31: 0.2 | I31: =AVERAGE('Time Series Inputs - Operations'!$F$33:$Q$33) -> 0.18 | J31: =AVERAGE('Time Series Inputs - Operations'!$F$33:$Q$33) -> 0.18 | K31: =AVERAGE('Time Series Inputs - Operations'!$F$33:$Q$33) -> 0.18 | L31: =AVERAGE('Time Series Inputs - Operations'!$F$33:$Q$33) -> 0.18 | M31: =AVERAGE('Time Series Inputs - Operations'!$F$33:$Q$33) -> 0.18 | N31: 0.2 | O31: 0.2 | P31: 0.044 | Q31: =AVERAGE('Time Series Inputs - Operations'!$F$33:$Q$33) -> 0.18 | R31: =AVERAGE('Time Series Inputs - Operations'!$F$33:$Q$33) -> 0.18 | S31: =AVERAGE('Time Series Inputs - Operations'!$F$33:$Q$33) -> 0.18 | T31: =AVERAGE('Time Series Inputs - Operations'!$F$33:$Q$33) -> 0.18
D32: Electricity Price Inflation Code | E32: Code | F32: =INDEX(I32:Y32,$E$2) -> 3 | G32: 3 | I32: 3 | J32: 3 | K32: 3 | L32: 3 | M32: 3 | N32: 3 | O32: 3 | P32: 1 | Q32: 3 | R32: 3 | S32: 3 | T32: 3
D33: Average Electricity Price Inflation | E33: % | F33: =INDEX(I33:Y33,$E$2) -> 0.03 | G33: 0.03 | I33: =AVERAGE(INDEX('Time Series Inputs - Operations'!$F$54:$F$58,'Constant Inputs - Operation'!I32)) -> 0.02 | J33: =AVERAGE(INDEX('Time Series Inputs - Operations'!$F$54:$F$58,'Constant Inputs - Operation'!J32)) -> 0.02 | K33: =AVERAGE(INDEX('Time Series Inputs - Operations'!$F$54:$F$58,'Constant Inputs - Operation'!K32)) -> 0.02 | L33: =AVERAGE(INDEX('Time Series Inputs - Operations'!$F$54:$F$58,'Constant Inputs - Operation'!L32)) -> 0.02 | M33: =AVERAGE(INDEX('Time Series Inputs - Operations'!$F$54:$F$58,'Constant Inputs - Operation'!M32)) -> 0.02 | N33: 0.03 | O33: 0.03 | P33: =AVERAGE(INDEX('Time Series Inputs - Operations'!$F$54:$F$58,'Constant Inputs - Operation'!P32)) -> 0 | Q33: =AVERAGE(INDEX('Time Series Inputs - Operations'!$F$54:$F$58,'Constant Inputs - Operation'!Q32)) -> 0.02 | R33: =AVERAGE(INDEX('Time Series Inputs - Operations'!$F$54:$F$58,'Constant Inputs - Operation'!R32)) -> 0.02 | S33: =AVERAGE(INDEX('Time Series Inputs - Operations'!$F$54:$F$58,'Constant Inputs - Operation'!S32)) -> 0.02 | T33: =AVERAGE(INDEX('Time Series Inputs - Operations'!$F$54:$F$58,'Constant Inputs - Operation'!T32)) -> 0.02
D35: Variable Gas Price Code Number | E35: Code | F35: =INDEX(I35:Y35,$E$2) -> 1 | G35: 1 | I35: 1 | J35: 1 | K35: 1 | L35: 1 | M35: 1 | N35: 1 | O35: 1 | P35: 1 | Q35: 1 | R35: 1 | S35: 1 | T35: 1
D36: Average Gas Price | E36: $/Therm | F36: =INDEX(I36:Y36,$E$2) -> 2.6 | G36: 2.6 | I36: =AVERAGE('Time Series Inputs - Operations'!$F$41:$Q$41) -> 1.561140299 | J36: =AVERAGE('Time Series Inputs - Operations'!$F$41:$Q$41) -> 1.561140299 | K36: =AVERAGE('Time Series Inputs - Operations'!$F$41:$Q$41) -> 1.561140299 | L36: =AVERAGE('Time Series Inputs - Operations'!$F$41:$Q$41) -> 1.561140299 | M36: =AVERAGE('Time Series Inputs - Operations'!$F$41:$Q$41) -> 1.561140299 | N36: 2.6 | O36: 2.6 | P36: =AVERAGE('Time Series Inputs - Operations'!$F$41:$Q$41) -> 1.561140299 | Q36: =AVERAGE('Time Series Inputs - Operations'!$F$41:$Q$41) -> 1.561140299 | R36: =AVERAGE('Time Series Inputs - Operations'!$F$41:$Q$41) -> 1.561140299 | S36: =AVERAGE('Time Series Inputs - Operations'!$F$41:$Q$41) -> 1.561140299 | T36: =AVERAGE('Time Series Inputs - Operations'!$F$41:$Q$41) -> 1.561140299
D37: Natural Gas Price Inflation | E37: Code | F37: =INDEX(I37:Y37,$E$2) -> 1 | G37: 1 | I37: 1 | J37: 1 | K37: 1 | L37: 1 | M37: 1 | N37: 1 | O37: 1 | P37: 1 | Q37: 1 | R37: 1 | S37: 1 | T37: 1
D38: Average Gas Price Inflation | E38: % | F38: =INDEX(I38:Y38,$E$2) -> 0 | G38: 0 | I38: =AVERAGE(INDEX('Time Series Inputs - Operations'!$F$54:$F$58,'Constant Inputs - Operation'!I37)) -> 0 | J38: =AVERAGE(INDEX('Time Series Inputs - Operations'!$F$54:$F$58,'Constant Inputs - Operation'!J37)) -> 0 | K38: =AVERAGE(INDEX('Time Series Inputs - Operations'!$F$54:$F$58,'Constant Inputs - Operation'!K37)) -> 0 | L38: =AVERAGE(INDEX('Time Series Inputs - Operations'!$F$54:$F$58,'Constant Inputs - Operation'!L37)) -> 0 | M38: =AVERAGE(INDEX('Time Series Inputs - Operations'!$F$54:$F$58,'Constant Inputs - Operation'!M37)) -> 0 | N38: =AVERAGE(INDEX('Time Series Inputs - Operations'!$F$54:$F$58,'Constant Inputs - Operation'!N37)) -> 0 | O38: =AVERAGE(INDEX('Time Series Inputs - Operations'!$F$54:$F$58,'Constant Inputs - Operation'!O37)) -> 0 | P38: =AVERAGE(INDEX('Time Series Inputs - Operations'!$F$54:$F$58,'Constant Inputs - Operation'!P37)) -> 0 | Q38: =AVERAGE(INDEX('Time Series Inputs - Operations'!$F$54:$F$58,'Constant Inputs - Operation'!Q37)) -> 0 | R38: =AVERAGE(INDEX('Time Series Inputs - Operations'!$F$54:$F$58,'Constant Inputs - Operation'!R37)) -> 0 | S38: =AVERAGE(INDEX('Time Series Inputs - Operations'!$F$54:$F$58,'Constant Inputs - Operation'!S37)) -> 0 | T38: =AVERAGE(INDEX('Time Series Inputs - Operations'!$F$54:$F$58,'Constant Inputs - Operation'!T37)) -> 0
D40: Price for Surplus Solar Sales to Grid | E40: $/kWh | F40: =INDEX(I40:Y40,$E$2) -> 0.2 | G40: 0.2 | I40: 0.125 | J40: 0.125 | K40: 0.125 | L40: 0.125 | M40: 0.125 | N40: 0.2 | O40: 0.2 | P40: 0.044 | Q40: 0.125 | R40: 0.125 | S40: 0.125 | T40: 0.125
D41: Price for Surplus Solar Sales to Grid Inflation | E41: Code | F41: =INDEX(I41:Y41,$E$2) -> 1 | G41: 1 | I41: 1 | J41: 1 | K41: 1 | L41: 1 | M41: 1 | N41: 1 | O41: 1 | P41: 1 | Q41: 1 | R41: 1 | S41: 1 | T41: 1
D42: Price for Natural Gas Purchases for CHP | E42: $/Therm | F42: =INDEX(I42:Y42,$E$2) -> 0.2 | G42: 0.2 | I42: 0.2 | J42: 0.2 | K42: 0.2 | L42: 0.2 | M42: 0.2 | N42: 0.2 | O42: 0.2 | P42: 0.2 | Q42: 0.2 | R42: 0.2 | S42: 0.2 | T42: 0.2
D43: Price for Natural Gas Purchases for CHP Inflation | E43: Code | F43: =INDEX(I43:Y43,$E$2) -> 1 | G43: 1 | I43: 1 | J43: 1 | K43: 1 | L43: 1 | M43: 1 | N43: 1 | O43: 1 | P43: 1 | Q43: 1 | R43: 1 | S43: 1 | T43: 1
D45: Natural Gas- Other | E45: $/Therm | F45: =INDEX(I45:Y45,$E$2) -> 2.6 | G45: 2.6 | I45: 6.586 | J45: 6.586 | K45: 6.586 | L45: 6.586 | M45: 6.586 | N45: =N36 -> 2.6 | O45: 2.6 | P45: 6.586 | Q45: 6.586 | R45: 6.586 | S45: 6.586 | T45: 6.586
D46: CHP fuel costs (Cents/therm) | E46: $/Therm | F46: =INDEX(I46:Y46,$E$2) -> 0.5 | G46: 0.5 | I46: 0.0708 | J46: 0.0708 | K46: 0.0708 | L46: 0.0708 | M46: 0.0708 | N46: 0.5 | O46: 0.5 | P46: 0.0708 | Q46: 0.0708 | R46: 0.0708 | S46: 0.0708 | T46: 0.0708
D48: Price for Battery - Capacity | E48: $/MW/Day | F48: =INDEX(I48:Y48,$E$2) -> 163.34 | G48: 163.34 | I48: 163.34 | J48: 163.34 | K48: 163.34 | L48: 163.34 | M48: 163.34 | N48: 163.34 | O48: 163.34 | P48: 163.34 | Q48: 163.34 | R48: 163.34 | S48: 163.34 | T48: 163.34
D49: Price for Battery - Regulation | E49: $/MW/Day | F49: =INDEX(I49:Y49,$E$2) -> 354.9547932 | G49: 354.9547932 | I49: 354.9547932 | J49: 354.9547932 | K49: 354.9547932 | L49: 354.9547932 | M49: 354.9547932 | N49: 354.9547932 | O49: 354.9547932 | P49: 354.9547932 | Q49: 354.9547932 | R49: 354.9547932 | S49: 354.9547932 | T49: 354.9547932
D50: Price for Battery - Energy Market | E50: $/MW/Day | F50: =INDEX(I50:Y50,$E$2) -> 17.5 | G50: 17.5 | I50: 17.5 | J50: 17.5 | K50: 17.5 | L50: 17.5 | M50: 17.5 | N50: 17.5 | O50: 17.5 | P50: 17.5 | Q50: 17.5 | R50: 17.5 | S50: 17.5 | T50: 17.5
D51: Price for Battery - Synch Reserve | E51: $/MW/Day | F51: =INDEX(I51:Y51,$E$2) -> 43.14066435 | G51: 43.14066435 | I51: 43.14066435 | J51: 43.14066435 | K51: 43.14066435 | L51: 43.14066435 | M51: 43.14066435 | N51: 43.14066435 | O51: 43.14066435 | P51: 43.14066435 | Q51: 43.14066435 | R51: 43.14066435 | S51: 43.14066435 | T51: 43.14066435
D53: Total budgeted costs | E53: USD | F53: =INDEX(I53:Y53,$E$2) -> 0 | G53: 0 | I53: 0 | J53: 0 | K53: 0 | L53: 0 | M53: 0 | N53: 0 | O53: 0 | P53: 0 | Q53: 0 | R53: 0 | S53: 0 | T53: 0
D55: Contingency | E55: % of Budget | F55: =INDEX(I55:Y55,$E$2) -> 0 | G55: 0 | I55: 0 | J55: 0 | K55: 0 | L55: 0 | M55: 0 | N55: 0 | O55: 0 | P55: 0 | Q55: 0 | R55: 0 | S55: 0 | T55: 0 | Y55: 0
D56: Total Contingency | E56: USD | F56: =INDEX(I56:Y56,$E$2) -> 0 | G56: 0 | I56: =(I53*I55) -> 0 | J56: =(J53*J55) -> 0 | K56: =(K53*K55) -> 0 | L56: =(L53*L55) -> 0 | M56: =(M53*M55) -> 0 | N56: 0 | O56: =(O53*O55) -> 0 | P56: 0 | Q56: 0 | R56: =(R53*R55) -> 0 | S56: 0 | T56: 0
B58: Development Costs and Fees
D59: Legal fees | E59: USD | F59: =INDEX(I59:Y59,$E$2) -> 0 | G59: 0 | I59: =-15000 -> -15000 | J59: 0 | K59: 0 | L59: 0 | M59: 0 | N59: 0 | O59: 0 | P59: 0 | Q59: 0 | R59: 0 | S59: 0 | T59: 0 | Y59: 0
D61: Construction Management fee Percent | E61: % | F61: =INDEX(I61:Y61,$E$2) -> 0 | G61: 0 | I61: 0 | J61: 0 | K61: 0 | L61: 0 | M61: 0 | N61: 0 | O61: 0 | P61: 0 | Q61: 0 | R61: 0 | S61: 0 | T61: 0 | Y61: 0
D62: Construction Management Fees | E62: USD | F62: =INDEX(I62:Y62,$E$2) -> 0 | G62: 0 | I62: =I61*I53 -> 0 | J62: =J61*J53 -> 0 | K62: 0 | L62: 0 | M62: 0 | N62: 0 | O62: =O61*O53 -> 0 | P62: 0 | Q62: 0 | R62: =R61*R53 -> 0 | S62: 0 | T62: 0
D64: Full Budget Legal Fees | E64: USD | F64: =INDEX(I64:Y64,$E$2) -> 0 | G64: 0 | I64: =(I53*I61) -> 0 | J64: 0 | K64: 0 | L64: 0 | M64: 0 | N64: 0 | O64: =(O53*O61) -> 0 | P64: 0 | Q64: 0 | R64: =(R53*R61) -> 0 | S64: 0 | T64: 0
D66: Project Development fees | E66: % | F66: =INDEX(I66:Y66,$E$2) -> 0.08 | G66: 0.08 | I66: 0.08 | J66: 0.08 | K66: 0.08 | L66: 0 | M66: 0.08 | N66: 0.08 | O66: 0.08 | P66: 0.08 | Q66: 0.08 | R66: 0.08 | S66: 0.08 | T66: 0.08 | Y66: 0.08
D67: Full Budget Development Fees | E67: USD | F67: =INDEX(I67:Y67,$E$2) -> 0 | G67: 0 | I67: =(I53*I66) -> 0 | J67: =I67/2 -> 0 | K67: 0 | L67: 0 | M67: 0 | N67: 0 | O67: 0 | P67: 0 | Q67: 0 | R67: 0 | S67: 0 | T67: 0 | Y67: 0
D69: EnergyTenant lease payment % | E69: % | F69: =INDEX(I69:Y69,$E$2) -> 0 | G69: 0 | I69: 0.05 | J69: 0.05 | K69: 0 | L69: 0 | M69: 0 | N69: 0 | O69: 0 | P69: 0 | Q69: 0 | R69: 0 | S69: 0 | T69: 0.05 | Y69: 0.05
D70: Managing partner/asset management fees | E70: % | F70: =INDEX(I70:Y70,$E$2) -> 0 | G70: 0 | I70: 0.05 | J70: 0.05 | K70: 0 | L70: 0 | M70: 0 | N70: 0 | O70: 0 | P70: 0 | Q70: 0 | R70: 0 | S70: 0 | T70: 0.05 | Y70: 0.05
B72: PPA Between Energy Service Provider and Facility
D73: PPA Rate | E73: $/kWh | F73: =INDEX(I73:Y73,$E$2) -> 0.2 | G73: 0.2 | I73: =I31 -> 0.18 | J73: 0.18 | K73: 0.18 | L73: 0.18 | M73: 0.18 | N73: 0.2 | O73: =O31 -> 0.2 | P73: 0.044 | Q73: 0.18 | R73: 0.18 | S73: 0.18 | T73: 0.18
D74: PPA Inflation Rate | E74: % p.a. | F74: =INDEX(I74:Y74,$E$2) -> 0.03 | G74: 0.03 | I74: 0.03 | J74: 0.03 | K74: 0.03 | L74: 0.03 | M74: 0.03 | N74: 0.03 | O74: 0.03 | P74: 0 | Q74: 0.03 | R74: 0.03 | S74: 0.03 | T74: 0.03
D75: PPA Inflation start date | E75: Date | F75: =INDEX(I75:Y75,$E$2) -> 2024-01-01 | G75: 2024-01-01 | I75: 2024-01-01 | J75: 2024-01-01 | K75: 2024-01-01 | L75: 2024-01-01 | M75: 2024-01-01 | N75: 2024-01-01 | O75: 2024-01-01 | P75: 2024-01-01 | Q75: 2024-01-01 | R75: 2024-01-01 | S75: 2024-01-01 | T75: 2024-01-01 | Y75: 2024-01-01
D77: PPA Term | E77: Years | F77: =INDEX(I77:Y77,$E$2) -> 20 | G77: 20 | I77: 20 | J77: 20 | K77: 20 | L77: 20 | M77: 20 | N77: 20 | O77: 20 | P77: 20 | Q77: 20 | R77: 20 | S77: 20 | T77: 20
D79: Lease Payment by Energy Service Provider to Facility | E79: $/Year | G79: =100 * H79 -> 0 | H79: 0 | I79: =lease_payment -> 0 | J79: 0 | K79: 0 | L79: 0 | M79: 0 | N79: 0 | O79: 0 | P79: 0 | Q79: 0 | R79: 0 | S79: 0 | T79: 0 | U79: 0 | V79: 0 | W79: 0 | X79: 0 | Y79: 0
D81: Energy Services Fee to Cover Other Costs | E81: $/Year | G81: =100 * H81 -> 0 | H81: 0 | I81: =energy_services -> 0 | J81: 0 | K81: 0 | L81: 0 | M81: 0 | N81: 0 | O81: 0 | P81: 0 | Q81: 0 | R81: 0 | S81: 0 | T81: 0 | U81: 0 | V81: 0 | W81: 0 | X81: 0 | Y81: 0
D82: Dates for Energy Services Fee
D84: Opportunity Cost of Reduced Refurbishment | E84: $ | I84: 0 | J84: 0 | K84: 0 | L84: 0 | M84: 0 | N84: 20000000 | O84: 1400000 | P84: 0 | Q84: 0 | R84: 0 | S84: 0 | T84: 0 | U84: 0 | V84: 0 | W84: 0 | X84: 0 | Y84: 0
D85: Annual Discount Rate for Opportunity Cost | E85: % | F85: =INDEX(I85:Y85,$E$2) -> 0.07 | G85: 0.07 | I85: 0.07 | J85: 0.07 | K85: 0.07 | L85: 0.07 | M85: 0.07 | N85: 0.07 | O85: 0.07 | P85: 0.07 | Q85: 0.07 | R85: 0.07 | S85: 0.07 | T85: 0.07 | U85: 0.07 | V85: 0.07 | W85: 0.07 | X85: 0.07 | Y85: 0.07
D87: Other Savings | E87: $/Year
B89: EV Charging
D91: Include Fast Charging Stations | E91: Flag | F91: =INDEX(I91:Y91,$E$2) -> FALSE | G91: FALSE | I91: TRUE | J91: TRUE | K91: TRUE | L91: TRUE | M91: TRUE | N91: TRUE | O91: FALSE | P91: FALSE | Q91: TRUE | R91: TRUE | S91: TRUE | T91: TRUE | U91: TRUE | V91: TRUE | W91: TRUE | X91: TRUE | Y91: TRUE | GH91: TRUE
D92: Start of Construction | E92: Date | F92: =INDEX(I92:Y92,$E$2) -> 2022-07-01 | G92: 2022-07-01 | I92: 2022-07-01 | J92: 2022-07-01 | K92: 2022-07-01 | L92: 2022-07-01 | M92: 2022-07-01 | N92: 2022-07-01 | O92: 2022-07-01 | P92: 2022-07-01 | Q92: 2022-07-01 | R92: 2022-07-01 | S92: 2022-07-01 | T92: 2022-07-01 | U92: 2022-07-01 | V92: 2022-07-01 | W92: 2022-07-01 | X92: 2022-07-01 | Y92: 2022-07-01
D93: Construction Flag | E93: Date | F93: =INDEX(I93:Y93,$E$2) -> 2022-07-01 | G93: 2022-07-01 | I93: 2022-07-01 | J93: 2022-07-01 | K93: 2022-07-01 | L93: 2022-07-01 | M93: 2022-07-01 | N93: 2022-07-01 | O93: 2022-07-01 | P93: 2022-07-01 | Q93: 2022-07-01 | R93: 2022-07-01 | S93: 2022-07-01 | T93: 2022-07-01 | U93: 2022-07-01 | V93: 2022-07-01 | W93: 2022-07-01 | X93: 2022-07-01 | Y93: 2022-07-01
D94: Life of EV Charger | E94: Years | F94: =INDEX(I94:Y94,$E$2) -> 20 | G94: 20 | I94: 20 | J94: 20 | K94: 20 | L94: 20 | M94: 20 | N94: 20 | O94: 20 | P94: 20 | Q94: 20 | R94: 20 | S94: 20 | T94: 20
D95: Operation Flag | E95: Date | F95: =INDEX(I95:Y95,$E$2) -> 2042-07-01 | G95: 2042-07-01 | I95: =EDATE(I93,I94*12) -> 2042-07-01 | J95: =EDATE(J93,J94*12) -> 2042-07-01 | K95: 2042-07-01 | L95: 2042-07-01 | M95: 2042-07-01 | N95: 2042-07-01 | O95: =EDATE(O93,O94*12) -> 2042-07-01 | P95: 2042-07-01 | Q95: 2042-07-01 | R95: 2042-07-01 | S95: 2042-07-01 | T95: 2042-07-01
D97: Initial Number of Chargers | E97: # | F97: =INDEX(I97:Y97,$E$2) -> 6 | G97: 6 | I97: 6 | J97: 6 | K97: 6 | L97: 6 | M97: 6 | N97: 6 | O97: 6 | P97: 6 | Q97: 6 | R97: 6 | S97: 6 | T97: 6 | U97: 6 | V97: 6 | W97: 6 | X97: 6 | Y97: 6
D98: Increase in Charging Stations | E98: Time Series Code | F98: =INDEX(I98:Y98,$E$2) -> 1 | G98: 1 | I98: 1 | J98: 1 | K98: 1 | L98: 1 | M98: 1 | N98: 1 | O98: 1 | P98: 1 | Q98: 1 | R98: 1 | S98: 1 | T98: 1 | U98: 1 | V98: 1 | W98: 1 | X98: 1 | Y98: 1
D99: Capacity of Each Charging Station (Level 2) | E99: kW | F99: =INDEX(I99:Y99,$E$2) -> 11 | G99: 11 | I99: 11 | J99: 11 | K99: 11 | L99: 11 | M99: 11 | N99: 11 | O99: 11 | P99: 11 | Q99: 11 | R99: 11 | S99: 11 | T99: 11 | U99: 11 | V99: 11 | W99: 11 | X99: 11 | Y99: 11
D100: Initial Utilization Rate for Charging Stations | E100: % | F100: =INDEX(I100:Y100,$E$2) -> 0.07 | G100: 0.07 | I100: 0.07 | J100: 0.07 | K100: 0.07 | L100: 0.07 | M100: 0.07 | N100: 0.07 | O100: 0.07 | P100: 0.07 | Q100: 0.07 | R100: 0.07 | S100: 0.07 | T100: 0.07 | U100: 0.07 | V100: 0.07 | W100: 0.07 | X100: 0.07 | Y100: 0.07
D101: Growth Rate in Utilization | E101: Time Series Code | F101: =INDEX(I101:Y101,$E$2) -> 1 | G101: 1 | I101: 1 | J101: 1 | K101: 1 | L101: 1 | M101: 1 | N101: 1 | O101: 1 | P101: 1 | Q101: 1 | R101: 1 | S101: 1 | T101: 1 | U101: 1 | V101: 1 | W101: 1 | X101: 1 | Y101: 1
D103: Price Charged per kWh | E103: $/kWh | F103: =INDEX(I103:Y103,$E$2) -> 0.61 | G103: 0.61 | I103: 0.61 | J103: 0.61 | K103: 0.61 | L103: 0.61 | M103: 0.61 | N103: 0.61 | O103: 0.61 | P103: 0.61 | Q103: 0.61 | R103: 0.61 | S103: 0.61 | T103: 0.61 | U103: 0.61 | V103: 0.61 | W103: 0.61 | X103: 0.61 | Y103: 0.61
D104: Apply Inflation | E104: Flag | F104: =INDEX(I104:Y104,$E$2) -> FALSE | G104: FALSE | I104: FALSE | J104: FALSE | K104: FALSE | L104: FALSE | M104: FALSE | N104: FALSE | O104: FALSE | P104: FALSE | Q104: FALSE | R104: FALSE | S104: FALSE | T104: FALSE | U104: FALSE | V104: FALSE | W104: FALSE | X104: FALSE | Y104: FALSE
D106: Network Cost | E106: $/Charger | F106: =INDEX(I106:Y106,$E$2) -> 216 | G106: 216 | I106: 216 | J106: 216 | K106: 216 | L106: 216 | M106: 216 | N106: 216 | O106: 216 | P106: 216 | Q106: 216 | R106: 216 | S106: 216 | T106: 216 | U106: 216 | V106: 216 | W106: 216 | X106: 216 | Y106: 216
D107: Transaction Fee % | E107: % of Revvenues | F107: =INDEX(I107:Y107,$E$2) -> 0.08 | G107: 0.08 | I107: 0.08 | J107: 0.08 | K107: 0.08 | L107: 0.08 | M107: 0.08 | N107: 0.08 | O107: 0.08 | P107: 0.08 | Q107: 0.08 | R107: 0.08 | S107: 0.08 | T107: 0.08 | U107: 0.08 | V107: 0.08 | W107: 0.08 | X107: 0.08 | Y107: 0.08
D108: Sales Tax | F108: =INDEX(I108:Y108,$E$2) -> 0 | G108: 0 | I108: 0 | J108: 0 | K108: 0 | L108: 0 | M108: 0 | N108: 0 | O108: 0 | P108: 0 | Q108: 0 | R108: 0 | S108: 0 | T108: 0 | U108: 0 | V108: 0 | W108: 0 | X108: 0 | Y108: 0
D109: Capital Expenditure Hardware Cost | E109: $/Unit | F109: =INDEX(I109:Y109,$E$2) -> 6999 | G109: 6999 | I109: 6999 | J109: 6999 | K109: 6999 | L109: 6999 | M109: 6999 | N109: 6999 | O109: 6999 | P109: 6999 | Q109: 6999 | R109: 6999 | S109: 6999 | T109: 6999 | U109: 6999 | V109: 6999 | W109: 6999 | X109: 6999 | Y109: 6999
D110: Capital Expenditure Installation Cost | E110: $/Unit | F110: =INDEX(I110:Y110,$E$2) -> 7000 | G110: 7000 | I110: 7000 | J110: 7000 | K110: 7000 | L110: 7000 | M110: 7000 | N110: 7000 | O110: 7000 | P110: 7000 | Q110: 7000 | R110: 7000 | S110: 7000 | T110: 7000 | U110: 7000 | V110: 7000 | W110: 7000 | X110: 7000 | Y110: 7000
B113: Energy Efficiency inputs
C115: Energy Efficiency Program 1
D116: Sq Ft for All Energy Efficiency for 172D Deduction | E116: sq ft | F116: =INDEX(I116:Y116,$E$2) -> 161000 | G116: 161000 | I116: 161000 | J116: 161000 | K116: 161000 | L116: 161000 | M116: 161000 | N116: 161000 | O116: 161000 | P116: 161000 | Q116: 161000 | R116: 161000 | S116: 161000 | T116: 161000 | Y116: 161000
D118: Include Energy Effiency | E118: Flag | F118: =INDEX(I118:Y118,$E$2) -> TRUE | G118: TRUE | I118: TRUE | J118: FALSE | K118: FALSE | L118: FALSE | M118: FALSE | N118: TRUE | O118: TRUE | P118: FALSE | Q118: FALSE | R118: FALSE | S118: FALSE | T118: FALSE | Y118: FALSE | GH118: TRUE
D119: Program Name | F119: =INDEX(I119:Y119,$E$2) -> Artria EE Program | G119: Artria EE Program | I119: RTUs+BMS+lighting | J119: RTUs+BMS+lighting | K119: RTUs+BMS+lighting | L119: RTUs+BMS+lighting | M119: RTUs+BMS+lighting | N119: Solar Windows | O119: Artria EE Program | P119: RTUs+BMS+lighting | Q119: RTUs+BMS+lighting | R119: RTUs+BMS+lighting | S119: RTUs+BMS+lighting | T119: RTUs+BMS+lighting
D121: Start of Construction | E121: Date | F121: =INDEX(I121:Y121,$E$2) -> 2023-09-01 | G121: 2023-09-01 | I121: 2023-09-01 | J121: 2023-09-01 | K121: 2023-09-01 | L121: 2023-09-01 | M121: 2023-09-01 | N121: 2023-09-01 | O121: 2023-09-01 | P121: 2023-09-01 | Q121: 2023-09-01 | R121: 2023-09-01 | S121: 2023-09-01 | T121: 2023-09-01 | Y121: 2023-09-01
D122: EE Construction Flag | E122: Date | F122: =INDEX(I122:Y122,$E$2) -> 2023-09-01 | G122: 2023-09-01 | I122: =$G$121 -> 2023-09-01 | J122: =$G$121 -> 2023-09-01 | K122: =$G$121 -> 2023-09-01 | L122: =$G$121 -> 2023-09-01 | M122: =$G$121 -> 2023-09-01 | N122: 2023-09-01 | O122: 2023-09-01 | P122: 2023-09-01 | Q122: 2023-09-01 | R122: 2023-09-01 | S122: 2023-09-01 | T122: 2023-09-01 | Y122: 2023-09-01
D123: EE Construcion Months | E123: Months | F123: =INDEX(I123:Y123,$E$2) -> 2 | G123: 2 | I123: 2 | J123: 2 | K123: 2 | L123: 2 | M123: 2 | N123: 2 | O123: 2 | P123: 2 | Q123: 2 | R123: 2 | S123: 2 | T123: 2 | Y123: 12
D124: EE End Construction | E124: Date | F124: =INDEX(I124:Y124,$E$2) -> 2023-10-01 | G124: 2023-10-01 | I124: =EDATE(I122,I123-1) -> 2023-10-01 | J124: =EDATE(J122,J123-1) -> 2023-10-01 | K124: =EDATE(K122,K123-1) -> 2023-10-01 | L124: =EDATE(L122,L123-1) -> 2023-10-01 | M124: =EDATE(M122,M123-1) -> 2023-10-01 | N124: 2023-10-01 | O124: =EDATE(O122,O123-1) -> 2023-10-01 | P124: 2023-10-01 | Q124: 2023-10-01 | R124: =EDATE(R122,R123-1) -> 2023-10-01 | S124: 2023-10-01 | T124: 2023-10-01 | Y124: 2024-08-01
D126: EE Operation Begin | E126: Date | F126: =INDEX(I126:Y126,$E$2) -> 2023-11-01 | G126: 2023-11-01 | I126: =EDATE(I124,1) -> 2023-11-01 | J126: =EDATE(J124,1) -> 2023-11-01 | K126: =EDATE(K124,1) -> 2023-11-01 | L126: =EDATE(L124,1) -> 2023-11-01 | M126: =EDATE(M124,1) -> 2023-11-01 | N126: 2023-11-01 | O126: =EDATE(O124,1) -> 2023-11-01 | P126: 2023-11-01 | Q126: 2023-11-01 | R126: =EDATE(R124,1) -> 2023-11-01 | S126: 2023-11-01 | T126: 2023-11-01 | Y126: 2024-09-01
D127: Operation/PPA Years | E127: Years | F127: =INDEX(I127:Y127,$E$2) -> 20 | G127: 20 | I127: 10 | J127: 10 | K127: 10 | L127: 10 | M127: 10 | N127: 20 | O127: 20 | P127: 10 | Q127: 10 | R127: 10 | S127: 10 | T127: 10 | Y127: 20
D128: End of Solar PPA/Operation | E128: Date | F128: =INDEX(I128:Y128,$E$2) -> 2043-10-01 | G128: 2043-10-01 | I128: =EDATE(I126,I127*12-1) -> 2033-10-01 | J128: =EDATE(J126,J127*12-1) -> 2033-10-01 | K128: =EDATE(K126,K127*12-1) -> 2033-10-01 | L128: =EDATE(L126,L127*12-1) -> 2033-10-01 | M128: =EDATE(M126,M127*12-1) -> 2033-10-01 | N128: 2043-10-01 | O128: =EDATE(O126,O127*12-1) -> 2043-10-01 | P128: 2033-10-01 | Q128: 2033-10-01 | R128: =EDATE(R126,R127*12-1) -> 2033-10-01 | S128: 2033-10-01 | T128: 2033-10-01 | Y128: 2044-08-01
D130: Electricity Savings as Percent of Electricity Usage | E130: % | F130: =INDEX(I130:Y130,$E$2) -> 0.8942351413 | G130: 0.8942351413 | I130: 0.259 | J130: 0.259 | K130: 0.259 | L130: 0.259 | M130: 0.259 | N130: =Notes!F126 -> 0.06315274886 | O130: =O131/O16 -> 0.8942351413 | P130: 0.259 | Q130: 0.259 | R130: 0.259 | S130: 0.259 | T130: 0.259 | Y130: 0.2
D131: Total Annual kWh Savings | E131: kWh | F131: =INDEX(I131:Y131,$E$2) -> 1213444 | G131: 1213444 | I131: =I130*I16 -> 941533.0337 | J131: 941533.0337 | K131: 941533.0337 | L131: 941533.0337 | M131: 212046.667 | N131: 172461 | O131: 1213444 | P131: =P130*P16 -> 212046.667 | Q131: 212046.667 | R131: 212046.667 | S131: 212046.667 | T131: 212046.667
D132: Capital Cost per kWh Saved | E132: $/kWh | F132: =INDEX(I132:Y132,$E$2) -> 5.150629118 | G132: 5.150629118 | I132: 1.549773358 | J132: 1.549773358 | K132: 1.549773358 | L132: 1.549773358 | M132: 1.549773358 | N132: 0 | O132: =O133/O131 -> 5.150629118 | P132: 1.549773358 | Q132: 1.549773358 | R132: 1.549773358 | S132: 1.549773358 | T132: 1.549773358
D133: Total Capital Cost - Electricity | E133: $ | F133: =INDEX(I133:Y133,$E$2) -> 6250000 | G133: 6250000 | I133: =I132*I131 -> 1459162.811 | J133: =J132*J131 -> 1459162.811 | K133: 1459162.811 | L133: 1459162.811 | M133: 328624.2751 | N133: 0 | O133: 6250000 | P133: =P132*P131 -> 328624.2751 | Q133: 328624.2751 | R133: 328624.2751 | S133: 328624.2751 | T133: 328624.2751
D135: Natural Gas Savings as % of Gas Usage | E135: % | F135: =INDEX(I135:Y135,$E$2) -> 1 | G135: 1 | I135: 0 | J135: 0 | K135: 0 | L135: 0 | M135: 0 | N135: =Notes!F127 -> 0.3949091609 | O135: =O136/O26 -> 1 | P135: 0 | Q135: 0 | R135: 0 | S135: 0 | T135: 0
D136: Total Annual Therm Savings | E136: Therm | F136: =INDEX(I136:Y136,$E$2) -> 27866 | G136: 27866 | I136: =I135*I23 -> 0 | J136: =J135*J23 -> 0 | K136: =K135*K23 -> 0 | L136: =L135*L23 -> 0 | M136: =M135*M23 -> 0 | N136: =N135*N26 -> 147636 | O136: 27866 | P136: =P135*P23 -> 0 | Q136: =Q135*Q23 -> 0 | R136: =R135*R23 -> 0 | S136: =S135*S23 -> 0 | T136: =T135*T23 -> 0
D137: Capital Cost per Therm Saved | E137: $/Therm | F137: =INDEX(I137:Y137,$E$2) -> 0 | G137: 0 | I137: 1 | J137: 1 | K137: 1 | L137: 1 | M137: 1 | N137: 0 | O137: 0 | P137: 1 | Q137: 1 | R137: 1 | S137: 1 | T137: 1
D138: Total Capital Cost - Gas | E138: $ | F138: =INDEX(I138:Y138,$E$2) -> 0 | G138: 0 | I138: =I137*I136 -> 0 | J138: =J137*J136 -> 0 | K138: 0 | L138: 0 | M138: 0 | N138: 0 | O138: =O137*O136 -> 0 | P138: 0 | Q138: 0 | R138: 0 | S138: 0 | T138: 0
D140: Total Capital Cost - Aggregate | E140: $ | F140: =INDEX(I140:Y140,$E$2) -> 6250000 | G140: 6250000 | I140: =I138+I133 -> 1459162.811 | J140: =J138+J133 -> 1459162.811 | K140: 1459162.811 | L140: 1459162.811 | M140: 328624.2751 | N140: 0 | O140: =O138+O133 -> 6250000 | P140: 328624.2751 | Q140: 328624.2751 | R140: 328624.2751 | S140: 328624.2751 | T140: 328624.2751
D141: Operating and Maintenance | E141: $ | F141: =INDEX(I141:Y141,$E$2) -> 0 | G141: 0 | I141: 0 | J141: 0 | K141: 0 | L141: 0 | M141: 0 | N141: 0 | O141: 0 | P141: 0 | Q141: 0 | R141: 0 | S141: 0 | T141: 0
C143: Energy Efficiency Program 2
D144: Include Energy Effiency | E144: Flag | F144: =INDEX(I144:Y144,$E$2) -> FALSE | G144: FALSE | I144: TRUE | J144: FALSE | K144: FALSE | L144: FALSE | M144: FALSE | N144: TRUE | O144: FALSE | P144: FALSE | Q144: FALSE | R144: FALSE | S144: FALSE | T144: FALSE | Y144: FALSE
D145: Program Name | F145: =INDEX(I145:Y145,$E$2) -> Artria EE 2 | G145: Artria EE 2 | I145: Cooling equipment improvement | J145: =$I$145 -> Cooling equipment improvement | K145: =$I$145 -> Cooling equipment improvement | L145: Cooling equipment improvement | M145: Cooling equipment improvement | N145: =Notes!J118 -> HVAC to Air Source Heat Pumps | O145: Artria EE 2 | P145: Cooling equipment improvement | Q145: Cooling equipment improvement | R145: Cooling equipment improvement | S145: Cooling equipment improvement | T145: Cooling equipment improvement | U145: Cooling equipment improvement | V145: Cooling equipment improvement | W145: Cooling equipment improvement | X145: Cooling equipment improvement | Y145: Cooling equipment improvement
D146: EE Construction Flag | E146: Date | F146: =INDEX(I146:Y146,$E$2) -> 2023-09-01 | G146: 2023-09-01 | I146: =$G$121 -> 2023-09-01 | J146: =$G$121 -> 2023-09-01 | K146: =$G$121 -> 2023-09-01 | L146: =$G$121 -> 2023-09-01 | M146: =$G$121 -> 2023-09-01 | N146: 2023-09-01 | O146: 2023-09-01 | P146: 2023-09-01 | Q146: 2023-09-01 | R146: 2023-09-01 | S146: 2023-09-01 | T146: 2023-09-01 | Y146: 2023-09-01
D147: EE Construcion Months | E147: Months | F147: =INDEX(I147:Y147,$E$2) -> 2 | G147: 2 | I147: 2 | J147: 2 | K147: 2 | L147: 2 | M147: 2 | N147: 2 | O147: 2 | P147: 2 | Q147: 2 | R147: 2 | S147: 2 | T147: 2 | Y147: 12
D148: EE End Construction | E148: Date | F148: =INDEX(I148:Y148,$E$2) -> 2023-10-01 | G148: 2023-10-01 | I148: =EDATE(I146,I147-1) -> 2023-10-01 | J148: =EDATE(J146,J147-1) -> 2023-10-01 | K148: =EDATE(K146,K147-1) -> 2023-10-01 | L148: =EDATE(L146,L147-1) -> 2023-10-01 | M148: =EDATE(M146,M147-1) -> 2023-10-01 | N148: 2023-10-01 | O148: =EDATE(O146,O147-1) -> 2023-10-01 | P148: 2023-10-01 | Q148: 2023-10-01 | R148: 2023-10-01 | S148: 2023-10-01 | T148: 2023-10-01 | Y148: =EDATE(Y146,Y147-1) -> 2024-08-01
D150: EE Operation Begin | E150: Date | F150: =INDEX(I150:Y150,$E$2) -> 2023-11-01 | G150: 2023-11-01 | I150: =EDATE(I148,1) -> 2023-11-01 | J150: =EDATE(J148,1) -> 2023-11-01 | K150: =EDATE(K148,1) -> 2023-11-01 | L150: =EDATE(L148,1) -> 2023-11-01 | M150: =EDATE(M148,1) -> 2023-11-01 | N150: 2023-11-01 | O150: =EDATE(O148,1) -> 2023-11-01 | P150: 2023-11-01 | Q150: 2023-11-01 | R150: 2023-11-01 | S150: 2023-11-01 | T150: 2023-11-01 | Y150: =EDATE(Y148,1) -> 2024-09-01
D151: Operation/PPA Years | E151: Years | F151: =INDEX(I151:Y151,$E$2) -> 20 | G151: 20 | I151: 10 | J151: 10 | K151: 10 | L151: 10 | M151: 10 | N151: 20 | O151: 20 | P151: 10 | Q151: 10 | R151: 10 | S151: 10 | T151: 10 | Y151: 20
D152: End of EE PPA/Operation | E152: Date | F152: =INDEX(I152:Y152,$E$2) -> 2043-10-01 | G152: 2043-10-01 | I152: =EDATE(I150,I151*12-1) -> 2033-10-01 | J152: =EDATE(J150,J151*12-1) -> 2033-10-01 | K152: =EDATE(K150,K151*12-1) -> 2033-10-01 | L152: =EDATE(L150,L151*12-1) -> 2033-10-01 | M152: =EDATE(M150,M151*12-1) -> 2033-10-01 | N152: 2043-10-01 | O152: =EDATE(O150,O151*12-1) -> 2043-10-01 | P152: 2033-10-01 | Q152: 2033-10-01 | R152: 2033-10-01 | S152: 2033-10-01 | T152: 2033-10-01 | Y152: =EDATE(Y150,Y151*12-1) -> 2044-08-01
D154: Electricity Savings as Percent of Electricity Usage | E154: % | F154: =INDEX(I154:Y154,$E$2) -> 5.050836671 | G154: 5.050836671 | I154: 0.05 | J154: 0.05 | K154: 0.05 | L154: 0.05 | M154: 0.05 | N154: =Notes!O122 -> 0.2900000183 | O154: =Notes!P122 -> 5.050836671 | P154: 0.05 | Q154: 0.05 | R154: 0.05 | S154: 0.05 | T154: 0.05 | Y154: 0.2
D155: Total Annual kWh Savings | E155: kWh | F155: =INDEX(I155:Y155,$E$2) -> 6853798.482 | G155: 6853798.482 | I155: =I154*I16 -> 181763.1339 | J155: 181763.1339 | K155: 181763.1339 | L155: 181763.1339 | M155: 40935.65 | N155: 791948 | O155: =O154*O16 -> 6853798.482 | P155: 40935.65 | Q155: 40935.65 | R155: 40935.65 | S155: 40935.65 | T155: 40935.65
D156: Capital Cost per kWh Saved | E156: $/kWh | F156: =INDEX(I156:Y156,$E$2) -> 0 | G156: 0 | I156: ='Energy Efficiency Backup'!$K$33 -> 0.3785399724 | J156: ='Energy Efficiency Backup'!$K$33 -> 0.3785399724 | K156: ='Energy Efficiency Backup'!$K$33 -> 0.3785399724 | L156: ='Energy Efficiency Backup'!$K$33 -> 0.3785399724 | M156: ='Energy Efficiency Backup'!$K$33 -> 0.3785399724 | N156: =Notes!P122 -> 5.050836671 | O156: =Notes!Q122 -> 0 | P156: ='Energy Efficiency Backup'!$K$33 -> 0.3785399724 | Q156: ='Energy Efficiency Backup'!$K$33 -> 0.3785399724 | R156: ='Energy Efficiency Backup'!$K$33 -> 0.3785399724 | S156: ='Energy Efficiency Backup'!$K$33 -> 0.3785399724 | T156: ='Energy Efficiency Backup'!$K$33 -> 0.3785399724
D157: Total Capital Cost - Electricity | E157: $ | F157: =INDEX(I157:Y157,$E$2) -> 0 | G157: 0 | I157: =I155*I156 -> 68804.6117 | J157: =J155*J156 -> 68804.6117 | K157: 68804.6117 | L157: 68804.6117 | M157: 15495.77982 | N157: 4000000 | O157: =O155*O156 -> 0 | P157: 15495.77982 | Q157: 15495.77982 | R157: 15495.77982 | S157: 15495.77982 | T157: 15495.77982
D159: Natural Gas Savings as % of Gas Usage | E159: % | F159: =INDEX(I159:Y159,$E$2) -> 0 | G159: 0 | I159: 0 | J159: 0 | K159: 0 | L159: 0 | M159: 0 | N159: 0 | O159: 0 | P159: 0 | Q159: 0 | R159: 0 | S159: 0 | T159: 0
D160: Total Annual Therm Savings | E160: Therm | F160: =INDEX(I160:Y160,$E$2) -> 0 | G160: 0 | I160: =I159*I49 -> 0 | J160: 0 | K160: 0 | L160: 0 | M160: 0 | N160: 0 | O160: =O159*O49 -> 0 | P160: 0 | Q160: 0 | R160: 0 | S160: 0 | T160: 0
D161: Capital Cost per Therm Saved | E161: $/Therm | F161: =INDEX(I161:Y161,$E$2) -> 0 | G161: 0 | I161: =I160*I136 -> 0 | J161: 0 | K161: 0 | L161: 0 | M161: 0 | N161: 0 | O161: =O160*O136 -> 0 | P161: 0 | Q161: 0 | R161: 0 | S161: 0 | T161: 0
D162: Total Capital Cost - Gas | E162: $ | F162: =INDEX(I162:Y162,$E$2) -> 0 | G162: 0 | I162: =I161*I160 -> 0 | J162: =J161*J160 -> 0 | K162: 0 | L162: 0 | M162: 0 | N162: 0 | O162: =O161*O160 -> 0 | P162: 0 | Q162: 0 | R162: 0 | S162: 0 | T162: 0
D164: Total Capital Cost - Aggregate | E164: $ | F164: =INDEX(I164:Y164,$E$2) -> 0 | G164: 0 | I164: =I162+I157 -> 68804.6117 | J164: =J162+J157 -> 68804.6117 | K164: 68804.6117 | L164: 68804.6117 | M164: 15495.77982 | N164: 4000000 | O164: =O162+O157 -> 0 | P164: 15495.77982 | Q164: 15495.77982 | R164: 15495.77982 | S164: 15495.77982 | T164: 15495.77982
D165: Operating and Maintenance | E165: $ | F165: =INDEX(I165:Y165,$E$2) -> 0 | G165: 0
C168: Energy Efficiency Program 3
D169: Include Energy Effiency | E169: Flag | F169: =INDEX(I169:Y169,$E$2) -> FALSE | G169: FALSE | I169: TRUE | J169: FALSE | K169: FALSE | L169: FALSE | M169: FALSE | N169: TRUE | O169: FALSE | P169: FALSE | Q169: FALSE | R169: FALSE | S169: FALSE | T169: FALSE | Y169: FALSE
D170: Program Name | F170: =INDEX(I170:Y170,$E$2) -> Artria EE #3 | G170: Artria EE #3 | I170: ='Energy Efficiency Backup'!J14 -> IntelliHVAC | J170: =$I$170 -> IntelliHVAC | K170: =$I$170 -> IntelliHVAC | L170: =$I$170 -> IntelliHVAC | M170: =$I$170 -> IntelliHVAC | N170: =Notes!J119 -> Water Heating to Heat Pump | O170: Artria EE #3 | P170: =$I$170 -> IntelliHVAC | Q170: =$I$170 -> IntelliHVAC | R170: =$I$170 -> IntelliHVAC | S170: =$I$170 -> IntelliHVAC | T170: =$I$170 -> IntelliHVAC
D172: Start of Construction | E172: Date | F172: =INDEX(I172:Y172,$E$2) -> 2023-09-01 | G172: 2023-09-01 | I172: 2023-09-01 | J172: 2023-09-01 | K172: 2023-09-01 | L172: 2023-09-01 | M172: 2023-09-01 | N172: 2023-09-01 | O172: 2023-09-01 | P172: 2023-09-01 | Q172: 2023-09-01 | R172: 2023-09-01 | S172: 2023-09-01 | T172: 2023-09-01 | Y172: 2023-09-01
D173: EE Construction Flag | E173: Date | F173: =INDEX(I173:Y173,$E$2) -> 2023-09-01 | G173: 2023-09-01 | I173: =$G$121 -> 2023-09-01 | J173: =$G$121 -> 2023-09-01 | K173: =$G$121 -> 2023-09-01 | L173: =$G$121 -> 2023-09-01 | M173: =$G$121 -> 2023-09-01 | N173: 2023-09-01 | O173: 2023-09-01 | P173: 2023-09-01 | Q173: 2023-09-01 | R173: 2023-09-01 | S173: 2023-09-01 | T173: 2023-09-01 | Y173: 2023-09-01
D174: EE Construcion Months | E174: Months | F174: =INDEX(I174:Y174,$E$2) -> 2 | G174: 2 | I174: 2 | J174: 2 | K174: 2 | L174: 2 | M174: 2 | N174: 2 | O174: 2 | P174: 2 | Q174: 2 | R174: 2 | S174: 2 | T174: 2 | Y174: 12
D175: EE End Construction | E175: Date | F175: =INDEX(I175:Y175,$E$2) -> 2023-10-01 | G175: 2023-10-01 | I175: =EDATE(I173,I174-1) -> 2023-10-01 | J175: 2023-10-01 | K175: 2023-10-01 | L175: 2023-10-01 | M175: 2023-10-01 | N175: 2023-10-01 | O175: =EDATE(O173,O174-1) -> 2023-10-01 | P175: 2023-10-01 | Q175: 2023-10-01 | R175: 2023-10-01 | S175: 2023-10-01 | T175: 2023-10-01 | Y175: =EDATE(Y173,Y174-1) -> 2024-08-01
D177: EE Operation Begin | E177: Date | F177: =INDEX(I177:Y177,$E$2) -> 2023-11-01 | G177: 2023-11-01 | I177: =EDATE(I175,1) -> 2023-11-01 | J177: 2023-11-01 | K177: 2023-11-01 | L177: 2023-11-01 | M177: 2023-11-01 | N177: 2023-11-01 | O177: =EDATE(O175,1) -> 2023-11-01 | P177: 2023-11-01 | Q177: 2023-11-01 | R177: 2023-11-01 | S177: 2023-11-01 | T177: 2023-11-01 | Y177: =EDATE(Y175,1) -> 2024-09-01
D178: Operation/PPA Years | E178: Years | F178: =INDEX(I178:Y178,$E$2) -> 20 | G178: 20 | I178: 10 | J178: 10 | K178: 10 | L178: 10 | M178: 10 | N178: 20 | O178: 20 | P178: 10 | Q178: 10 | R178: 10 | S178: 10 | T178: 10 | Y178: 20
D179: End of Solar PPA/Operation | E179: Date | F179: =INDEX(I179:Y179,$E$2) -> 2043-10-01 | G179: 2043-10-01 | I179: =EDATE(I177,I178*12-1) -> 2033-10-01 | J179: 2033-10-01 | K179: 2033-10-01 | L179: 2033-10-01 | M179: 2033-10-01 | N179: 2043-10-01 | O179: =EDATE(O177,O178*12-1) -> 2043-10-01 | P179: 2033-10-01 | Q179: 2033-10-01 | R179: 2033-10-01 | S179: 2033-10-01 | T179: 2033-10-01 | Y179: =EDATE(Y177,Y178*12-1) -> 2044-08-01
D181: Electricity Savings as Percent of Electricity Usage | E181: % | F181: =INDEX(I181:Y181,$E$2) -> 0 | G181: 0 | I181: 0.03 | J181: 0.03 | K181: 0.03 | L181: 0.03 | M181: 0.03 | N181: 0 | O181: 0 | P181: 0.03 | Q181: 0.03 | R181: 0.03 | S181: 0.03 | T181: 0.03 | Y181: 0.2
D182: Total Annual kWh Savings | E182: kWh | F182: =INDEX(I182:Y182,$E$2) -> 0 | G182: 0 | I182: =I181*I16 -> 109057.8804 | J182: 109057.8804 | K182: 109057.8804 | L182: 109057.8804 | M182: 24561.39 | N182: 0 | O182: =O181*O16 -> 0 | P182: 24561.39 | Q182: 24561.39 | R182: 24561.39 | S182: 24561.39 | T182: 24561.39
D183: Capital Cost per kWh Saved | E183: $/kWh | F183: =INDEX(I183:Y183,$E$2) -> 0.2649783553 | G183: 0.2649783553 | I183: ='Energy Efficiency Backup'!$K$19 -> 0.2649783553 | J183: ='Energy Efficiency Backup'!$K$19 -> 0.2649783553 | K183: ='Energy Efficiency Backup'!$K$19 -> 0.2649783553 | L183: ='Energy Efficiency Backup'!$K$19 -> 0.2649783553 | M183: ='Energy Efficiency Backup'!$K$19 -> 0.2649783553 | N183: ='Energy Efficiency Backup'!$K$19 -> 0.2649783553 | O183: ='Energy Efficiency Backup'!$K$19 -> 0.2649783553 | P183: ='Energy Efficiency Backup'!$K$19 -> 0.2649783553 | Q183: ='Energy Efficiency Backup'!$K$19 -> 0.2649783553 | R183: ='Energy Efficiency Backup'!$K$19 -> 0.2649783553 | S183: ='Energy Efficiency Backup'!$K$19 -> 0.2649783553 | T183: ='Energy Efficiency Backup'!$K$19 -> 0.2649783553 | U183: ='Energy Efficiency Backup'!$K$19 -> 0.2649783553 | V183: ='Energy Efficiency Backup'!$K$19 -> 0.2649783553 | W183: ='Energy Efficiency Backup'!$K$19 -> 0.2649783553 | X183: ='Energy Efficiency Backup'!$K$19 -> 0.2649783553 | Y183: ='Energy Efficiency Backup'!$K$19 -> 0.2649783553
D184: Total Electricity Capital Cost | E184: $ | F184: =INDEX(I184:Y184,$E$2) -> 0 | G184: 0 | I184: =I183*I182 -> 28897.97777 | J184: =J183*J182 -> 28897.97777 | K184: 28897.97777 | L184: 28897.97777 | M184: 6508.236726 | N184: 0 | O184: =O183*O182 -> 0 | P184: 6508.236726 | Q184: 6508.236726 | R184: 6508.236726 | S184: 6508.236726 | T184: 6508.236726 | U184: 0 | V184: 0 | W184: 0 | X184: 0 | Y184: 0
D186: Natural Gas Savings as % of Gas Usage | E186: % | F186: =INDEX(I186:Y186,$E$2) -> 0 | G186: 0 | I186: 0 | J186: 0 | K186: 0 | L186: 0 | M186: 0 | N186: =Notes!O123 -> 0.6050908391 | O186: =Notes!P123 -> 0 | P186: 0 | Q186: 0 | R186: 0 | S186: 0 | T186: 0
D187: Total Annual Therm Savings | E187: Therm | F187: =INDEX(I187:Y187,$E$2) -> 0 | G187: 0 | I187: =I186*I26 -> 0 | J187: 0 | K187: 0 | L187: 0 | M187: 0 | N187: 226212 | O187: =O186*O26 -> 0 | P187: 0 | Q187: 0 | R187: 0 | S187: 0 | T187: 0 | U187: 0 | V187: 0 | W187: 0 | X187: 0 | Y187: 0
D188: Capital Cost per Therm Saved | E188: $/Therm | F188: =INDEX(I188:Y188,$E$2) -> 0 | G188: 0 | I188: 0 | J188: 0 | K188: 0 | L188: 0 | M188: 0 | N188: =Notes!P119 -> 17.68252789 | O188: =Notes!Q119 -> 0 | P188: 0 | Q188: 0 | R188: 0 | S188: 0 | T188: 0 | U188: 0 | V188: 0 | W188: 0 | X188: 0 | Y188: 0
D189: Total Capital Cost - Gas | E189: $ | F189: =INDEX(I189:Y189,$E$2) -> 0 | G189: 0 | I189: =I188*I187 -> 0 | J189: =J188*J187 -> 0 | K189: 0 | L189: 0 | M189: 0 | N189: 4000000 | O189: =O188*O187 -> 0 | P189: 0 | Q189: 0 | R189: 0 | S189: 0 | T189: 0
D191: Total Capital Cost - Aggregate | E191: $ | F191: =INDEX(I191:Y191,$E$2) -> 0 | G191: 0 | I191: =I189+I184 -> 28897.97777 | J191: =J189+J184 -> 28897.97777 | K191: 28897.97777 | L191: 28897.97777 | M191: 6508.236726 | N191: 4000000 | O191: =O189+O184 -> 0 | P191: 6508.236726 | Q191: 6508.236726 | R191: 6508.236726 | S191: 6508.236726 | T191: 6508.236726
D192: Operating and Maintenance | E192: $ | F192: =INDEX(I192:Y192,$E$2) -> 0 | G192: 0
C194: Energy Efficiency Program 4
D195: Include Energy Effiency | E195: Flag | F195: =INDEX(I195:Y195,$E$2) -> FALSE | G195: FALSE | I195: TRUE | J195: FALSE | K195: FALSE | L195: FALSE | M195: FALSE | N195: FALSE | O195: FALSE | P195: FALSE | Q195: FALSE | R195: FALSE | S195: FALSE | T195: FALSE | Y195: FALSE
D196: Program Name | F196: =INDEX(I196:Y196,$E$2) -> Artria #4 | G196: Artria #4 | I196: Lighting improvement | J196: ='Energy Efficiency Backup'!$J$56 -> EE measure – Lighting improvement | K196: ='Energy Efficiency Backup'!$J$56 -> EE measure – Lighting improvement | L196: ='Energy Efficiency Backup'!$J$56 -> EE measure – Lighting improvement | M196: ='Energy Efficiency Backup'!$J$56 -> EE measure – Lighting improvement | N196: ='Energy Efficiency Backup'!$J$56 -> EE measure – Lighting improvement | O196: Artria #4 | P196: ='Energy Efficiency Backup'!$J$56 -> EE measure – Lighting improvement | Q196: ='Energy Efficiency Backup'!$J$56 -> EE measure – Lighting improvement | R196: ='Energy Efficiency Backup'!$J$56 -> EE measure – Lighting improvement | S196: ='Energy Efficiency Backup'!$J$56 -> EE measure – Lighting improvement | T196: ='Energy Efficiency Backup'!$J$56 -> EE measure – Lighting improvement | U196: ='Energy Efficiency Backup'!$J$56 -> EE measure – Lighting improvement | V196: ='Energy Efficiency Backup'!$J$56 -> EE measure – Lighting improvement | W196: ='Energy Efficiency Backup'!$J$56 -> EE measure – Lighting improvement | X196: ='Energy Efficiency Backup'!$J$56 -> EE measure – Lighting improvement | Y196: ='Energy Efficiency Backup'!$J$56 -> EE measure – Lighting improvement
D198: Start of Construction | E198: Date | F198: =INDEX(I198:Y198,$E$2) -> 2023-09-01 | G198: 2023-09-01 | I198: 2023-09-01 | J198: 2023-09-01 | K198: 2023-09-01 | L198: 2023-09-01 | M198: 2023-09-01 | N198: 2023-09-01 | O198: 2023-09-01 | P198: 2023-09-01 | Q198: 2023-09-01 | R198: 2023-09-01 | S198: 2023-09-01 | T198: 2023-09-01 | Y198: 2023-09-01
D199: EE Construction Flag | E199: Date | F199: =INDEX(I199:Y199,$E$2) -> 2023-09-01 | G199: 2023-09-01 | I199: =$G$121 -> 2023-09-01 | J199: =$G$121 -> 2023-09-01 | K199: =$G$121 -> 2023-09-01 | L199: =$G$121 -> 2023-09-01 | M199: =$G$121 -> 2023-09-01 | N199: 2023-09-01 | O199: 2023-09-01 | P199: 2023-09-01 | Q199: 2023-09-01 | R199: 2023-09-01 | S199: 2023-09-01 | T199: 2023-09-01 | Y199: 2023-09-01
D200: EE Construcion Months | E200: Months | F200: =INDEX(I200:Y200,$E$2) -> 2 | G200: 2 | I200: 2 | J200: 2 | K200: 2 | L200: 2 | M200: 2 | N200: 2 | O200: 2 | P200: 2 | Q200: 2 | R200: 2 | S200: 2 | T200: 2 | Y200: 12
D201: EE End Construction | E201: Date | F201: =INDEX(I201:Y201,$E$2) -> 2023-10-01 | G201: 2023-10-01 | I201: =EDATE(I199,I200-1) -> 2023-10-01 | J201: 2023-10-01 | K201: 2023-10-01 | L201: 2023-10-01 | M201: 2023-10-01 | N201: 2023-10-01 | O201: =EDATE(O199,O200-1) -> 2023-10-01 | P201: 2023-10-01 | Q201: 2023-10-01 | R201: 2023-10-01 | S201: 2023-10-01 | T201: 2023-10-01 | Y201: =EDATE(Y199,Y200-1) -> 2024-08-01
D203: EE Operation Begin | E203: Date | F203: =INDEX(I203:Y203,$E$2) -> 2023-11-01 | G203: 2023-11-01 | I203: =EDATE(I201,1) -> 2023-11-01 | J203: 2023-11-01 | K203: 2023-11-01 | L203: 2023-11-01 | M203: 2023-11-01 | N203: 2023-11-01 | O203: =EDATE(O201,1) -> 2023-11-01 | P203: 2023-11-01 | Q203: 2023-11-01 | R203: 2023-11-01 | S203: 2023-11-01 | T203: 2023-11-01 | Y203: =EDATE(Y201,1) -> 2024-09-01
D204: Operation/PPA Years | E204: Years | F204: =INDEX(I204:Y204,$E$2) -> 10 | G204: 10 | I204: 10 | J204: 10 | K204: 10 | L204: 10 | M204: 10 | N204: 10 | O204: 10 | P204: 10 | Q204: 10 | R204: 10 | S204: 10 | T204: 10 | Y204: 20
D205: End of Solar PPA/Operation | E205: Date | F205: =INDEX(I205:Y205,$E$2) -> 2033-10-01 | G205: 2033-10-01 | I205: =EDATE(I203,I204*12-1) -> 2033-10-01 | J205: 2033-10-01 | K205: 2033-10-01 | L205: 2033-10-01 | M205: 2033-10-01 | N205: 2033-10-01 | O205: =EDATE(O203,O204*12-1) -> 2033-10-01 | P205: 2033-10-01 | Q205: 2033-10-01 | R205: 2033-10-01 | S205: 2033-10-01 | T205: 2033-10-01 | Y205: =EDATE(Y203,Y204*12-1) -> 2044-08-01
D207: Electricity Savings as Percent of Electricity Usage | E207: % | F207: =INDEX(I207:Y207,$E$2) -> 0.05 | G207: 0.05 | I207: 0.05 | J207: 0.05 | K207: 0.05 | L207: 0.05 | M207: 0.05 | N207: 0.05 | O207: 0.05 | P207: 0.05 | Q207: 0.05 | R207: 0.05 | S207: 0.05 | T207: 0.05 | Y207: 0.2
D208: Total Annual kWh Savings | E208: kWh | F208: =INDEX(I208:Y208,$E$2) -> 67848.15 | G208: 67848.15 | I208: =I207*I16 -> 181763.1339 | J208: 181763.1339 | K208: 181763.1339 | L208: 181763.1339 | M208: 40935.65 | N208: 136542.75 | O208: =O207*O16 -> 67848.15 | P208: 40935.65 | Q208: 40935.65 | R208: 40935.65 | S208: 40935.65 | T208: 40935.65
D209: Capital Cost per kWh Saved | E209: $/kWh | F209: =INDEX(I209:Y209,$E$2) -> 1.5 | G209: 1.5 | I209: 1.5 | J209: 1.5 | K209: 1.5 | L209: 1.5 | M209: 1.5 | N209: 1.5 | O209: 1.5 | P209: 1.5 | Q209: 1.5 | R209: 1.5 | S209: 1.5 | T209: 1.5
D210: Total Electricity Capital Cost | F210: =INDEX(I210:Y210,$E$2) -> 101772.225 | G210: 101772.225 | I210: =I208*I209 -> 272644.7009 | J210: =J208*J209 -> 272644.7009 | K210: 272644.7009 | L210: 272644.7009 | M210: 61403.475 | N210: 204814.125 | O210: =O208*O209 -> 101772.225 | P210: 61403.475 | Q210: 61403.475 | R210: 61403.475 | S210: 61403.475 | T210: 61403.475 | U210: 0 | V210: 0 | W210: 0 | X210: 0 | Y210: 0
D212: Natural Gas Savings as % of Gas Usage | E212: % | F212: =INDEX(I212:Y212,$E$2) -> 0 | G212: 0 | I212: 0 | J212: 0 | K212: 0 | L212: 0 | M212: 0 | N212: 0 | O212: 0 | P212: 0 | Q212: 0 | R212: 0 | S212: 0 | T212: 0
D213: Total Annual Therm Savings | E213: Therm | F213: =INDEX(I213:Y213,$E$2) -> 0 | G213: 0 | I213: =I212*I135 -> 0 | J213: 0 | K213: 0 | L213: 0 | M213: 0 | N213: 0 | O213: =O212*O135 -> 0 | P213: 0 | Q213: 0 | R213: 0 | S213: 0 | T213: 0
D214: Capital Cost per Therm Saved | E214: $/Therm | F214: =INDEX(I214:Y214,$E$2) -> 0 | G214: 0 | I214: 0 | J214: 0 | K214: 0 | L214: 0 | M214: 0 | N214: 0 | O214: 0 | P214: 0 | Q214: 0 | R214: 0 | S214: 0 | T214: 0
D215: Total Capital Cost - Gas | E215: $ | F215: =INDEX(I215:Y215,$E$2) -> 0 | G215: 0 | I215: =I214*I213 -> 0 | J215: =J214*J213 -> 0 | K215: 0 | L215: 0 | M215: 0 | N215: 0 | O215: =O214*O213 -> 0 | P215: 0 | Q215: 0 | R215: 0 | S215: 0 | T215: 0
D217: Total Capital Cost - Aggregate | E217: $ | F217: =INDEX(I217:Y217,$E$2) -> 101772.225 | G217: 101772.225 | I217: =I215+I210 -> 272644.7009 | J217: =J215+J210 -> 272644.7009 | K217: 272644.7009 | L217: 272644.7009 | M217: 61403.475 | N217: 204814.125 | O217: =O215+O210 -> 101772.225 | P217: 61403.475 | Q217: 61403.475 | R217: 61403.475 | S217: 61403.475 | T217: 61403.475
D218: Operating and Maintenance | E218: $ | F218: =INDEX(I218:Y218,$E$2) -> 0 | G218: 0 | I218: 0 | J218: 0 | K218: 0 | L218: 0 | M218: 0 | N218: 0 | O218: 0 | P218: 0 | Q218: 0 | R218: 0 | S218: 0 | T218: 0
D219: Lease Payment Per Year | E219: $ | F219: =INDEX(I219:Y219,$E$2) -> 0 | G219: 0 | I219: 0 | J219: 0 | K219: 0 | L219: 0 | M219: 0 | N219: 0 | O219: 0 | P219: 0 | Q219: 0 | R219: 0 | S219: 0 | T219: 0
D221: Target IRR for Lease | E221: % p.a. | F221: =INDEX(I221:Y221,$E$2) -> 0.07 | G221: 0.07 | I221: 0.07 | J221: 0.07 | K221: 0.07 | L221: 0.07 | M221: 0.07 | N221: 0.07 | O221: 0.07 | P221: 0.07 | Q221: 0.07 | R221: 0.07 | S221: 0.07 | T221: 0.07 | U221: 0.07 | V221: 0.07 | W221: 0.07 | X221: 0.07 | Y221: 0.07
D222: Inflate Lease | E222: Flag | F222: =INDEX(I222:Y222,$E$2) -> TRUE | G222: TRUE | I222: TRUE | J222: TRUE | K222: TRUE | L222: TRUE | M222: TRUE | N222: TRUE | O222: TRUE | P222: TRUE | Q222: TRUE | R222: TRUE | S222: TRUE | T222: TRUE | U222: TRUE | V222: TRUE | W222: TRUE | X222: TRUE | Y222: TRUE
B224: Solar
D226: Flag for Including Solar | E226: Flag | F226: =INDEX(I226:Y226,$E$2) -> TRUE | G226: TRUE | I226: TRUE | J226: TRUE | K226: FALSE | L226: TRUE | M226: TRUE | N226: TRUE | O226: TRUE | P226: TRUE | Q226: TRUE | R226: TRUE | S226: TRUE | T226: TRUE | Y226: TRUE
D228: Start of Construction | E228: Date | F228: =INDEX(I228:Y228,$E$2) -> 2023-09-01 | G228: 2023-09-01 | I228: 2023-09-01 | J228: 2023-09-01 | K228: 2023-09-01 | L228: 2023-09-01 | M228: 2023-09-01 | N228: 2023-09-01 | O228: 2023-09-01 | P228: 2023-09-01 | Q228: 2023-09-01 | R228: 2023-09-01 | S228: 2023-09-01 | T228: 2023-09-01 | Y228: 2023-09-01
D229: Solar Construction Flag | E229: Date | I229: =$G$228 -> 2023-09-01 | J229: 2023-09-01 | K229: 2023-09-01 | L229: 2023-09-01 | M229: 2023-09-01 | N229: 2023-09-01 | O229: 2023-09-01 | P229: 2023-09-01 | Q229: 2023-09-01 | R229: 2023-09-01 | S229: 2023-09-01 | T229: 2023-09-01 | Y229: =$G$228 -> 2023-09-01
D230: Construction Months | E230: Months | F230: =INDEX(I230:Y230,$E$2) -> 12 | G230: 12 | I230: 12 | J230: 12 | K230: 12 | L230: 12 | M230: 12 | N230: 12 | O230: 12 | P230: 12 | Q230: 12 | R230: 12 | S230: 12 | T230: 12 | Y230: 12
D231: End of Construction | E231: Date | F231: =INDEX(I231:Y231,$E$2) -> 2024-08-01 | G231: 2024-08-01 | I231: =EDATE(I228,I230-1) -> 2024-08-01 | J231: 2024-08-01 | K231: 2024-08-01 | L231: 2024-08-01 | M231: 2024-08-01 | N231: 2024-08-01 | O231: =EDATE(O228,O230-1) -> 2024-08-01 | P231: 2024-08-01 | Q231: 2024-08-01 | R231: 2024-08-01 | S231: 2024-08-01 | T231: 2024-08-01 | Y231: 2024-08-01
D232: Beginning of Operation | E232: Date | F232: =INDEX(I232:Y232,$E$2) -> 2024-09-01 | G232: 2024-09-01 | I232: =EDATE(I231,1) -> 2024-09-01 | J232: =EDATE(J231,1) -> 2024-09-01 | K232: =EDATE(K231,1) -> 2024-09-01 | L232: =EDATE(L231,1) -> 2024-09-01 | M232: =EDATE(M231,1) -> 2024-09-01 | N232: 2024-09-01 | O232: =EDATE(O231,1) -> 2024-09-01 | P232: 2024-09-01 | Q232: 2024-09-01 | R232: =EDATE(R231,1) -> 2024-09-01 | S232: 2024-09-01 | T232: 2024-09-01 | Y232: 2024-09-01
D233: Operation Years | E233: Years | F233: =INDEX(I233:Y233,$E$2) -> 20 | G233: 20 | I233: 20 | J233: 20 | K233: 20 | L233: 20 | M233: 20 | N233: 20 | O233: 20 | P233: 35 | Q233: 20 | R233: 20 | S233: 20 | T233: 20 | Y233: 20
D234: End of Operation Period | E234: Date | F234: =INDEX(I234:Y234,$E$2) -> 2044-08-01 | G234: 2044-08-01 | I234: =EDATE(I232,I233*12-1) -> 2044-08-01 | J234: =EDATE(J232,J233*12-1) -> 2044-08-01 | K234: =EDATE(K232,K233*12-1) -> 2044-08-01 | L234: =EDATE(L232,L233*12-1) -> 2044-08-01 | M234: =EDATE(M232,M233*12-1) -> 2044-08-01 | N234: 2044-08-01 | O234: =EDATE(O232,O233*12-1) -> 2044-08-01 | P234: 2059-08-01 | Q234: 2044-08-01 | R234: =EDATE(R232,R233*12-1) -> 2044-08-01 | S234: 2044-08-01 | T234: 2044-08-01 | Y234: 2044-08-01
D236: PPA Start Date | E236: Date | F236: =INDEX(I236:Y236,$E$2) -> 2024-09-01 | G236: 2024-09-01 | I236: =EDATE(I231,1) -> 2024-09-01 | J236: =EDATE(J231,1) -> 2024-09-01 | K236: =EDATE(K231,1) -> 2024-09-01 | L236: =EDATE(L231,1) -> 2024-09-01 | M236: =EDATE(M231,1) -> 2024-09-01 | N236: 2024-09-01 | O236: =EDATE(O231,1) -> 2024-09-01 | P236: 2024-09-01 | Q236: 2024-09-01 | R236: =EDATE(R231,1) -> 2024-09-01 | S236: 2024-09-01 | T236: 2024-09-01 | Y236: 2024-09-01
D237: PPA/Operation Period | E237: Years | F237: =INDEX(I237:Y237,$E$2) -> 20 | G237: 20 | I237: 10 | J237: 10 | K237: 10 | L237: 30 | M237: 30 | N237: 20 | O237: 20 | P237: 15 | Q237: 10 | R237: 10 | S237: 10 | T237: 10 | Y237: 10
D238: End of SREC Period | E238: Date | F238: =INDEX(I238:Y238,$E$2) -> 2044-07-01 | G238: 2044-07-01 | I238: =EDATE(I231,I237*12-1) -> 2034-07-01 | J238: =EDATE(J231,J237*12-1) -> 2034-07-01 | K238: =EDATE(K231,K237*12-1) -> 2034-07-01 | L238: =EDATE(L231,L237*12-1) -> 2054-07-01 | M238: =EDATE(M231,M237*12-1) -> 2054-07-01 | N238: 2044-07-01 | O238: =EDATE(O231,O237*12-1) -> 2044-07-01 | P238: 2039-07-01 | Q238: 2034-07-01 | R238: =EDATE(R231,R237*12-1) -> 2034-07-01 | S238: 2034-07-01 | T238: 2034-07-01 | Y238: 2034-07-01
D240: AC Capacity | E240: kWac | F240: =INDEX(I240:Y240,$E$2) -> 567 | G240: 567 | I240: 450 | J240: 1000 | K240: 200 | L240: 200 | M240: 200 | N240: =Notes!E118 -> 527 | O240: =O241*0.9 -> 567 | P240: 152000 | Q240: 200 | R240: 200 | S240: 200 | T240: 200 | Y240: =Y249/8760/Y250 -> 186.1608711
D241: DC Capacity | E241: kWp | F241: =INDEX(I241:Y241,$E$2) -> 630 | G241: 630 | I241: =I240/0.85 -> 529.4117647 | J241: =J240/0.85 -> 1176.470588 | K241: 235.2941176 | L241: 235.2941176 | M241: 235.2941176 | N241: =N240/1 -> 527 | O241: 630 | P241: =P240*1.21 -> 183920 | Q241: 235.2941176 | R241: 235.2941176 | S241: 235.2941176 | T241: 235.2941176
D243: Seasonality Code | E243: Code | F243: =INDEX(I243:Y243,$E$2) -> 1 | G243: 1 | I243: 1 | J243: 1 | K243: 1 | L243: 1 | M243: 1 | N243: 1 | O243: 1 | P243: 4 | Q243: 1 | R243: 1 | S243: 1 | T243: 1 | U243: 1 | V243: 1 | W243: 1 | X243: 1 | Y243: 1
D245: Solar DC Yield | E245: kWh/kWp | F245: =INDEX(I245:Y245,$E$2) -> 1427.619048 | G245: 1427.619048 | I245: ='Solar Radiation'!$E$52 -> 1473 | J245: ='Solar Radiation'!$E$52 -> 1473 | K245: ='Solar Radiation'!$E$52 -> 1473 | L245: ='Solar Radiation'!$E$52 -> 1473 | M245: ='Solar Radiation'!$E$52 -> 1473 | N245: =Notes!E121 -> 664.1366224 | O245: =O249/O241 -> 1427.619048 | P245: ='Solar Radiation'!$E$52 -> 1473 | Q245: ='Solar Radiation'!$E$52 -> 1473 | R245: ='Solar Radiation'!$E$52 -> 1473 | S245: ='Solar Radiation'!$E$52 -> 1473 | T245: ='Solar Radiation'!$E$52 -> 1473
D247: Solar Performance Ratio | E247: % | F247: =INDEX(I247:Y247,$E$2) -> 1 | G247: 1 | I247: 0.9 | J247: 0.9 | K247: 1 | L247: 1 | M247: 1 | N247: 1 | O247: 1 | P247: 0.9 | Q247: 0.9 | R247: 0.9 | S247: 0.9 | T247: 0.9 | Y247: 0.9
D248: Solar AC Yield | I248: =I245*I247 -> 1325.7 | J248: =J245*J247 -> 1325.7 | K248: 1473 | L248: 1473 | M248: 1473 | N248: 664.1366224 | O248: =O245*O247 -> 1427.619048 | P248: 1325.7 | Q248: 1325.7 | R248: 1325.7 | S248: 1325.7 | T248: 1325.7
D249: Total Solar Ouput | E249: kWh/Year | F249: =INDEX(I249:Y249,$E$2) -> 899400 | G249: 899400 | I249: =I248*I240 -> 596565 | J249: =J248*J240 -> 1325700 | K249: 294600 | L249: 294600 | M249: 294600 | N249: 350000 | O249: 899400 | P249: 339999900 | Q249: 265140 | R249: 265140 | S249: 265140 | T249: 265140 | Y249: =Y376+Y370+Y364 -> 212000
D250: Capacity Factor | E250: % | F250: =INDEX(I250:Y250,$E$2) -> 0.1810780121 | G250: 0.1810780121 | H250: 15.13356164 | I250: =I249/8760/I240 -> 0.1513356164 | J250: =J249/8760/J240 -> 0.1513356164 | K250: 0.1681506849 | L250: 0.1681506849 | M250: 0.1681506849 | N250: =N249/8760/N240 -> 0.07581468292 | O250: =O249/8760/O240 -> 0.1810780121 | P250: =P249/8760/P240 -> 0.2553471972 | Q250: 0.1513356164 | R250: 0.1513356164 | S250: 0.1513356164 | T250: 0.1513356164 | Y250: 0.13
D252: Degredation index | E252: % | F252: =INDEX(I252:Y252,$E$2) -> 0.005 | G252: 0.005 | I252: 0.005 | J252: 0.005 | K252: 0.005 | L252: 0.005 | M252: 0.005 | N252: 0.005 | O252: 0.005 | P252: 0.005 | Q252: 0.005 | R252: 0.005 | S252: 0.005 | T252: 0.005 | Y252: 0.005
D254: State and Local tax incentives | E254: Date | F254: =INDEX(I254:Y254,$E$2) -> 2024-10-01 | G254: 2024-10-01 | I254: 2024-10-01 | J254: 2024-10-01 | K254: 2024-10-01 | L254: 2024-10-01 | M254: 2024-10-01 | N254: 2024-10-01 | O254: 2024-10-01 | P254: 2024-10-01 | Q254: 2024-10-01 | R254: 2024-10-01 | S254: 2024-10-01 | T254: 2024-10-01 | Y254: 2024-10-01
D255: Enter amount and expected date of receipt using the 1st of the month | F255: =INDEX(I255:Y255,$E$2) -> 0 | G255: 0 | I255: 0 | J255: 0 | K255: 0 | L255: 0 | M255: 0 | N255: 0 | O255: 0 | P255: 0 | Q255: 0 | R255: 0 | S255: 0 | T255: 0 | Y255: 0
D256: REC Revenue | E256: USD | F256: =INDEX(I256:Y256,$E$2) -> 0 | G256: 0 | I256: 0 | J256: 0 | K256: 0 | L256: 0 | M256: 0 | N256: 0 | O256: 0 | P256: 0 | Q256: 0 | R256: 0 | S256: 0 | T256: 0 | Y256: 42
O257: 3300000
D258: Cost per kWp | E258: USD/kWp | F258: =INDEX(I258:Y258,$E$2) -> 5238.095238 | G258: 5238.095238 | H258: 2500 | I258: 2500 | J258: 1800 | K258: 2500 | L258: 2500 | M258: 2500 | N258: =Notes!G118 -> 41745.73055 | O258: =O257/O241 -> 5238.095238 | P258: =P266/P241 -> 1087.429317 | Q258: 2500 | R258: 2500 | S258: 2500 | T258: 2500
D260: O&M Expenses | E260: USD/kWy-dc | F260: =INDEX(I260:Y260,$E$2) -> 10 | G260: 10 | I260: 5 | J260: 5 | K260: 5 | L260: 5 | M260: 5 | N260: 5 | O260: 10 | P260: =P261*P249/P241 -> 25.88081013 | Q260: 5 | R260: 5 | S260: 5
D261: O&M Expenses | E261: USD/kWh | P261: 0.014
D263: Solar System Cost | E263: USD | F263: =INDEX(I263:Y263,$E$2) -> 3300000 | G263: 3300000 | I263: =I258*I241 -> 1323529.412 | J263: =J258*J241 -> 2117647.059 | K263: 588235.2941 | L263: 588235.2941 | M263: 588235.2941 | N263: 22000000 | O263: =O258*O241 -> 3300000 | P263: 200000000 | Q263: 588235.2941 | R263: 588235.2941 | S263: 588235.2941 | T263: 588235.2941 | U263: 0 | V263: 0 | W263: 0 | X263: 0
D264: Interconnection | E264: USD | F264: =INDEX(I264:Y264,$E$2) -> 0 | G264: 0
D265: Labor | E265: USD | F265: =INDEX(I265:Y265,$E$2) -> 0 | G265: 0
D266: Total Solar Capital Expenditure | E266: USD | F266: =INDEX(I266:Y266,$E$2) -> 3300000 | G266: 3300000 | H266: =H258 -> 2500 | I266: =SUM(I263:I265) -> 1323529.412 | J266: =SUM(J263:J265) -> 2117647.059 | K266: 588235.2941 | L266: 588235.2941 | M266: 588235.2941 | N266: 22000000 | O266: =SUM(O263:O265) -> 3300000 | P266: 200000000 | Q266: 588235.2941 | R266: 588235.2941 | S266: 588235.2941 | T266: 588235.2941 | U266: =SUM(U263:U265) -> 0 | V266: =SUM(V263:V265) -> 0 | W266: =SUM(W263:W265) -> 0 | X266: =SUM(X263:X265) -> 0
D268: Step-up in Solar Cost | E268: USD | F268: =INDEX(I268:Y268,$E$2) -> 0 | G268: 0 | I268: 0 | J268: 0 | K268: 0 | L268: =Notes!F69 -> 17699000 | M268: 0 | N268: 0 | O268: 0 | P268: 0 | Q268: 0 | R268: 0 | S268: 0 | T268: 0 | Y268: 0
D270: Target IRR for Lease | E270: % p.a. | F270: =INDEX(I270:Y270,$E$2) -> 0.07 | G270: 0.07 | H270: 21 | I270: 0.07 | J270: 0.07 | K270: 0.07 | L270: 0.07 | M270: 0.07 | N270: 0.07 | O270: 0.07 | P270: 0.07 | Q270: 0.07 | R270: 0.07 | S270: 0.07 | T270: 0.07 | U270: 0.07 | V270: 0.07 | W270: 0.07 | X270: 0.07 | Y270: 0.07
D271: Inflate Lease | E271: Flag | F271: =INDEX(I271:Y271,$E$2) -> FALSE | G271: FALSE | I271: FALSE | J271: FALSE | K271: FALSE | L271: FALSE | M271: FALSE | N271: FALSE | O271: FALSE | P271: FALSE | Q271: FALSE | R271: FALSE | S271: FALSE | T271: FALSE | U271: FALSE | V271: FALSE | W271: FALSE | X271: FALSE | Y271: FALSE
B274: Combined Heat and Power
... 99 more rows

Sheet Notes
D50: =SUM(F50:K50) -> 510 | F50: 102 | G50: 163.2 | H50: 97.92 | I50: 58.752 | J50: 58.752 | K50: 29.376
D51: 300000
D52: =D51/0.3 -> 1000000
D67: Cost | F67: 88492000
D68: Cost with Step-up | F68: 106191000
D69: Step-up | F69: =F68-F67 -> 17699000
D71: Generation | F71: 61261390
D73: Start Date | F73: 2023
D74: Construction | F74: 2022
D77: Cost without BESS | F77: 71156000
D78: Less Step up | F78: =F69 -> 17699000
D79: Net Cost | F79: =F77-F78 -> 53457000
C94: 6% (base) / 30% (top, bonus rate) for (1) qualified fuel cell property; (2) solar energy used to produce electricity, heat or coola structure, providing solar process heat; (3) equipment that uses solar energy for certain lighting applications; (4) qualifiedsmall wind energy property; (5) waste energy recovery property; (6) combined heat and power systems; and (7) geothermal
C95: 2% (base) / 10% (top, bonus rate) for other energy property
C118: Solar Capacity | D118: kW | E118: 527 | G118: =E137/E118 -> 41745.73055 | J118: HVAC to Air Source Heat Pumps | N118: 4000000
C119: Energy | D119: kWh | E119: 350000 | J119: Water Heating to Heat Pump | N119: 4000000 | P119: =N119/N123 -> 17.68252789
C120: Capacity Factor | E120: =E119/8760/E118 -> 0.07581468292
C121: Yield | E121: =E119/E118 -> 664.1366224
J122: Other Efficiency Measures | M122: kWh | N122: 791948 | O122: =N122/E126 -> 0.2900000183 | P122: =N118/N122 -> 5.050836671
C123: EE Savings Elec | D123: kWh | E123: 172461 | J123: Other Efficiency Measures | M123: Therms | N123: 226212 | O123: =N123/E127 -> 0.6050908391
C124: Gas Savings | D124: Therms | E124: 147636
J125: Cap Exp | M125: $ | N125: 8000000
C126: Current Use | D126: kWh | E126: 2730855 | F126: =E123/E126 -> 0.06315274886
C127: Current Use | D127: Therms | E127: 373848 | F127: =E124/E127 -> 0.3949091609 | J127: Square Feet for the 179D | N127: 344900
C131: Annual Savings | E131: 172461 | H131: Elec Rate | I131: 0.18
C132: Capacity Factor | E132: 0.13 | H132: Gas Rate | I132: 1.18
C134: Average Savings | E134: =E131/8760 -> 19.68732877 | H134: E Saving | I134: =J134+K134 -> 522461 | J134: 350000 | K134: 172461 | M134: 350000
C135: Capacity | D135: kW | E135: =E134/E132 -> 151.4409905 | H135: G Saving | I135: 147636 | M135: 0.07
M136: =M134/(M135*8760) -> 570.7762557
C137: Budget | D137: USD | E137: 22000000 | H137: VE Saving | I137: =I134*I131 -> 94042.98 | M137: =E137/M136 -> 38544 | N137: $/kW
H138: VG Saving | I138: =I135*I132 -> 174210.48
E139: =E137/E135 -> 145271.1048 | H139: Tot Saving | I139: =I137+I138 -> 268253.46
H141: Cost af ITC | I141: =E137/2 -> 11000000
H143: Payback | I143: =I141/I139 -> 41.00599485

Sheet Time Series Inputs - Operations
E3: Code
C5: Month | F5: 1 | G5: 2 | H5: 3 | I5: 4 | J5: 5 | K5: 6 | L5: 7 | M5: 8 | N5: 9 | O5: 10 | P5: 11 | Q5: 12
B7: Solar Seasonality
C9: Solar Percent 1 | E9: 1 | F9: =TRANSPOSE('Solar Radiation'!V5:V16) -> 0.03331637671 | G9: 0.05188048971 | H9: 0.07814291044 | I9: 0.1084070947 | J9: 0.1198969037 | K9: 0.1231118798 | L9: 0.1232610981 | M9: 0.108671618 | N9: 0.1052599451 | O9: 0.05841218164 | P9: 0.05014413131 | Q9: 0.03949537084
C10: Solar Percent 2 | E10: 2 | F10: =TRANSPOSE('Solar Radiation'!V6:V17) -> 0.05188048971 | G10: 0.07814291044 | H10: 0.1084070947 | I10: 0.1198969037 | J10: 0.1231118798 | K10: 0.1232610981 | L10: 0.108671618 | M10: 0.1052599451 | N10: 0.05841218164 | O10: 0.05014413131 | P10: 0.03949537084 | Q10: 0
C11: Solar Percent 3 | E11: 3 | F11: =TRANSPOSE('Solar Radiation'!V7:V18) -> 0.07814291044 | G11: 0.1084070947 | H11: 0.1198969037 | I11: 0.1231118798 | J11: 0.1232610981 | K11: 0.108671618 | L11: 0.1052599451 | M11: 0.05841218164 | N11: 0.05014413131 | O11: 0.03949537084 | P11: 0 | Q11: 0
C12: Virginia | E12: 4 | F12: 0.05384365877 | G12: 0.06422315926 | H12: 0.07427830036 | I12: 0.08919883231 | J12: 0.09341550438 | K12: 0.1031462861 | L12: 0.1050924424 | M12: 0.1015244891 | N12: 0.08627959779 | O12: 0.07557573792 | P12: 0.07817061304 | Q12: 0.07525137853
C14: Solar Code | E14: ='Constant Inputs - Operation'!G243 -> 1
C15: =INDEX(C9:C12,$E$14) -> Solar Percent 1 | E15: =INDEX(E9:E12,$E$14) -> 1 | F15: =INDEX(F9:F12,$E$14) -> 0.03331637671 | G15: =INDEX(G9:G12,$E$14) -> 0.05188048971 | H15: =INDEX(H9:H12,$E$14) -> 0.07814291044 | I15: =INDEX(I9:I12,$E$14) -> 0.1084070947 | J15: =INDEX(J9:J12,$E$14) -> 0.1198969037 | K15: =INDEX(K9:K12,$E$14) -> 0.1231118798 | L15: =INDEX(L9:L12,$E$14) -> 0.1232610981 | M15: =INDEX(M9:M12,$E$14) -> 0.108671618 | N15: =INDEX(N9:N12,$E$14) -> 0.1052599451 | O15: =INDEX(O9:O12,$E$14) -> 0.05841218164 | P15: =INDEX(P9:P12,$E$14) -> 0.05014413131 | Q15: =INDEX(Q9:Q12,$E$14) -> 0.03949537084
B19: Electricity Usage Seasonality
C20: Hilton Electric Usage Percent | E20: 1 | F20: =TRANSPOSE('Energy Bill Working'!I3:I14) -> 0.068495738 | G20: 0.07064138763 | H20: 0.0622238391 | I20: 0.06717533823 | J20: 0.06932098786 | K20: 0.07740089621 | L20: 0.1087679309 | M20: 0.1101164285 | N20: 0.1341544586 | O20: 0.09022297023 | P20: 0.07501054527 | Q20: 0.06646947944
C21: Generic Percent of Year | E21: 2 | F21: =TRANSPOSE('Energy Bill Working'!H22:H33) -> 0.05272445761 | G21: 0.05206089398 | H21: 0.09732747346 | I21: 0.1102621557 | J21: 0.1148205493 | K21: 0.1160274658 | L21: 0.0966446761 | M21: 0.08359939991 | N21: 0.0852775427 | O21: 0.0712417295 | P21: 0.06444741499 | Q21: 0.05556624096
C23: Code from InputC | E23: ='Constant Inputs - Operation'!G17 -> 2
C24: =INDEX(C20:C22,$E$23) -> Generic Percent of Year | F24: =INDEX(F20:F22,$E$23) -> 0.05272445761 | G24: =INDEX(G20:G22,$E$23) -> 0.05206089398 | H24: =INDEX(H20:H22,$E$23) -> 0.09732747346 | I24: =INDEX(I20:I22,$E$23) -> 0.1102621557 | J24: =INDEX(J20:J22,$E$23) -> 0.1148205493 | K24: =INDEX(K20:K22,$E$23) -> 0.1160274658 | L24: =INDEX(L20:L22,$E$23) -> 0.0966446761 | M24: =INDEX(M20:M22,$E$23) -> 0.08359939991 | N24: =INDEX(N20:N22,$E$23) -> 0.0852775427 | O24: =INDEX(O20:O22,$E$23) -> 0.0712417295 | P24: =INDEX(P20:P22,$E$23) -> 0.06444741499 | Q24: =INDEX(Q20:Q22,$E$23) -> 0.05556624096
B26: Electricity Price
C27: Hilton 1 | E27: 1 | F27: =TRANSPOSE('Energy Bill Working'!H3:H14) -> 0.1759113655 | G27: 0.1719804517 | H27: 0.1845755968 | I27: 0.1908936118 | J27: 0.1883503175 | K27: 0.224 | L27: 0.224 | M27: 0.224 | N27: 0.224 | O27: 0.224 | P27: 0.224 | Q27: 0.224
C28: Hilton 2 | E28: 2 | F28: =F27 -> 0.1759113655 | G28: =G27 -> 0.1719804517 | H28: 0.1845755968 | I28: 0.1908936118 | J28: 0.1883503175 | K28: =J28 -> 0.1883503175 | L28: =K28 -> 0.1883503175 | M28: 0.1883503175 | N28: 0.1883503175 | O28: 0.1883503175 | P28: 0.1883503175 | Q28: 0.1883503175
C29: New York Building at 18 cents | E29: 3 | F29: 0.18 | G29: 0.18 | H29: 0.18 | I29: 0.18 | J29: 0.18 | K29: 0.18 | L29: 0.18 | M29: 0.18 | N29: 0.18 | O29: 0.18 | P29: 0.18 | Q29: 0.18
C32: Code from InputC | E32: ='Constant Inputs - Operation'!G30 -> 3
C33: =INDEX(C27:C31,$E$32) -> New York Building at 18 cents | E33: =INDEX(E27:E31,$E$32) -> 3 | F33: =INDEX(F27:F31,$E$32) -> 0.18 | G33: =INDEX(G27:G31,$E$32) -> 0.18 | H33: =INDEX(H27:H31,$E$32) -> 0.18 | I33: =INDEX(I27:I31,$E$32) -> 0.18 | J33: =INDEX(J27:J31,$E$32) -> 0.18 | K33: =INDEX(K27:K31,$E$32) -> 0.18 | L33: =INDEX(L27:L31,$E$32) -> 0.18 | M33: =INDEX(M27:M31,$E$32) -> 0.18 | N33: =INDEX(N27:N31,$E$32) -> 0.18 | O33: =INDEX(O27:O31,$E$32) -> 0.18 | P33: =INDEX(P27:P31,$E$32) -> 0.18 | Q33: =INDEX(Q27:Q31,$E$32) -> 0.18
B35: Gas Price
C36: Hilton 1 | E36: 1 | F36: =TRANSPOSE('Energy Bill Working'!N3:N14) -> 1.209184364 | G36: 1.209184364 | H36: 1.20915774 | I36: 1.111642435 | J36: 0.9549058982 | K36: 1.424844439 | L36: 1.42 | M36: 1.262313763 | N36: 2.142950013 | O36: 1.969751304 | P36: 1.820783005 | Q36: 2.998966262
C37: Hilton 2 | E37: 2 | F37: =F36 -> 1.209184364 | G37: =G36 -> 1.209184364 | H37: 1.20915774 | I37: 1.111642435 | J37: 0.9549058982 | K37: 1.424844439 | L37: 1.42 | M37: 1.262313763 | N37: 2.142950013 | O37: 1.969751304 | P37: 1.820783005 | Q37: 2.998966262
C40: Code from InputC | E40: ='Constant Inputs - Operation'!G35 -> 1
C41: =INDEX(C36:C39,$E$40) -> Hilton 1 | E41: =INDEX(E36:E39,$E$40) -> 1 | F41: =INDEX(F36:F39,$E$40) -> 1.209184364 | G41: =INDEX(G36:G39,$E$40) -> 1.209184364 | H41: =INDEX(H36:H39,$E$40) -> 1.20915774 | I41: =INDEX(I36:I39,$E$40) -> 1.111642435 | J41: =INDEX(J36:J39,$E$40) -> 0.9549058982 | K41: =INDEX(K36:K39,$E$40) -> 1.424844439 | L41: =INDEX(L36:L39,$E$40) -> 1.42 | M41: =INDEX(M36:M39,$E$40) -> 1.262313763 | N41: =INDEX(N36:N39,$E$40) -> 2.142950013 | O41: =INDEX(O36:O39,$E$40) -> 1.969751304 | P41: =INDEX(P36:P39,$E$40) -> 1.820783005 | Q41: =INDEX(Q36:Q39,$E$40) -> 2.998966262
B43: Natural Gas Usage Seasonality
C44: Hilton Natural Gas Usage Percent | E44: 1 | F44: =TRANSPOSE('Energy Bill Working'!P3:P14) -> 0.1289806073 | G44: 0.1877344696 | H44: 0.1618245456 | I44: 0.1119499269 | J44: 0.07874870153 | K44: 0.05401650137 | L44: 0.05000694725 | M44: 0.05533317013 | N44: 0.0510920411 | O44: 0.0494842496 | P44: 0.02180112347 | Q44: 0.04902771621
C45: Energy Percent in Gas Bill 1 | E45: 2 | F45: 0.1289806073 | G45: 0.1877344696 | H45: 0.1618245456 | I45: 0.1119499269 | J45: 0.07874870153 | K45: 0.05401650137 | L45: 0.05000694725 | M45: 0.05533317013 | N45: 0.0510920411 | O45: 0.0494842496 | P45: 0.02180112347 | Q45: 0.04902771621
C49: Code from InputC | E49: ='Constant Inputs - Operation'!F24 -> 2
C50: =INDEX(C44:C47,$E$49) -> Energy Percent in Gas Bill 1 | E50: =INDEX(E44:E47,$E$49) -> 2 | F50: =INDEX(F44:F47,$E$49) -> 0.1289806073 | G50: =INDEX(G44:G47,$E$49) -> 0.1877344696 | H50: =INDEX(H44:H47,$E$49) -> 0.1618245456 | I50: =INDEX(I44:I47,$E$49) -> 0.1119499269 | J50: =INDEX(J44:J47,$E$49) -> 0.07874870153 | K50: =INDEX(K44:K47,$E$49) -> 0.05401650137 | L50: =INDEX(L44:L47,$E$49) -> 0.05000694725 | M50: =INDEX(M44:M47,$E$49) -> 0.05533317013 | N50: =INDEX(N44:N47,$E$49) -> 0.0510920411 | O50: =INDEX(O44:O47,$E$49) -> 0.0494842496 | P50: =INDEX(P44:P47,$E$49) -> 0.02180112347 | Q50: =INDEX(Q44:Q47,$E$49) -> 0.04902771621
B52: Inflaion Rates
C53: Year | F53: 2020 | G53: 2021 | H53: 2022 | I53: 2023 | J53: 2024 | K53: 2025 | L53: 2026 | M53: 2027 | N53: 2028 | O53: 2029 | P53: 2030 | Q53: 2031 | R53: 2032 | S53: 2033 | T53: 2034 | U53: 2035 | V53: 2036 | W53: 2037 | X53: 2038
C54: Zero Inflation Rate | E54: 1 | F54: 0 | G54: 0 | H54: 0 | I54: 0 | J54: 0 | K54: 0 | L54: 0 | M54: 0 | N54: 0 | O54: 0 | P54: 0 | Q54: 0 | R54: 0 | S54: 0 | T54: 0 | U54: 0 | V54: 0 | W54: 0 | X54: 0
C55: 1% Inflation Rate | E55: 2 | F55: 0.01 | G55: 0.01 | H55: 0.01 | I55: 0.01 | J55: 0.01 | K55: 0.01 | L55: 0.01 | M55: 0.01 | N55: 0.01 | O55: 0.01 | P55: 0.01 | Q55: 0.01 | R55: 0.01 | S55: 0.01 | T55: 0.01 | U55: 0.01 | V55: 0.01 | W55: 0.01 | X55: 0.01
C56: 2% Inflation Rate | E56: 3 | F56: 0.02 | G56: 0.02 | H56: 0.02 | I56: 0.02 | J56: 0.02 | K56: 0.02 | L56: 0.02 | M56: 0.02 | N56: 0.02 | O56: 0.02 | P56: 0.02 | Q56: 0.02 | R56: 0.02 | S56: 0.02 | T56: 0.02 | U56: 0.02 | V56: 0.02 | W56: 0.02 | X56: 0.02
C57: 3% Inflation Rate | E57: 4 | F57: 0.03 | G57: 0.03 | H57: 0.03 | I57: 0.03 | J57: 0.03 | K57: 0.03 | L57: 0.03 | M57: 0.03 | N57: 0.03 | O57: 0.03 | P57: 0.03 | Q57: 0.03 | R57: 0.03 | S57: 0.03 | T57: 0.03 | U57: 0.03 | V57: 0.03 | W57: 0.03 | X57: 0.03
C58: Custom | E58: 5 | F58: 0.02 | G58: 0.02 | H58: 0.02 | I58: 0.02 | J58: 0.02 | K58: 0.02 | L58: 0.02 | M58: 0.02 | N58: 0.02 | O58: 0.02 | P58: 0.02 | Q58: 0.02 | R58: 0.02 | S58: 0.02 | T58: 0.02 | U58: 0.02 | V58: 0.02 | W58: 0.02 | X58: 0.02
C60: Code from InputC for Electricity Price | E60: ='Constant Inputs - Operation'!F32 -> 3
C61: =INDEX(C54:C58,$E$60) -> 2% Inflation Rate | E61: =INDEX(E54:E58,$E$60) -> 3 | F61: =INDEX(F54:F58,$E$60) -> 0.02 | G61: =INDEX(G54:G58,$E$60) -> 0.02 | H61: =INDEX(H54:H58,$E$60) -> 0.02 | I61: =INDEX(I54:I58,$E$60) -> 0.02 | J61: =INDEX(J54:J58,$E$60) -> 0.02 | K61: =INDEX(K54:K58,$E$60) -> 0.02 | L61: =INDEX(L54:L58,$E$60) -> 0.02 | M61: =INDEX(M54:M58,$E$60) -> 0.02 | N61: =INDEX(N54:N58,$E$60) -> 0.02 | O61: =INDEX(O54:O58,$E$60) -> 0.02 | P61: =INDEX(P54:P58,$E$60) -> 0.02 | Q61: =INDEX(Q54:Q58,$E$60) -> 0.02 | R61: =INDEX(R54:R58,$E$60) -> 0.02 | S61: =INDEX(S54:S58,$E$60) -> 0.02 | T61: =INDEX(T54:T58,$E$60) -> 0.02 | U61: =INDEX(U54:U58,$E$60) -> 0.02 | V61: =INDEX(V54:V58,$E$60) -> 0.02 | W61: =INDEX(W54:W58,$E$60) -> 0.02 | X61: =INDEX(X54:X58,$E$60) -> 0.02
C63: Code from InputC for Gas Price | E63: ='Constant Inputs - Operation'!G37 -> 1
C64: =INDEX(C54:C58,$E$63) -> Zero Inflation Rate | E64: =INDEX(E54:E58,$E$63) -> 1 | F64: =INDEX(F54:F58,$E$63) -> 0 | G64: =INDEX(G54:G58,$E$63) -> 0 | H64: =INDEX(H54:H58,$E$63) -> 0 | I64: =INDEX(I54:I58,$E$63) -> 0 | J64: =INDEX(J54:J58,$E$63) -> 0 | K64: =INDEX(K54:K58,$E$63) -> 0 | L64: =INDEX(L54:L58,$E$63) -> 0 | M64: =INDEX(M54:M58,$E$63) -> 0 | N64: =INDEX(N54:N58,$E$63) -> 0 | O64: =INDEX(O54:O58,$E$63) -> 0 | P64: =INDEX(P54:P58,$E$63) -> 0 | Q64: =INDEX(Q54:Q58,$E$63) -> 0 | R64: =INDEX(R54:R58,$E$63) -> 0 | S64: =INDEX(S54:S58,$E$63) -> 0 | T64: =INDEX(T54:T58,$E$63) -> 0 | U64: =INDEX(U54:U58,$E$63) -> 0 | V64: =INDEX(V54:V58,$E$63) -> 0 | W64: =INDEX(W54:W58,$E$63) -> 0 | X64: =INDEX(X54:X58,$E$63) -> 0
B67: Charging Stations
C69: Number of Charging Stations | E69: ='Constant Inputs - Operation'!G98 -> 1
C70: Year | F70: 0 | G70: 1 | H70: 2 | I70: 3 | J70: 4 | K70: 5 | L70: 6 | M70: 7 | N70: 8 | O70: 9 | P70: 10 | Q70: 11 | R70: 12 | S70: 13 | T70: 14 | U70: 15 | V70: 16 | W70: 17 | X70: 18 | Y70: 19
E71: Code
C72: No increase | E72: 1 | F72: 0 | G72: 0 | H72: 0 | I72: 0 | J72: 0 | K72: 0 | L72: 0 | M72: 0 | N72: 0 | O72: 0 | P72: 0 | Q72: 0 | R72: 0 | S72: 0 | T72: 0 | U72: 0 | V72: 0 | W72: 0 | X72: 0 | Y72: 0
C73: Increase by 1 | E73: 2 | F73: 1 | G73: 1 | H73: 1 | I73: 1 | J73: 1 | K73: 1 | L73: 1 | M73: 1 | N73: 1 | O73: 1 | P73: 1 | Q73: 1 | R73: 1 | S73: 1 | T73: 1 | U73: 1 | V73: 1 | W73: 1 | X73: 1 | Y73: 1
C74: Increase by 2 | E74: 3 | F74: 2 | G74: 2 | H74: 2 | I74: 2 | J74: 2 | K74: 2 | L74: 2 | M74: 2 | N74: 2 | O74: 2 | P74: 2 | Q74: 2 | R74: 2 | S74: 2 | T74: 2 | U74: 2 | V74: 2 | W74: 2 | X74: 2 | Y74: 2
C76: =INDEX(C72:C74,$E$69) -> No increase | E76: =INDEX(E72:E74,$E$69) -> 1 | F76: =INDEX(F72:F74,$E$69) -> 0 | G76: =INDEX(G72:G74,$E$69) -> 0 | H76: =INDEX(H72:H74,$E$69) -> 0 | I76: =INDEX(I72:I74,$E$69) -> 0 | J76: =INDEX(J72:J74,$E$69) -> 0 | K76: =INDEX(K72:K74,$E$69) -> 0 | L76: =INDEX(L72:L74,$E$69) -> 0 | M76: =INDEX(M72:M74,$E$69) -> 0 | N76: =INDEX(N72:N74,$E$69) -> 0 | O76: =INDEX(O72:O74,$E$69) -> 0 | P76: =INDEX(P72:P74,$E$69) -> 0 | Q76: =INDEX(Q72:Q74,$E$69) -> 0 | R76: =INDEX(R72:R74,$E$69) -> 0 | S76: =INDEX(S72:S74,$E$69) -> 0 | T76: =INDEX(T72:T74,$E$69) -> 0 | U76: =INDEX(U72:U74,$E$69) -> 0 | V76: =INDEX(V72:V74,$E$69) -> 0 | W76: =INDEX(W72:W74,$E$69) -> 0 | X76: =INDEX(X72:X74,$E$69) -> 0 | Y76: =INDEX(Y72:Y74,$E$69) -> 0
C78: Growht Rate in Utilization | E78: ='Constant Inputs - Operation'!G101 -> 1
C79: Year | F79: 0 | G79: 2 | H79: 3 | I79: 4 | J79: 5 | K79: 6 | L79: 7 | M79: 8 | N79: 9 | O79: 10 | P79: 11 | Q79: 12 | R79: 13 | S79: 14 | T79: 15 | U79: 16 | V79: 17 | W79: 18 | X79: 19 | Y79: 20 | Z79: 21
E80: Code
C81: Base Increase | E81: 1 | G81: 0.15 | H81: 0.2 | I81: 0.3 | J81: 0.45 | K81: 0.1 | L81: 0.1 | M81: 0.1 | N81: 0.1 | O81: 0.1 | P81: 0.1 | Q81: 0.05 | R81: 0.05 | S81: 0.05 | T81: 0.05 | U81: 0.05 | V81: 0.05 | W81: 0.05 | X81: 0.05 | Y81: 0.05 | Z81: 0
C82: No Increase | E82: 2 | G82: 0 | H82: 0 | I82: 0 | J82: 0 | K82: 0 | L82: 0 | M82: 0 | N82: 0 | O82: 0 | P82: 0 | Q82: 0 | R82: 0 | S82: 0 | T82: 0 | U82: 0 | V82: 0 | W82: 0 | X82: 0 | Y82: 0 | Z82: 0
C83: Alternative Increase | E83: 3 | G83: 0.05 | H83: 0.05 | I83: 0.05 | J83: 0.05 | K83: 0.05 | L83: 0.05 | M83: 0.05 | N83: 0.05 | O83: 0.05 | P83: 0.05 | Q83: 0.05 | R83: 0.05 | S83: 0.05 | T83: 0.05 | U83: 0.05 | V83: 0.05 | W83: 0.05 | X83: 0.05 | Y83: 0.05 | Z83: 0.05
C85: =INDEX(C81:C83,$E$78) -> Base Increase | E85: =INDEX(E81:E83,$E$78) -> 1 | F85: =INDEX(F81:F83,$E$78) -> 0 | G85: =INDEX(G81:G83,$E$78) -> 0.15 | H85: =INDEX(H81:H83,$E$78) -> 0.2 | I85: =INDEX(I81:I83,$E$78) -> 0.3 | J85: =INDEX(J81:J83,$E$78) -> 0.45 | K85: =INDEX(K81:K83,$E$78) -> 0.1 | L85: =INDEX(L81:L83,$E$78) -> 0.1 | M85: =INDEX(M81:M83,$E$78) -> 0.1 | N85: =INDEX(N81:N83,$E$78) -> 0.1 | O85: =INDEX(O81:O83,$E$78) -> 0.1 | P85: =INDEX(P81:P83,$E$78) -> 0.1 | Q85: =INDEX(Q81:Q83,$E$78) -> 0.05 | R85: =INDEX(R81:R83,$E$78) -> 0.05 | S85: =INDEX(S81:S83,$E$78) -> 0.05 | T85: =INDEX(T81:T83,$E$78) -> 0.05 | U85: =INDEX(U81:U83,$E$78) -> 0.05 | V85: =INDEX(V81:V83,$E$78) -> 0.05 | W85: =INDEX(W81:W83,$E$78) -> 0.05 | X85: =INDEX(X81:X83,$E$78) -> 0.05 | Y85: =INDEX(Y81:Y83,$E$78) -> 0.05 | Z85: =INDEX(Z81:Z83,$E$78) -> 0
F86: =F70 -> 0 | G86: =G70 -> 1 | H86: 2 | I86: 3 | J86: 4 | K86: 5 | L86: 6 | M86: 7 | N86: 8 | O86: 9 | P86: 10 | Q86: 11 | R86: 12 | S86: 13 | T86: 14 | U86: 15 | V86: 16 | W86: 17 | X86: 18 | Y86: 19 | Z86: 0
C87: Utlization | F87: ='Constant Inputs - Operation'!G100 -> 0.07 | G87: =F87*(1+G85) -> 0.0805 | H87: =G87*(1+H85) -> 0.0966 | I87: 0.12558 | J87: 0.182091 | K87: 0.2003001 | L87: 0.22033011 | M87: 0.242363121 | N87: 0.2665994331 | O87: 0.2932593764 | P87: 0.3225853141 | Q87: 0.3387145798 | R87: 0.3556503087 | S87: 0.3734328242 | T87: 0.3921044654 | U87: 0.4117096887 | V87: 0.4322951731 | W87: 0.4539099317 | X87: 0.4766054283 | Y87: 0.5004356997 | Z87: 0.5004356997
D90: Mitrex solar pv cladding+Clearvue PV IGUs
F91: 0.2
F92: 163742.6 | X92: 0
D93: Budget | F93: 190166.5499 | G93: 0 | H93: 0 | I93: 0 | J93: 0 | K93: 0 | L93: 0 | M93: 0 | N93: 0 | O93: 0 | P93: 0 | Q93: 0 | R93: 0 | S93: 0 | T93: 0 | U93: 0 | V93: 0 | W93: 0 | X93: 0
D94: Price ($) | F94: 0.13 | G94: 0.13 | H94: 0.13 | I94: 0.13 | J94: 0.13 | K94: 0.13 | L94: 0.13 | M94: 0.13 | N94: 0.13 | O94: 0.13 | P94: 0.13 | Q94: 0.13 | R94: 0.13 | S94: 0.13 | T94: 0.13 | U94: 0.13 | V94: 0.13 | W94: 0.13
D95: Total efficiency revenue | F95: 21286.538 | G95: 0 | H95: 0 | I95: 0 | J95: 0 | K95: 0 | L95: 0 | M95: 0 | N95: 0 | O95: 0 | P95: 0 | Q95: 0 | R95: 0 | S95: 0 | T95: 0 | U95: 0 | V95: 0 | W95: 0 | X95: 0
D98: Year | F98: 2021 | G98: 2022 | H98: 2023 | I98: 2024 | J98: 2025 | K98: 2026 | L98: 2027 | M98: 2028 | N98: 2029 | O98: 2030 | P98: 2031 | Q98: 2032 | R98: 2033 | S98: 2034 | T98: 2035 | U98: 2036 | V98: 2037 | W98: 2038 | X98: 2039 | Y98: 2040 | Z98: 2041 | AA98: 2042
D99: Value of Solar Exports | F99: 18541.28904 | G99: 18423.50976 | H99: 18417.30492 | I99: 18412.41121 | J99: 18408.84114 | K99: 18514.15361 | L99: 18512.73153 | M99: 18406.2013 | N99: 18408.05545 | O99: 18411.29922 | P99: 16551.8194 | Q99: 16671.56481 | R99: 16583.97597 | S99: 16602.14726 | T99: 16621.73395 | U99: 16642.75141 | V99: 16766.99206 | W99: 16790.4093 | X99: 16714.54594 | Y99: 16741.44534 | Z99: 16769.85627 | AA99: 16799.79572
C103: Year | F103: 1 | G103: 2 | H103: 3 | I103: 4 | J103: 5 | K103: 6 | L103: 7 | M103: 8 | N103: 9 | O103: 10 | P103: 11 | Q103: 12 | R103: 13 | S103: 14 | T103: 15 | U103: 16 | V103: 17 | W103: 18 | X103: 19 | Y103: 20
C104: % Local EV | F104: 0.0142 | G104: 0.0214 | H104: 0.0335 | I104: 0.0474 | J104: 0.0662 | K104: 0.0885 | L104: 0.1141 | M104: 0.1419 | N104: 0.1723 | O104: 0.1962 | P104: =O104+0.5% -> 0.2012 | Q104: =P104+0.5% -> 0.2062 | R104: 0.2112 | S104: 0.2162 | T104: 0.2212 | U104: 0.2262 | V104: 0.2312 | W104: 0.2362 | X104: 0.2412 | Y104: 0.2462
C105: % State EV | F105: 0.005 | G105: 0.0075 | H105: 0.0118 | I105: 0.0167 | J105: 0.0234 | K105: 0.0312 | L105: 0.0403 | M105: 0.0501 | N105: 0.0608 | O105: 0.0693
C106: EV Volume | F106: 17800 | G106: 18245 | H106: 18701 | I106: 19169 | J106: 19648 | K106: 20139 | L106: 20643 | M106: 21159 | N106: 21688 | O106: 22230
C107: Daily Visits | E107: 0.03 | F107: 7.534 | G107: 13.62 | H107: 21.76 | I107: 28.88 | J107: 34.24 | K107: 35.89 | L107: =K107*(1+$E$107) -> 36.9667 | M107: =L107*(1+$E$107) -> 38.075701 | N107: 39.21797203 | O107: 40.39451119 | P107: 41.60634653 | Q107: 42.85453692 | R107: 44.14017303 | S107: 45.46437822 | T107: 46.82830957 | U107: 48.23315885 | V107: 49.68015362 | W107: 51.17055823 | X107: 52.70567498 | Y107: 54.28684523
C108: Site TBU | F108: 0.0349 | G108: 0.0658 | H108: 0.0967 | I108: 0.1276 | J108: 0.1585 | K108: 0.1894 | L108: 0.2 | M108: 0.2 | N108: 0.2 | O108: 0.2 | P108: 0.2 | Q108: 0.2 | R108: 0.2 | S108: 0.2 | T108: 0.2 | U108: 0.2 | V108: 0.2 | W108: 0.2 | X108: 0.2 | Y108: 0.2
C109: Port TBU | E109: 3 | F109: =F108/$E$109 -> 0.01163333333 | G109: =G108/$E$109 -> 0.02193333333 | H109: 0.03223333333 | I109: 0.04253333333 | J109: 0.05283333333 | K109: 0.06313333333 | L109: 0.06666666667 | M109: 0.06666666667 | N109: 0.06666666667 | O109: 0.06666666667 | P109: 0.06666666667 | Q109: 0.06666666667 | R109: 0.06666666667 | S109: 0.06666666667 | T109: 0.06666666667 | U109: 0.06666666667 | V109: 0.06666666667 | W109: 0.06666666667 | X109: 0.06666666667 | Y109: 0.06666666667
C110: Tariff | F110: 0.1661 | G110: 0.171083 | H110: 0.17621549 | I110: 0.1815019547 | J110: 0.1869470133 | K110: 0.1925554237 | L110: 0.1983320865 | M110: 0.204282049 | N110: 0.2104105105 | O110: 0.2167228258 | P110: 0.2167228258 | Q110: 0.2167228258 | R110: 0.2167228258 | S110: 0.2167228258 | T110: 0.2167228258 | U110: 0.2167228258 | V110: 0.2167228258 | W110: 0.2167228258 | X110: 0.2167228258 | Y110: 0.2167228258
C111: Cost / Charge | E111: =175/3 -> 58.33333333 | F111: =$E$111*F110 -> 9.689166667 | G111: =$E$111*G110 -> 9.979841667 | H111: 10.27923692 | I111: 10.58761402 | J111: 10.90524244 | K111: 11.23239972 | L111: 11.56937171 | M111: 11.91645286 | N111: 12.27394645 | O111: 12.64216484 | P111: 12.64216484 | Q111: 12.64216484 | R111: 12.64216484 | S111: 12.64216484 | T111: 12.64216484 | U111: 12.64216484 | V111: 12.64216484 | W111: 12.64216484 | X111: 12.64216484 | Y111: 12.64216484
C112: Annual Charges | F112: =F107*365 -> 2749.91 | G112: =G107*365 -> 4971.3 | H112: 7942.4 | I112: 10541.2 | J112: 12497.6 | K112: 13099.85 | L112: 13492.8455 | M112: 13897.63087 | N112: 14314.55979 | O112: 14743.99658 | P112: 15186.31648 | Q112: 15641.90598 | R112: 16111.16316 | S112: 16594.49805 | T112: 17092.33299 | U112: 17605.10298 | V112: 18133.25607 | W112: 18677.25375 | X112: 19237.57137 | Y112: 19814.69851
C113: Annual Cost | F113: =F112*F111 -> 26644.33631 | G113: =G112*G111 -> 49612.78688 | H113: 81641.81129 | I113: 111606.157 | J113: 136289.358 | K113: 147142.7514 | L113: 156103.745 | M113: 165610.4631 | N113: 175696.1403 | O113: 186396.0352 | P113: 191987.9163 | Q113: 197747.5538 | R113: 203679.9804 | S113: 209790.3798 | T113: 216084.0912 | U113: 222566.6139 | V113: 229243.6123 | W113: 236120.9207 | X113: 243204.5483 | Y113: 250500.6848
C114: Price per Charge | E114: 0.03 | F114: 50 | G114: =F114*(1+$E$114) -> 51.5 | H114: =G114*(1+$E$114) -> 53.045 | I114: 54.63635 | J114: 56.2754405 | K114: 57.96370372 | L114: 59.70261483 | M114: 61.49369327 | N114: 63.33850407 | O114: 65.23865919 | P114: 67.19581897 | Q114: 69.21169354 | R114: 71.28804434 | S114: 73.42668567 | T114: 75.62948624 | U114: 77.89837083 | V114: 80.23532195 | W114: 82.64238161 | X114: 85.12165306 | Y114: 87.67530265
C115: Revenue | F115: =F114*F112 -> 137495.5 | G115: =G114*G112 -> 256021.95 | H115: 421304.608 | I115: 575932.6926 | J115: 703307.9452 | K115: 759315.8241 | L115: 805558.1578 | M115: 854616.6496 | N115: 906662.8036 | O115: 961878.5683 | P115: 1020456.973 | Q115: 1082602.803 | R115: 1148533.313 | S115: 1218478.992 | T115: 1292684.363 | U115: 1371408.841 | V115: 1454927.639 | W115: 1543532.732 | X115: 1637533.876 | Y115: 1737259.689
C116: Net Income | F116: =F115-F113 -> 110851.1637 | G116: =G115-G113 -> 206409.1631 | H116: 339662.7967 | I116: 464326.5357 | J116: 567018.5872 | K116: 612173.0727 | L116: 649454.4128 | M116: 689006.1865 | N116: 730966.6633 | O116: 775482.5331 | P116: 828469.0568 | Q116: 884855.249 | R116: 944853.3331 | S116: 1008688.612 | T116: 1076600.272 | U116: 1148842.227 | V116: 1225684.027 | W116: 1307411.811 | X116: 1394329.327 | Y116: 1486759.004
C117: NY Incentive | F117: 266600 | G117: 0 | H117: 0 | I117: 0 | J117: 0 | K117: 0 | L117: 0 | M117: 0 | N117: 0 | O117: 0 | P117: 0 | Q117: 0 | R117: 0 | S117: 0 | T117: 0 | U117: 0 | V117: 0 | W117: 0 | X117: 0 | Y117: 0
C118: Utility Incentive | F118: 20571 | G118: 17142 | H118: 13713 | I118: 10287 | J118: 0 | K118: 0 | L118: 0 | M118: 0 | N118: 0 | O118: 0 | P118: 0 | Q118: 0 | R118: 0 | S118: 0 | T118: 0 | U118: 0 | V118: 0 | W118: 0 | X118: 0 | Y118: 0
C119: Space / Charge | F119: 6.5 | G119: 6.695 | H119: 6.89585 | I119: 7.1027255 | J119: 7.315807265 | K119: 7.535281483 | L119: 7.761339927 | M119: 7.994180125 | N119: 8.234005529 | O119: 8.481025695 | P119: 8.735456466 | Q119: 8.99752016 | R119: 9.267445765 | S119: 9.545469137 | T119: 9.831833212 | U119: 10.12678821 | V119: 10.43059185 | W119: 10.74350961 | X119: 11.0658149 | Y119: 11.39778935
C120: Annual Space | F120: 17874.415 | G120: 33282.8535 | H120: 54769.59904 | I120: 74871.25004 | J120: 91430.03288 | K120: 98711.05713 | L120: 104722.5605 | M120: 111100.1644 | N120: 117866.1645 | O120: 125044.2139 | P120: 132659.4065 | Q120: 140738.3644 | R120: 149309.3308 | S120: 158402.269 | T120: 168048.9672 | U120: 178283.1493 | V120: 189140.5931 | W120: 200659.2552 | X120: 212879.4038 | Y120: 225843.7595
C121: Annual Lease | F121: 0 | G121: 0 | H121: 0 | I121: 0 | J121: 0 | K121: 0 | L121: 0 | M121: 0 | N121: 0 | O121: 0 | P121: 0 | Q121: 0 | R121: 0 | S121: 0 | T121: 0 | U121: 0 | V121: 0 | W121: 0 | X121: 0 | Y121: 0
C122: Annual Net Rev | F122: 128725.5787 | G122: 239692.0166 | H122: 394432.3958 | I122: 539197.7857 | J122: 658448.6201 | K122: 710884.1298 | L122: 754176.9733 | M122: 800106.351 | N122: 848832.8277 | O122: 900526.747 | P122: 961128.4633 | Q122: 1025593.613 | R122: 1094162.664 | S122: 1167090.881 | T122: 1244649.239 | U122: 1327125.376 | V122: 1414824.62 | W122: 1508071.067 | X122: 1607208.731 | Y122: 1712602.763
C123: Net Annual Income | D123: Baseline | F123: 149296.5787 | G123: 256834.0166 | H123: 408145.3958 | I123: 549484.7857 | J123: 658448.6201 | K123: 710884.1298 | L123: 754176.9733 | M123: 800106.351 | N123: 848832.8277 | O123: 900526.747 | P123: 961128.4633 | Q123: 1025593.613 | R123: 1094162.664 | S123: 1167090.881 | T123: 1244649.239 | U123: 1327125.376 | V123: 1414824.62 | W123: 1508071.067 | X123: 1607208.731 | Y123: 1712602.763
C124: Monthly Revenue | F124: 12947.49292 | G124: 24108.73362 | H124: 39672.85059 | I124: 54233.66189 | J124: 66228.16484 | K124: 71502.2401 | L124: 75856.72653 | M124: 80476.40117 | N124: 85377.414 | O124: 90576.89852 | P124: 96093.03164 | Q124: 101945.0973 | R124: 108153.5537 | S124: 114740.1051 | T124: 121727.7775 | U124: 129140.9992 | V124: 137005.686 | W124: 145349.3323 | X124: 154201.1066 | Y124: 163591.954
C125: Monthly Costs | F125: 2220.361359 | G125: 4134.398906 | H125: 6803.484274 | I125: 9300.513079 | J125: 11357.4465 | K125: 12261.89595 | L125: 13008.64542 | M125: 13800.87192 | N125: 14641.34502 | O125: 15533.00294 | P125: 15998.99302 | Q125: 16478.96281 | R125: 16973.3317 | S125: 17482.53165 | T125: 18007.0076 | U125: 18547.21783 | V125: 19103.63436 | W125: 19676.74339 | X125: 20267.04569 | Y125: 20875.05707
C126: Start Flag Yr Flag | F126: 2024-01-01 | G126: 2025-01-01 | H126: 2026-01-01 | I126: 2027-01-01 | J126: 2028-01-01 | K126: 2029-01-01 | L126: 2030-01-01 | M126: 2031-01-01 | N126: 2032-01-01 | O126: 2033-01-01 | P126: 2034-01-01 | Q126: 2035-01-01 | R126: 2036-01-01 | S126: 2037-01-01 | T126: 2038-01-01 | U126: 2039-01-01 | V126: 2040-01-01 | W126: 2041-01-01 | X126: 2042-01-01 | Y126: 2043-01-01

Sheet Tax Inputs
B4: Investment Tax Credit Inputs
C5: Project Completion Date | E5: Date
C7: Quarter of ITC Relative to Construction Completion | E7: Quarter | F7: 1
C9: FMV Write-up for EV Charging | E9: % | F9: 0
C10: FMV Write-up for Energy Efficiency | E10: % | F10: 0
C11: FMV Write-up for Solar | E11: % | F11: 0
C12: FMV Write-up for Battery Storage | E12: % | F12: 0
C14: ITC Percent on Energy Efficiency | E14: % | F14: 0
C16: Percent of ITC Qualifying for ITC - EV Charging | E16: % | F16: 1
C17: Percent of ITC Qualifying for ITC - Energy Efficiency | E17: % | F17: 0
C18: Percent of ITC Qualifying for ITC - Solar | E18: % | F18: 1
C19: Percent of ITC Qualifying for ITC - CHP | E19: % | F19: 1
C20: Percent of ITC Qualifying for ITC - Battery Storage | E20: % | F20: 1
C22: Income Tax Ratio | E22: % | F22: 0.21
C23: Carryforward Limitation | E23: % | F23: 0.8
B25: 197D Taxable Income Deduction
C26: Deduction per Square Foot -- Energy Efficiency | E26: $/ft2 | F26: 5
C27: Period of Deduction | E27: Period
B32: Tax Depreciation
C34: Bonus Depreciation - Solar
D35: Calendar Year | F35: 2018 | G35: 2023 | H35: 2024 | I35: 2025 | J35: 2026 | K35: 2027
D36: Percent Bonus Depreciation | E36: % | F36: 1 | G36: 0.8 | H36: 0.6 | I36: 0.4 | J36: 0.2 | K36: 0
D37: Remainin MACRS | E37: % | F37: =1-F36 -> 0 | G37: 0.2 | H37: 0.4 | I37: 0.6 | J37: 0.8 | K37: 1
D39: A business with a solar PV system placed in service between January 1, 2018, and December 31, 2022, can elect to claim a 100% bonus depreciation.
D40: Starting in 2023, the percentage of capital equipment that can be expensed immediately drops 20% per year (e.g., 80% in 2023 and 60% in 2024) until the provision drops to 0% in 2027.[34]
C42: Bonus Depreciation - Energy Efficiency | E42: % | F42: 0 | G42: 0 | H42: 0 | I42: 0 | J42: 0 | K42: 0
B45: MACRS Depreciation
C46: Depreciation Life | E46: Years | F46: 5
C47: Apply 1/2 Year | E47: Flag | F47: TRUE
C49: ITC Reduction to Base for Depreciation | E49: % | F49: 0.5
C51: Year | F51: 0 | G51: 1 | H51: 2 | I51: 3 | J51: 4 | K51: 5 | L51: 6 | M51: 7
D52: Declining Balance | E52: 2 | G52: =VDB(1,0,$F$46,F51,G51,$E$52) -> 0.4 | H52: =VDB(1,0,$F$46,G51,H51,$E$52) -> 0.24 | I52: =VDB(1,0,$F$46,H51,I51,$E$52) -> 0.144 | J52: =VDB(1,0,$F$46,I51,J51,$E$52) -> 0.108 | K52: =VDB(1,0,$F$46,J51,K51,$E$52) -> 0.108
D53: 1/2 Year | G53: =G52/2 -> 0.2 | H53: =G52/2+H52/2 -> 0.32 | I53: =H52/2+I52/2 -> 0.192 | J53: =I52/2+J52/2 -> 0.126 | K53: =J52/2+K52/2 -> 0.108 | L53: =K52/2+L52/2 -> 0.054
D55: Date of Solar Operation | F55: ='Constant Inputs - Operation'!G232 -> 2024-09-01
D56: Apply 1/2 Year | F56: =MONTH(F55)<7 -> FALSE
D58: Depreciation Rate Applied | G58: =IF($F$56,G53,G52) -> 0.4 | H58: =IF($F$56,H53,H52) -> 0.24 | I58: 0.144 | J58: 0.108 | K58: 0.108 | L58: 0
C60: Straight Line Depreciation for Building Modifications | F60: 39
B62: Solar Flags - ITC
C63: ITC Flag (ITC is TRUE; PTC is FALSE) | F63: TRUE
C65: Meets Labor Requirements | F65: TRUE
C66: Does not Meet Labor Requirement | F66: =NOT(F65) -> FALSE
C68: Domestic Content Bonus | F68: TRUE
C69: Energy Community Bonus | F69: TRUE
C71: Less than 5 MW in LMI Community | F71: TRUE
C72: Indian Land | F72: TRUE
C74: Qualified Low-income Residential | F74: FALSE
C75: Qualified Low-income Economic Benefit | F75: FALSE
C77: Total ITC
F79: Start of Construction
B81: ITC | F81: 2019 | G81: 2020 | H81: 2021 | I81: 2022 | J81: 2023 | K81: 2034 | L81: 2035 | M81: 2036
C83: Meets Labor Requirement
D84: Base Credit | F84: 0.3 | G84: 0.26 | H84: 0.3 | I84: 0.3 | J84: 0.3 | K84: 0.225 | L84: 0.15 | M84: 0
D85: Domestic Content Bonus | J85: 0.1 | K85: 0.075 | L85: 0.05 | M85: 0
D86: Energy Community Bonus | J86: 0.1 | K86: 0.075 | L86: 0.05 | M86: 0
C88: Does Not Meet Labor Requirement
D89: Base Credit | F89: 0.3 | G89: 0.26 | H89: 0.06 | I89: 0.045 | J89: 0.03 | K89: 0 | L89: 0.15 | M89: 0
D90: Domestic Content Bonus | J90: 0.02 | K90: 0.015 | L90: 0.01 | M90: 0
D91: Energy Community Bonus | J91: 0.02 | K91: 0.015 | L91: 0.01 | M91: 0
C93: Low Income Bonus
D94: Cap per Year | F94: 1800 | G94: MWH
D95: Less than 5 MW in LMI Community | I95: 0.1 | J95: 0.1 | K95: 0.1 | L95: 0.1 | M95: 0.1
D96: Qualified Low-income Economic Benefit | I96: 0.2 | J96: 0.2 | K96: 0.2 | L96: 0.2 | M96: 0.2
B99: PTC - Cents/kWh 2022 | H99: =H81 -> 2021 | I99: =I81 -> 2022 | J99: 2023 | K99: 2034 | L99: 2035 | M99: 2036
C101: Base Credit | I101: 2.6 | J101: 2.6 | K101: 2 | L101: 1.3 | M101: 0
C102: Domestic Content Bonus | J102: 0.3 | K102: 0.2 | L102: 0.1 | M102: 0
C103: Energy Community Bonus | J103: 0.3 | K103: 0.2 | L103: 0.1 | M103: 0
C105: Base Credit | I105: 0.5 | J105: 0.5 | K105: 0.4 | L105: 0.3 | M105: 0
C106: Domestic Content Bonus | J106: 0.1 | K106: 0 | L106: 0 | M106: 0
C107: Energy Community Bonus | J107: 0.1 | K107: 0.1 | L107: 0.1 | M107: 0
H109: =H99 -> 2021 | I109: =I99 -> 2022 | J109: 2023 | K109: 2034 | L109: 2035 | M109: 2036
C110: PTC Inflation per Year | H110: 0.01 | I110: 0.05 | J110: 0.03 | K110: 0.02 | L110: 0.02 | M110: 0.02
C112: PTC Inflation Month | E112: 2020-01-01 | F112: =TEXT(E112,"mmmm") -> January | G112: =MONTH(E112) -> 1
B115: Building Perspective
C116: Building Owner Contribution (Non-Solarized Fascade) | F116: 5500000
F119: https://www.energy.gov/sites/default/files/2022-10/Comparison-ITC-PTC-w-bonus-depreciation-Chart.png
F121: https://www.energy.gov/sites/default/files/2022-10/
F123: https://www.energy.gov/eere/solar/federal-solar-tax-credits-businesses
C125: Solar systems that are placed in service in 2022 or later and begin construction before 2033 are eligible for a 30% ITC or a 2.6 ¢/kWh[3]
C126: PTC if they meet labor requirements issued by the Treasury Department[4] or are under 1 megawatt (MW)[5] in size.
N135: Start of Construction
N137: 2019 | O137: 2020 | P137: 2021 | Q137: 2022 | R137: 2023 | S137: 2034 | T137: 2035 | U137: 2036
L139: Base Credit | N139: 0.3 | O139: 0.26 | P139: 0.3 | Q139: 0.3 | R139: 0.3 | S139: 0.225 | T139: 0.15 | U139: 0
L141: Domestic Content Bonus | R141: 0.1 | S141: 0.075 | T141: 0.05 | U141: 0
L143: Energy Community Bonus | R143: 0.1 | S143: 0.075 | T143: 0.05 | U143: 0
L145: Base Credit | N145: 0.3 | O145: 0.26 | P145: 0.06 | Q145: 0.045 | R145: 0.03 | S145: 0 | T145: 0.15 | U145: 0
L147: Domestic Content Bonus | R147: 0.02 | S147: 0.015 | T147: 0.01 | U147: 0
L149: Energy Community Bonus | R149: 0.02 | S149: 0.015 | T149: 0.01 | U149: 0
L151: Cap per Year | N151: 1800 | O151: MWH
L152: Less than 5 MW in LMI Community | Q152: 0.1 | R152: 0.1 | S152: 0.1 | T152: 0.1 | U152: 0.1
L157: Qualified Low-income Economic Benefit | Q157: 0.2 | R157: 0.2 | S157: 0.2 | T157: 0.2 | U157: 0.2
L161: Base Credit | Q161: 2.6 | R161: 2.6 | S161: 2 | T161: 1.3 | U161: 0
L163: Domestic Content Bonus | R163: 0.3 | S163: 0.2 | T163: 0.1 | U163: 0
L165: Energy Community Bonus | R165: 0.3 | S165: 0.2 | T165: 0.1 | U165: 0
L167: Base Credit | Q167: 0.5 | R167: 0.5 | S167: 0.4 | T167: 0.3 | U167: 0
L169: Domestic Content Bonus | R169: 0.1 | S169: 0 | T169: 0 | U169: 0
L171: Energy Community Bonus | R171: 0.1 | S171: 0.1 | T171: 0.1 | U171: 0
D179: To calculate the ITC, you multiply the applicable tax credit percentage by the “tax basis,” or the amount spent on eligible property. Eligible property includes the following:
D181: Solar PV panels, inverters, racking, balance-of-system equipment, and sales and use taxes on the equipment;
D182: CSP equipment necessary to generate electricity, heat or cool a structure, or to provide solar process heat;
D183: Installation costs and certain prorated indirect costs;
D184: Step-up transformers, circuit breakers, and surge arrestors;
D185: Energy storage devices that have a capacity rating of 5 kilowatt hours or greater (even if not charged with solar)[9]
D186: For projects 5 MW or less, the tax basis can include the interconnection property costs spent by the project owner to
D187: enable distribution and transmission of the electricity produced or stored by the system—this can include costs that
D188: are incurred beyond the point at which the energy property interconnects to the distribution or transmission systems. [10]
D190: Most taxpayers who claim the business solar ITC can use an accelerated depreciation schedule[29], which allows for a greater depreciation expense in the early years of the life of an asset, and effectively
D191: reducing the overall cost of a solar installation.[30] Depreciation is considered an expense, so having a larger amount to depreciate during the tax year results in a smaller overall tax liability.
D194: Note that while the ITC is a tax credit—a dollar-for-dollar reduction in taxes owed—depreciation is a deduction, meaning it only reduces a business’s taxes by the depreciation amount
D195: multiplied by the business’s tax rate (see below for an example).
D196: When the business ITC is claimed, accelerated depreciation rules allow the full tax basis minus half the ITC[31] to be depreciated over a five-year depreciation schedule using a half-year convention.[32]
D197: Any unused depreciation can be carried forward indefinitely.[33] Under the rules of this depreciation schedule, taxpayers are allowed to deduct a larger portion of this amount in earlier years,
D198: giving them the benefit of a greater immediate reduction in federal tax liability.
D201: The production tax credit (PTC) is a per kilowatt-hour (kWh) tax credit for electricity generated by solar and other qualifying technologies for the first 10 years of a system’s operation.
D202: It reduces the federal income tax liability and is adjusted annually for inflation.[2]
D204: Generally, project owners cannot claim both the ITC and the PTC for the same property, although they could claim different credits for co-located systems, like solar and storage,
D205: depending on what further guidance is issued by the IRS. Other types of renewable energy and storage technologies are also eligible for the ITC but are beyond the scope of this webpage.
D207: Solar systems that are placed in service in 2022 or later and begin construction before 2033 are eligible for a 30% ITC
D208: or a 2.6 ¢/kWh[3] PTC if they meet labor requirements issued by the Treasury Department[4] or are under 1 megawatt (MW)[5] in size.
D210: The PTC, as written, has a full value of 1.5 ¢/kWh in 1992 dollars, but is adjusted each year using “GDP implicit price deflator” published by the Department of Commerce.
D211: The reduced “base rate” offered to solar systems that do not meet the prevailing wage and apprenticeship requirements has a value of 0.3 ¢/kWh in 1992 dollars. In the event of rounding,
D212: the 1.5 ¢/kWh rate is rounded to the nearest 0.1 cent, while the 0.3 ¢/kWh is rounded to the nearest 0.05 cent.
D213: The Internal Revenue Service publish a 2022 value of 2.6 ¢/kWh in May. Some have argued that with the passage of IRA,
D214: this value should be increased, however Treasury has yet to issue additional guidance.

Sheet Tax Equity Partner Inputs
E1: Partner Scenario
E2: 3
E4: Index | F4: Applied Case | H4: Direct ITC Case | I4: Base Tax Equity Case | J4: Inverted Lease Case | K4: Tax Equity Case with Sale | L4: Alternative Tax Equity Case
H5: 1 | I5: 2 | J5: 3 | K5: 4 | L5: 5
B6: Tax Equity Allocation
C7: Apply Direct Payment for ITC | E7: =INDEX(H7:L7,$E$2) -> FALSE | F7: TRUE | H7: TRUE | I7: FALSE | J7: FALSE | K7: FALSE | L7: FALSE
C8: Payment for Direct Transfer of ITC | E8: =INDEX(H8:L8,$E$2) -> 0.9 | F8: =G8/100 -> 0.9 | G8: 90 | H8: 0.9 | I8: 0.9 | J8: 0.9 | K8: 0.9 | L8: 0.9
C9: ITC Realized Date for Solar Project | E9: =INDEX(H9:L9,$E$2) -> 2024-09-01 | F9: =E9 -> 2024-09-01 | H9: ='Constant Inputs - Operation'!$F$232 -> 2024-09-01 | I9: ='Constant Inputs - Operation'!$F$232 -> 2024-09-01 | J9: ='Constant Inputs - Operation'!$F$232 -> 2024-09-01 | K9: ='Constant Inputs - Operation'!$F$232 -> 2024-09-01 | L9: ='Constant Inputs - Operation'!$F$232 -> 2024-09-01
C10: Payment for ITC Date | E10: =INDEX(H10:L10,$E$2) -> 2023-09-01 | F10: =E10 -> 2023-09-01 | H10: ='Constant Inputs - Operation'!G228 -> 2023-09-01 | I10: =H10 -> 2023-09-01 | J10: =I10 -> 2023-09-01 | K10: 2023-09-01 | L10: 2023-09-01
C12: Fixed Flip Years | E12: =INDEX(H12:L12,$E$2) -> 5 | F12: =E12 -> 5 | H12: 5 | I12: 5 | J12: 5 | K12: 5 | L12: 5
C13: End of Time Based Flip Period | E13: =INDEX(H13:L13,$E$2) -> 2029-09-01 | F13: =E13 -> 2029-09-01 | H13: =EDATE(H9,H12*12) -> 2029-09-01 | I13: =EDATE(I9,I12*12) -> 2029-09-01 | J13: =EDATE(J9,J12*12) -> 2029-09-01 | K13: 2029-09-01 | L13: 2029-09-01
B15: Tax Investor Allocation Percent
C16: Percent of ITC (Contribution Ratio) | E16: =INDEX(H16:L16,$E$2) -> 1.3 | F16: =G16/100 -> 1.4 | G16: 140 | H16: 1.3 | I16: 1.3 | J16: 1.3 | K16: 1.3 | L16: 1.3
C18: Tax Investor Annual Preferred Yield | E18: =INDEX(H18:L18,$E$2) -> 0.03 | F18: =E18 -> 0.03 | H18: 0.03 | I18: 0.03 | J18: 0.03 | K18: 0.03 | L18: 0.03
C20: Share of Income - Pre-Flip | E20: =INDEX(H20:L20,$E$2) -> 0.99 | F20: =E20 -> 0.99 | H20: 0.99 | I20: 0.99 | J20: 0.99 | K20: 0.99 | L20: 0.99
C21: Share of Income - Post-Flip | E21: =INDEX(H21:L21,$E$2) -> 0.01 | F21: =E21 -> 0.01 | H21: =1-H20 -> 0.01 | I21: =1-I20 -> 0.01 | J21: =1-J20 -> 0.01 | K21: =1-K20 -> 0.01 | L21: =1-L20 -> 0.01
C23: Share of Cash Flow - Pre-Flip | E23: =INDEX(H23:L23,$E$2) -> 0.05 | F23: =E23 -> 0.05 | H23: 0.05 | I23: 0.05 | J23: 0.05 | K23: 0.05 | L23: 0.05
C24: Share of Cash Flow - Post-Flip | E24: =INDEX(H24:L24,$E$2) -> 0.05 | F24: =E24 -> 0.05 | H24: 0.05 | I24: 0.05 | J24: 0.05 | K24: 0.05 | L24: 0.05
B26: Sponsor Income and Distribution Percent
C27: Share of Income - Pre-Flip | E27: =INDEX(H27:L27,$E$2) -> 0.01 | F27: =E27 -> 0.01 | H27: =1-H20 -> 0.01 | I27: =1-I20 -> 0.01 | J27: 0.01 | K27: 0.01 | L27: 0.01
C28: Share of Income - Post-Flip | E28: =INDEX(H28:L28,$E$2) -> 0.99 | F28: =E28 -> 0.99 | H28: =1-H21 -> 0.99 | I28: 0.99 | J28: 0.99 | K28: 0.99 | L28: 0.99
C30: Share of Cash Flow - Pre-Flip | E30: =INDEX(H30:L30,$E$2) -> 0.95 | F30: =E30 -> 0.95 | H30: =1-H23 -> 0.95 | I30: =1-I23 -> 0.95 | J30: 0.95 | K30: 0.95 | L30: 0.95
C31: Share of Cash Flow - Post-Flip | E31: =INDEX(H31:L31,$E$2) -> 0.95 | F31: =E31 -> 0.95 | H31: =1-H24 -> 0.95 | I31: 0.95 | J31: 0.95 | K31: 0.95 | L31: 0.95
B33: Yield Based Flip | E33: 0 | F33: 0
C35: Pre-Flip Building
C36: Pre-Flip Developer
C38: Post-Flip Building
B40: Preferred Yield | I40: 0.03 | J40: 0.03 | K40: 0.03 | L40: 0.03
C42: Start of EE | E42: ='Constant Inputs - Operation'!$G$124 -> 2023-10-01
C43: Start of Solar | E43: ='Constant Inputs - Operation'!$G$232 -> 2024-09-01
C44: Start of CHP | E44: ='Constant Inputs - Operation'!$G$281 -> 2024-09-01
B47: Debt Terms
C48: COD for Debt | E48: Date | F48: =MAX(E42:E44) -> 2024-09-01
C49: DSCR for Debt Sizing | E49: x | F49: 1.6
C50: Maximum Debt to Capital | E50: % | F50: 0.7
C52: Debt Tenor | E52: Years | F52: 15
C53: Interest Rate | E53: % | F53: 0.06
C55: End of Repayment | E55: Date | F55: =EDATE(F48,F52*12) -> 2039-09-01
B57: Buidling Owner
C58: Budget for Full Solarized Fascade | E58: ='Constant Inputs - Operation'!G358 -> 0 | H58: ='Constant Inputs - Operation'!I358 -> 13457574 | I58: ='Constant Inputs - Operation'!J358 -> 13457574 | J58: ='Constant Inputs - Operation'!K358 -> 13457574 | K58: ='Constant Inputs - Operation'!L358 -> 13457574 | L58: ='Constant Inputs - Operation'!L358 -> 13457574
C59: Total ITC | E59: 0.6 | H59: 0.6 | I59: 0.6 | J59: 0.6 | K59: 0.6 | L59: 0.6
C60: Tax Equity Contribution Ratio | E60: 0.9 | H60: 0.9 | I60: 0.9 | J60: 0.9 | K60: 0.9 | L60: 0.9
C61: Tax Equity Contribution | E61: =E60*E59*E58 -> 0 | H61: =H60*H59*H58 -> 7267089.96 | I61: =I60*I59*I58 -> 7267089.96 | J61: =J60*J59*J58 -> 7267089.96 | K61: =K60*K59*K58 -> 7267089.96 | L61: =L60*L59*L58 -> 7267089.96
C63: Remaining Investment | E63: =E58-E61 -> 0 | H63: =H58-H61 -> 6190484.04 | I63: =I58-I61 -> 6190484.04 | J63: =J58-J61 -> 6190484.04 | K63: =K58-K61 -> 6190484.04 | L63: =L58-L61 -> 6190484.04
C65: Building Owner Contribution (Non-Solarized Fascade) | E65: 5500000 | H65: 5500000 | I65: 5500000 | J65: 5500000 | K65: 5500000 | L65: 5500000
C67: Developer/Asset Manger | E67: =E63-E65 -> -5500000 | H67: =H63-H65 -> 690484.04 | I67: =I63-I65 -> 690484.04 | J67: =J63-J65 -> 690484.04 | K67: =K63-K65 -> 690484.04 | L67: =L63-L65 -> 690484.04
D74: =TRANSPOSE(H4:V4) -> Direct ITC Case
D75: Base Tax Equity Case
D76: Inverted Lease Case
D77: Tax Equity Case with Sale
D78: Alternative Tax Equity Case

Sheet Emission Inputs
B3: https://www.epa.gov/energy/greenhouse-gas-equivalencies-calculator#results

Sheet Operating Model - Monthly
C1: Period | F1: Units | G1: Driver | H1: Driver | K1: Sum | M1: 1 | N1: 2 | O1: 3 | P1: 4 | Q1: 5 | R1: 6 | S1: 7 | T1: 8 | U1: 9 | V1: 10 | W1: 11 | X1: 12 | Y1: 13 | Z1: 14 | AA1: 15 | AB1: 16 | AC1: 17 | AD1: 18 | AE1: 19 | AF1: 20 | AG1: 21 | AH1: 22 | AI1: 23 | AJ1: 24 | AK1: 25 | AL1: 26 | AM1: 27 | AN1: 28 | AO1: 29 | AP1: 30 | AQ1: 31 | AR1: 32 | AS1: 33 | AT1: 34 | AU1: 35 | AV1: 36 | AW1: 37 | AX1: 38 | AY1: 39 | AZ1: 40 | BA1: 41 | BB1: 42 | BC1: 43 | BD1: 44 | BE1: 45 | BF1: 46 | BG1: 47 | BH1: 48 | BI1: 49 | BJ1: 50 | BK1: 51 | BL1: 52 | BM1: 53 | BN1: 54 | BO1: 55 | BP1: 56 | BQ1: 57 | BR1: 58 | BS1: 59 | BT1: 60 | BU1: 61 | BV1: 62 | BW1: 63 | BX1: 64 | BY1: 65 | BZ1: 66 | CA1: 67 | CB1: 68 | CC1: 69 | CD1: 70 | CE1: 71 | CF1: 72 | CG1: 73 | CH1: 74 | CI1: 75 | CJ1: 76 | CK1: 77 | CL1: 78 | CM1: 79 | CN1: 80 | CO1: 81 | CP1: 82 | CQ1: 83 | CR1: 84 | CS1: 85 | CT1: 86 | CU1: 87 | CV1: 88 | CW1: 89 | CX1: 90 | CY1: 91 | CZ1: 92 | DA1: 93 | DB1: 94 | DC1: 95 | DD1: 96 | DE1: 97 | DF1: 98 | DG1: 99 | DH1: 100 | DI1: 101 | DJ1: 102 | DK1: 103 | DL1: 104 | DM1: 105 | DN1: 106 | DO1: 107 | DP1: 108 | DQ1: 109 | DR1: 110 | DS1: 111 | DT1: 112 | DU1: 113 | DV1: 114 | DW1: 115 | DX1: 116 | DY1: 117 | DZ1: 118 | EA1: 119 | EB1: 120 | EC1: 121 | ED1: 122 | EE1: 123 | EF1: 124 | EG1: 125 | EH1: 126 | EI1: 127 | EJ1: 128 | EK1: 129 | EL1: 130 | EM1: 131 | EN1: 132 | EO1: 133 | EP1: 134 | EQ1: 135 | ER1: 136 | ES1: 137 | ET1: 138 | EU1: 139 | EV1: 140 | EW1: 141 | EX1: 142 | EY1: 143 | EZ1: 144 | FA1: 145 | FB1: 146 | FC1: 147 | FD1: 148 | FE1: 149 | FF1: 150 | FG1: 151 | FH1: 152 | FI1: 153 | FJ1: 154 | FK1: 155 | FL1: 156 | FM1: 157 | FN1: 158 | FO1: 159 | FP1: 160 | FQ1: 161 | FR1: 162 | FS1: 163 | FT1: 164 | FU1: 165 | FV1: 166 | FW1: 167 | FX1: 168 | FY1: 169 | FZ1: 170 | GA1: 171 | GB1: 172 | GC1: 173 | GD1: 174 | GE1: 175 | GF1: 176 | GG1: 177 | GH1: 178 | GI1: 179 | GJ1: 180 | GK1: 181 | GL1: 182 | GM1: 183 | GN1: 184 | GO1: 185 | GP1: 186 | GQ1: 187 | GR1: 188 | GS1: 189 | GT1: 190 | GU1: 191 | GV1: 192 | GW1: 193 | GX1: 194 | GY1: 195 | GZ1: 196 | HA1: 197 | HB1: 198 | HC1: 199 | HD1: 200 | HE1: 201 | HF1: 202 | HG1: 203 | HH1: 204 | HI1: 205 | HJ1: 206 | HK1: 207 | HL1: 208 | HM1: 209 | HN1: 210 | HO1: 211 | HP1: 212 | HQ1: 213 | HR1: 214 | HS1: 215 | HT1: 216 | HU1: 217 | HV1: 218 | HW1: 219 | HX1: 220 | HY1: 221 | HZ1: 222 | IA1: 223 | IB1: 224 | IC1: 225 | ID1: 226 | IE1: 227 | IF1: 228 | IG1: 229 | IH1: 230 | II1: 231 | IJ1: 232 | IK1: 233 | IL1: 234 | IM1: 235 | IN1: 236 | IO1: 237 | IP1: 238 | IQ1: 239 | IR1: 240 | IS1: 241 | IT1: 242 | IU1: 243 | IV1: 244 | IW1: 245 | IX1: 246 | IY1: 247 | IZ1: 248 | JA1: 249 | JB1: 250 | JC1: 251 | JD1: 252 | JE1: 253 | JF1: 254 | JG1: 255 | JH1: 256 | JI1: 257 | JJ1: 258 | JK1: 259 | JL1: 260 | JM1: 261 | JN1: 262 | JO1: 263 | JP1: 264 | JQ1: 265 | JR1: 266 | JS1: 267 | JT1: 268 | JU1: 269 | JV1: 270 | JW1: 271 | JX1: 272 | JY1: 273 | JZ1: 274 | KA1: 275 | KB1: 276 | KC1: 277 | KD1: 278 | KE1: 279 | KF1: 280 | KG1: 281 | KH1: 282 | KI1: 283 | KJ1: 284 | KK1: 285 | KL1: 286 | KM1: 287 | KN1: 288 | KO1: 289 | KP1: 290 | KQ1: 291 | KR1: 292 | KS1: 293 | KT1: 294 | KU1: 295 | KV1: 296 | KW1: 297 | KX1: 298 | KY1: 299 | KZ1: 300 | LA1: 301 | LB1: 302 | LC1: 303 | LD1: 304 | LE1: 305 | LF1: 306 | LG1: 307 | LH1: 308 | LI1: 309 | LJ1: 310 | LK1: 311 | LL1: 312 | LM1: 313 | LN1: 314 | LO1: 315 | LP1: 316 | LQ1: 317 | LR1: 318 | LS1: 319 | LT1: 320 | LU1: 321 | LV1: 322 | LW1: 323 | LX1: 324 | LY1: 325 | LZ1: 326 | MA1: 327 | MB1: 328 | MC1: 329 | MD1: 330 | ME1: 331 | MF1: 332 | MG1: 333 | MH1: 334 | MI1: 335 | MJ1: 336 | MK1: 337 | ML1: 338 | MM1: 339 | MN1: 340 | MO1: 341 | MP1: 342 | MQ1: 343 | MR1: 344 | MS1: 345 | MT1: 346 | MU1: 347 | MV1: 348 | MW1: 349 | MX1: 350 | MY1: 351 | MZ1: 352 | NA1: 353 | NB1: 354 | NC1: 355 | ND1: 356 | NE1: 357 | NF1: 358 | NG1: 359 | NH1: 360 | NI1: 361 | NJ1: 362 | NK1: 363 | NL1: 364 | NM1: 365 | NN1: 366 | NO1: 367 | NP1: 368 | NQ1: 369 | NR1: 370 | NS1: 371 | NT1: 372 | NU1: 373 | NV1: 374 | NW1: 375 | NX1: 376 | NY1: 377 | NZ1: 378 | OA1: 379 | OB1: 380 | OC1: 381 | OD1: 382 | OE1: 383 | OF1: 384 | OG1: 385 | OH1: 386 | OI1: 387 | OJ1: 388 | OK1: 389 | OL1: 390 | OM1: 391 | ON1: 392 | OO1: 393 | OP1: 394 | OQ1: 395
C2: Month | L2: =EDATE('Constant Inputs - Operation'!G10,-1) -> 2021-12-01 | M2: 2022-01-01 | N2: =EDATE(M2,1) -> 2022-02-01 | O2: 2022-03-01 | P2: 2022-04-01 | Q2: 2022-05-01 | R2: 2022-06-01 | S2: 2022-07-01 | T2: 2022-08-01 | U2: 2022-09-01 | V2: 2022-10-01 | W2: 2022-11-01 | X2: 2022-12-01 | Y2: 2023-01-01 | Z2: 2023-02-01 | AA2: 2023-03-01 | AB2: 2023-04-01 | AC2: 2023-05-01 | AD2: 2023-06-01 | AE2: 2023-07-01 | AF2: 2023-08-01 | AG2: 2023-09-01 | AH2: 2023-10-01 | AI2: 2023-11-01 | AJ2: 2023-12-01 | AK2: 2024-01-01 | AL2: 2024-02-01 | AM2: 2024-03-01 | AN2: 2024-04-01 | AO2: 2024-05-01 | AP2: 2024-06-01 | AQ2: 2024-07-01 | AR2: 2024-08-01 | AS2: 2024-09-01 | AT2: 2024-10-01 | AU2: 2024-11-01 | AV2: 2024-12-01 | AW2: 2025-01-01 | AX2: 2025-02-01 | AY2: 2025-03-01 | AZ2: 2025-04-01 | BA2: 2025-05-01 | BB2: 2025-06-01 | BC2: 2025-07-01 | BD2: 2025-08-01 | BE2: 2025-09-01 | BF2: 2025-10-01 | BG2: 2025-11-01 | BH2: 2025-12-01 | BI2: 2026-01-01 | BJ2: 2026-02-01 | BK2: 2026-03-01 | BL2: 2026-04-01 | BM2: 2026-05-01 | BN2: 2026-06-01 | BO2: 2026-07-01 | BP2: 2026-08-01 | BQ2: 2026-09-01 | BR2: 2026-10-01 | BS2: 2026-11-01 | BT2: 2026-12-01 | BU2: 2027-01-01 | BV2: 2027-02-01 | BW2: 2027-03-01 | BX2: 2027-04-01 | BY2: 2027-05-01 | BZ2: =EDATE(BY2,1) -> 2027-06-01 | CA2: 2027-07-01 | CB2: 2027-08-01 | CC2: 2027-09-01 | CD2: 2027-10-01 | CE2: 2027-11-01 | CF2: 2027-12-01 | CG2: 2028-01-01 | CH2: 2028-02-01 | CI2: 2028-03-01 | CJ2: 2028-04-01 | CK2: 2028-05-01 | CL2: 2028-06-01 | CM2: 2028-07-01 | CN2: 2028-08-01 | CO2: 2028-09-01 | CP2: 2028-10-01 | CQ2: 2028-11-01 | CR2: 2028-12-01 | CS2: 2029-01-01 | CT2: 2029-02-01 | CU2: 2029-03-01 | CV2: 2029-04-01 | CW2: 2029-05-01 | CX2: 2029-06-01 | CY2: 2029-07-01 | CZ2: 2029-08-01 | DA2: 2029-09-01 | DB2: 2029-10-01 | DC2: 2029-11-01 | DD2: 2029-12-01 | DE2: 2030-01-01 | DF2: 2030-02-01 | DG2: 2030-03-01 | DH2: 2030-04-01 | DI2: 2030-05-01 | DJ2: 2030-06-01 | DK2: 2030-07-01 | DL2: 2030-08-01 | DM2: 2030-09-01 | DN2: 2030-10-01 | DO2: 2030-11-01 | DP2: 2030-12-01 | DQ2: 2031-01-01 | DR2: 2031-02-01 | DS2: 2031-03-01 | DT2: 2031-04-01 | DU2: 2031-05-01 | DV2: 2031-06-01 | DW2: 2031-07-01 | DX2: 2031-08-01 | DY2: 2031-09-01 | DZ2: 2031-10-01 | EA2: 2031-11-01 | EB2: 2031-12-01 | EC2: 2032-01-01 | ED2: 2032-02-01 | EE2: 2032-03-01 | EF2: 2032-04-01 | EG2: 2032-05-01 | EH2: 2032-06-01 | EI2: 2032-07-01 | EJ2: 2032-08-01 | EK2: 2032-09-01 | EL2: =EDATE(EK2,1) -> 2032-10-01 | EM2: 2032-11-01 | EN2: 2032-12-01 | EO2: 2033-01-01 | EP2: 2033-02-01 | EQ2: 2033-03-01 | ER2: 2033-04-01 | ES2: 2033-05-01 | ET2: 2033-06-01 | EU2: 2033-07-01 | EV2: 2033-08-01 | EW2: 2033-09-01 | EX2: 2033-10-01 | EY2: 2033-11-01 | EZ2: 2033-12-01 | FA2: 2034-01-01 | FB2: 2034-02-01 | FC2: 2034-03-01 | FD2: 2034-04-01 | FE2: 2034-05-01 | FF2: 2034-06-01 | FG2: 2034-07-01 | FH2: 2034-08-01 | FI2: 2034-09-01 | FJ2: 2034-10-01 | FK2: 2034-11-01 | FL2: 2034-12-01 | FM2: 2035-01-01 | FN2: 2035-02-01 | FO2: 2035-03-01 | FP2: 2035-04-01 | FQ2: 2035-05-01 | FR2: 2035-06-01 | FS2: 2035-07-01 | FT2: 2035-08-01 | FU2: 2035-09-01 | FV2: 2035-10-01 | FW2: 2035-11-01 | FX2: 2035-12-01 | FY2: 2036-01-01 | FZ2: 2036-02-01 | GA2: 2036-03-01 | GB2: 2036-04-01 | GC2: 2036-05-01 | GD2: 2036-06-01 | GE2: 2036-07-01 | GF2: 2036-08-01 | GG2: 2036-09-01 | GH2: 2036-10-01 | GI2: 2036-11-01 | GJ2: 2036-12-01 | GK2: 2037-01-01 | GL2: 2037-02-01 | GM2: 2037-03-01 | GN2: 2037-04-01 | GO2: 2037-05-01 | GP2: 2037-06-01 | GQ2: 2037-07-01 | GR2: 2037-08-01 | GS2: 2037-09-01 | GT2: 2037-10-01 | GU2: 2037-11-01 | GV2: 2037-12-01 | GW2: 2038-01-01 | GX2: =EDATE(GW2,1) -> 2038-02-01 | GY2: 2038-03-01 | GZ2: 2038-04-01 | HA2: 2038-05-01 | HB2: 2038-06-01 | HC2: 2038-07-01 | HD2: 2038-08-01 | HE2: 2038-09-01 | HF2: 2038-10-01 | HG2: 2038-11-01 | HH2: 2038-12-01 | HI2: 2039-01-01 | HJ2: 2039-02-01 | HK2: 2039-03-01 | HL2: 2039-04-01 | HM2: 2039-05-01 | HN2: 2039-06-01 | HO2: 2039-07-01 | HP2: 2039-08-01 | HQ2: 2039-09-01 | HR2: 2039-10-01 | HS2: 2039-11-01 | HT2: 2039-12-01 | HU2: 2040-01-01 | HV2: 2040-02-01 | HW2: 2040-03-01 | HX2: 2040-04-01 | HY2: 2040-05-01 | HZ2: 2040-06-01 | IA2: 2040-07-01 | IB2: 2040-08-01 | IC2: 2040-09-01 | ID2: 2040-10-01 | IE2: 2040-11-01 | IF2: 2040-12-01 | IG2: 2041-01-01 | IH2: 2041-02-01 | II2: 2041-03-01 | IJ2: 2041-04-01 | IK2: 2041-05-01 | IL2: 2041-06-01 | IM2: 2041-07-01 | IN2: 2041-08-01 | IO2: 2041-09-01 | IP2: 2041-10-01 | IQ2: 2041-11-01 | IR2: 2041-12-01 | IS2: 2042-01-01 | IT2: 2042-02-01 | IU2: 2042-03-01 | IV2: 2042-04-01 | IW2: 2042-05-01 | IX2: 2042-06-01 | IY2: 2042-07-01 | IZ2: 2042-08-01 | JA2: 2042-09-01 | JB2: 2042-10-01 | JC2: 2042-11-01 | JD2: 2042-12-01 | JE2: 2043-01-01 | JF2: 2043-02-01 | JG2: 2043-03-01 | JH2: 2043-04-01 | JI2: 2043-05-01 | JJ2: =EDATE(JI2,1) -> 2043-06-01 | JK2: 2043-07-01 | JL2: 2043-08-01 | JM2: 2043-09-01 | JN2: 2043-10-01 | JO2: 2043-11-01 | JP2: 2043-12-01 | JQ2: 2044-01-01 | JR2: 2044-02-01 | JS2: 2044-03-01 | JT2: 2044-04-01 | JU2: 2044-05-01 | JV2: 2044-06-01 | JW2: 2044-07-01 | JX2: 2044-08-01 | JY2: 2044-09-01 | JZ2: 2044-10-01 | KA2: 2044-11-01 | KB2: 2044-12-01 | KC2: 2045-01-01 | KD2: 2045-02-01 | KE2: 2045-03-01 | KF2: 2045-04-01 | KG2: 2045-05-01 | KH2: 2045-06-01 | KI2: 2045-07-01 | KJ2: 2045-08-01 | KK2: 2045-09-01 | KL2: 2045-10-01 | KM2: 2045-11-01 | KN2: 2045-12-01 | KO2: 2046-01-01 | KP2: 2046-02-01 | KQ2: 2046-03-01 | KR2: 2046-04-01 | KS2: 2046-05-01 | KT2: 2046-06-01 | KU2: 2046-07-01 | KV2: 2046-08-01 | KW2: 2046-09-01 | KX2: 2046-10-01 | KY2: 2046-11-01 | KZ2: 2046-12-01 | LA2: =EDATE(KZ2,1) -> 2047-01-01 | LB2: =EDATE(LA2,1) -> 2047-02-01 | LC2: =EDATE(LB2,1) -> 2047-03-01 | LD2: =EDATE(LC2,1) -> 2047-04-01 | LE2: =EDATE(LD2,1) -> 2047-05-01 | LF2: =EDATE(LE2,1) -> 2047-06-01 | LG2: =EDATE(LF2,1) -> 2047-07-01 | LH2: =EDATE(LG2,1) -> 2047-08-01 | LI2: =EDATE(LH2,1) -> 2047-09-01 | LJ2: =EDATE(LI2,1) -> 2047-10-01 | LK2: =EDATE(LJ2,1) -> 2047-11-01 | LL2: =EDATE(LK2,1) -> 2047-12-01 | LM2: =EDATE(LL2,1) -> 2048-01-01 | LN2: =EDATE(LM2,1) -> 2048-02-01 | LO2: =EDATE(LN2,1) -> 2048-03-01 | LP2: =EDATE(LO2,1) -> 2048-04-01 | LQ2: =EDATE(LP2,1) -> 2048-05-01 | LR2: =EDATE(LQ2,1) -> 2048-06-01 | LS2: =EDATE(LR2,1) -> 2048-07-01 | LT2: =EDATE(LS2,1) -> 2048-08-01 | LU2: =EDATE(LT2,1) -> 2048-09-01 | LV2: =EDATE(LU2,1) -> 2048-10-01 | LW2: =EDATE(LV2,1) -> 2048-11-01 | LX2: =EDATE(LW2,1) -> 2048-12-01 | LY2: =EDATE(LX2,1) -> 2049-01-01 | LZ2: =EDATE(LY2,1) -> 2049-02-01 | MA2: =EDATE(LZ2,1) -> 2049-03-01 | MB2: =EDATE(MA2,1) -> 2049-04-01 | MC2: =EDATE(MB2,1) -> 2049-05-01 | MD2: =EDATE(MC2,1) -> 2049-06-01 | ME2: =EDATE(MD2,1) -> 2049-07-01 | MF2: =EDATE(ME2,1) -> 2049-08-01 | MG2: =EDATE(MF2,1) -> 2049-09-01 | MH2: =EDATE(MG2,1) -> 2049-10-01 | MI2: =EDATE(MH2,1) -> 2049-11-01 | MJ2: =EDATE(MI2,1) -> 2049-12-01 | MK2: =EDATE(MJ2,1) -> 2050-01-01 | ML2: =EDATE(MK2,1) -> 2050-02-01 | MM2: =EDATE(ML2,1) -> 2050-03-01 | MN2: =EDATE(MM2,1) -> 2050-04-01 | MO2: =EDATE(MN2,1) -> 2050-05-01 | MP2: =EDATE(MO2,1) -> 2050-06-01 | MQ2: =EDATE(MP2,1) -> 2050-07-01 | MR2: =EDATE(MQ2,1) -> 2050-08-01 | MS2: =EDATE(MR2,1) -> 2050-09-01 | MT2: =EDATE(MS2,1) -> 2050-10-01 | MU2: =EDATE(MT2,1) -> 2050-11-01 | MV2: =EDATE(MU2,1) -> 2050-12-01 | MW2: =EDATE(MV2,1) -> 2051-01-01 | MX2: =EDATE(MW2,1) -> 2051-02-01 | MY2: =EDATE(MX2,1) -> 2051-03-01 | MZ2: =EDATE(MY2,1) -> 2051-04-01 | NA2: =EDATE(MZ2,1) -> 2051-05-01 | NB2: =EDATE(NA2,1) -> 2051-06-01 | NC2: =EDATE(NB2,1) -> 2051-07-01 | ND2: =EDATE(NC2,1) -> 2051-08-01 | NE2: =EDATE(ND2,1) -> 2051-09-01 | NF2: =EDATE(NE2,1) -> 2051-10-01 | NG2: =EDATE(NF2,1) -> 2051-11-01 | NH2: =EDATE(NG2,1) -> 2051-12-01 | NI2: =EDATE(NH2,1) -> 2052-01-01 | NJ2: =EDATE(NI2,1) -> 2052-02-01 | NK2: =EDATE(NJ2,1) -> 2052-03-01 | NL2: =EDATE(NK2,1) -> 2052-04-01 | NM2: =EDATE(NL2,1) -> 2052-05-01 | NN2: =EDATE(NM2,1) -> 2052-06-01 | NO2: =EDATE(NN2,1) -> 2052-07-01 | NP2: =EDATE(NO2,1) -> 2052-08-01 | NQ2: =EDATE(NP2,1) -> 2052-09-01 | NR2: =EDATE(NQ2,1) -> 2052-10-01 | NS2: =EDATE(NR2,1) -> 2052-11-01 | NT2: =EDATE(NS2,1) -> 2052-12-01 | NU2: =EDATE(NT2,1) -> 2053-01-01 | NV2: =EDATE(NU2,1) -> 2053-02-01 | NW2: =EDATE(NV2,1) -> 2053-03-01 | NX2: =EDATE(NW2,1) -> 2053-04-01 | NY2: =EDATE(NX2,1) -> 2053-05-01 | NZ2: =EDATE(NY2,1) -> 2053-06-01 | OA2: =EDATE(NZ2,1) -> 2053-07-01 | OB2: =EDATE(OA2,1) -> 2053-08-01 | OC2: =EDATE(OB2,1) -> 2053-09-01 | OD2: =EDATE(OC2,1) -> 2053-10-01 | OE2: =EDATE(OD2,1) -> 2053-11-01 | OF2: =EDATE(OE2,1) -> 2053-12-01 | OG2: =EDATE(OF2,1) -> 2054-01-01 | OH2: =EDATE(OG2,1) -> 2054-02-01 | OI2: =EDATE(OH2,1) -> 2054-03-01 | OJ2: =EDATE(OI2,1) -> 2054-04-01 | OK2: =EDATE(OJ2,1) -> 2054-05-01 | OL2: =EDATE(OK2,1) -> 2054-06-01 | OM2: =EDATE(OL2,1) -> 2054-07-01 | ON2: =EDATE(OM2,1) -> 2054-08-01 | OO2: =EDATE(ON2,1) -> 2054-09-01 | OP2: =EDATE(OO2,1) -> 2054-10-01 | OQ2: =EDATE(OP2,1) -> 2054-11-01
C3: End of Year | F3: 12 | M3: =MOD(MONTH(M2),$F$3)=0 -> FALSE | N3: FALSE | O3: FALSE | P3: FALSE | Q3: FALSE | R3: FALSE | S3: FALSE | T3: FALSE | U3: FALSE | V3: FALSE | W3: FALSE | X3: TRUE | Y3: FALSE | Z3: FALSE | AA3: FALSE | AB3: FALSE | AC3: FALSE | AD3: FALSE | AE3: FALSE | AF3: FALSE | AG3: FALSE | AH3: FALSE | AI3: FALSE | AJ3: TRUE | AK3: FALSE | AL3: FALSE | AM3: FALSE | AN3: FALSE | AO3: FALSE | AP3: FALSE | AQ3: FALSE | AR3: FALSE | AS3: FALSE | AT3: FALSE | AU3: FALSE | AV3: TRUE | AW3: FALSE | AX3: FALSE | AY3: FALSE | AZ3: FALSE | BA3: FALSE | BB3: FALSE | BC3: FALSE | BD3: FALSE | BE3: FALSE | BF3: FALSE | BG3: FALSE | BH3: TRUE | BI3: FALSE | BJ3: FALSE | BK3: FALSE | BL3: FALSE | BM3: FALSE | BN3: FALSE | BO3: FALSE | BP3: FALSE | BQ3: FALSE | BR3: FALSE | BS3: FALSE | BT3: TRUE | BU3: FALSE | BV3: FALSE | BW3: FALSE | BX3: FALSE | BY3: =MOD(MONTH(BY2),$F$3)=0 -> FALSE | BZ3: FALSE | CA3: FALSE | CB3: FALSE | CC3: FALSE | CD3: FALSE | CE3: FALSE | CF3: TRUE | CG3: FALSE | CH3: FALSE | CI3: FALSE | CJ3: FALSE | CK3: FALSE | CL3: FALSE | CM3: FALSE | CN3: FALSE | CO3: FALSE | CP3: FALSE | CQ3: FALSE | CR3: TRUE | CS3: FALSE | CT3: FALSE | CU3: FALSE | CV3: FALSE | CW3: FALSE | CX3: FALSE | CY3: FALSE | CZ3: FALSE | DA3: FALSE | DB3: FALSE | DC3: FALSE | DD3: TRUE | DE3: FALSE | DF3: FALSE | DG3: FALSE | DH3: FALSE | DI3: FALSE | DJ3: FALSE | DK3: FALSE | DL3: FALSE | DM3: FALSE | DN3: FALSE | DO3: FALSE | DP3: TRUE | DQ3: FALSE | DR3: FALSE | DS3: FALSE | DT3: FALSE | DU3: FALSE | DV3: FALSE | DW3: FALSE | DX3: FALSE | DY3: FALSE | DZ3: FALSE | EA3: FALSE | EB3: TRUE | EC3: FALSE | ED3: FALSE | EE3: FALSE | EF3: FALSE | EG3: FALSE | EH3: FALSE | EI3: FALSE | EJ3: FALSE | EK3: =MOD(MONTH(EK2),$F$3)=0 -> FALSE | EL3: FALSE | EM3: FALSE | EN3: TRUE | EO3: FALSE | EP3: FALSE | EQ3: FALSE | ER3: FALSE | ES3: FALSE | ET3: FALSE | EU3: FALSE | EV3: FALSE | EW3: FALSE | EX3: FALSE | EY3: FALSE | EZ3: TRUE | FA3: FALSE | FB3: FALSE | FC3: FALSE | FD3: FALSE | FE3: FALSE | FF3: FALSE | FG3: FALSE | FH3: FALSE | FI3: FALSE | FJ3: FALSE | FK3: FALSE | FL3: TRUE | FM3: FALSE | FN3: FALSE | FO3: FALSE | FP3: FALSE | FQ3: FALSE | FR3: FALSE | FS3: FALSE | FT3: FALSE | FU3: FALSE | FV3: FALSE | FW3: FALSE | FX3: TRUE | FY3: FALSE | FZ3: FALSE | GA3: FALSE | GB3: FALSE | GC3: FALSE | GD3: FALSE | GE3: FALSE | GF3: FALSE | GG3: FALSE | GH3: FALSE | GI3: FALSE | GJ3: TRUE | GK3: FALSE | GL3: FALSE | GM3: FALSE | GN3: FALSE | GO3: FALSE | GP3: FALSE | GQ3: FALSE | GR3: FALSE | GS3: FALSE | GT3: FALSE | GU3: FALSE | GV3: TRUE | GW3: =MOD(MONTH(GW2),$F$3)=0 -> FALSE | GX3: FALSE | GY3: FALSE | GZ3: FALSE | HA3: FALSE | HB3: FALSE | HC3: FALSE | HD3: FALSE | HE3: FALSE | HF3: FALSE | HG3: FALSE | HH3: TRUE | HI3: FALSE | HJ3: FALSE | HK3: FALSE | HL3: FALSE | HM3: FALSE | HN3: FALSE | HO3: FALSE | HP3: FALSE | HQ3: FALSE | HR3: FALSE | HS3: FALSE | HT3: TRUE | HU3: FALSE | HV3: FALSE | HW3: FALSE | HX3: FALSE | HY3: FALSE | HZ3: FALSE | IA3: FALSE | IB3: FALSE | IC3: FALSE | ID3: FALSE | IE3: FALSE | IF3: TRUE | IG3: FALSE | IH3: FALSE | II3: FALSE | IJ3: FALSE | IK3: FALSE | IL3: FALSE | IM3: FALSE | IN3: FALSE | IO3: FALSE | IP3: FALSE | IQ3: FALSE | IR3: TRUE | IS3: FALSE | IT3: FALSE | IU3: FALSE | IV3: FALSE | IW3: FALSE | IX3: FALSE | IY3: FALSE | IZ3: FALSE | JA3: FALSE | JB3: FALSE | JC3: FALSE | JD3: TRUE | JE3: FALSE | JF3: FALSE | JG3: FALSE | JH3: FALSE | JI3: =MOD(MONTH(JI2),$F$3)=0 -> FALSE | JJ3: FALSE | JK3: FALSE | JL3: FALSE | JM3: FALSE | JN3: FALSE | JO3: FALSE | JP3: TRUE | JQ3: FALSE | JR3: FALSE | JS3: FALSE | JT3: FALSE | JU3: FALSE | JV3: FALSE | JW3: FALSE | JX3: FALSE | JY3: FALSE | JZ3: FALSE | KA3: FALSE | KB3: TRUE | KC3: FALSE | KD3: FALSE | KE3: FALSE | KF3: FALSE | KG3: FALSE | KH3: FALSE | KI3: FALSE | KJ3: FALSE | KK3: FALSE | KL3: FALSE | KM3: FALSE | KN3: TRUE | KO3: FALSE | KP3: FALSE | KQ3: FALSE | KR3: FALSE | KS3: FALSE | KT3: FALSE | KU3: FALSE | KV3: FALSE | KW3: FALSE | KX3: FALSE | KY3: FALSE | KZ3: TRUE | LA3: =MOD(MONTH(LA2),$F$3)=0 -> FALSE | LB3: FALSE | LC3: FALSE | LD3: FALSE | LE3: FALSE | LF3: FALSE | LG3: FALSE | LH3: FALSE | LI3: FALSE | LJ3: FALSE | LK3: FALSE | LL3: TRUE | LM3: FALSE | LN3: FALSE | LO3: FALSE | LP3: FALSE | LQ3: FALSE | LR3: FALSE | LS3: FALSE | LT3: FALSE | LU3: FALSE | LV3: FALSE | LW3: FALSE | LX3: TRUE | LY3: FALSE | LZ3: FALSE | MA3: FALSE | MB3: FALSE | MC3: FALSE | MD3: FALSE | ME3: FALSE | MF3: FALSE | MG3: FALSE | MH3: FALSE | MI3: FALSE | MJ3: TRUE | MK3: FALSE | ML3: FALSE | MM3: FALSE | MN3: FALSE | MO3: FALSE | MP3: FALSE | MQ3: FALSE | MR3: FALSE | MS3: FALSE | MT3: FALSE | MU3: FALSE | MV3: TRUE | MW3: FALSE | MX3: FALSE | MY3: FALSE | MZ3: FALSE | NA3: FALSE | NB3: FALSE | NC3: FALSE | ND3: FALSE | NE3: FALSE | NF3: FALSE | NG3: FALSE | NH3: TRUE | NI3: FALSE | NJ3: FALSE | NK3: FALSE | NL3: FALSE | NM3: =MOD(MONTH(NM2),$F$3)=0 -> FALSE | NN3: FALSE | NO3: FALSE | NP3: FALSE | NQ3: FALSE | NR3: FALSE | NS3: FALSE | NT3: TRUE | NU3: FALSE | NV3: FALSE | NW3: FALSE | NX3: FALSE | NY3: FALSE | NZ3: FALSE | OA3: FALSE | OB3: FALSE | OC3: FALSE | OD3: FALSE | OE3: FALSE | OF3: TRUE | OG3: FALSE | OH3: FALSE | OI3: FALSE | OJ3: FALSE | OK3: FALSE | OL3: FALSE | OM3: FALSE | ON3: FALSE | OO3: FALSE | OP3: FALSE | OQ3: FALSE
C4: Annual counter | M4: =IF(J3,1, J4+1) -> 1 | N4: =IF(M3,1, M4+1) -> 2 | O4: 3 | P4: 4 | Q4: 5 | R4: 6 | S4: 7 | T4: 8 | U4: 9 | V4: 10 | W4: 11 | X4: 12 | Y4: 1 | Z4: 2 | AA4: 3 | AB4: 4 | AC4: 5 | AD4: 6 | AE4: 7 | AF4: 8 | AG4: 9 | AH4: 10 | AI4: 11 | AJ4: 12 | AK4: 1 | AL4: 2 | AM4: 3 | AN4: 4 | AO4: 5 | AP4: 6 | AQ4: 7 | AR4: 8 | AS4: 9 | AT4: 10 | AU4: 11 | AV4: 12 | AW4: 1 | AX4: 2 | AY4: 3 | AZ4: 4 | BA4: 5 | BB4: 6 | BC4: 7 | BD4: 8 | BE4: 9 | BF4: 10 | BG4: 11 | BH4: 12 | BI4: 1 | BJ4: 2 | BK4: 3 | BL4: 4 | BM4: 5 | BN4: 6 | BO4: 7 | BP4: 8 | BQ4: 9 | BR4: 10 | BS4: 11 | BT4: 12 | BU4: 1 | BV4: 2 | BW4: 3 | BX4: 4 | BY4: =IF(BX3,1, BX4+1) -> 5 | BZ4: 6 | CA4: 7 | CB4: 8 | CC4: 9 | CD4: 10 | CE4: 11 | CF4: 12 | CG4: 1 | CH4: 2 | CI4: 3 | CJ4: 4 | CK4: 5 | CL4: 6 | CM4: 7 | CN4: 8 | CO4: 9 | CP4: 10 | CQ4: 11 | CR4: 12 | CS4: 1 | CT4: 2 | CU4: 3 | CV4: 4 | CW4: 5 | CX4: 6 | CY4: 7 | CZ4: 8 | DA4: 9 | DB4: 10 | DC4: 11 | DD4: 12 | DE4: 1 | DF4: 2 | DG4: 3 | DH4: 4 | DI4: 5 | DJ4: 6 | DK4: 7 | DL4: 8 | DM4: 9 | DN4: 10 | DO4: 11 | DP4: 12 | DQ4: 1 | DR4: 2 | DS4: 3 | DT4: 4 | DU4: 5 | DV4: 6 | DW4: 7 | DX4: 8 | DY4: 9 | DZ4: 10 | EA4: 11 | EB4: 12 | EC4: 1 | ED4: 2 | EE4: 3 | EF4: 4 | EG4: 5 | EH4: 6 | EI4: 7 | EJ4: 8 | EK4: =IF(EJ3,1, EJ4+1) -> 9 | EL4: 10 | EM4: 11 | EN4: 12 | EO4: 1 | EP4: 2 | EQ4: 3 | ER4: 4 | ES4: 5 | ET4: 6 | EU4: 7 | EV4: 8 | EW4: 9 | EX4: 10 | EY4: 11 | EZ4: 12 | FA4: 1 | FB4: 2 | FC4: 3 | FD4: 4 | FE4: 5 | FF4: 6 | FG4: 7 | FH4: 8 | FI4: 9 | FJ4: 10 | FK4: 11 | FL4: 12 | FM4: 1 | FN4: 2 | FO4: 3 | FP4: 4 | FQ4: 5 | FR4: 6 | FS4: 7 | FT4: 8 | FU4: 9 | FV4: 10 | FW4: 11 | FX4: 12 | FY4: 1 | FZ4: 2 | GA4: 3 | GB4: 4 | GC4: 5 | GD4: 6 | GE4: 7 | GF4: 8 | GG4: 9 | GH4: 10 | GI4: 11 | GJ4: 12 | GK4: 1 | GL4: 2 | GM4: 3 | GN4: 4 | GO4: 5 | GP4: 6 | GQ4: 7 | GR4: 8 | GS4: 9 | GT4: 10 | GU4: 11 | GV4: 12 | GW4: =IF(GV3,1, GV4+1) -> 1 | GX4: 2 | GY4: 3 | GZ4: 4 | HA4: 5 | HB4: 6 | HC4: 7 | HD4: 8 | HE4: 9 | HF4: 10 | HG4: 11 | HH4: 12 | HI4: 1 | HJ4: 2 | HK4: 3 | HL4: 4 | HM4: 5 | HN4: 6 | HO4: 7 | HP4: 8 | HQ4: 9 | HR4: 10 | HS4: 11 | HT4: 12 | HU4: 1 | HV4: 2 | HW4: 3 | HX4: 4 | HY4: 5 | HZ4: 6 | IA4: 7 | IB4: 8 | IC4: 9 | ID4: 10 | IE4: 11 | IF4: 12 | IG4: 1 | IH4: 2 | II4: 3 | IJ4: 4 | IK4: 5 | IL4: 6 | IM4: 7 | IN4: 8 | IO4: 9 | IP4: 10 | IQ4: 11 | IR4: 12 | IS4: 1 | IT4: 2 | IU4: 3 | IV4: 4 | IW4: 5 | IX4: 6 | IY4: 7 | IZ4: 8 | JA4: 9 | JB4: 10 | JC4: 11 | JD4: 12 | JE4: 1 | JF4: 2 | JG4: 3 | JH4: 4 | JI4: =IF(JH3,1, JH4+1) -> 5 | JJ4: 6 | JK4: 7 | JL4: 8 | JM4: 9 | JN4: 10 | JO4: 11 | JP4: 12 | JQ4: 1 | JR4: 2 | JS4: 3 | JT4: 4 | JU4: 5 | JV4: 6 | JW4: 7 | JX4: 8 | JY4: 9 | JZ4: 10 | KA4: 11 | KB4: 12 | KC4: 1 | KD4: 2 | KE4: 3 | KF4: 4 | KG4: 5 | KH4: 6 | KI4: 7 | KJ4: 8 | KK4: 9 | KL4: 10 | KM4: 11 | KN4: 12 | KO4: 1 | KP4: 2 | KQ4: 3 | KR4: 4 | KS4: 5 | KT4: 6 | KU4: 7 | KV4: 8 | KW4: 9 | KX4: 10 | KY4: 11 | KZ4: 12 | LA4: =IF(KZ3,1, KZ4+1) -> 1 | LB4: =IF(LA3,1, LA4+1) -> 2 | LC4: =IF(LB3,1, LB4+1) -> 3 | LD4: =IF(LC3,1, LC4+1) -> 4 | LE4: =IF(LD3,1, LD4+1) -> 5 | LF4: =IF(LE3,1, LE4+1) -> 6 | LG4: =IF(LF3,1, LF4+1) -> 7 | LH4: =IF(LG3,1, LG4+1) -> 8 | LI4: =IF(LH3,1, LH4+1) -> 9 | LJ4: =IF(LI3,1, LI4+1) -> 10 | LK4: =IF(LJ3,1, LJ4+1) -> 11 | LL4: =IF(LK3,1, LK4+1) -> 12 | LM4: =IF(LL3,1, LL4+1) -> 1 | LN4: =IF(LM3,1, LM4+1) -> 2 | LO4: =IF(LN3,1, LN4+1) -> 3 | LP4: =IF(LO3,1, LO4+1) -> 4 | LQ4: =IF(LP3,1, LP4+1) -> 5 | LR4: =IF(LQ3,1, LQ4+1) -> 6 | LS4: =IF(LR3,1, LR4+1) -> 7 | LT4: =IF(LS3,1, LS4+1) -> 8 | LU4: =IF(LT3,1, LT4+1) -> 9 | LV4: =IF(LU3,1, LU4+1) -> 10 | LW4: =IF(LV3,1, LV4+1) -> 11 | LX4: =IF(LW3,1, LW4+1) -> 12 | LY4: =IF(LX3,1, LX4+1) -> 1 | LZ4: =IF(LY3,1, LY4+1) -> 2 | MA4: =IF(LZ3,1, LZ4+1) -> 3 | MB4: =IF(MA3,1, MA4+1) -> 4 | MC4: =IF(MB3,1, MB4+1) -> 5 | MD4: =IF(MC3,1, MC4+1) -> 6 | ME4: =IF(MD3,1, MD4+1) -> 7 | MF4: =IF(ME3,1, ME4+1) -> 8 | MG4: =IF(MF3,1, MF4+1) -> 9 | MH4: =IF(MG3,1, MG4+1) -> 10 | MI4: =IF(MH3,1, MH4+1) -> 11 | MJ4: =IF(MI3,1, MI4+1) -> 12 | MK4: =IF(MJ3,1, MJ4+1) -> 1 | ML4: =IF(MK3,1, MK4+1) -> 2 | MM4: =IF(ML3,1, ML4+1) -> 3 | MN4: =IF(MM3,1, MM4+1) -> 4 | MO4: =IF(MN3,1, MN4+1) -> 5 | MP4: =IF(MO3,1, MO4+1) -> 6 | MQ4: =IF(MP3,1, MP4+1) -> 7 | MR4: =IF(MQ3,1, MQ4+1) -> 8 | MS4: =IF(MR3,1, MR4+1) -> 9 | MT4: =IF(MS3,1, MS4+1) -> 10 | MU4: =IF(MT3,1, MT4+1) -> 11 | MV4: =IF(MU3,1, MU4+1) -> 12 | MW4: =IF(MV3,1, MV4+1) -> 1 | MX4: =IF(MW3,1, MW4+1) -> 2 | MY4: =IF(MX3,1, MX4+1) -> 3 | MZ4: =IF(MY3,1, MY4+1) -> 4 | NA4: =IF(MZ3,1, MZ4+1) -> 5 | NB4: =IF(NA3,1, NA4+1) -> 6 | NC4: =IF(NB3,1, NB4+1) -> 7 | ND4: =IF(NC3,1, NC4+1) -> 8 | NE4: =IF(ND3,1, ND4+1) -> 9 | NF4: =IF(NE3,1, NE4+1) -> 10 | NG4: =IF(NF3,1, NF4+1) -> 11 | NH4: =IF(NG3,1, NG4+1) -> 12 | NI4: =IF(NH3,1, NH4+1) -> 1 | NJ4: =IF(NI3,1, NI4+1) -> 2 | NK4: =IF(NJ3,1, NJ4+1) -> 3 | NL4: =IF(NK3,1, NK4+1) -> 4 | NM4: =IF(NL3,1, NL4+1) -> 5 | NN4: =IF(NM3,1, NM4+1) -> 6 | NO4: =IF(NN3,1, NN4+1) -> 7 | NP4: =IF(NO3,1, NO4+1) -> 8 | NQ4: =IF(NP3,1, NP4+1) -> 9 | NR4: =IF(NQ3,1, NQ4+1) -> 10 | NS4: =IF(NR3,1, NR4+1) -> 11 | NT4: =IF(NS3,1, NS4+1) -> 12 | NU4: =IF(NT3,1, NT4+1) -> 1 | NV4: =IF(NU3,1, NU4+1) -> 2 | NW4: =IF(NV3,1, NV4+1) -> 3 | NX4: =IF(NW3,1, NW4+1) -> 4 | NY4: =IF(NX3,1, NX4+1) -> 5 | NZ4: =IF(NY3,1, NY4+1) -> 6 | OA4: =IF(NZ3,1, NZ4+1) -> 7 | OB4: =IF(OA3,1, OA4+1) -> 8 | OC4: =IF(OB3,1, OB4+1) -> 9 | OD4: =IF(OC3,1, OC4+1) -> 10 | OE4: =IF(OD3,1, OD4+1) -> 11 | OF4: =IF(OE3,1, OE4+1) -> 12 | OG4: =IF(OF3,1, OF4+1) -> 1 | OH4: =IF(OG3,1, OG4+1) -> 2 | OI4: =IF(OH3,1, OH4+1) -> 3 | OJ4: =IF(OI3,1, OI4+1) -> 4 | OK4: =IF(OJ3,1, OJ4+1) -> 5 | OL4: =IF(OK3,1, OK4+1) -> 6 | OM4: =IF(OL3,1, OL4+1) -> 7 | ON4: =IF(OM3,1, OM4+1) -> 8 | OO4: =IF(ON3,1, ON4+1) -> 9 | OP4: =IF(OO3,1, OO4+1) -> 10 | OQ4: =IF(OP3,1, OP4+1) -> 11
C5: Month Number | M5: =MONTH(M2) -> 1 | N5: 2 | O5: 3 | P5: 4 | Q5: 5 | R5: 6 | S5: 7 | T5: 8 | U5: 9 | V5: 10 | W5: 11 | X5: 12 | Y5: 1 | Z5: 2 | AA5: 3 | AB5: 4 | AC5: 5 | AD5: 6 | AE5: 7 | AF5: 8 | AG5: 9 | AH5: 10 | AI5: 11 | AJ5: 12 | AK5: 1 | AL5: 2 | AM5: 3 | AN5: 4 | AO5: 5 | AP5: 6 | AQ5: 7 | AR5: 8 | AS5: 9 | AT5: 10 | AU5: 11 | AV5: 12 | AW5: 1 | AX5: 2 | AY5: 3 | AZ5: 4 | BA5: 5 | BB5: 6 | BC5: 7 | BD5: 8 | BE5: 9 | BF5: 10 | BG5: 11 | BH5: 12 | BI5: 1 | BJ5: 2 | BK5: 3 | BL5: 4 | BM5: 5 | BN5: 6 | BO5: 7 | BP5: 8 | BQ5: 9 | BR5: 10 | BS5: 11 | BT5: 12 | BU5: 1 | BV5: 2 | BW5: 3 | BX5: 4 | BY5: =MONTH(BY2) -> 5 | BZ5: 6 | CA5: 7 | CB5: 8 | CC5: 9 | CD5: 10 | CE5: 11 | CF5: 12 | CG5: 1 | CH5: 2 | CI5: 3 | CJ5: 4 | CK5: 5 | CL5: 6 | CM5: 7 | CN5: 8 | CO5: 9 | CP5: 10 | CQ5: 11 | CR5: 12 | CS5: 1 | CT5: 2 | CU5: 3 | CV5: 4 | CW5: 5 | CX5: 6 | CY5: 7 | CZ5: 8 | DA5: 9 | DB5: 10 | DC5: 11 | DD5: 12 | DE5: 1 | DF5: 2 | DG5: 3 | DH5: 4 | DI5: 5 | DJ5: 6 | DK5: 7 | DL5: 8 | DM5: 9 | DN5: 10 | DO5: 11 | DP5: 12 | DQ5: 1 | DR5: 2 | DS5: 3 | DT5: 4 | DU5: 5 | DV5: 6 | DW5: 7 | DX5: 8 | DY5: 9 | DZ5: 10 | EA5: 11 | EB5: 12 | EC5: 1 | ED5: 2 | EE5: 3 | EF5: 4 | EG5: 5 | EH5: 6 | EI5: 7 | EJ5: 8 | EK5: =MONTH(EK2) -> 9 | EL5: 10 | EM5: 11 | EN5: 12 | EO5: 1 | EP5: 2 | EQ5: 3 | ER5: 4 | ES5: 5 | ET5: 6 | EU5: 7 | EV5: 8 | EW5: 9 | EX5: 10 | EY5: 11 | EZ5: 12 | FA5: 1 | FB5: 2 | FC5: 3 | FD5: 4 | FE5: 5 | FF5: 6 | FG5: 7 | FH5: 8 | FI5: 9 | FJ5: 10 | FK5: 11 | FL5: 12 | FM5: 1 | FN5: 2 | FO5: 3 | FP5: 4 | FQ5: 5 | FR5: 6 | FS5: 7 | FT5: 8 | FU5: 9 | FV5: 10 | FW5: 11 | FX5: 12 | FY5: 1 | FZ5: 2 | GA5: 3 | GB5: 4 | GC5: 5 | GD5: 6 | GE5: 7 | GF5: 8 | GG5: 9 | GH5: 10 | GI5: 11 | GJ5: 12 | GK5: 1 | GL5: 2 | GM5: 3 | GN5: 4 | GO5: 5 | GP5: 6 | GQ5: 7 | GR5: 8 | GS5: 9 | GT5: 10 | GU5: 11 | GV5: 12 | GW5: =MONTH(GW2) -> 1 | GX5: 2 | GY5: 3 | GZ5: 4 | HA5: 5 | HB5: 6 | HC5: 7 | HD5: 8 | HE5: 9 | HF5: 10 | HG5: 11 | HH5: 12 | HI5: 1 | HJ5: 2 | HK5: 3 | HL5: 4 | HM5: 5 | HN5: 6 | HO5: 7 | HP5: 8 | HQ5: 9 | HR5: 10 | HS5: 11 | HT5: 12 | HU5: 1 | HV5: 2 | HW5: 3 | HX5: 4 | HY5: 5 | HZ5: 6 | IA5: 7 | IB5: 8 | IC5: 9 | ID5: 10 | IE5: 11 | IF5: 12 | IG5: 1 | IH5: 2 | II5: 3 | IJ5: 4 | IK5: 5 | IL5: 6 | IM5: 7 | IN5: 8 | IO5: 9 | IP5: 10 | IQ5: 11 | IR5: 12 | IS5: 1 | IT5: 2 | IU5: 3 | IV5: 4 | IW5: 5 | IX5: 6 | IY5: 7 | IZ5: 8 | JA5: 9 | JB5: 10 | JC5: 11 | JD5: 12 | JE5: 1 | JF5: 2 | JG5: 3 | JH5: 4 | JI5: =MONTH(JI2) -> 5 | JJ5: 6 | JK5: 7 | JL5: 8 | JM5: 9 | JN5: 10 | JO5: 11 | JP5: 12 | JQ5: 1 | JR5: 2 | JS5: 3 | JT5: 4 | JU5: 5 | JV5: 6 | JW5: 7 | JX5: 8 | JY5: 9 | JZ5: 10 | KA5: 11 | KB5: 12 | KC5: 1 | KD5: 2 | KE5: 3 | KF5: 4 | KG5: 5 | KH5: 6 | KI5: 7 | KJ5: 8 | KK5: 9 | KL5: 10 | KM5: 11 | KN5: 12 | KO5: 1 | KP5: 2 | KQ5: 3 | KR5: 4 | KS5: 5 | KT5: 6 | KU5: 7 | KV5: 8 | KW5: 9 | KX5: 10 | KY5: 11 | KZ5: 12 | LA5: 1 | LB5: 2 | LC5: 3 | LD5: 4 | LE5: 5 | LF5: 6 | LG5: 7 | LH5: 8 | LI5: 9 | LJ5: 10 | LK5: 11 | LL5: 12 | LM5: 1 | LN5: 2 | LO5: 3 | LP5: 4 | LQ5: 5 | LR5: 6 | LS5: 7 | LT5: 8 | LU5: =MONTH(LU2) -> 9 | LV5: 10 | LW5: 11 | LX5: 12 | LY5: 1 | LZ5: 2 | MA5: 3 | MB5: 4 | MC5: 5 | MD5: 6 | ME5: 7 | MF5: 8 | MG5: 9 | MH5: 10 | MI5: 11 | MJ5: 12 | MK5: 1 | ML5: 2 | MM5: 3 | MN5: 4 | MO5: 5 | MP5: 6 | MQ5: 7 | MR5: 8 | MS5: 9 | MT5: 10 | MU5: 11 | MV5: 12 | MW5: 1 | MX5: 2 | MY5: 3 | MZ5: 4 | NA5: 5 | NB5: 6 | NC5: 7 | ND5: 8 | NE5: 9 | NF5: 10 | NG5: 11 | NH5: 12 | NI5: 1 | NJ5: 2 | NK5: 3 | NL5: 4 | NM5: 5 | NN5: 6 | NO5: 7 | NP5: 8 | NQ5: 9 | NR5: 10 | NS5: 11 | NT5: 12 | NU5: 1 | NV5: 2 | NW5: 3 | NX5: 4 | NY5: 5 | NZ5: 6 | OA5: 7 | OB5: 8 | OC5: 9 | OD5: 10 | OE5: 11 | OF5: 12 | OG5: =MONTH(OG2) -> 1 | OH5: 2 | OI5: 3 | OJ5: 4 | OK5: 5 | OL5: 6 | OM5: 7 | ON5: 8 | OO5: 9 | OP5: 10 | OQ5: 11
C6: Quarter Number | M6: =MOD(M5,3)=0 -> FALSE | N6: =MOD(N5,3)=0 -> FALSE | O6: TRUE | P6: FALSE | Q6: FALSE | R6: TRUE | S6: FALSE | T6: FALSE | U6: TRUE | V6: FALSE | W6: FALSE | X6: TRUE | Y6: FALSE | Z6: FALSE | AA6: TRUE | AB6: FALSE | AC6: FALSE | AD6: TRUE | AE6: FALSE | AF6: FALSE | AG6: TRUE | AH6: FALSE | AI6: FALSE | AJ6: TRUE | AK6: FALSE | AL6: FALSE | AM6: TRUE | AN6: FALSE | AO6: FALSE | AP6: TRUE | AQ6: FALSE | AR6: FALSE | AS6: TRUE | AT6: FALSE | AU6: FALSE | AV6: TRUE | AW6: FALSE | AX6: FALSE | AY6: TRUE | AZ6: FALSE | BA6: FALSE | BB6: TRUE | BC6: FALSE | BD6: FALSE | BE6: TRUE | BF6: FALSE | BG6: FALSE | BH6: TRUE | BI6: FALSE | BJ6: FALSE | BK6: TRUE | BL6: FALSE | BM6: FALSE | BN6: TRUE | BO6: FALSE | BP6: FALSE | BQ6: TRUE | BR6: FALSE | BS6: FALSE | BT6: TRUE | BU6: FALSE | BV6: FALSE | BW6: TRUE | BX6: FALSE | BY6: FALSE | BZ6: =MOD(BZ5,3)=0 -> TRUE | CA6: FALSE | CB6: FALSE | CC6: TRUE | CD6: FALSE | CE6: FALSE | CF6: TRUE | CG6: FALSE | CH6: FALSE | CI6: TRUE | CJ6: FALSE | CK6: FALSE | CL6: TRUE | CM6: FALSE | CN6: FALSE | CO6: TRUE | CP6: FALSE | CQ6: FALSE | CR6: TRUE | CS6: FALSE | CT6: FALSE | CU6: TRUE | CV6: FALSE | CW6: FALSE | CX6: TRUE | CY6: FALSE | CZ6: FALSE | DA6: TRUE | DB6: FALSE | DC6: FALSE | DD6: TRUE | DE6: FALSE | DF6: FALSE | DG6: TRUE | DH6: FALSE | DI6: FALSE | DJ6: TRUE | DK6: FALSE | DL6: FALSE | DM6: TRUE | DN6: FALSE | DO6: FALSE | DP6: TRUE | DQ6: FALSE | DR6: FALSE | DS6: TRUE | DT6: FALSE | DU6: FALSE | DV6: TRUE | DW6: FALSE | DX6: FALSE | DY6: TRUE | DZ6: FALSE | EA6: FALSE | EB6: TRUE | EC6: FALSE | ED6: FALSE | EE6: TRUE | EF6: FALSE | EG6: FALSE | EH6: TRUE | EI6: FALSE | EJ6: FALSE | EK6: TRUE | EL6: =MOD(EL5,3)=0 -> FALSE | EM6: FALSE | EN6: TRUE | EO6: FALSE | EP6: FALSE | EQ6: TRUE | ER6: FALSE | ES6: FALSE | ET6: TRUE | EU6: FALSE | EV6: FALSE | EW6: TRUE | EX6: FALSE | EY6: FALSE | EZ6: TRUE | FA6: FALSE | FB6: FALSE | FC6: TRUE | FD6: FALSE | FE6: FALSE | FF6: TRUE | FG6: FALSE | FH6: FALSE | FI6: TRUE | FJ6: FALSE | FK6: FALSE | FL6: TRUE | FM6: FALSE | FN6: FALSE | FO6: TRUE | FP6: FALSE | FQ6: FALSE | FR6: TRUE | FS6: FALSE | FT6: FALSE | FU6: TRUE | FV6: FALSE | FW6: FALSE | FX6: TRUE | FY6: FALSE | FZ6: FALSE | GA6: TRUE | GB6: FALSE | GC6: FALSE | GD6: TRUE | GE6: FALSE | GF6: FALSE | GG6: TRUE | GH6: FALSE | GI6: FALSE | GJ6: TRUE | GK6: FALSE | GL6: FALSE | GM6: TRUE | GN6: FALSE | GO6: FALSE | GP6: TRUE | GQ6: FALSE | GR6: FALSE | GS6: TRUE | GT6: FALSE | GU6: FALSE | GV6: TRUE | GW6: FALSE | GX6: =MOD(GX5,3)=0 -> FALSE | GY6: TRUE | GZ6: FALSE | HA6: FALSE | HB6: TRUE | HC6: FALSE | HD6: FALSE | HE6: TRUE | HF6: FALSE | HG6: FALSE | HH6: TRUE | HI6: FALSE | HJ6: FALSE | HK6: TRUE | HL6: FALSE | HM6: FALSE | HN6: TRUE | HO6: FALSE | HP6: FALSE | HQ6: TRUE | HR6: FALSE | HS6: FALSE | HT6: TRUE | HU6: FALSE | HV6: FALSE | HW6: TRUE | HX6: FALSE | HY6: FALSE | HZ6: TRUE | IA6: FALSE | IB6: FALSE | IC6: TRUE | ID6: FALSE | IE6: FALSE | IF6: TRUE | IG6: FALSE | IH6: FALSE | II6: TRUE | IJ6: FALSE | IK6: FALSE | IL6: TRUE | IM6: FALSE | IN6: FALSE | IO6: TRUE | IP6: FALSE | IQ6: FALSE | IR6: TRUE | IS6: FALSE | IT6: FALSE | IU6: TRUE | IV6: FALSE | IW6: FALSE | IX6: TRUE | IY6: FALSE | IZ6: FALSE | JA6: TRUE | JB6: FALSE | JC6: FALSE | JD6: TRUE | JE6: FALSE | JF6: FALSE | JG6: TRUE | JH6: FALSE | JI6: FALSE | JJ6: =MOD(JJ5,3)=0 -> TRUE | JK6: FALSE | JL6: FALSE | JM6: TRUE | JN6: FALSE | JO6: FALSE | JP6: TRUE | JQ6: FALSE | JR6: FALSE | JS6: TRUE | JT6: FALSE | JU6: FALSE | JV6: TRUE | JW6: FALSE | JX6: FALSE | JY6: TRUE | JZ6: FALSE | KA6: FALSE | KB6: TRUE | KC6: FALSE | KD6: FALSE | KE6: TRUE | KF6: FALSE | KG6: FALSE | KH6: TRUE | KI6: FALSE | KJ6: FALSE | KK6: TRUE | KL6: FALSE | KM6: FALSE | KN6: TRUE | KO6: FALSE | KP6: FALSE | KQ6: TRUE | KR6: FALSE | KS6: FALSE | KT6: TRUE | KU6: FALSE | KV6: FALSE | KW6: TRUE | KX6: FALSE | KY6: FALSE | KZ6: TRUE | LA6: =MOD(LA5,3)=0 -> FALSE | LB6: FALSE | LC6: TRUE | LD6: FALSE | LE6: FALSE | LF6: TRUE | LG6: FALSE | LH6: FALSE | LI6: TRUE | LJ6: FALSE | LK6: FALSE | LL6: TRUE | LM6: FALSE | LN6: FALSE | LO6: TRUE | LP6: FALSE | LQ6: FALSE | LR6: TRUE | LS6: FALSE | LT6: FALSE | LU6: TRUE | LV6: FALSE | LW6: FALSE | LX6: TRUE | LY6: FALSE | LZ6: FALSE | MA6: TRUE | MB6: FALSE | MC6: FALSE | MD6: TRUE | ME6: FALSE | MF6: FALSE | MG6: TRUE | MH6: FALSE | MI6: FALSE | MJ6: TRUE | MK6: FALSE | ML6: FALSE | MM6: TRUE | MN6: FALSE | MO6: FALSE | MP6: TRUE | MQ6: FALSE | MR6: FALSE | MS6: TRUE | MT6: FALSE | MU6: FALSE | MV6: TRUE | MW6: FALSE | MX6: FALSE | MY6: TRUE | MZ6: FALSE | NA6: FALSE | NB6: TRUE | NC6: FALSE | ND6: FALSE | NE6: TRUE | NF6: FALSE | NG6: FALSE | NH6: TRUE | NI6: FALSE | NJ6: FALSE | NK6: TRUE | NL6: FALSE | NM6: =MOD(NM5,3)=0 -> FALSE | NN6: TRUE | NO6: FALSE | NP6: FALSE | NQ6: TRUE | NR6: FALSE | NS6: FALSE | NT6: TRUE | NU6: FALSE | NV6: FALSE | NW6: TRUE | NX6: FALSE | NY6: FALSE | NZ6: TRUE | OA6: FALSE | OB6: FALSE | OC6: TRUE | OD6: FALSE | OE6: FALSE | OF6: TRUE | OG6: FALSE | OH6: FALSE | OI6: TRUE | OJ6: FALSE | OK6: FALSE | OL6: TRUE | OM6: FALSE | ON6: FALSE | OO6: TRUE | OP6: FALSE | OQ6: FALSE
C7: Counter | L7: 0 | M7: =IF(L6,1,L7+1) -> 1 | N7: =IF(M6,1,M7+1) -> 2 | O7: 3 | P7: 1 | Q7: 2 | R7: 3 | S7: 1 | T7: 2 | U7: 3 | V7: 1 | W7: 2 | X7: 3 | Y7: 1 | Z7: 2 | AA7: 3 | AB7: 1 | AC7: 2 | AD7: 3 | AE7: 1 | AF7: 2 | AG7: 3 | AH7: 1 | AI7: 2 | AJ7: 3 | AK7: 1 | AL7: 2 | AM7: 3 | AN7: 1 | AO7: 2 | AP7: 3 | AQ7: 1 | AR7: 2 | AS7: 3 | AT7: 1 | AU7: 2 | AV7: 3 | AW7: 1 | AX7: 2 | AY7: 3 | AZ7: 1 | BA7: 2 | BB7: 3 | BC7: 1 | BD7: 2 | BE7: 3 | BF7: 1 | BG7: 2 | BH7: 3 | BI7: 1 | BJ7: 2 | BK7: 3 | BL7: 1 | BM7: 2 | BN7: 3 | BO7: 1 | BP7: 2 | BQ7: 3 | BR7: 1 | BS7: 2 | BT7: 3 | BU7: 1 | BV7: 2 | BW7: 3 | BX7: 1 | BY7: 2 | BZ7: =IF(BY6,1,BY7+1) -> 3 | CA7: 1 | CB7: 2 | CC7: 3 | CD7: 1 | CE7: 2 | CF7: 3 | CG7: 1 | CH7: 2 | CI7: 3 | CJ7: 1 | CK7: 2 | CL7: 3 | CM7: 1 | CN7: 2 | CO7: 3 | CP7: 1 | CQ7: 2 | CR7: 3 | CS7: 1 | CT7: 2 | CU7: 3 | CV7: 1 | CW7: 2 | CX7: 3 | CY7: 1 | CZ7: 2 | DA7: 3 | DB7: 1 | DC7: 2 | DD7: 3 | DE7: 1 | DF7: 2 | DG7: 3 | DH7: 1 | DI7: 2 | DJ7: 3 | DK7: 1 | DL7: 2 | DM7: 3 | DN7: 1 | DO7: 2 | DP7: 3 | DQ7: 1 | DR7: 2 | DS7: 3 | DT7: 1 | DU7: 2 | DV7: 3 | DW7: 1 | DX7: 2 | DY7: 3 | DZ7: 1 | EA7: 2 | EB7: 3 | EC7: 1 | ED7: 2 | EE7: 3 | EF7: 1 | EG7: 2 | EH7: 3 | EI7: 1 | EJ7: 2 | EK7: 3 | EL7: =IF(EK6,1,EK7+1) -> 1 | EM7: 2 | EN7: 3 | EO7: 1 | EP7: 2 | EQ7: 3 | ER7: 1 | ES7: 2 | ET7: 3 | EU7: 1 | EV7: 2 | EW7: 3 | EX7: 1 | EY7: 2 | EZ7: 3 | FA7: 1 | FB7: 2 | FC7: 3 | FD7: 1 | FE7: 2 | FF7: 3 | FG7: 1 | FH7: 2 | FI7: 3 | FJ7: 1 | FK7: 2 | FL7: 3 | FM7: 1 | FN7: 2 | FO7: 3 | FP7: 1 | FQ7: 2 | FR7: 3 | FS7: 1 | FT7: 2 | FU7: 3 | FV7: 1 | FW7: 2 | FX7: 3 | FY7: 1 | FZ7: 2 | GA7: 3 | GB7: 1 | GC7: 2 | GD7: 3 | GE7: 1 | GF7: 2 | GG7: 3 | GH7: 1 | GI7: 2 | GJ7: 3 | GK7: 1 | GL7: 2 | GM7: 3 | GN7: 1 | GO7: 2 | GP7: 3 | GQ7: 1 | GR7: 2 | GS7: 3 | GT7: 1 | GU7: 2 | GV7: 3 | GW7: 1 | GX7: =IF(GW6,1,GW7+1) -> 2 | GY7: 3 | GZ7: 1 | HA7: 2 | HB7: 3 | HC7: 1 | HD7: 2 | HE7: 3 | HF7: 1 | HG7: 2 | HH7: 3 | HI7: 1 | HJ7: 2 | HK7: 3 | HL7: 1 | HM7: 2 | HN7: 3 | HO7: 1 | HP7: 2 | HQ7: 3 | HR7: 1 | HS7: 2 | HT7: 3 | HU7: 1 | HV7: 2 | HW7: 3 | HX7: 1 | HY7: 2 | HZ7: 3 | IA7: 1 | IB7: 2 | IC7: 3 | ID7: 1 | IE7: 2 | IF7: 3 | IG7: 1 | IH7: 2 | II7: 3 | IJ7: 1 | IK7: 2 | IL7: 3 | IM7: 1 | IN7: 2 | IO7: 3 | IP7: 1 | IQ7: 2 | IR7: 3 | IS7: 1 | IT7: 2 | IU7: 3 | IV7: 1 | IW7: 2 | IX7: 3 | IY7: 1 | IZ7: 2 | JA7: 3 | JB7: 1 | JC7: 2 | JD7: 3 | JE7: 1 | JF7: 2 | JG7: 3 | JH7: 1 | JI7: 2 | JJ7: =IF(JI6,1,JI7+1) -> 3 | JK7: 1 | JL7: 2 | JM7: 3 | JN7: 1 | JO7: 2 | JP7: 3 | JQ7: 1 | JR7: 2 | JS7: 3 | JT7: 1 | JU7: 2 | JV7: 3 | JW7: 1 | JX7: 2 | JY7: 3 | JZ7: 1 | KA7: 2 | KB7: 3 | KC7: 1 | KD7: 2 | KE7: 3 | KF7: 1 | KG7: 2 | KH7: 3 | KI7: 1 | KJ7: 2 | KK7: 3 | KL7: 1 | KM7: 2 | KN7: 3 | KO7: 1 | KP7: 2 | KQ7: 3 | KR7: 1 | KS7: 2 | KT7: 3 | KU7: 1 | KV7: 2 | KW7: 3 | KX7: 1 | KY7: 2 | KZ7: 3 | LA7: =IF(KZ6,1,KZ7+1) -> 1 | LB7: =IF(LA6,1,LA7+1) -> 2 | LC7: =IF(LB6,1,LB7+1) -> 3 | LD7: =IF(LC6,1,LC7+1) -> 1 | LE7: =IF(LD6,1,LD7+1) -> 2 | LF7: =IF(LE6,1,LE7+1) -> 3 | LG7: =IF(LF6,1,LF7+1) -> 1 | LH7: =IF(LG6,1,LG7+1) -> 2 | LI7: =IF(LH6,1,LH7+1) -> 3 | LJ7: =IF(LI6,1,LI7+1) -> 1 | LK7: =IF(LJ6,1,LJ7+1) -> 2 | LL7: =IF(LK6,1,LK7+1) -> 3 | LM7: =IF(LL6,1,LL7+1) -> 1 | LN7: =IF(LM6,1,LM7+1) -> 2 | LO7: =IF(LN6,1,LN7+1) -> 3 | LP7: =IF(LO6,1,LO7+1) -> 1 | LQ7: =IF(LP6,1,LP7+1) -> 2 | LR7: =IF(LQ6,1,LQ7+1) -> 3 | LS7: =IF(LR6,1,LR7+1) -> 1 | LT7: =IF(LS6,1,LS7+1) -> 2 | LU7: =IF(LT6,1,LT7+1) -> 3 | LV7: =IF(LU6,1,LU7+1) -> 1 | LW7: =IF(LV6,1,LV7+1) -> 2 | LX7: =IF(LW6,1,LW7+1) -> 3 | LY7: =IF(LX6,1,LX7+1) -> 1 | LZ7: =IF(LY6,1,LY7+1) -> 2 | MA7: =IF(LZ6,1,LZ7+1) -> 3 | MB7: =IF(MA6,1,MA7+1) -> 1 | MC7: =IF(MB6,1,MB7+1) -> 2 | MD7: =IF(MC6,1,MC7+1) -> 3 | ME7: =IF(MD6,1,MD7+1) -> 1 | MF7: =IF(ME6,1,ME7+1) -> 2 | MG7: =IF(MF6,1,MF7+1) -> 3 | MH7: =IF(MG6,1,MG7+1) -> 1 | MI7: =IF(MH6,1,MH7+1) -> 2 | MJ7: =IF(MI6,1,MI7+1) -> 3 | MK7: =IF(MJ6,1,MJ7+1) -> 1 | ML7: =IF(MK6,1,MK7+1) -> 2 | MM7: =IF(ML6,1,ML7+1) -> 3 | MN7: =IF(MM6,1,MM7+1) -> 1 | MO7: =IF(MN6,1,MN7+1) -> 2 | MP7: =IF(MO6,1,MO7+1) -> 3 | MQ7: =IF(MP6,1,MP7+1) -> 1 | MR7: =IF(MQ6,1,MQ7+1) -> 2 | MS7: =IF(MR6,1,MR7+1) -> 3 | MT7: =IF(MS6,1,MS7+1) -> 1 | MU7: =IF(MT6,1,MT7+1) -> 2 | MV7: =IF(MU6,1,MU7+1) -> 3 | MW7: =IF(MV6,1,MV7+1) -> 1 | MX7: =IF(MW6,1,MW7+1) -> 2 | MY7: =IF(MX6,1,MX7+1) -> 3 | MZ7: =IF(MY6,1,MY7+1) -> 1 | NA7: =IF(MZ6,1,MZ7+1) -> 2 | NB7: =IF(NA6,1,NA7+1) -> 3 | NC7: =IF(NB6,1,NB7+1) -> 1 | ND7: =IF(NC6,1,NC7+1) -> 2 | NE7: =IF(ND6,1,ND7+1) -> 3 | NF7: =IF(NE6,1,NE7+1) -> 1 | NG7: =IF(NF6,1,NF7+1) -> 2 | NH7: =IF(NG6,1,NG7+1) -> 3 | NI7: =IF(NH6,1,NH7+1) -> 1 | NJ7: =IF(NI6,1,NI7+1) -> 2 | NK7: =IF(NJ6,1,NJ7+1) -> 3 | NL7: =IF(NK6,1,NK7+1) -> 1 | NM7: =IF(NL6,1,NL7+1) -> 2 | NN7: =IF(NM6,1,NM7+1) -> 3 | NO7: =IF(NN6,1,NN7+1) -> 1 | NP7: =IF(NO6,1,NO7+1) -> 2 | NQ7: =IF(NP6,1,NP7+1) -> 3 | NR7: =IF(NQ6,1,NQ7+1) -> 1 | NS7: =IF(NR6,1,NR7+1) -> 2 | NT7: =IF(NS6,1,NS7+1) -> 3 | NU7: =IF(NT6,1,NT7+1) -> 1 | NV7: =IF(NU6,1,NU7+1) -> 2 | NW7: =IF(NV6,1,NV7+1) -> 3 | NX7: =IF(NW6,1,NW7+1) -> 1 | NY7: =IF(NX6,1,NX7+1) -> 2 | NZ7: =IF(NY6,1,NY7+1) -> 3 | OA7: =IF(NZ6,1,NZ7+1) -> 1 | OB7: =IF(OA6,1,OA7+1) -> 2 | OC7: =IF(OB6,1,OB7+1) -> 3 | OD7: =IF(OC6,1,OC7+1) -> 1 | OE7: =IF(OD6,1,OD7+1) -> 2 | OF7: =IF(OE6,1,OE7+1) -> 3 | OG7: =IF(OF6,1,OF7+1) -> 1 | OH7: =IF(OG6,1,OG7+1) -> 2 | OI7: =IF(OH6,1,OH7+1) -> 3 | OJ7: =IF(OI6,1,OI7+1) -> 1 | OK7: =IF(OJ6,1,OJ7+1) -> 2 | OL7: =IF(OK6,1,OK7+1) -> 3 | OM7: =IF(OL6,1,OL7+1) -> 1 | ON7: =IF(OM6,1,OM7+1) -> 2 | OO7: =IF(ON6,1,ON7+1) -> 3 | OP7: =IF(OO6,1,OO7+1) -> 1 | OQ7: =IF(OP6,1,OP7+1) -> 2
C8: Counter for Date | M8: =3-M7 -> 2 | N8: =3-N7 -> 1 | O8: 0 | P8: 2 | Q8: 1 | R8: 0 | S8: 2 | T8: 1 | U8: 0 | V8: 2 | W8: 1 | X8: 0 | Y8: 2 | Z8: 1 | AA8: 0 | AB8: 2 | AC8: 1 | AD8: 0 | AE8: 2 | AF8: 1 | AG8: 0 | AH8: 2 | AI8: 1 | AJ8: 0 | AK8: 2 | AL8: 1 | AM8: 0 | AN8: 2 | AO8: 1 | AP8: 0 | AQ8: 2 | AR8: 1 | AS8: 0 | AT8: 2 | AU8: 1 | AV8: 0 | AW8: 2 | AX8: 1 | AY8: 0 | AZ8: 2 | BA8: 1 | BB8: 0 | BC8: 2 | BD8: 1 | BE8: 0 | BF8: 2 | BG8: 1 | BH8: 0 | BI8: 2 | BJ8: 1 | BK8: 0 | BL8: 2 | BM8: 1 | BN8: 0 | BO8: 2 | BP8: 1 | BQ8: 0 | BR8: 2 | BS8: 1 | BT8: 0 | BU8: 2 | BV8: 1 | BW8: 0 | BX8: 2 | BY8: 1 | BZ8: =3-BZ7 -> 0 | CA8: 2 | CB8: 1 | CC8: 0 | CD8: 2 | CE8: 1 | CF8: 0 | CG8: 2 | CH8: 1 | CI8: 0 | CJ8: 2 | CK8: 1 | CL8: 0 | CM8: 2 | CN8: 1 | CO8: 0 | CP8: 2 | CQ8: 1 | CR8: 0 | CS8: 2 | CT8: 1 | CU8: 0 | CV8: 2 | CW8: 1 | CX8: 0 | CY8: 2 | CZ8: 1 | DA8: 0 | DB8: 2 | DC8: 1 | DD8: 0 | DE8: 2 | DF8: 1 | DG8: 0 | DH8: 2 | DI8: 1 | DJ8: 0 | DK8: 2 | DL8: 1 | DM8: 0 | DN8: 2 | DO8: 1 | DP8: 0 | DQ8: 2 | DR8: 1 | DS8: 0 | DT8: 2 | DU8: 1 | DV8: 0 | DW8: 2 | DX8: 1 | DY8: 0 | DZ8: 2 | EA8: 1 | EB8: 0 | EC8: 2 | ED8: 1 | EE8: 0 | EF8: 2 | EG8: 1 | EH8: 0 | EI8: 2 | EJ8: 1 | EK8: 0 | EL8: =3-EL7 -> 2 | EM8: 1 | EN8: 0 | EO8: 2 | EP8: 1 | EQ8: 0 | ER8: 2 | ES8: 1 | ET8: 0 | EU8: 2 | EV8: 1 | EW8: 0 | EX8: 2 | EY8: 1 | EZ8: 0 | FA8: 2 | FB8: 1 | FC8: 0 | FD8: 2 | FE8: 1 | FF8: 0 | FG8: 2 | FH8: 1 | FI8: 0 | FJ8: 2 | FK8: 1 | FL8: 0 | FM8: 2 | FN8: 1 | FO8: 0 | FP8: 2 | FQ8: 1 | FR8: 0 | FS8: 2 | FT8: 1 | FU8: 0 | FV8: 2 | FW8: 1 | FX8: 0 | FY8: 2 | FZ8: 1 | GA8: 0 | GB8: 2 | GC8: 1 | GD8: 0 | GE8: 2 | GF8: 1 | GG8: 0 | GH8: 2 | GI8: 1 | GJ8: 0 | GK8: 2 | GL8: 1 | GM8: 0 | GN8: 2 | GO8: 1 | GP8: 0 | GQ8: 2 | GR8: 1 | GS8: 0 | GT8: 2 | GU8: 1 | GV8: 0 | GW8: 2 | GX8: =3-GX7 -> 1 | GY8: 0 | GZ8: 2 | HA8: 1 | HB8: 0 | HC8: 2 | HD8: 1 | HE8: 0 | HF8: 2 | HG8: 1 | HH8: 0 | HI8: 2 | HJ8: 1 | HK8: 0 | HL8: 2 | HM8: 1 | HN8: 0 | HO8: 2 | HP8: 1 | HQ8: 0 | HR8: 2 | HS8: 1 | HT8: 0 | HU8: 2 | HV8: 1 | HW8: 0 | HX8: 2 | HY8: 1 | HZ8: 0 | IA8: 2 | IB8: 1 | IC8: 0 | ID8: 2 | IE8: 1 | IF8: 0 | IG8: 2 | IH8: 1 | II8: 0 | IJ8: 2 | IK8: 1 | IL8: 0 | IM8: 2 | IN8: 1 | IO8: 0 | IP8: 2 | IQ8: 1 | IR8: 0 | IS8: 2 | IT8: 1 | IU8: 0 | IV8: 2 | IW8: 1 | IX8: 0 | IY8: 2 | IZ8: 1 | JA8: 0 | JB8: 2 | JC8: 1 | JD8: 0 | JE8: 2 | JF8: 1 | JG8: 0 | JH8: 2 | JI8: 1 | JJ8: =3-JJ7 -> 0 | JK8: 2 | JL8: 1 | JM8: 0 | JN8: 2 | JO8: 1 | JP8: 0 | JQ8: 2 | JR8: 1 | JS8: 0 | JT8: 2 | JU8: 1 | JV8: 0 | JW8: 2 | JX8: 1 | JY8: 0 | JZ8: 2 | KA8: 1 | KB8: 0 | KC8: 2 | KD8: 1 | KE8: 0 | KF8: 2 | KG8: 1 | KH8: 0 | KI8: 2 | KJ8: 1 | KK8: 0 | KL8: 2 | KM8: 1 | KN8: 0 | KO8: 2 | KP8: 1 | KQ8: 0 | KR8: 2 | KS8: 1 | KT8: 0 | KU8: 2 | KV8: 1 | KW8: 0 | KX8: 2 | KY8: 1 | KZ8: 0 | LA8: 2 | LB8: 1 | LC8: 0 | LD8: 2 | LE8: 1 | LF8: 0 | LG8: 2 | LH8: 1 | LI8: 0 | LJ8: 2 | LK8: 1 | LL8: 0 | LM8: 2 | LN8: 1 | LO8: 0 | LP8: 2 | LQ8: 1 | LR8: 0 | LS8: 2 | LT8: 1 | LU8: 0 | LV8: =3-LV7 -> 2 | LW8: 1 | LX8: 0 | LY8: 2 | LZ8: 1 | MA8: 0 | MB8: 2 | MC8: 1 | MD8: 0 | ME8: 2 | MF8: 1 | MG8: 0 | MH8: 2 | MI8: 1 | MJ8: 0 | MK8: 2 | ML8: 1 | MM8: 0 | MN8: 2 | MO8: 1 | MP8: 0 | MQ8: 2 | MR8: 1 | MS8: 0 | MT8: 2 | MU8: 1 | MV8: 0 | MW8: 2 | MX8: 1 | MY8: 0 | MZ8: 2 | NA8: 1 | NB8: 0 | NC8: 2 | ND8: 1 | NE8: 0 | NF8: 2 | NG8: 1 | NH8: 0 | NI8: 2 | NJ8: 1 | NK8: 0 | NL8: 2 | NM8: 1 | NN8: 0 | NO8: 2 | NP8: 1 | NQ8: 0 | NR8: 2 | NS8: 1 | NT8: 0 | NU8: 2 | NV8: 1 | NW8: 0 | NX8: 2 | NY8: 1 | NZ8: 0 | OA8: 2 | OB8: 1 | OC8: 0 | OD8: 2 | OE8: 1 | OF8: 0 | OG8: 2 | OH8: =3-OH7 -> 1 | OI8: 0 | OJ8: 2 | OK8: 1 | OL8: 0 | OM8: 2 | ON8: 1 | OO8: 0 | OP8: 2 | OQ8: 1
C9: End of Quarter - For Sumif | M9: =EOMONTH(M2,M8) -> 2022-03-31 | N9: 2022-03-31 | O9: 2022-03-31 | P9: 2022-06-30 | Q9: 2022-06-30 | R9: 2022-06-30 | S9: 2022-09-30 | T9: 2022-09-30 | U9: 2022-09-30 | V9: 2022-12-31 | W9: 2022-12-31 | X9: 2022-12-31 | Y9: 2023-03-31 | Z9: 2023-03-31 | AA9: 2023-03-31 | AB9: 2023-06-30 | AC9: 2023-06-30 | AD9: 2023-06-30 | AE9: 2023-09-30 | AF9: 2023-09-30 | AG9: 2023-09-30 | AH9: 2023-12-31 | AI9: 2023-12-31 | AJ9: 2023-12-31 | AK9: 2024-03-31 | AL9: 2024-03-31 | AM9: 2024-03-31 | AN9: 2024-06-30 | AO9: 2024-06-30 | AP9: 2024-06-30 | AQ9: 2024-09-30 | AR9: 2024-09-30 | AS9: 2024-09-30 | AT9: 2024-12-31 | AU9: 2024-12-31 | AV9: 2024-12-31 | AW9: 2025-03-31 | AX9: 2025-03-31 | AY9: 2025-03-31 | AZ9: 2025-06-30 | BA9: 2025-06-30 | BB9: 2025-06-30 | BC9: 2025-09-30 | BD9: 2025-09-30 | BE9: 2025-09-30 | BF9: 2025-12-31 | BG9: 2025-12-31 | BH9: 2025-12-31 | BI9: 2026-03-31 | BJ9: 2026-03-31 | BK9: 2026-03-31 | BL9: 2026-06-30 | BM9: 2026-06-30 | BN9: 2026-06-30 | BO9: 2026-09-30 | BP9: 2026-09-30 | BQ9: 2026-09-30 | BR9: 2026-12-31 | BS9: 2026-12-31 | BT9: 2026-12-31 | BU9: 2027-03-31 | BV9: 2027-03-31 | BW9: 2027-03-31 | BX9: 2027-06-30 | BY9: =EOMONTH(BY2,BY8) -> 2027-06-30 | BZ9: 2027-06-30 | CA9: 2027-09-30 | CB9: 2027-09-30 | CC9: 2027-09-30 | CD9: 2027-12-31 | CE9: 2027-12-31 | CF9: 2027-12-31 | CG9: 2028-03-31 | CH9: 2028-03-31 | CI9: 2028-03-31 | CJ9: 2028-06-30 | CK9: 2028-06-30 | CL9: 2028-06-30 | CM9: 2028-09-30 | CN9: 2028-09-30 | CO9: 2028-09-30 | CP9: 2028-12-31 | CQ9: 2028-12-31 | CR9: 2028-12-31 | CS9: 2029-03-31 | CT9: 2029-03-31 | CU9: 2029-03-31 | CV9: 2029-06-30 | CW9: 2029-06-30 | CX9: 2029-06-30 | CY9: 2029-09-30 | CZ9: 2029-09-30 | DA9: 2029-09-30 | DB9: 2029-12-31 | DC9: 2029-12-31 | DD9: 2029-12-31 | DE9: 2030-03-31 | DF9: 2030-03-31 | DG9: 2030-03-31 | DH9: 2030-06-30 | DI9: 2030-06-30 | DJ9: 2030-06-30 | DK9: 2030-09-30 | DL9: 2030-09-30 | DM9: 2030-09-30 | DN9: 2030-12-31 | DO9: 2030-12-31 | DP9: 2030-12-31 | DQ9: 2031-03-31 | DR9: 2031-03-31 | DS9: 2031-03-31 | DT9: 2031-06-30 | DU9: 2031-06-30 | DV9: 2031-06-30 | DW9: 2031-09-30 | DX9: 2031-09-30 | DY9: 2031-09-30 | DZ9: 2031-12-31 | EA9: 2031-12-31 | EB9: 2031-12-31 | EC9: 2032-03-31 | ED9: 2032-03-31 | EE9: 2032-03-31 | EF9: 2032-06-30 | EG9: 2032-06-30 | EH9: 2032-06-30 | EI9: 2032-09-30 | EJ9: 2032-09-30 | EK9: =EOMONTH(EK2,EK8) -> 2032-09-30 | EL9: 2032-12-31 | EM9: 2032-12-31 | EN9: 2032-12-31 | EO9: 2033-03-31 | EP9: 2033-03-31 | EQ9: 2033-03-31 | ER9: 2033-06-30 | ES9: 2033-06-30 | ET9: 2033-06-30 | EU9: 2033-09-30 | EV9: 2033-09-30 | EW9: 2033-09-30 | EX9: 2033-12-31 | EY9: 2033-12-31 | EZ9: 2033-12-31 | FA9: 2034-03-31 | FB9: 2034-03-31 | FC9: 2034-03-31 | FD9: 2034-06-30 | FE9: 2034-06-30 | FF9: 2034-06-30 | FG9: 2034-09-30 | FH9: 2034-09-30 | FI9: 2034-09-30 | FJ9: 2034-12-31 | FK9: 2034-12-31 | FL9: 2034-12-31 | FM9: 2035-03-31 | FN9: 2035-03-31 | FO9: 2035-03-31 | FP9: 2035-06-30 | FQ9: 2035-06-30 | FR9: 2035-06-30 | FS9: 2035-09-30 | FT9: 2035-09-30 | FU9: 2035-09-30 | FV9: 2035-12-31 | FW9: 2035-12-31 | FX9: 2035-12-31 | FY9: 2036-03-31 | FZ9: 2036-03-31 | GA9: 2036-03-31 | GB9: 2036-06-30 | GC9: 2036-06-30 | GD9: 2036-06-30 | GE9: 2036-09-30 | GF9: 2036-09-30 | GG9: 2036-09-30 | GH9: 2036-12-31 | GI9: 2036-12-31 | GJ9: 2036-12-31 | GK9: 2037-03-31 | GL9: 2037-03-31 | GM9: 2037-03-31 | GN9: 2037-06-30 | GO9: 2037-06-30 | GP9: 2037-06-30 | GQ9: 2037-09-30 | GR9: 2037-09-30 | GS9: 2037-09-30 | GT9: 2037-12-31 | GU9: 2037-12-31 | GV9: 2037-12-31 | GW9: =EOMONTH(GW2,GW8) -> 2038-03-31 | GX9: 2038-03-31 | GY9: 2038-03-31 | GZ9: 2038-06-30 | HA9: 2038-06-30 | HB9: 2038-06-30 | HC9: 2038-09-30 | HD9: 2038-09-30 | HE9: 2038-09-30 | HF9: 2038-12-31 | HG9: 2038-12-31 | HH9: 2038-12-31 | HI9: 2039-03-31 | HJ9: 2039-03-31 | HK9: 2039-03-31 | HL9: 2039-06-30 | HM9: 2039-06-30 | HN9: 2039-06-30 | HO9: 2039-09-30 | HP9: 2039-09-30 | HQ9: 2039-09-30 | HR9: 2039-12-31 | HS9: 2039-12-31 | HT9: 2039-12-31 | HU9: 2040-03-31 | HV9: 2040-03-31 | HW9: 2040-03-31 | HX9: 2040-06-30 | HY9: 2040-06-30 | HZ9: 2040-06-30 | IA9: 2040-09-30 | IB9: 2040-09-30 | IC9: 2040-09-30 | ID9: 2040-12-31 | IE9: 2040-12-31 | IF9: 2040-12-31 | IG9: 2041-03-31 | IH9: 2041-03-31 | II9: 2041-03-31 | IJ9: 2041-06-30 | IK9: 2041-06-30 | IL9: 2041-06-30 | IM9: 2041-09-30 | IN9: 2041-09-30 | IO9: 2041-09-30 | IP9: 2041-12-31 | IQ9: 2041-12-31 | IR9: 2041-12-31 | IS9: 2042-03-31 | IT9: 2042-03-31 | IU9: 2042-03-31 | IV9: 2042-06-30 | IW9: 2042-06-30 | IX9: 2042-06-30 | IY9: 2042-09-30 | IZ9: 2042-09-30 | JA9: 2042-09-30 | JB9: 2042-12-31 | JC9: 2042-12-31 | JD9: 2042-12-31 | JE9: 2043-03-31 | JF9: 2043-03-31 | JG9: 2043-03-31 | JH9: 2043-06-30 | JI9: =EOMONTH(JI2,JI8) -> 2043-06-30 | JJ9: 2043-06-30 | JK9: 2043-09-30 | JL9: 2043-09-30 | JM9: 2043-09-30 | JN9: 2043-12-31 | JO9: 2043-12-31 | JP9: 2043-12-31 | JQ9: 2044-03-31 | JR9: 2044-03-31 | JS9: 2044-03-31 | JT9: 2044-06-30 | JU9: 2044-06-30 | JV9: 2044-06-30 | JW9: 2044-09-30 | JX9: 2044-09-30 | JY9: 2044-09-30 | JZ9: 2044-12-31 | KA9: 2044-12-31 | KB9: 2044-12-31 | KC9: 2045-03-31 | KD9: 2045-03-31 | KE9: 2045-03-31 | KF9: 2045-06-30 | KG9: 2045-06-30 | KH9: 2045-06-30 | KI9: 2045-09-30 | KJ9: 2045-09-30 | KK9: 2045-09-30 | KL9: 2045-12-31 | KM9: 2045-12-31 | KN9: 2045-12-31 | KO9: 2046-03-31 | KP9: 2046-03-31 | KQ9: 2046-03-31 | KR9: 2046-06-30 | KS9: 2046-06-30 | KT9: 2046-06-30 | KU9: 2046-09-30 | KV9: 2046-09-30 | KW9: 2046-09-30 | KX9: 2046-12-31 | KY9: 2046-12-31 | KZ9: 2046-12-31 | LA9: 2047-03-31 | LB9: 2047-03-31 | LC9: 2047-03-31 | LD9: 2047-06-30 | LE9: 2047-06-30 | LF9: 2047-06-30 | LG9: 2047-09-30 | LH9: 2047-09-30 | LI9: 2047-09-30 | LJ9: 2047-12-31 | LK9: 2047-12-31 | LL9: 2047-12-31 | LM9: 2048-03-31 | LN9: 2048-03-31 | LO9: 2048-03-31 | LP9: 2048-06-30 | LQ9: 2048-06-30 | LR9: 2048-06-30 | LS9: 2048-09-30 | LT9: 2048-09-30 | LU9: =EOMONTH(LU2,LU8) -> 2048-09-30 | LV9: 2048-12-31 | LW9: 2048-12-31 | LX9: 2048-12-31 | LY9: 2049-03-31 | LZ9: 2049-03-31 | MA9: 2049-03-31 | MB9: 2049-06-30 | MC9: 2049-06-30 | MD9: 2049-06-30 | ME9: 2049-09-30 | MF9: 2049-09-30 | MG9: 2049-09-30 | MH9: 2049-12-31 | MI9: 2049-12-31 | MJ9: 2049-12-31 | MK9: 2050-03-31 | ML9: 2050-03-31 | MM9: 2050-03-31 | MN9: 2050-06-30 | MO9: 2050-06-30 | MP9: 2050-06-30 | MQ9: 2050-09-30 | MR9: 2050-09-30 | MS9: 2050-09-30 | MT9: 2050-12-31 | MU9: 2050-12-31 | MV9: 2050-12-31 | MW9: 2051-03-31 | MX9: 2051-03-31 | MY9: 2051-03-31 | MZ9: 2051-06-30 | NA9: 2051-06-30 | NB9: 2051-06-30 | NC9: 2051-09-30 | ND9: 2051-09-30 | NE9: 2051-09-30 | NF9: 2051-12-31 | NG9: 2051-12-31 | NH9: 2051-12-31 | NI9: 2052-03-31 | NJ9: 2052-03-31 | NK9: 2052-03-31 | NL9: 2052-06-30 | NM9: 2052-06-30 | NN9: 2052-06-30 | NO9: 2052-09-30 | NP9: 2052-09-30 | NQ9: 2052-09-30 | NR9: 2052-12-31 | NS9: 2052-12-31 | NT9: 2052-12-31 | NU9: 2053-03-31 | NV9: 2053-03-31 | NW9: 2053-03-31 | NX9: 2053-06-30 | NY9: 2053-06-30 | NZ9: 2053-06-30 | OA9: 2053-09-30 | OB9: 2053-09-30 | OC9: 2053-09-30 | OD9: 2053-12-31 | OE9: 2053-12-31 | OF9: 2053-12-31 | OG9: =EOMONTH(OG2,OG8) -> 2054-03-31 | OH9: 2054-03-31 | OI9: 2054-03-31 | OJ9: 2054-06-30 | OK9: 2054-06-30 | OL9: 2054-06-30 | OM9: 2054-09-30 | ON9: 2054-09-30 | OO9: 2054-09-30 | OP9: 2054-12-31 | OQ9: 2054-12-31
M10: =YEAR(M2) -> 2022 | N10: 2022 | O10: 2022 | P10: 2022 | Q10: 2022 | R10: 2022 | S10: 2022 | T10: 2022 | U10: 2022 | V10: 2022 | W10: 2022 | X10: 2022 | Y10: 2023 | Z10: 2023 | AA10: 2023 | AB10: 2023 | AC10: 2023 | AD10: 2023 | AE10: 2023 | AF10: 2023 | AG10: 2023 | AH10: 2023 | AI10: 2023 | AJ10: 2023 | AK10: 2024 | AL10: 2024 | AM10: 2024 | AN10: 2024 | AO10: 2024 | AP10: 2024 | AQ10: 2024 | AR10: 2024 | AS10: 2024 | AT10: 2024 | AU10: 2024 | AV10: 2024 | AW10: 2025 | AX10: 2025 | AY10: 2025 | AZ10: 2025 | BA10: 2025 | BB10: 2025 | BC10: 2025 | BD10: 2025 | BE10: 2025 | BF10: 2025 | BG10: 2025 | BH10: 2025 | BI10: 2026 | BJ10: 2026 | BK10: 2026 | BL10: 2026 | BM10: 2026 | BN10: 2026 | BO10: 2026 | BP10: 2026 | BQ10: 2026 | BR10: 2026 | BS10: 2026 | BT10: 2026 | BU10: 2027 | BV10: 2027 | BW10: 2027 | BX10: 2027 | BY10: =YEAR(BY2) -> 2027 | BZ10: 2027 | CA10: 2027 | CB10: 2027 | CC10: 2027 | CD10: 2027 | CE10: 2027 | CF10: 2027 | CG10: 2028 | CH10: 2028 | CI10: 2028 | CJ10: 2028 | CK10: 2028 | CL10: 2028 | CM10: 2028 | CN10: 2028 | CO10: 2028 | CP10: 2028 | CQ10: 2028 | CR10: 2028 | CS10: 2029 | CT10: 2029 | CU10: 2029 | CV10: 2029 | CW10: 2029 | CX10: 2029 | CY10: 2029 | CZ10: 2029 | DA10: 2029 | DB10: 2029 | DC10: 2029 | DD10: 2029 | DE10: 2030 | DF10: 2030 | DG10: 2030 | DH10: 2030 | DI10: 2030 | DJ10: 2030 | DK10: 2030 | DL10: 2030 | DM10: 2030 | DN10: 2030 | DO10: 2030 | DP10: 2030 | DQ10: 2031 | DR10: 2031 | DS10: 2031 | DT10: 2031 | DU10: 2031 | DV10: 2031 | DW10: 2031 | DX10: 2031 | DY10: 2031 | DZ10: 2031 | EA10: 2031 | EB10: 2031 | EC10: 2032 | ED10: 2032 | EE10: 2032 | EF10: 2032 | EG10: 2032 | EH10: 2032 | EI10: 2032 | EJ10: 2032 | EK10: =YEAR(EK2) -> 2032 | EL10: 2032 | EM10: 2032 | EN10: 2032 | EO10: 2033 | EP10: 2033 | EQ10: 2033 | ER10: 2033 | ES10: 2033 | ET10: 2033 | EU10: 2033 | EV10: 2033 | EW10: 2033 | EX10: 2033 | EY10: 2033 | EZ10: 2033 | FA10: 2034 | FB10: 2034 | FC10: 2034 | FD10: 2034 | FE10: 2034 | FF10: 2034 | FG10: 2034 | FH10: 2034 | FI10: 2034 | FJ10: 2034 | FK10: 2034 | FL10: 2034 | FM10: 2035 | FN10: 2035 | FO10: 2035 | FP10: 2035 | FQ10: 2035 | FR10: 2035 | FS10: 2035 | FT10: 2035 | FU10: 2035 | FV10: 2035 | FW10: 2035 | FX10: 2035 | FY10: 2036 | FZ10: 2036 | GA10: 2036 | GB10: 2036 | GC10: 2036 | GD10: 2036 | GE10: 2036 | GF10: 2036 | GG10: 2036 | GH10: 2036 | GI10: 2036 | GJ10: 2036 | GK10: 2037 | GL10: 2037 | GM10: 2037 | GN10: 2037 | GO10: 2037 | GP10: 2037 | GQ10: 2037 | GR10: 2037 | GS10: 2037 | GT10: 2037 | GU10: 2037 | GV10: 2037 | GW10: =YEAR(GW2) -> 2038 | GX10: 2038 | GY10: 2038 | GZ10: 2038 | HA10: 2038 | HB10: 2038 | HC10: 2038 | HD10: 2038 | HE10: 2038 | HF10: 2038 | HG10: 2038 | HH10: 2038 | HI10: 2039 | HJ10: 2039 | HK10: 2039 | HL10: 2039 | HM10: 2039 | HN10: 2039 | HO10: 2039 | HP10: 2039 | HQ10: 2039 | HR10: 2039 | HS10: 2039 | HT10: 2039 | HU10: 2040 | HV10: 2040 | HW10: 2040 | HX10: 2040 | HY10: 2040 | HZ10: 2040 | IA10: 2040 | IB10: 2040 | IC10: 2040 | ID10: 2040 | IE10: 2040 | IF10: 2040 | IG10: 2041 | IH10: 2041 | II10: 2041 | IJ10: 2041 | IK10: 2041 | IL10: 2041 | IM10: 2041 | IN10: 2041 | IO10: 2041 | IP10: 2041 | IQ10: 2041 | IR10: 2041 | IS10: 2042 | IT10: 2042 | IU10: 2042 | IV10: 2042 | IW10: 2042 | IX10: 2042 | IY10: 2042 | IZ10: 2042 | JA10: 2042 | JB10: 2042 | JC10: 2042 | JD10: 2042 | JE10: 2043 | JF10: 2043 | JG10: 2043 | JH10: 2043 | JI10: =YEAR(JI2) -> 2043 | JJ10: 2043 | JK10: 2043 | JL10: 2043 | JM10: 2043 | JN10: 2043 | JO10: 2043 | JP10: 2043 | JQ10: 2044 | JR10: 2044 | JS10: 2044 | JT10: 2044 | JU10: 2044 | JV10: 2044 | JW10: 2044 | JX10: 2044 | JY10: 2044 | JZ10: 2044 | KA10: 2044 | KB10: 2044 | KC10: 2045 | KD10: 2045 | KE10: 2045 | KF10: 2045 | KG10: 2045 | KH10: 2045 | KI10: 2045 | KJ10: 2045 | KK10: 2045 | KL10: 2045 | KM10: 2045 | KN10: 2045 | KO10: 2046 | KP10: 2046 | KQ10: 2046 | KR10: 2046 | KS10: 2046 | KT10: 2046 | KU10: 2046 | KV10: 2046 | KW10: 2046 | KX10: 2046 | KY10: 2046 | KZ10: 2046 | LA10: 2047 | LB10: 2047 | LC10: 2047 | LD10: 2047 | LE10: 2047 | LF10: 2047 | LG10: 2047 | LH10: 2047 | LI10: 2047 | LJ10: 2047 | LK10: 2047 | LL10: 2047 | LM10: 2048 | LN10: 2048 | LO10: 2048 | LP10: 2048 | LQ10: 2048 | LR10: 2048 | LS10: 2048 | LT10: 2048 | LU10: =YEAR(LU2) -> 2048 | LV10: 2048 | LW10: 2048 | LX10: 2048 | LY10: 2049 | LZ10: 2049 | MA10: 2049 | MB10: 2049 | MC10: 2049 | MD10: 2049 | ME10: 2049 | MF10: 2049 | MG10: 2049 | MH10: 2049 | MI10: 2049 | MJ10: 2049 | MK10: 2050 | ML10: 2050 | MM10: 2050 | MN10: 2050 | MO10: 2050 | MP10: 2050 | MQ10: 2050 | MR10: 2050 | MS10: 2050 | MT10: 2050 | MU10: 2050 | MV10: 2050 | MW10: 2051 | MX10: 2051 | MY10: 2051 | MZ10: 2051 | NA10: 2051 | NB10: 2051 | NC10: 2051 | ND10: 2051 | NE10: 2051 | NF10: 2051 | NG10: 2051 | NH10: 2051 | NI10: 2052 | NJ10: 2052 | NK10: 2052 | NL10: 2052 | NM10: 2052 | NN10: 2052 | NO10: 2052 | NP10: 2052 | NQ10: 2052 | NR10: 2052 | NS10: 2052 | NT10: 2052 | NU10: 2053 | NV10: 2053 | NW10: 2053 | NX10: 2053 | NY10: 2053 | NZ10: 2053 | OA10: 2053 | OB10: 2053 | OC10: 2053 | OD10: 2053 | OE10: 2053 | OF10: 2053 | OG10: =YEAR(OG2) -> 2054 | OH10: 2054 | OI10: 2054 | OJ10: 2054 | OK10: 2054 | OL10: 2054 | OM10: 2054 | ON10: 2054 | OO10: 2054 | OP10: 2054 | OQ10: 2054
B11: Budgeted spend - Capital Expenditures for Program
C12: EV charging | K12: =SUM(M12:KZ12) -> 0 | M12: =M155 -> 0 | N12: =N155 -> 0 | O12: 0 | P12: 0 | Q12: 0 | R12: 0 | S12: 0 | T12: 0 | U12: 0 | V12: 0 | W12: 0 | X12: 0 | Y12: 0 | Z12: 0 | AA12: 0 | AB12: 0 | AC12: 0 | AD12: 0 | AE12: 0 | AF12: 0 | AG12: 0 | AH12: 0 | AI12: 0 | AJ12: 0 | AK12: 0 | AL12: 0 | AM12: 0 | AN12: 0 | AO12: 0 | AP12: 0 | AQ12: 0 | AR12: 0 | AS12: 0 | AT12: 0 | AU12: 0 | AV12: 0 | AW12: 0 | AX12: 0 | AY12: 0 | AZ12: 0 | BA12: 0 | BB12: 0 | BC12: 0 | BD12: 0 | BE12: 0 | BF12: 0 | BG12: 0 | BH12: 0 | BI12: 0 | BJ12: 0 | BK12: 0 | BL12: 0 | BM12: 0 | BN12: 0 | BO12: 0 | BP12: 0 | BQ12: 0 | BR12: 0 | BS12: 0 | BT12: 0 | BU12: 0 | BV12: 0 | BW12: 0 | BX12: 0 | BY12: 0 | BZ12: =BZ155 -> 0 | CA12: 0 | CB12: 0 | CC12: 0 | CD12: 0 | CE12: 0 | CF12: 0 | CG12: 0 | CH12: 0 | CI12: 0 | CJ12: 0 | CK12: 0 | CL12: 0 | CM12: 0 | CN12: 0 | CO12: 0 | CP12: 0 | CQ12: 0 | CR12: 0 | CS12: 0 | CT12: 0 | CU12: 0 | CV12: 0 | CW12: 0 | CX12: 0 | CY12: 0 | CZ12: 0 | DA12: 0 | DB12: 0 | DC12: 0 | DD12: 0 | DE12: 0 | DF12: 0 | DG12: 0 | DH12: 0 | DI12: 0 | DJ12: 0 | DK12: 0 | DL12: 0 | DM12: 0 | DN12: 0 | DO12: 0 | DP12: 0 | DQ12: 0 | DR12: 0 | DS12: 0 | DT12: 0 | DU12: 0 | DV12: 0 | DW12: 0 | DX12: 0 | DY12: 0 | DZ12: 0 | EA12: 0 | EB12: 0 | EC12: 0 | ED12: 0 | EE12: 0 | EF12: 0 | EG12: 0 | EH12: 0 | EI12: 0 | EJ12: 0 | EK12: 0 | EL12: =EL155 -> 0 | EM12: 0 | EN12: 0 | EO12: 0 | EP12: 0 | EQ12: 0 | ER12: 0 | ES12: 0 | ET12: 0 | EU12: 0 | EV12: 0 | EW12: 0 | EX12: 0 | EY12: 0 | EZ12: 0 | FA12: 0 | FB12: 0 | FC12: 0 | FD12: 0 | FE12: 0 | FF12: 0 | FG12: 0 | FH12: 0 | FI12: 0 | FJ12: 0 | FK12: 0 | FL12: 0 | FM12: 0 | FN12: 0 | FO12: 0 | FP12: 0 | FQ12: 0 | FR12: 0 | FS12: 0 | FT12: 0 | FU12: 0 | FV12: 0 | FW12: 0 | FX12: 0 | FY12: 0 | FZ12: 0 | GA12: 0 | GB12: 0 | GC12: 0 | GD12: 0 | GE12: 0 | GF12: 0 | GG12: 0 | GH12: 0 | GI12: 0 | GJ12: 0 | GK12: 0 | GL12: 0 | GM12: 0 | GN12: 0 | GO12: 0 | GP12: 0 | GQ12: 0 | GR12: 0 | GS12: 0 | GT12: 0 | GU12: 0 | GV12: 0 | GW12: 0 | GX12: =GX155 -> 0 | GY12: 0 | GZ12: 0 | HA12: 0 | HB12: 0 | HC12: 0 | HD12: 0 | HE12: 0 | HF12: 0 | HG12: 0 | HH12: 0 | HI12: 0 | HJ12: 0 | HK12: 0 | HL12: 0 | HM12: 0 | HN12: 0 | HO12: 0 | HP12: 0 | HQ12: 0 | HR12: 0 | HS12: 0 | HT12: 0 | HU12: 0 | HV12: 0 | HW12: 0 | HX12: 0 | HY12: 0 | HZ12: 0 | IA12: 0 | IB12: 0 | IC12: 0 | ID12: 0 | IE12: 0 | IF12: 0 | IG12: 0 | IH12: 0 | II12: 0 | IJ12: 0 | IK12: 0 | IL12: 0 | IM12: 0 | IN12: 0 | IO12: 0 | IP12: 0 | IQ12: 0 | IR12: 0 | IS12: 0 | IT12: 0 | IU12: 0 | IV12: 0 | IW12: 0 | IX12: 0 | IY12: 0 | IZ12: 0 | JA12: 0 | JB12: 0 | JC12: 0 | JD12: 0 | JE12: 0 | JF12: 0 | JG12: 0 | JH12: 0 | JI12: 0 | JJ12: =JJ155 -> 0 | JK12: 0 | JL12: 0 | JM12: 0 | JN12: 0 | JO12: 0 | JP12: 0 | JQ12: 0 | JR12: 0 | JS12: 0 | JT12: 0 | JU12: 0 | JV12: 0 | JW12: 0 | JX12: 0 | JY12: 0 | JZ12: 0 | KA12: 0 | KB12: 0 | KC12: 0 | KD12: 0 | KE12: 0 | KF12: 0 | KG12: 0 | KH12: 0 | KI12: 0 | KJ12: 0 | KK12: 0 | KL12: 0 | KM12: 0 | KN12: 0 | KO12: 0 | KP12: 0 | KQ12: 0 | KR12: 0 | KS12: 0 | KT12: 0 | KU12: 0 | KV12: 0 | KW12: 0 | KX12: 0 | KY12: 0 | KZ12: 0 | LA12: 0 | LB12: 0 | LC12: 0 | LD12: 0 | LE12: 0 | LF12: 0 | LG12: 0 | LH12: 0 | LI12: 0 | LJ12: 0 | LK12: 0 | LL12: 0 | LM12: 0 | LN12: 0 | LO12: 0 | LP12: 0 | LQ12: 0 | LR12: 0 | LS12: 0 | LT12: 0 | LU12: 0 | LV12: =LV155 -> 0 | LW12: 0 | LX12: 0 | LY12: 0 | LZ12: 0 | MA12: 0 | MB12: 0 | MC12: 0 | MD12: 0 | ME12: 0 | MF12: 0 | MG12: 0 | MH12: 0 | MI12: 0 | MJ12: 0 | MK12: 0 | ML12: 0 | MM12: 0 | MN12: 0 | MO12: 0 | MP12: 0 | MQ12: 0 | MR12: 0 | MS12: 0 | MT12: 0 | MU12: 0 | MV12: 0 | MW12: 0 | MX12: 0 | MY12: 0 | MZ12: 0 | NA12: 0 | NB12: 0 | NC12: 0 | ND12: 0 | NE12: 0 | NF12: 0 | NG12: 0 | NH12: 0 | NI12: 0 | NJ12: 0 | NK12: 0 | NL12: 0 | NM12: 0 | NN12: 0 | NO12: 0 | NP12: 0 | NQ12: 0 | NR12: 0 | NS12: 0 | NT12: 0 | NU12: 0 | NV12: 0 | NW12: 0 | NX12: 0 | NY12: 0 | NZ12: 0 | OA12: 0 | OB12: 0 | OC12: 0 | OD12: 0 | OE12: 0 | OF12: 0 | OG12: 0 | OH12: =OH155 -> 0 | OI12: 0 | OJ12: 0 | OK12: 0 | OL12: 0 | OM12: 0 | ON12: 0 | OO12: 0 | OP12: 0 | OQ12: 0
C13: Energy efficiency | K13: =SUM(M13:KZ13) -> 6250000 | M13: =M303 -> 0 | N13: =N303 -> 0 | O13: 0 | P13: 0 | Q13: 0 | R13: 0 | S13: 0 | T13: 0 | U13: 0 | V13: 0 | W13: 0 | X13: 0 | Y13: 0 | Z13: 0 | AA13: 0 | AB13: 0 | AC13: 0 | AD13: 0 | AE13: 0 | AF13: 0 | AG13: 3125000 | AH13: 3125000 | AI13: 0 | AJ13: 0 | AK13: 0 | AL13: 0 | AM13: 0 | AN13: 0 | AO13: 0 | AP13: 0 | AQ13: 0 | AR13: 0 | AS13: 0 | AT13: 0 | AU13: 0 | AV13: 0 | AW13: 0 | AX13: 0 | AY13: 0 | AZ13: 0 | BA13: 0 | BB13: 0 | BC13: 0 | BD13: 0 | BE13: 0 | BF13: 0 | BG13: 0 | BH13: 0 | BI13: 0 | BJ13: 0 | BK13: 0 | BL13: 0 | BM13: 0 | BN13: 0 | BO13: 0 | BP13: 0 | BQ13: 0 | BR13: 0 | BS13: 0 | BT13: 0 | BU13: 0 | BV13: 0 | BW13: 0 | BX13: 0 | BY13: 0 | BZ13: =BZ303 -> 0 | CA13: 0 | CB13: 0 | CC13: 0 | CD13: 0 | CE13: 0 | CF13: 0 | CG13: 0 | CH13: 0 | CI13: 0 | CJ13: 0 | CK13: 0 | CL13: 0 | CM13: 0 | CN13: 0 | CO13: 0 | CP13: 0 | CQ13: 0 | CR13: 0 | CS13: 0 | CT13: 0 | CU13: 0 | CV13: 0 | CW13: 0 | CX13: 0 | CY13: 0 | CZ13: 0 | DA13: 0 | DB13: 0 | DC13: 0 | DD13: 0 | DE13: 0 | DF13: 0 | DG13: 0 | DH13: 0 | DI13: 0 | DJ13: 0 | DK13: 0 | DL13: 0 | DM13: 0 | DN13: 0 | DO13: 0 | DP13: 0 | DQ13: 0 | DR13: 0 | DS13: 0 | DT13: 0 | DU13: 0 | DV13: 0 | DW13: 0 | DX13: 0 | DY13: 0 | DZ13: 0 | EA13: 0 | EB13: 0 | EC13: 0 | ED13: 0 | EE13: 0 | EF13: 0 | EG13: 0 | EH13: 0 | EI13: 0 | EJ13: 0 | EK13: 0 | EL13: =EL303 -> 0 | EM13: 0 | EN13: 0 | EO13: 0 | EP13: 0 | EQ13: 0 | ER13: 0 | ES13: 0 | ET13: 0 | EU13: 0 | EV13: 0 | EW13: 0 | EX13: 0 | EY13: 0 | EZ13: 0 | FA13: 0 | FB13: 0 | FC13: 0 | FD13: 0 | FE13: 0 | FF13: 0 | FG13: 0 | FH13: 0 | FI13: 0 | FJ13: 0 | FK13: 0 | FL13: 0 | FM13: 0 | FN13: 0 | FO13: 0 | FP13: 0 | FQ13: 0 | FR13: 0 | FS13: 0 | FT13: 0 | FU13: 0 | FV13: 0 | FW13: 0 | FX13: 0 | FY13: 0 | FZ13: 0 | GA13: 0 | GB13: 0 | GC13: 0 | GD13: 0 | GE13: 0 | GF13: 0 | GG13: 0 | GH13: 0 | GI13: 0 | GJ13: 0 | GK13: 0 | GL13: 0 | GM13: 0 | GN13: 0 | GO13: 0 | GP13: 0 | GQ13: 0 | GR13: 0 | GS13: 0 | GT13: 0 | GU13: 0 | GV13: 0 | GW13: 0 | GX13: =GX303 -> 0 | GY13: 0 | GZ13: 0 | HA13: 0 | HB13: 0 | HC13: 0 | HD13: 0 | HE13: 0 | HF13: 0 | HG13: 0 | HH13: 0 | HI13: 0 | HJ13: 0 | HK13: 0 | HL13: 0 | HM13: 0 | HN13: 0 | HO13: 0 | HP13: 0 | HQ13: 0 | HR13: 0 | HS13: 0 | HT13: 0 | HU13: 0 | HV13: 0 | HW13: 0 | HX13: 0 | HY13: 0 | HZ13: 0 | IA13: 0 | IB13: 0 | IC13: 0 | ID13: 0 | IE13: 0 | IF13: 0 | IG13: 0 | IH13: 0 | II13: 0 | IJ13: 0 | IK13: 0 | IL13: 0 | IM13: 0 | IN13: 0 | IO13: 0 | IP13: 0 | IQ13: 0 | IR13: 0 | IS13: 0 | IT13: 0 | IU13: 0 | IV13: 0 | IW13: 0 | IX13: 0 | IY13: 0 | IZ13: 0 | JA13: 0 | JB13: 0 | JC13: 0 | JD13: 0 | JE13: 0 | JF13: 0 | JG13: 0 | JH13: 0 | JI13: 0 | JJ13: =JJ303 -> 0 | JK13: 0 | JL13: 0 | JM13: 0 | JN13: 0 | JO13: 0 | JP13: 0 | JQ13: 0 | JR13: 0 | JS13: 0 | JT13: 0 | JU13: 0 | JV13: 0 | JW13: 0 | JX13: 0 | JY13: 0 | JZ13: 0 | KA13: 0 | KB13: 0 | KC13: 0 | KD13: 0 | KE13: 0 | KF13: 0 | KG13: 0 | KH13: 0 | KI13: 0 | KJ13: 0 | KK13: 0 | KL13: 0 | KM13: 0 | KN13: 0 | KO13: 0 | KP13: 0 | KQ13: 0 | KR13: 0 | KS13: 0 | KT13: 0 | KU13: 0 | KV13: 0 | KW13: 0 | KX13: 0 | KY13: 0 | KZ13: 0 | LA13: 0 | LB13: 0 | LC13: 0 | LD13: 0 | LE13: 0 | LF13: 0 | LG13: 0 | LH13: 0 | LI13: 0 | LJ13: 0 | LK13: 0 | LL13: 0 | LM13: 0 | LN13: 0 | LO13: 0 | LP13: 0 | LQ13: 0 | LR13: 0 | LS13: 0 | LT13: 0 | LU13: 0 | LV13: =LV303 -> 0 | LW13: 0 | LX13: 0 | LY13: 0 | LZ13: 0 | MA13: 0 | MB13: 0 | MC13: 0 | MD13: 0 | ME13: 0 | MF13: 0 | MG13: 0 | MH13: 0 | MI13: 0 | MJ13: 0 | MK13: 0 | ML13: 0 | MM13: 0 | MN13: 0 | MO13: 0 | MP13: 0 | MQ13: 0 | MR13: 0 | MS13: 0 | MT13: 0 | MU13: 0 | MV13: 0 | MW13: 0 | MX13: 0 | MY13: 0 | MZ13: 0 | NA13: 0 | NB13: 0 | NC13: 0 | ND13: 0 | NE13: 0 | NF13: 0 | NG13: 0 | NH13: 0 | NI13: 0 | NJ13: 0 | NK13: 0 | NL13: 0 | NM13: 0 | NN13: 0 | NO13: 0 | NP13: 0 | NQ13: 0 | NR13: 0 | NS13: 0 | NT13: 0 | NU13: 0 | NV13: 0 | NW13: 0 | NX13: 0 | NY13: 0 | NZ13: 0 | OA13: 0 | OB13: 0 | OC13: 0 | OD13: 0 | OE13: 0 | OF13: 0 | OG13: 0 | OH13: =OH303 -> 0 | OI13: 0 | OJ13: 0 | OK13: 0 | OL13: 0 | OM13: 0 | ON13: 0 | OO13: 0 | OP13: 0 | OQ13: 0
C14: Solar | K14: =SUM(M14:KZ14) -> 3300000 | M14: =M345 -> 0 | N14: =N345 -> 0 | O14: 0 | P14: 0 | Q14: 0 | R14: 0 | S14: 0 | T14: 0 | U14: 0 | V14: 0 | W14: 0 | X14: 0 | Y14: 0 | Z14: 0 | AA14: 0 | AB14: 0 | AC14: 0 | AD14: 0 | AE14: 0 | AF14: 0 | AG14: 275000 | AH14: 275000 | AI14: 275000 | AJ14: 275000 | AK14: 275000 | AL14: 275000 | AM14: 275000 | AN14: 275000 | AO14: 275000 | AP14: 275000 | AQ14: 275000 | AR14: 275000 | AS14: 0 | AT14: 0 | AU14: 0 | AV14: 0 | AW14: 0 | AX14: 0 | AY14: 0 | AZ14: 0 | BA14: 0 | BB14: 0 | BC14: 0 | BD14: 0 | BE14: 0 | BF14: 0 | BG14: 0 | BH14: 0 | BI14: 0 | BJ14: 0 | BK14: 0 | BL14: 0 | BM14: 0 | BN14: 0 | BO14: 0 | BP14: 0 | BQ14: 0 | BR14: 0 | BS14: 0 | BT14: 0 | BU14: 0 | BV14: 0 | BW14: 0 | BX14: 0 | BY14: 0 | BZ14: =BZ345 -> 0 | CA14: 0 | CB14: 0 | CC14: 0 | CD14: 0 | CE14: 0 | CF14: 0 | CG14: 0 | CH14: 0 | CI14: 0 | CJ14: 0 | CK14: 0 | CL14: 0 | CM14: 0 | CN14: 0 | CO14: 0 | CP14: 0 | CQ14: 0 | CR14: 0 | CS14: 0 | CT14: 0 | CU14: 0 | CV14: 0 | CW14: 0 | CX14: 0 | CY14: 0 | CZ14: 0 | DA14: 0 | DB14: 0 | DC14: 0 | DD14: 0 | DE14: 0 | DF14: 0 | DG14: 0 | DH14: 0 | DI14: 0 | DJ14: 0 | DK14: 0 | DL14: 0 | DM14: 0 | DN14: 0 | DO14: 0 | DP14: 0 | DQ14: 0 | DR14: 0 | DS14: 0 | DT14: 0 | DU14: 0 | DV14: 0 | DW14: 0 | DX14: 0 | DY14: 0 | DZ14: 0 | EA14: 0 | EB14: 0 | EC14: 0 | ED14: 0 | EE14: 0 | EF14: 0 | EG14: 0 | EH14: 0 | EI14: 0 | EJ14: 0 | EK14: 0 | EL14: =EL345 -> 0 | EM14: 0 | EN14: 0 | EO14: 0 | EP14: 0 | EQ14: 0 | ER14: 0 | ES14: 0 | ET14: 0 | EU14: 0 | EV14: 0 | EW14: 0 | EX14: 0 | EY14: 0 | EZ14: 0 | FA14: 0 | FB14: 0 | FC14: 0 | FD14: 0 | FE14: 0 | FF14: 0 | FG14: 0 | FH14: 0 | FI14: 0 | FJ14: 0 | FK14: 0 | FL14: 0 | FM14: 0 | FN14: 0 | FO14: 0 | FP14: 0 | FQ14: 0 | FR14: 0 | FS14: 0 | FT14: 0 | FU14: 0 | FV14: 0 | FW14: 0 | FX14: 0 | FY14: 0 | FZ14: 0 | GA14: 0 | GB14: 0 | GC14: 0 | GD14: 0 | GE14: 0 | GF14: 0 | GG14: 0 | GH14: 0 | GI14: 0 | GJ14: 0 | GK14: 0 | GL14: 0 | GM14: 0 | GN14: 0 | GO14: 0 | GP14: 0 | GQ14: 0 | GR14: 0 | GS14: 0 | GT14: 0 | GU14: 0 | GV14: 0 | GW14: 0 | GX14: =GX345 -> 0 | GY14: 0 | GZ14: 0 | HA14: 0 | HB14: 0 | HC14: 0 | HD14: 0 | HE14: 0 | HF14: 0 | HG14: 0 | HH14: 0 | HI14: 0 | HJ14: 0 | HK14: 0 | HL14: 0 | HM14: 0 | HN14: 0 | HO14: 0 | HP14: 0 | HQ14: 0 | HR14: 0 | HS14: 0 | HT14: 0 | HU14: 0 | HV14: 0 | HW14: 0 | HX14: 0 | HY14: 0 | HZ14: 0 | IA14: 0 | IB14: 0 | IC14: 0 | ID14: 0 | IE14: 0 | IF14: 0 | IG14: 0 | IH14: 0 | II14: 0 | IJ14: 0 | IK14: 0 | IL14: 0 | IM14: 0 | IN14: 0 | IO14: 0 | IP14: 0 | IQ14: 0 | IR14: 0 | IS14: 0 | IT14: 0 | IU14: 0 | IV14: 0 | IW14: 0 | IX14: 0 | IY14: 0 | IZ14: 0 | JA14: 0 | JB14: 0 | JC14: 0 | JD14: 0 | JE14: 0 | JF14: 0 | JG14: 0 | JH14: 0 | JI14: 0 | JJ14: =JJ345 -> 0 | JK14: 0 | JL14: 0 | JM14: 0 | JN14: 0 | JO14: 0 | JP14: 0 | JQ14: 0 | JR14: 0 | JS14: 0 | JT14: 0 | JU14: 0 | JV14: 0 | JW14: 0 | JX14: 0 | JY14: 0 | JZ14: 0 | KA14: 0 | KB14: 0 | KC14: 0 | KD14: 0 | KE14: 0 | KF14: 0 | KG14: 0 | KH14: 0 | KI14: 0 | KJ14: 0 | KK14: 0 | KL14: 0 | KM14: 0 | KN14: 0 | KO14: 0 | KP14: 0 | KQ14: 0 | KR14: 0 | KS14: 0 | KT14: 0 | KU14: 0 | KV14: 0 | KW14: 0 | KX14: 0 | KY14: 0 | KZ14: 0 | LA14: 0 | LB14: 0 | LC14: 0 | LD14: 0 | LE14: 0 | LF14: 0 | LG14: 0 | LH14: 0 | LI14: 0 | LJ14: 0 | LK14: 0 | LL14: 0 | LM14: 0 | LN14: 0 | LO14: 0 | LP14: 0 | LQ14: 0 | LR14: 0 | LS14: 0 | LT14: 0 | LU14: 0 | LV14: =LV345 -> 0 | LW14: 0 | LX14: 0 | LY14: 0 | LZ14: 0 | MA14: 0 | MB14: 0 | MC14: 0 | MD14: 0 | ME14: 0 | MF14: 0 | MG14: 0 | MH14: 0 | MI14: 0 | MJ14: 0 | MK14: 0 | ML14: 0 | MM14: 0 | MN14: 0 | MO14: 0 | MP14: 0 | MQ14: 0 | MR14: 0 | MS14: 0 | MT14: 0 | MU14: 0 | MV14: 0 | MW14: 0 | MX14: 0 | MY14: 0 | MZ14: 0 | NA14: 0 | NB14: 0 | NC14: 0 | ND14: 0 | NE14: 0 | NF14: 0 | NG14: 0 | NH14: 0 | NI14: 0 | NJ14: 0 | NK14: 0 | NL14: 0 | NM14: 0 | NN14: 0 | NO14: 0 | NP14: 0 | NQ14: 0 | NR14: 0 | NS14: 0 | NT14: 0 | NU14: 0 | NV14: 0 | NW14: 0 | NX14: 0 | NY14: 0 | NZ14: 0 | OA14: 0 | OB14: 0 | OC14: 0 | OD14: 0 | OE14: 0 | OF14: 0 | OG14: 0 | OH14: =OH345 -> 0 | OI14: 0 | OJ14: 0 | OK14: 0 | OL14: 0 | OM14: 0 | ON14: 0 | OO14: 0 | OP14: 0 | OQ14: 0
C15: Combined Heat and Powr | K15: =SUM(M15:XFD15) -> 0 | M15: =M396 -> 0 | N15: =N396 -> 0 | O15: 0 | P15: 0 | Q15: 0 | R15: 0 | S15: 0 | T15: 0 | U15: 0 | V15: 0 | W15: 0 | X15: 0 | Y15: 0 | Z15: 0 | AA15: 0 | AB15: 0 | AC15: 0 | AD15: 0 | AE15: 0 | AF15: 0 | AG15: 0 | AH15: 0 | AI15: 0 | AJ15: 0 | AK15: 0 | AL15: 0 | AM15: 0 | AN15: 0 | AO15: 0 | AP15: 0 | AQ15: 0 | AR15: 0 | AS15: 0 | AT15: 0 | AU15: 0 | AV15: 0 | AW15: 0 | AX15: 0 | AY15: 0 | AZ15: 0 | BA15: 0 | BB15: 0 | BC15: 0 | BD15: 0 | BE15: 0 | BF15: 0 | BG15: 0 | BH15: 0 | BI15: 0 | BJ15: 0 | BK15: 0 | BL15: 0 | BM15: 0 | BN15: 0 | BO15: 0 | BP15: 0 | BQ15: 0 | BR15: 0 | BS15: 0 | BT15: 0 | BU15: 0 | BV15: 0 | BW15: 0 | BX15: 0 | BY15: 0 | BZ15: =BZ396 -> 0 | CA15: 0 | CB15: 0 | CC15: 0 | CD15: 0 | CE15: 0 | CF15: 0 | CG15: 0 | CH15: 0 | CI15: 0 | CJ15: 0 | CK15: 0 | CL15: 0 | CM15: 0 | CN15: 0 | CO15: 0 | CP15: 0 | CQ15: 0 | CR15: 0 | CS15: 0 | CT15: 0 | CU15: 0 | CV15: 0 | CW15: 0 | CX15: 0 | CY15: 0 | CZ15: 0 | DA15: 0 | DB15: 0 | DC15: 0 | DD15: 0 | DE15: 0 | DF15: 0 | DG15: 0 | DH15: 0 | DI15: 0 | DJ15: 0 | DK15: 0 | DL15: 0 | DM15: 0 | DN15: 0 | DO15: 0 | DP15: 0 | DQ15: 0 | DR15: 0 | DS15: 0 | DT15: 0 | DU15: 0 | DV15: 0 | DW15: 0 | DX15: 0 | DY15: 0 | DZ15: 0 | EA15: 0 | EB15: 0 | EC15: 0 | ED15: 0 | EE15: 0 | EF15: 0 | EG15: 0 | EH15: 0 | EI15: 0 | EJ15: 0 | EK15: 0 | EL15: =EL396 -> 0 | EM15: 0 | EN15: 0 | EO15: 0 | EP15: 0 | EQ15: 0 | ER15: 0 | ES15: 0 | ET15: 0 | EU15: 0 | EV15: 0 | EW15: 0 | EX15: 0 | EY15: 0 | EZ15: 0 | FA15: 0 | FB15: 0 | FC15: 0 | FD15: 0 | FE15: 0 | FF15: 0 | FG15: 0 | FH15: 0 | FI15: 0 | FJ15: 0 | FK15: 0 | FL15: 0 | FM15: 0 | FN15: 0 | FO15: 0 | FP15: 0 | FQ15: 0 | FR15: 0 | FS15: 0 | FT15: 0 | FU15: 0 | FV15: 0 | FW15: 0 | FX15: 0 | FY15: 0 | FZ15: 0 | GA15: 0 | GB15: 0 | GC15: 0 | GD15: 0 | GE15: 0 | GF15: 0 | GG15: 0 | GH15: 0 | GI15: 0 | GJ15: 0 | GK15: 0 | GL15: 0 | GM15: 0 | GN15: 0 | GO15: 0 | GP15: 0 | GQ15: 0 | GR15: 0 | GS15: 0 | GT15: 0 | GU15: 0 | GV15: 0 | GW15: 0 | GX15: =GX396 -> 0 | GY15: 0 | GZ15: 0 | HA15: 0 | HB15: 0 | HC15: 0 | HD15: 0 | HE15: 0 | HF15: 0 | HG15: 0 | HH15: 0 | HI15: 0 | HJ15: 0 | HK15: 0 | HL15: 0 | HM15: 0 | HN15: 0 | HO15: 0 | HP15: 0 | HQ15: 0 | HR15: 0 | HS15: 0 | HT15: 0 | HU15: 0 | HV15: 0 | HW15: 0 | HX15: 0 | HY15: 0 | HZ15: 0 | IA15: 0 | IB15: 0 | IC15: 0 | ID15: 0 | IE15: 0 | IF15: 0 | IG15: 0 | IH15: 0 | II15: 0 | IJ15: 0 | IK15: 0 | IL15: 0 | IM15: 0 | IN15: 0 | IO15: 0 | IP15: 0 | IQ15: 0 | IR15: 0 | IS15: 0 | IT15: 0 | IU15: 0 | IV15: 0 | IW15: 0 | IX15: 0 | IY15: 0 | IZ15: 0 | JA15: 0 | JB15: 0 | JC15: 0 | JD15: 0 | JE15: 0 | JF15: 0 | JG15: 0 | JH15: 0 | JI15: 0 | JJ15: =JJ396 -> 0 | JK15: 0 | JL15: 0 | JM15: 0 | JN15: 0 | JO15: 0 | JP15: 0 | JQ15: 0 | JR15: 0 | JS15: 0 | JT15: 0 | JU15: 0 | JV15: 0 | JW15: 0 | JX15: 0 | JY15: 0 | JZ15: 0 | KA15: 0 | KB15: 0 | KC15: 0 | KD15: 0 | KE15: 0 | KF15: 0 | KG15: 0 | KH15: 0 | KI15: 0 | KJ15: 0 | KK15: 0 | KL15: 0 | KM15: 0 | KN15: 0 | KO15: 0 | KP15: 0 | KQ15: 0 | KR15: 0 | KS15: 0 | KT15: 0 | KU15: 0 | KV15: 0 | KW15: 0 | KX15: 0 | KY15: 0 | KZ15: 0 | LA15: 0 | LB15: 0 | LC15: 0 | LD15: 0 | LE15: 0 | LF15: 0 | LG15: 0 | LH15: 0 | LI15: 0 | LJ15: 0 | LK15: 0 | LL15: 0 | LM15: 0 | LN15: 0 | LO15: 0 | LP15: 0 | LQ15: 0 | LR15: 0 | LS15: 0 | LT15: 0 | LU15: 0 | LV15: =LV396 -> 0 | LW15: 0 | LX15: 0 | LY15: 0 | LZ15: 0 | MA15: 0 | MB15: 0 | MC15: 0 | MD15: 0 | ME15: 0 | MF15: 0 | MG15: 0 | MH15: 0 | MI15: 0 | MJ15: 0 | MK15: 0 | ML15: 0 | MM15: 0 | MN15: 0 | MO15: 0 | MP15: 0 | MQ15: 0 | MR15: 0 | MS15: 0 | MT15: 0 | MU15: 0 | MV15: 0 | MW15: 0 | MX15: 0 | MY15: 0 | MZ15: 0 | NA15: 0 | NB15: 0 | NC15: 0 | ND15: 0 | NE15: 0 | NF15: 0 | NG15: 0 | NH15: 0 | NI15: 0 | NJ15: 0 | NK15: 0 | NL15: 0 | NM15: 0 | NN15: 0 | NO15: 0 | NP15: 0 | NQ15: 0 | NR15: 0 | NS15: 0 | NT15: 0 | NU15: 0 | NV15: 0 | NW15: 0 | NX15: 0 | NY15: 0 | NZ15: 0 | OA15: 0 | OB15: 0 | OC15: 0 | OD15: 0 | OE15: 0 | OF15: 0 | OG15: 0 | OH15: =OH396 -> 0 | OI15: 0 | OJ15: 0 | OK15: 0 | OL15: 0 | OM15: 0 | ON15: 0 | OO15: 0 | OP15: 0 | OQ15: 0
C16: Battery | K16: =SUM(M16:XFD16) -> 112925 | M16: =M429 -> 0 | N16: =N429 -> 0 | O16: 0 | P16: 0 | Q16: 0 | R16: 0 | S16: 7057.8125 | T16: 7057.8125 | U16: 7057.8125 | V16: 7057.8125 | W16: 7057.8125 | X16: 7057.8125 | Y16: 7057.8125 | Z16: 7057.8125 | AA16: 7057.8125 | AB16: 7057.8125 | AC16: 7057.8125 | AD16: 7057.8125 | AE16: 7057.8125 | AF16: 7057.8125 | AG16: 7057.8125 | AH16: 7057.8125 | AI16: 0 | AJ16: 0 | AK16: 0 | AL16: 0 | AM16: 0 | AN16: 0 | AO16: 0 | AP16: 0 | AQ16: 0 | AR16: 0 | AS16: 0 | AT16: 0 | AU16: 0 | AV16: 0 | AW16: 0 | AX16: 0 | AY16: 0 | AZ16: 0 | BA16: 0 | BB16: 0 | BC16: 0 | BD16: 0 | BE16: 0 | BF16: 0 | BG16: 0 | BH16: 0 | BI16: 0 | BJ16: 0 | BK16: 0 | BL16: 0 | BM16: 0 | BN16: 0 | BO16: 0 | BP16: 0 | BQ16: 0 | BR16: 0 | BS16: 0 | BT16: 0 | BU16: 0 | BV16: 0 | BW16: 0 | BX16: 0 | BY16: 0 | BZ16: =BZ429 -> 0 | CA16: 0 | CB16: 0 | CC16: 0 | CD16: 0 | CE16: 0 | CF16: 0 | CG16: 0 | CH16: 0 | CI16: 0 | CJ16: 0 | CK16: 0 | CL16: 0 | CM16: 0 | CN16: 0 | CO16: 0 | CP16: 0 | CQ16: 0 | CR16: 0 | CS16: 0 | CT16: 0 | CU16: 0 | CV16: 0 | CW16: 0 | CX16: 0 | CY16: 0 | CZ16: 0 | DA16: 0 | DB16: 0 | DC16: 0 | DD16: 0 | DE16: 0 | DF16: 0 | DG16: 0 | DH16: 0 | DI16: 0 | DJ16: 0 | DK16: 0 | DL16: 0 | DM16: 0 | DN16: 0 | DO16: 0 | DP16: 0 | DQ16: 0 | DR16: 0 | DS16: 0 | DT16: 0 | DU16: 0 | DV16: 0 | DW16: 0 | DX16: 0 | DY16: 0 | DZ16: 0 | EA16: 0 | EB16: 0 | EC16: 0 | ED16: 0 | EE16: 0 | EF16: 0 | EG16: 0 | EH16: 0 | EI16: 0 | EJ16: 0 | EK16: 0 | EL16: =EL429 -> 0 | EM16: 0 | EN16: 0 | EO16: 0 | EP16: 0 | EQ16: 0 | ER16: 0 | ES16: 0 | ET16: 0 | EU16: 0 | EV16: 0 | EW16: 0 | EX16: 0 | EY16: 0 | EZ16: 0 | FA16: 0 | FB16: 0 | FC16: 0 | FD16: 0 | FE16: 0 | FF16: 0 | FG16: 0 | FH16: 0 | FI16: 0 | FJ16: 0 | FK16: 0 | FL16: 0 | FM16: 0 | FN16: 0 | FO16: 0 | FP16: 0 | FQ16: 0 | FR16: 0 | FS16: 0 | FT16: 0 | FU16: 0 | FV16: 0 | FW16: 0 | FX16: 0 | FY16: 0 | FZ16: 0 | GA16: 0 | GB16: 0 | GC16: 0 | GD16: 0 | GE16: 0 | GF16: 0 | GG16: 0 | GH16: 0 | GI16: 0 | GJ16: 0 | GK16: 0 | GL16: 0 | GM16: 0 | GN16: 0 | GO16: 0 | GP16: 0 | GQ16: 0 | GR16: 0 | GS16: 0 | GT16: 0 | GU16: 0 | GV16: 0 | GW16: 0 | GX16: =GX429 -> 0 | GY16: 0 | GZ16: 0 | HA16: 0 | HB16: 0 | HC16: 0 | HD16: 0 | HE16: 0 | HF16: 0 | HG16: 0 | HH16: 0 | HI16: 0 | HJ16: 0 | HK16: 0 | HL16: 0 | HM16: 0 | HN16: 0 | HO16: 0 | HP16: 0 | HQ16: 0 | HR16: 0 | HS16: 0 | HT16: 0 | HU16: 0 | HV16: 0 | HW16: 0 | HX16: 0 | HY16: 0 | HZ16: 0 | IA16: 0 | IB16: 0 | IC16: 0 | ID16: 0 | IE16: 0 | IF16: 0 | IG16: 0 | IH16: 0 | II16: 0 | IJ16: 0 | IK16: 0 | IL16: 0 | IM16: 0 | IN16: 0 | IO16: 0 | IP16: 0 | IQ16: 0 | IR16: 0 | IS16: 0 | IT16: 0 | IU16: 0 | IV16: 0 | IW16: 0 | IX16: 0 | IY16: 0 | IZ16: 0 | JA16: 0 | JB16: 0 | JC16: 0 | JD16: 0 | JE16: 0 | JF16: 0 | JG16: 0 | JH16: 0 | JI16: 0 | JJ16: =JJ429 -> 0 | JK16: 0 | JL16: 0 | JM16: 0 | JN16: 0 | JO16: 0 | JP16: 0 | JQ16: 0 | JR16: 0 | JS16: 0 | JT16: 0 | JU16: 0 | JV16: 0 | JW16: 0 | JX16: 0 | JY16: 0 | JZ16: 0 | KA16: 0 | KB16: 0 | KC16: 0 | KD16: 0 | KE16: 0 | KF16: 0 | KG16: 0 | KH16: 0 | KI16: 0 | KJ16: 0 | KK16: 0 | KL16: 0 | KM16: 0 | KN16: 0 | KO16: 0 | KP16: 0 | KQ16: 0 | KR16: 0 | KS16: 0 | KT16: 0 | KU16: 0 | KV16: 0 | KW16: 0 | KX16: 0 | KY16: 0 | KZ16: 0 | LA16: 0 | LB16: 0 | LC16: 0 | LD16: 0 | LE16: 0 | LF16: 0 | LG16: 0 | LH16: 0 | LI16: 0 | LJ16: 0 | LK16: 0 | LL16: 0 | LM16: 0 | LN16: 0 | LO16: 0 | LP16: 0 | LQ16: 0 | LR16: 0 | LS16: 0 | LT16: 0 | LU16: 0 | LV16: =LV429 -> 0 | LW16: 0 | LX16: 0 | LY16: 0 | LZ16: 0 | MA16: 0 | MB16: 0 | MC16: 0 | MD16: 0 | ME16: 0 | MF16: 0 | MG16: 0 | MH16: 0 | MI16: 0 | MJ16: 0 | MK16: 0 | ML16: 0 | MM16: 0 | MN16: 0 | MO16: 0 | MP16: 0 | MQ16: 0 | MR16: 0 | MS16: 0 | MT16: 0 | MU16: 0 | MV16: 0 | MW16: 0 | MX16: 0 | MY16: 0 | MZ16: 0 | NA16: 0 | NB16: 0 | NC16: 0 | ND16: 0 | NE16: 0 | NF16: 0 | NG16: 0 | NH16: 0 | NI16: 0 | NJ16: 0 | NK16: 0 | NL16: 0 | NM16: 0 | NN16: 0 | NO16: 0 | NP16: 0 | NQ16: 0 | NR16: 0 | NS16: 0 | NT16: 0 | NU16: 0 | NV16: 0 | NW16: 0 | NX16: 0 | NY16: 0 | NZ16: 0 | OA16: 0 | OB16: 0 | OC16: 0 | OD16: 0 | OE16: 0 | OF16: 0 | OG16: 0 | OH16: =OH429 -> 0 | OI16: 0 | OJ16: 0 | OK16: 0 | OL16: 0 | OM16: 0 | ON16: 0 | OO16: 0 | OP16: 0 | OQ16: 0
C17: Contingency - Fix | K17: =SUM(M17:KZ17) -> 0 | Y17: =Q17 -> 0
C18: Legal fees - FIX | G18: ='Constant Inputs - Operation'!G12 -> 2022-12-01 | H18: ='Constant Inputs - Operation'!G59 -> 0 | K18: =SUM(M18:KZ18) -> 0 | M18: =-(M2=$G$18)*$H$18 -> 0 | N18: 0 | O18: 0 | P18: 0 | Q18: 0 | R18: 0 | S18: 0 | T18: 0 | U18: 0 | V18: 0 | W18: 0 | X18: 0 | Y18: 0
C19: Construction management fees - FIX | G19: ='Constant Inputs - Operation'!G12 -> 2022-12-01 | H19: ='Constant Inputs - Operation'!G62 -> 0 | K19: =SUM(M19:KZ19) -> 0 | M19: =(M$2=$G19)*$H19 -> 0 | N19: =(N2=$G$19)*$H$19 -> 0 | O19: 0 | P19: 0 | Q19: 0 | R19: 0 | S19: 0 | T19: 0 | U19: 0 | V19: 0 | W19: 0 | X19: 0 | Y19: 0
C20: Project Development fees - FIX | G20: ='Constant Inputs - Operation'!G12 -> 2022-12-01 | H20: =-'Constant Inputs - Operation'!G67 -> 0 | K20: =SUM(M20:KZ20) -> 0 | M20: =(M$2=$G20)*$H20 -> 0 | N20: =(N$2=$G20)*$H20 -> 0 | O20: 0 | P20: 0 | Q20: 0 | R20: 0 | S20: 0 | T20: 0 | U20: 0 | V20: 0 | W20: 0 | X20: 0 | Y20: 0
E21: Total Budgeted spend | F21: USD | G21: 1 | K21: =SUM(M21:KZ21) -> 9662925 | M21: =SUM(M13:M20)*$G$21 -> 0 | N21: 0 | O21: 0 | P21: 0 | Q21: 0 | R21: 0 | S21: 7057.8125 | T21: 7057.8125 | U21: 7057.8125 | V21: 7057.8125 | W21: 7057.8125 | X21: 7057.8125 | Y21: 7057.8125 | Z21: 7057.8125 | AA21: 7057.8125 | AB21: 7057.8125 | AC21: 7057.8125 | AD21: 7057.8125 | AE21: 7057.8125 | AF21: 7057.8125 | AG21: 3407057.812 | AH21: 3407057.812 | AI21: 275000 | AJ21: 275000 | AK21: 275000 | AL21: 275000 | AM21: 275000 | AN21: 275000 | AO21: 275000 | AP21: 275000 | AQ21: 275000 | AR21: 275000 | AS21: 0 | AT21: 0 | AU21: 0 | AV21: 0 | AW21: 0 | AX21: 0 | AY21: 0 | AZ21: 0 | BA21: 0 | BB21: 0 | BC21: 0 | BD21: 0 | BE21: 0 | BF21: 0 | BG21: 0 | BH21: 0 | BI21: 0 | BJ21: 0 | BK21: 0 | BL21: 0 | BM21: 0 | BN21: 0 | BO21: 0 | BP21: 0 | BQ21: 0 | BR21: 0 | BS21: 0 | BT21: 0 | BU21: 0 | BV21: 0 | BW21: 0 | BX21: 0 | BY21: =SUM(BY13:BY20)*$G$21 -> 0 | BZ21: 0 | CA21: 0 | CB21: 0 | CC21: 0 | CD21: 0 | CE21: 0 | CF21: 0 | CG21: 0 | CH21: 0 | CI21: 0 | CJ21: 0 | CK21: 0 | CL21: 0 | CM21: 0 | CN21: 0 | CO21: 0 | CP21: 0 | CQ21: 0 | CR21: 0 | CS21: 0 | CT21: 0 | CU21: 0 | CV21: 0 | CW21: 0 | CX21: 0 | CY21: 0 | CZ21: 0 | DA21: 0 | DB21: 0 | DC21: 0 | DD21: 0 | DE21: 0 | DF21: 0 | DG21: 0 | DH21: 0 | DI21: 0 | DJ21: 0 | DK21: 0 | DL21: 0 | DM21: 0 | DN21: 0 | DO21: 0 | DP21: 0 | DQ21: 0 | DR21: 0 | DS21: 0 | DT21: 0 | DU21: 0 | DV21: 0 | DW21: 0 | DX21: 0 | DY21: 0 | DZ21: 0 | EA21: 0 | EB21: 0 | EC21: 0 | ED21: 0 | EE21: 0 | EF21: 0 | EG21: 0 | EH21: 0 | EI21: 0 | EJ21: 0 | EK21: =SUM(EK13:EK20)*$G$21 -> 0 | EL21: 0 | EM21: 0 | EN21: 0 | EO21: 0 | EP21: 0 | EQ21: 0 | ER21: 0 | ES21: 0 | ET21: 0 | EU21: 0 | EV21: 0 | EW21: 0 | EX21: 0 | EY21: 0 | EZ21: 0 | FA21: 0 | FB21: 0 | FC21: 0 | FD21: 0 | FE21: 0 | FF21: 0 | FG21: 0 | FH21: 0 | FI21: 0 | FJ21: 0 | FK21: 0 | FL21: 0 | FM21: 0 | FN21: 0 | FO21: 0 | FP21: 0 | FQ21: 0 | FR21: 0 | FS21: 0 | FT21: 0 | FU21: 0 | FV21: 0 | FW21: 0 | FX21: 0 | FY21: 0 | FZ21: 0 | GA21: 0 | GB21: 0 | GC21: 0 | GD21: 0 | GE21: 0 | GF21: 0 | GG21: 0 | GH21: 0 | GI21: 0 | GJ21: 0 | GK21: 0 | GL21: 0 | GM21: 0 | GN21: 0 | GO21: 0 | GP21: 0 | GQ21: 0 | GR21: 0 | GS21: 0 | GT21: 0 | GU21: 0 | GV21: 0 | GW21: =SUM(GW13:GW20)*$G$21 -> 0 | GX21: 0 | GY21: 0 | GZ21: 0 | HA21: 0 | HB21: 0 | HC21: 0 | HD21: 0 | HE21: 0 | HF21: 0 | HG21: 0 | HH21: 0 | HI21: 0 | HJ21: 0 | HK21: 0 | HL21: 0 | HM21: 0 | HN21: 0 | HO21: 0 | HP21: 0 | HQ21: 0 | HR21: 0 | HS21: 0 | HT21: 0 | HU21: 0 | HV21: 0 | HW21: 0 | HX21: 0 | HY21: 0 | HZ21: 0 | IA21: 0 | IB21: 0 | IC21: 0 | ID21: 0 | IE21: 0 | IF21: 0 | IG21: 0 | IH21: 0 | II21: 0 | IJ21: 0 | IK21: 0 | IL21: 0 | IM21: 0 | IN21: 0 | IO21: 0 | IP21: 0 | IQ21: 0 | IR21: 0 | IS21: 0 | IT21: 0 | IU21: 0 | IV21: 0 | IW21: 0 | IX21: 0 | IY21: 0 | IZ21: 0 | JA21: 0 | JB21: 0 | JC21: 0 | JD21: 0 | JE21: 0 | JF21: 0 | JG21: 0 | JH21: 0 | JI21: =SUM(JI13:JI20)*$G$21 -> 0 | JJ21: 0 | JK21: 0 | JL21: 0 | JM21: 0 | JN21: 0 | JO21: 0 | JP21: 0 | JQ21: 0 | JR21: 0 | JS21: 0 | JT21: 0 | JU21: 0 | JV21: 0 | JW21: 0 | JX21: 0 | JY21: 0 | JZ21: 0 | KA21: 0 | KB21: 0 | KC21: 0 | KD21: 0 | KE21: 0 | KF21: 0 | KG21: 0 | KH21: 0 | KI21: 0 | KJ21: 0 | KK21: 0 | KL21: 0 | KM21: 0 | KN21: 0 | KO21: 0 | KP21: 0 | KQ21: 0 | KR21: 0 | KS21: 0 | KT21: 0 | KU21: 0 | KV21: 0 | KW21: 0 | KX21: 0 | KY21: 0 | KZ21: 0 | LA21: 0 | LB21: 0 | LC21: 0 | LD21: 0 | LE21: 0 | LF21: 0 | LG21: 0 | LH21: 0 | LI21: 0 | LJ21: 0 | LK21: 0 | LL21: 0 | LM21: 0 | LN21: 0 | LO21: 0 | LP21: 0 | LQ21: 0 | LR21: 0 | LS21: 0 | LT21: 0 | LU21: =SUM(LU13:LU20)*$G$21 -> 0 | LV21: 0 | LW21: 0 | LX21: 0 | LY21: 0 | LZ21: 0 | MA21: 0 | MB21: 0 | MC21: 0 | MD21: 0 | ME21: 0 | MF21: 0 | MG21: 0 | MH21: 0 | MI21: 0 | MJ21: 0 | MK21: 0 | ML21: 0 | MM21: 0 | MN21: 0 | MO21: 0 | MP21: 0 | MQ21: 0 | MR21: 0 | MS21: 0 | MT21: 0 | MU21: 0 | MV21: 0 | MW21: 0 | MX21: 0 | MY21: 0 | MZ21: 0 | NA21: 0 | NB21: 0 | NC21: 0 | ND21: 0 | NE21: 0 | NF21: 0 | NG21: 0 | NH21: 0 | NI21: 0 | NJ21: 0 | NK21: 0 | NL21: 0 | NM21: 0 | NN21: 0 | NO21: 0 | NP21: 0 | NQ21: 0 | NR21: 0 | NS21: 0 | NT21: 0 | NU21: 0 | NV21: 0 | NW21: 0 | NX21: 0 | NY21: 0 | NZ21: 0 | OA21: 0 | OB21: 0 | OC21: 0 | OD21: 0 | OE21: 0 | OF21: 0 | OG21: =SUM(OG13:OG20)*$G$21 -> 0 | OH21: 0 | OI21: 0 | OJ21: 0 | OK21: 0 | OL21: 0 | OM21: 0 | ON21: 0 | OO21: 0 | OP21: 0 | OQ21: 0
C23: Revenues - Economic Value of Programs | G23: Toggle
D24: EV charging | G24: 0 | K24: =SUM(M24:KZ24) -> 0 | M24: 0 | N24: 0 | O24: 0 | P24: 0 | Q24: 0 | R24: 0 | S24: 0 | T24: 0 | U24: 0 | V24: 0 | W24: 0 | X24: 0 | Y24: 0 | Z24: 0 | AA24: 0 | AB24: 0 | AC24: 0 | AD24: 0 | AE24: 0 | AF24: 0 | AG24: 0 | AH24: 0 | AI24: 0 | AJ24: 0 | AK24: 0 | AL24: 0 | AM24: 0 | AN24: 0 | AO24: 0 | AP24: 0 | AQ24: 0 | AR24: 0 | AS24: 0 | AT24: 0 | AU24: 0 | AV24: 0 | AW24: 0 | AX24: 0 | AY24: 0 | AZ24: 0 | BA24: 0 | BB24: 0 | BC24: 0 | BD24: 0 | BE24: 0 | BF24: 0 | BG24: 0 | BH24: 0 | BI24: 0 | BJ24: 0 | BK24: 0 | BL24: 0 | BM24: 0 | BN24: 0 | BO24: 0 | BP24: 0 | BQ24: 0 | BR24: 0 | BS24: 0 | BT24: 0 | BU24: 0 | BV24: 0 | BW24: 0 | BX24: 0 | BY24: 0 | BZ24: 0 | CA24: 0 | CB24: 0 | CC24: 0 | CD24: 0 | CE24: 0 | CF24: 0 | CG24: 0 | CH24: 0 | CI24: 0 | CJ24: 0 | CK24: 0 | CL24: 0 | CM24: 0 | CN24: 0 | CO24: 0 | CP24: 0 | CQ24: 0 | CR24: 0 | CS24: 0 | CT24: 0 | CU24: 0 | CV24: 0 | CW24: 0 | CX24: 0 | CY24: 0 | CZ24: 0 | DA24: 0 | DB24: 0 | DC24: 0 | DD24: 0 | DE24: 0 | DF24: 0 | DG24: 0 | DH24: 0 | DI24: 0 | DJ24: 0 | DK24: 0 | DL24: 0 | DM24: 0 | DN24: 0 | DO24: 0 | DP24: 0 | DQ24: 0 | DR24: 0 | DS24: 0 | DT24: 0 | DU24: 0 | DV24: 0 | DW24: 0 | DX24: 0 | DY24: 0 | DZ24: 0 | EA24: 0 | EB24: 0 | EC24: 0 | ED24: 0 | EE24: 0 | EF24: 0 | EG24: 0 | EH24: 0 | EI24: 0 | EJ24: 0 | EK24: 0 | EL24: 0 | EM24: 0 | EN24: 0 | EO24: 0 | EP24: 0 | EQ24: 0 | ER24: 0 | ES24: 0 | ET24: 0 | EU24: 0 | EV24: 0 | EW24: 0 | EX24: 0 | EY24: 0 | EZ24: 0 | FA24: 0 | FB24: 0 | FC24: 0 | FD24: 0 | FE24: 0 | FF24: 0 | FG24: 0 | FH24: 0 | FI24: 0 | FJ24: 0 | FK24: 0 | FL24: 0 | FM24: 0 | FN24: 0 | FO24: 0 | FP24: 0 | FQ24: 0 | FR24: 0 | FS24: 0 | FT24: 0 | FU24: 0 | FV24: 0 | FW24: 0 | FX24: 0 | FY24: 0 | FZ24: 0 | GA24: 0 | GB24: 0 | GC24: 0 | GD24: 0 | GE24: 0 | GF24: 0 | GG24: 0 | GH24: 0 | GI24: 0 | GJ24: 0 | GK24: 0 | GL24: 0 | GM24: 0 | GN24: 0 | GO24: 0 | GP24: 0 | GQ24: 0 | GR24: 0 | GS24: 0 | GT24: 0 | GU24: 0 | GV24: 0 | GW24: 0 | GX24: 0 | GY24: 0 | GZ24: 0 | HA24: 0 | HB24: 0 | HC24: 0 | HD24: 0 | HE24: 0 | HF24: 0 | HG24: 0 | HH24: 0 | HI24: 0 | HJ24: 0 | HK24: 0 | HL24: 0 | HM24: 0 | HN24: 0 | HO24: 0 | HP24: 0 | HQ24: 0 | HR24: 0 | HS24: 0 | HT24: 0 | HU24: 0 | HV24: 0 | HW24: 0 | HX24: 0 | HY24: 0 | HZ24: 0 | IA24: 0 | IB24: 0 | IC24: 0 | ID24: 0 | IE24: 0 | IF24: 0 | IG24: 0 | IH24: 0 | II24: 0 | IJ24: 0 | IK24: 0 | IL24: 0 | IM24: 0 | IN24: 0 | IO24: 0 | IP24: 0 | IQ24: 0 | IR24: 0 | IS24: 0 | IT24: 0 | IU24: 0 | IV24: 0 | IW24: 0 | IX24: 0 | IY24: 0 | IZ24: 0 | JA24: 0 | JB24: 0 | JC24: 0 | JD24: 0 | JE24: 0 | JF24: 0 | JG24: 0 | JH24: 0 | JI24: 0 | JJ24: 0 | JK24: 0 | JL24: 0 | JM24: 0 | JN24: 0 | JO24: 0 | JP24: 0 | JQ24: 0 | JR24: 0 | JS24: 0 | JT24: 0 | JU24: 0 | JV24: 0 | JW24: 0 | JX24: 0 | JY24: 0 | JZ24: 0 | KA24: 0 | KB24: 0 | KC24: 0 | KD24: 0 | KE24: 0 | KF24: 0 | KG24: 0 | KH24: 0 | KI24: 0 | KJ24: 0 | KK24: 0 | KL24: 0 | KM24: 0 | KN24: 0 | KO24: 0 | KP24: 0 | KQ24: 0 | KR24: 0 | KS24: 0 | KT24: 0 | KU24: 0 | KV24: 0 | KW24: 0 | KX24: 0 | KY24: 0 | KZ24: 0 | LA24: 0 | LB24: 0 | LC24: 0 | LD24: 0 | LE24: 0 | LF24: 0 | LG24: 0 | LH24: 0 | LI24: 0 | LJ24: 0 | LK24: 0 | LL24: 0 | LM24: 0 | LN24: 0 | LO24: 0 | LP24: 0 | LQ24: 0 | LR24: 0 | LS24: 0 | LT24: 0 | LU24: 0 | LV24: 0 | LW24: 0 | LX24: 0 | LY24: 0 | LZ24: 0 | MA24: 0 | MB24: 0 | MC24: 0 | MD24: 0 | ME24: 0 | MF24: 0 | MG24: 0 | MH24: 0 | MI24: 0 | MJ24: 0 | MK24: 0 | ML24: 0 | MM24: 0 | MN24: 0 | MO24: 0 | MP24: 0 | MQ24: 0 | MR24: 0 | MS24: 0 | MT24: 0 | MU24: 0 | MV24: 0 | MW24: 0 | MX24: 0 | MY24: 0 | MZ24: 0 | NA24: 0 | NB24: 0 | NC24: 0 | ND24: 0 | NE24: 0 | NF24: 0 | NG24: 0 | NH24: 0 | NI24: 0 | NJ24: 0 | NK24: 0 | NL24: 0 | NM24: 0 | NN24: 0 | NO24: 0 | NP24: 0 | NQ24: 0 | NR24: 0 | NS24: 0 | NT24: 0 | NU24: 0 | NV24: 0 | NW24: 0 | NX24: 0 | NY24: 0 | NZ24: 0 | OA24: 0 | OB24: 0 | OC24: 0 | OD24: 0 | OE24: 0 | OF24: 0 | OG24: 0 | OH24: 0 | OI24: 0 | OJ24: 0 | OK24: 0 | OL24: 0 | OM24: 0 | ON24: 0 | OO24: 0 | OP24: 0 | OQ24: 0
D25: Energy efficiency | G25: 1 | K25: =SUM(M25:KZ25) -> 7634063.739 | M25: =M301 -> 0 | N25: =N301 -> 0 | O25: 0 | P25: 0 | Q25: 0 | R25: 0 | S25: 0 | T25: 0 | U25: 0 | V25: 0 | W25: 0 | X25: 0 | Y25: 0 | Z25: 0 | AA25: 0 | AB25: 0 | AC25: 0 | AD25: 0 | AE25: 0 | AF25: 0 | AG25: 0 | AH25: 0 | AI25: 17825.24386 | AJ25: 17582.24712 | AK25: 22679.41719 | AL25: 26790.1523 | AM25: 36420.95641 | AN25: 36135.80029 | AO25: 34937.10413 | AP25: 33501.26585 | AQ25: 28308.74541 | AR25: 25397.78981 | AS25: 25555.89866 | AT25: 21872.58684 | AU25: 18150.15821 | AV25: 17862.84933 | AW25: 22946.1085 | AX25: 27053.92209 | AY25: 36914.88659 | AZ25: 36696.29727 | BA25: 35521.73683 | BB25: 34093.01953 | BC25: 28802.45865 | BD25: 25825.56608 | BE25: 25992.98263 | BF25: 22238.33431 | BG25: 18481.57085 | BH25: 18149.06359 | BI25: 23218.13365 | BJ25: 27322.96728 | BK25: 37418.69538 | BL25: 37268.00419 | BM25: 36118.06218 | BN25: 34696.60828 | BO25: 29306.04616 | BP25: 26261.89786 | BQ25: 26438.80828 | BR25: 22611.39674 | BS25: 18819.61174 | BT25: 18441.00213 | BU25: 23495.59929 | BV25: 27597.39337 | BW25: 37932.58034 | BX25: 37851.14525 | BY25: 36726.31403 | BZ25: =BZ301 -> 35312.26881 | CA25: 29819.70542 | CB25: 26706.95629 | CC25: 26893.55044 | CD25: 22991.92041 | CE25: 19164.41345 | CF25: 18738.77944 | CG25: 23778.61425 | CH25: 27877.30798 | CI25: 38456.74301 | CJ25: 38445.94912 | CK25: 37346.73092 | CL25: 35940.24255 | CM25: 30343.63786 | CN25: 27160.91588 | CO25: 27357.38745 | CP25: 23380.05456 | CQ25: 19516.11119 | CR25: 19042.5123 | CS25: 24067.28951 | CT25: 28162.82089 | CU25: 38991.38892 | CV25: 39052.64908 | CW25: 37979.55615 | CX25: 36580.77576 | CY25: 30878.04895 | CZ25: 27623.95466 | DA25: 27830.5012 | DB25: 23775.95139 | DC25: 19874.84289 | DD25: 19352.31982 | DE25: 24361.73827 | DF25: 28454.04405 | DG25: 39536.72775 | DH25: 39671.48303 | DI25: 38625.03789 | DJ25: 37234.11963 | DK25: 31423.14826 | DL25: 28096.25422 | DM25: 28313.07722 | DN25: 24179.76616 | DO25: 20240.74922 | DP25: 19668.32348 | DQ25: 24662.07601 | DR25: 28751.09168 | DS25: 40092.97336 | DT25: 40302.69367 | DU25: 39283.42926 | DV25: 37900.53039 | DW25: 31979.14956 | DX25: 28577.99977 | DY25: 28805.30476 | DZ25: 24591.65722 | EA25: 20613.97368 | EB25: 19990.64722 | EC25: 24968.4205 | ED25: 29054.08026 | EE25: 40660.34389 | EF25: 40946.52852 | EG25: 39954.98845 | EH25: 38580.26936 | EI25: 32546.27088 | EJ25: 29069.38023 | EK25: 29307.37685 | EL25: =EL301 -> 25011.7861 | EM25: 20994.66263 | EN25: 20319.41744 | EO25: 25280.89188 | EP25: 29363.12861 | EQ25: 41239.06182 | ER25: 41603.24006 | ES25: 40639.97884 | ET25: 39273.6031 | EU25: 33124.73463 | EV25: 29570.5883 | EW25: 29819.49039 | EX25: 25440.31756 | EY25: 21382.96536 | EZ25: 20654.76306 | FA25: 25599.6127 | FB25: 29678.35793 | FC25: 41829.35411 | FD25: 42273.08583 | FE25: 41338.66902 | FF25: 39980.80353 | FG25: 33714.76766 | FH25: 30081.82053 | FI25: 30341.84619 | FJ25: 25877.41965 | FK25: 21779.03414 | FL25: 20996.81559 | FM25: 25924.70792 | FN25: 29999.89183 | FO25: 42431.45225 | FP25: 42956.32853 | FQ25: 42051.33302 | FR25: 40702.14796 | FS25: 34316.60135 | FT25: 30603.27741 | FU25: 30874.64911 | FV25: 26323.26378 | FW25: 22183.0243 | FX25: 21345.70917 | FY25: 26256.30505 | FZ25: 30327.85642 | GA25: 43045.59235 | GB25: 43653.23607 | GC25: 42778.25029 | GD25: 41437.91928 | GE25: 34930.47171 | GF25: 31135.16342 | GG25: 31418.10809 | GH25: 26778.0248 | GI25: 22595.09426 | GJ25: 21701.58063 | GK25: 26594.53413 | GL25: 30662.38029 | GM25: 43672.01525 | GN25: 44364.08176 | GO25: 43519.7059 | GP25: 42188.40602 | GQ25: 35556.61947 | GR25: 31677.68716 | GS25: 31972.43625 | GT25: 27241.88103 | GU25: 23015.40562 | GV25: 22064.56951 | GW25: 26939.52778 | GX25: =GX301 -> 31003.59464 | GY25: 44310.96661 | GZ25: 45089.14437 | HA25: 44275.99063 | HB25: 42953.90251 | HC25: 36195.2902 | HD25: 32231.06137 | HE25: 32537.85098 | HF25: 27715.01439 | HG25: 23444.1232 | HH25: 22434.81817 | HI25: 27291.42131 | HJ25: 31351.63328 | HK25: 44962.697 | HL25: 45828.70823 | HM25: 45047.40106 | HN25: 43734.70892 | HO25: 36846.73433 | HP25: 32795.50306 | HQ25: 33114.57399 | HR25: 28197.61042 | HS25: 23881.41514 | HT25: 22812.4718 | HU25: 27650.35271 | HV25: 31706.63269 | HW25: 45627.46199 | HX25: 46583.06337 | HY25: 45834.23969 | HZ25: 44531.13146 | IA25: 37511.20735 | IB25: 33371.23359 | IC25: 33702.83147 | ID25: 28689.85837 | IE25: 24327.45292 | IF25: 23197.67851 | IG25: 28016.46274 | IH25: 32068.73209 | II25: 46305.52229 | IJ25: 47352.50561 | IK25: 46636.8151 | IL25: 45343.48245 | IM25: 38188.96983 | IN25: 33958.47873 | IO25: 34302.8541 | IP25: 29191.95127 | IQ25: 24782.41145 | IR25: 23590.58935 | IS25: 28389.89496 | IT25: 32438.07348 | IU25: 46997.14379 | IV25: 48137.3367 | IW25: 47455.44201 | IX25: 46172.08046 | IY25: 38880.28756 | IZ25: 34557.46877 | JA25: 34914.87718 | JB25: 29704.08604 | JC25: 25246.46916 | JD25: 23991.35841 | JE25: 28770.79584 | JF25: 32814.8017 | JG25: 47702.59772 | JH25: 48937.86441 | JI25: 48290.44146 | JJ25: =JJ301 -> 47017.25043 | JK25: 39585.43165 | JL25: 35168.43861 | JM25: 35539.14072 | JN25: 30226.4635 | JO25: 0 | JP25: 0 | JQ25: 0 | JR25: 0 | JS25: 0 | JT25: 0 | JU25: 0 | JV25: 0 | JW25: 0 | JX25: 0 | JY25: 0 | JZ25: 0 | KA25: 0 | KB25: 0 | KC25: 0 | KD25: 0 | KE25: 0 | KF25: 0 | KG25: 0 | KH25: 0 | KI25: 0 | KJ25: 0 | KK25: 0 | KL25: 0 | KM25: 0 | KN25: 0 | KO25: 0 | KP25: 0 | KQ25: 0 | KR25: 0 | KS25: 0 | KT25: 0 | KU25: 0 | KV25: 0 | KW25: 0 | KX25: 0 | KY25: 0 | KZ25: 0 | LA25: 0 | LB25: 0 | LC25: 0 | LD25: 0 | LE25: 0 | LF25: 0 | LG25: 0 | LH25: 0 | LI25: 0 | LJ25: 0 | LK25: 0 | LL25: 0 | LM25: 0 | LN25: 0 | LO25: 0 | LP25: 0 | LQ25: 0 | LR25: 0 | LS25: 0 | LT25: 0 | LU25: 0 | LV25: =LV301 -> 0 | LW25: 0 | LX25: 0 | LY25: 0 | LZ25: 0 | MA25: 0 | MB25: 0 | MC25: 0 | MD25: 0 | ME25: 0 | MF25: 0 | MG25: 0 | MH25: 0 | MI25: 0 | MJ25: 0 | MK25: 0 | ML25: 0 | MM25: 0 | MN25: 0 | MO25: 0 | MP25: 0 | MQ25: 0 | MR25: 0 | MS25: 0 | MT25: 0 | MU25: 0 | MV25: 0 | MW25: 0 | MX25: 0 | MY25: 0 | MZ25: 0 | NA25: 0 | NB25: 0 | NC25: 0 | ND25: 0 | NE25: 0 | NF25: 0 | NG25: 0 | NH25: 0 | NI25: 0 | NJ25: 0 | NK25: 0 | NL25: 0 | NM25: 0 | NN25: 0 | NO25: 0 | NP25: 0 | NQ25: 0 | NR25: 0 | NS25: 0 | NT25: 0 | NU25: 0 | NV25: 0 | NW25: 0 | NX25: 0 | NY25: 0 | NZ25: 0 | OA25: 0 | OB25: 0 | OC25: 0 | OD25: 0 | OE25: 0 | OF25: 0 | OG25: 0 | OH25: =OH301 -> 0 | OI25: 0 | OJ25: 0 | OK25: 0 | OL25: 0 | OM25: 0 | ON25: 0 | OO25: 0 | OP25: 0 | OQ25: 0
D26: Energy efficiency - demand response | G26: 0 | K26: =SUM(M26:KZ26) -> 0 | M26: 0 | N26: 0 | O26: 0 | P26: 0 | Q26: 0 | R26: 0 | S26: 0 | T26: 0 | U26: 0 | V26: 0 | W26: 0 | X26: 0 | Y26: 0 | Z26: 0 | AA26: 0 | AB26: 0 | AC26: 0 | AD26: 0 | AE26: 0 | AF26: 0 | AG26: 0 | AH26: 0 | AI26: 0 | AJ26: 0 | AK26: 0 | AL26: 0 | AM26: 0 | AN26: 0 | AO26: 0 | AP26: 0 | AQ26: 0 | AR26: 0 | AS26: 0 | AT26: 0 | AU26: 0 | AV26: 0 | AW26: 0 | AX26: 0 | AY26: 0 | AZ26: 0 | BA26: 0 | BB26: 0 | BC26: 0 | BD26: 0 | BE26: 0 | BF26: 0 | BG26: 0 | BH26: 0 | BI26: 0 | BJ26: 0 | BK26: 0 | BL26: 0 | BM26: 0 | BN26: 0 | BO26: 0 | BP26: 0 | BQ26: 0 | BR26: 0 | BS26: 0 | BT26: 0 | BU26: 0 | BV26: 0 | BW26: 0 | BX26: 0 | BY26: 0 | BZ26: 0 | CA26: 0 | CB26: 0 | CC26: 0 | CD26: 0 | CE26: 0 | CF26: 0 | CG26: 0 | CH26: 0 | CI26: 0 | CJ26: 0 | CK26: 0 | CL26: 0 | CM26: 0 | CN26: 0 | CO26: 0 | CP26: 0 | CQ26: 0 | CR26: 0 | CS26: 0 | CT26: 0 | CU26: 0 | CV26: 0 | CW26: 0 | CX26: 0 | CY26: 0 | CZ26: 0 | DA26: 0 | DB26: 0 | DC26: 0 | DD26: 0 | DE26: 0 | DF26: 0 | DG26: 0 | DH26: 0 | DI26: 0 | DJ26: 0 | DK26: 0 | DL26: 0 | DM26: 0 | DN26: 0 | DO26: 0 | DP26: 0 | DQ26: 0 | DR26: 0 | DS26: 0 | DT26: 0 | DU26: 0 | DV26: 0 | DW26: 0 | DX26: 0 | DY26: 0 | DZ26: 0 | EA26: 0 | EB26: 0 | EC26: 0 | ED26: 0 | EE26: 0 | EF26: 0 | EG26: 0 | EH26: 0 | EI26: 0 | EJ26: 0 | EK26: 0 | EL26: 0 | EM26: 0 | EN26: 0 | EO26: 0 | EP26: 0 | EQ26: 0 | ER26: 0 | ES26: 0 | ET26: 0 | EU26: 0 | EV26: 0 | EW26: 0 | EX26: 0 | EY26: 0 | EZ26: 0 | FA26: 0 | FB26: 0 | FC26: 0 | FD26: 0 | FE26: 0 | FF26: 0 | FG26: 0 | FH26: 0 | FI26: 0 | FJ26: 0 | FK26: 0 | FL26: 0 | FM26: 0 | FN26: 0 | FO26: 0 | FP26: 0 | FQ26: 0 | FR26: 0 | FS26: 0 | FT26: 0 | FU26: 0 | FV26: 0 | FW26: 0 | FX26: 0 | FY26: 0 | FZ26: 0 | GA26: 0 | GB26: 0 | GC26: 0 | GD26: 0 | GE26: 0 | GF26: 0 | GG26: 0 | GH26: 0 | GI26: 0 | GJ26: 0 | GK26: 0 | GL26: 0 | GM26: 0 | GN26: 0 | GO26: 0 | GP26: 0 | GQ26: 0 | GR26: 0 | GS26: 0 | GT26: 0 | GU26: 0 | GV26: 0 | GW26: 0 | GX26: 0 | GY26: 0 | GZ26: 0 | HA26: 0 | HB26: 0 | HC26: 0 | HD26: 0 | HE26: 0 | HF26: 0 | HG26: 0 | HH26: 0 | HI26: 0 | HJ26: 0 | HK26: 0 | HL26: 0 | HM26: 0 | HN26: 0 | HO26: 0 | HP26: 0 | HQ26: 0 | HR26: 0 | HS26: 0 | HT26: 0 | HU26: 0 | HV26: 0 | HW26: 0 | HX26: 0 | HY26: 0 | HZ26: 0 | IA26: 0 | IB26: 0 | IC26: 0 | ID26: 0 | IE26: 0 | IF26: 0 | IG26: 0 | IH26: 0 | II26: 0 | IJ26: 0 | IK26: 0 | IL26: 0 | IM26: 0 | IN26: 0 | IO26: 0 | IP26: 0 | IQ26: 0 | IR26: 0 | IS26: 0 | IT26: 0 | IU26: 0 | IV26: 0 | IW26: 0 | IX26: 0 | IY26: 0 | IZ26: 0 | JA26: 0 | JB26: 0 | JC26: 0 | JD26: 0 | JE26: 0 | JF26: 0 | JG26: 0 | JH26: 0 | JI26: 0 | JJ26: 0 | JK26: 0 | JL26: 0 | JM26: 0 | JN26: 0 | JO26: 0 | JP26: 0 | JQ26: 0 | JR26: 0 | JS26: 0 | JT26: 0 | JU26: 0 | JV26: 0 | JW26: 0 | JX26: 0 | JY26: 0 | JZ26: 0 | KA26: 0 | KB26: 0 | KC26: 0 | KD26: 0 | KE26: 0 | KF26: 0 | KG26: 0 | KH26: 0 | KI26: 0 | KJ26: 0 | KK26: 0 | KL26: 0 | KM26: 0 | KN26: 0 | KO26: 0 | KP26: 0 | KQ26: 0 | KR26: 0 | KS26: 0 | KT26: 0 | KU26: 0 | KV26: 0 | KW26: 0 | KX26: 0 | KY26: 0 | KZ26: 0 | LA26: 0 | LB26: 0 | LC26: 0 | LD26: 0 | LE26: 0 | LF26: 0 | LG26: 0 | LH26: 0 | LI26: 0 | LJ26: 0 | LK26: 0 | LL26: 0 | LM26: 0 | LN26: 0 | LO26: 0 | LP26: 0 | LQ26: 0 | LR26: 0 | LS26: 0 | LT26: 0 | LU26: 0 | LV26: 0 | LW26: 0 | LX26: 0 | LY26: 0 | LZ26: 0 | MA26: 0 | MB26: 0 | MC26: 0 | MD26: 0 | ME26: 0 | MF26: 0 | MG26: 0 | MH26: 0 | MI26: 0 | MJ26: 0 | MK26: 0 | ML26: 0 | MM26: 0 | MN26: 0 | MO26: 0 | MP26: 0 | MQ26: 0 | MR26: 0 | MS26: 0 | MT26: 0 | MU26: 0 | MV26: 0 | MW26: 0 | MX26: 0 | MY26: 0 | MZ26: 0 | NA26: 0 | NB26: 0 | NC26: 0 | ND26: 0 | NE26: 0 | NF26: 0 | NG26: 0 | NH26: 0 | NI26: 0 | NJ26: 0 | NK26: 0 | NL26: 0 | NM26: 0 | NN26: 0 | NO26: 0 | NP26: 0 | NQ26: 0 | NR26: 0 | NS26: 0 | NT26: 0 | NU26: 0 | NV26: 0 | NW26: 0 | NX26: 0 | NY26: 0 | NZ26: 0 | OA26: 0 | OB26: 0 | OC26: 0 | OD26: 0 | OE26: 0 | OF26: 0 | OG26: 0 | OH26: 0 | OI26: 0 | OJ26: 0 | OK26: 0 | OL26: 0 | OM26: 0 | ON26: 0 | OO26: 0 | OP26: 0 | OQ26: 0
D27: Solar | G27: 1 | K27: =SUM(M27:KZ27) -> 3979832.892 | M27: ='Operating Model - Monthly'!M343*$G$27 -> 0 | N27: ='Operating Model - Monthly'!N343*$G$27 -> 0 | O27: ='Operating Model - Monthly'!O343*$G$27 -> 0 | P27: ='Operating Model - Monthly'!P343*$G$27 -> 0 | Q27: ='Operating Model - Monthly'!Q343*$G$27 -> 0 | R27: ='Operating Model - Monthly'!R343*$G$27 -> 0 | S27: ='Operating Model - Monthly'!S343*$G$27 -> 0 | T27: ='Operating Model - Monthly'!T343*$G$27 -> 0 | U27: ='Operating Model - Monthly'!U343*$G$27 -> 0 | V27: ='Operating Model - Monthly'!V343*$G$27 -> 0 | W27: ='Operating Model - Monthly'!W343*$G$27 -> 0 | X27: ='Operating Model - Monthly'!X343*$G$27 -> 0 | Y27: ='Operating Model - Monthly'!Y343*$G$27 -> 0 | Z27: ='Operating Model - Monthly'!Z343*$G$27 -> 0 | AA27: ='Operating Model - Monthly'!AA343*$G$27 -> 0 | AB27: ='Operating Model - Monthly'!AB343*$G$27 -> 0 | AC27: ='Operating Model - Monthly'!AC343*$G$27 -> 0 | AD27: ='Operating Model - Monthly'!AD343*$G$27 -> 0 | AE27: ='Operating Model - Monthly'!AE343*$G$27 -> 0 | AF27: ='Operating Model - Monthly'!AF343*$G$27 -> 0 | AG27: ='Operating Model - Monthly'!AG343*$G$27 -> 0 | AH27: ='Operating Model - Monthly'!AH343*$G$27 -> 0 | AI27: ='Operating Model - Monthly'!AI343*$G$27 -> 0 | AJ27: ='Operating Model - Monthly'!AJ343*$G$27 -> 0 | AK27: ='Operating Model - Monthly'!AK343*$G$27 -> 0 | AL27: ='Operating Model - Monthly'!AL343*$G$27 -> 0 | AM27: ='Operating Model - Monthly'!AM343*$G$27 -> 0 | AN27: ='Operating Model - Monthly'!AN343*$G$27 -> 0 | AO27: ='Operating Model - Monthly'!AO343*$G$27 -> 0 | AP27: ='Operating Model - Monthly'!AP343*$G$27 -> 0 | AQ27: ='Operating Model - Monthly'!AQ343*$G$27 -> 0 | AR27: ='Operating Model - Monthly'!AR343*$G$27 -> 0 | AS27: ='Operating Model - Monthly'!AS343*$G$27 -> 17986.99006 | AT27: ='Operating Model - Monthly'!AT343*$G$27 -> 9993.899053 | AU27: ='Operating Model - Monthly'!AU343*$G$27 -> 8589.89429 | AV27: ='Operating Model - Monthly'!AV343*$G$27 -> 6774.076222 | AW27: ='Operating Model - Monthly'!AW343*$G$27 -> 5721.340865 | AX27: ='Operating Model - Monthly'!AX343*$G$27 -> 8920.317275 | AY27: ='Operating Model - Monthly'!AY343*$G$27 -> 13452.46879 | AZ27: ='Operating Model - Monthly'!AZ343*$G$27 -> 18685.56747 | BA27: ='Operating Model - Monthly'!BA343*$G$27 -> 20691.53595 | BB27: ='Operating Model - Monthly'!BB343*$G$27 -> 21272.61601 | BC27: ='Operating Model - Monthly'!BC343*$G$27 -> 21324.71062 | BD27: ='Operating Model - Monthly'!BD343*$G$27 -> 18823.89202 | BE27: ='Operating Model - Monthly'!BE343*$G$27 -> 18255.45259 | BF27: ='Operating Model - Monthly'!BF343*$G$27 -> 10143.06173 | BG27: ='Operating Model - Monthly'!BG343*$G$27 -> 8718.101667 | BH27: ='Operating Model - Monthly'!BH343*$G$27 -> 6875.181837 | BI27: ='Operating Model - Monthly'!BI343*$G$27 -> 5806.734013 | BJ27: ='Operating Model - Monthly'!BJ343*$G$27 -> 9053.456339 | BK27: ='Operating Model - Monthly'!BK343*$G$27 -> 13653.2519 | BL27: ='Operating Model - Monthly'!BL343*$G$27 -> 18964.45654 | BM27: ='Operating Model - Monthly'!BM343*$G$27 -> 21000.36485 | BN27: ='Operating Model - Monthly'!BN343*$G$27 -> 21590.11774 | BO27: ='Operating Model - Monthly'!BO343*$G$27 -> 21642.98988 | BP27: ='Operating Model - Monthly'!BP343*$G$27 -> 19104.84564 | BQ27: ='Operating Model - Monthly'!BQ343*$G$27 -> 18527.92203 | BR27: ='Operating Model - Monthly'!BR343*$G$27 -> 10294.45071 | BS27: ='Operating Model - Monthly'!BS343*$G$27 -> 8848.222587 | BT27: ='Operating Model - Monthly'!BT343*$G$27 -> 6977.796491 | BU27: ='Operating Model - Monthly'!BU343*$G$27 -> 5893.401684 | BV27: ='Operating Model - Monthly'!BV343*$G$27 -> 9188.582553 | BW27: ='Operating Model - Monthly'!BW343*$G$27 -> 13857.03178 | BX27: ='Operating Model - Monthly'!BX343*$G$27 -> 19247.50813 | BY27: ='Operating Model - Monthly'!BY343*$G$27 -> 21313.80313 | BZ27: ='Operating Model - Monthly'!BZ343*$G$27 -> 21912.3583 | CA27: ='Operating Model - Monthly'!CA343*$G$27 -> 21966.01958 | CB27: ='Operating Model - Monthly'!CB343*$G$27 -> 19389.99258 | CC27: ='Operating Model - Monthly'!CC343*$G$27 -> 18804.45818 | CD27: ='Operating Model - Monthly'!CD343*$G$27 -> 10448.09922 | CE27: ='Operating Model - Monthly'!CE343*$G$27 -> 8980.285611 | CF27: ='Operating Model - Monthly'!CF343*$G$27 -> 7081.942708 | CG27: ='Operating Model - Monthly'!CG343*$G$27 -> 5981.362904 | CH27: ='Operating Model - Monthly'!CH343*$G$27 -> 9325.725576 | CI27: ='Operating Model - Monthly'!CI343*$G$27 -> 14063.85315 | CJ27: ='Operating Model - Monthly'!CJ343*$G$27 -> 19534.78437 | CK27: ='Operating Model - Monthly'!CK343*$G$27 -> 21631.9196 | CL27: ='Operating Model - Monthly'!CL343*$G$27 -> 22239.40843 | CM27: ='Operating Model - Monthly'!CM343*$G$27 -> 22293.87062 | CN27: ='Operating Model - Monthly'!CN343*$G$27 -> 19679.39546 | CO27: ='Operating Model - Monthly'!CO343*$G$27 -> 19085.12174 | CP27: ='Operating Model - Monthly'!CP343*$G$27 -> 10604.041 | CQ27: ='Operating Model - Monthly'!CQ343*$G$27 -> 9114.319725 | CR27: ='Operating Model - Monthly'!CR343*$G$27 -> 7187.643345 | CS27: ='Operating Model - Monthly'!CS343*$G$27 -> 6070.636977 | CT27: ='Operating Model - Monthly'!CT343*$G$27 -> 9464.91551 | CU27: ='Operating Model - Monthly'!CU343*$G$27 -> 14273.76141 | CV27: ='Operating Model - Monthly'!CV343*$G$27 -> 19826.34832 | CW27: ='Operating Model - Monthly'!CW343*$G$27 -> 21954.78407 | CX27: ='Operating Model - Monthly'!CX343*$G$27 -> 22571.33989 | CY27: ='Operating Model - Monthly'!CY343*$G$27 -> 22626.61495 | CZ27: ='Operating Model - Monthly'!CZ343*$G$27 -> 19973.11778 | DA27: ='Operating Model - Monthly'!DA343*$G$27 -> 19369.9743 | DB27: ='Operating Model - Monthly'!DB343*$G$27 -> 10762.31027 | DC27: ='Operating Model - Monthly'!DC343*$G$27 -> 9250.354347 | DD27: ='Operating Model - Monthly'!DD343*$G$27 -> 7294.921604 | DE27: ='Operating Model - Monthly'!DE343*$G$27 -> 6161.243499 | DF27: ='Operating Model - Monthly'!DF343*$G$27 -> 9606.182906 | DG27: ='Operating Model - Monthly'!DG343*$G$27 -> 14486.80262 | DH27: ='Operating Model - Monthly'!DH343*$G$27 -> 20122.26396 | DI27: ='Operating Model - Monthly'!DI343*$G$27 -> 22282.46741 | DJ27: ='Operating Model - Monthly'!DJ343*$G$27 -> 22908.22556 | DK27: ='Operating Model - Monthly'!DK343*$G$27 -> 22964.32563 | DL27: ='Operating Model - Monthly'!DL343*$G$27 -> 20271.22401 | DM27: ='Operating Model - Monthly'!DM343*$G$27 -> 19659.0784 | DN27: ='Operating Model - Monthly'!DN343*$G$27 -> 10922.94177 | DO27: ='Operating Model - Monthly'!DO343*$G$27 -> 9388.419338 | DP27: ='Operating Model - Monthly'!DP343*$G$27 -> 7403.801031 | DQ27: ='Operating Model - Monthly'!DQ343*$G$27 -> 6253.202357 | DR27: ='Operating Model - Monthly'!DR343*$G$27 -> 9749.55877 | DS27: ='Operating Model - Monthly'!DS343*$G$27 -> 14703.02356 | DT27: ='Operating Model - Monthly'!DT343*$G$27 -> 20422.59626 | DU27: ='Operating Model - Monthly'!DU343*$G$27 -> 22615.04155 | DV27: ='Operating Model - Monthly'!DV343*$G$27 -> 23250.13938 | DW27: ='Operating Model - Monthly'!DW343*$G$27 -> 23307.07675 | DX27: ='Operating Model - Monthly'!DX343*$G$27 -> 20573.7796 | DY27: ='Operating Model - Monthly'!DY343*$G$27 -> 19952.49748 | DZ27: ='Operating Model - Monthly'!DZ343*$G$27 -> 11085.97075 | EA27: ='Operating Model - Monthly'!EA343*$G$27 -> 9528.545 | EB27: ='Operating Model - Monthly'!EB343*$G$27 -> 7514.305524 | EC27: ='Operating Model - Monthly'!EC343*$G$27 -> 6346.533735 | ED27: ='Operating Model - Monthly'!ED343*$G$27 -> 9895.074573 | EE27: ='Operating Model - Monthly'!EE343*$G$27 -> 14922.47167 | EF27: ='Operating Model - Monthly'!EF343*$G$27 -> 20727.41113 | EG27: ='Operating Model - Monthly'!EG343*$G$27 -> 22952.57949 | EH27: ='Operating Model - Monthly'!EH343*$G$27 -> 23597.15638 | EI27: ='Operating Model - Monthly'!EI343*$G$27 -> 23654.94357 | EJ27: ='Operating Model - Monthly'!EJ343*$G$27 -> 20880.85093 | EK27: ='Operating Model - Monthly'!EK343*$G$27 -> 20250.29595 | EL27: ='Operating Model - Monthly'!EL343*$G$27 -> 11251.433 | EM27: ='Operating Model - Monthly'!EM343*$G$27 -> 9670.762089 | EN27: ='Operating Model - Monthly'!EN343*$G$27 -> 7626.459338 | EO27: ='Operating Model - Monthly'!EO343*$G$27 -> 6441.25812 | EP27: ='Operating Model - Monthly'!EP343*$G$27 -> 10042.76225 | EQ27: ='Operating Model - Monthly'!EQ343*$G$27 -> 15145.19513 | ER27: ='Operating Model - Monthly'!ER343*$G$27 -> 21036.77547 | ES27: ='Operating Model - Monthly'!ES343*$G$27 -> 23295.1553 | ET27: ='Operating Model - Monthly'!ET343*$G$27 -> 23949.35275 | EU27: ='Operating Model - Monthly'!EU343*$G$27 -> 24008.00243 | EV27: ='Operating Model - Monthly'!EV343*$G$27 -> 21192.50543 | EW27: ='Operating Model - Monthly'!EW343*$G$27 -> 20552.53917 | EX27: ='Operating Model - Monthly'!EX343*$G$27 -> 11419.36484 | EY27: ='Operating Model - Monthly'!EY343*$G$27 -> 9815.101822 | EZ27: ='Operating Model - Monthly'!EZ343*$G$27 -> 7740.287089 | FA27: ='Operating Model - Monthly'!FA343*$G$27 -> 6537.3963 | FB27: ='Operating Model - Monthly'!FB343*$G$27 -> 10192.65423 | FC27: ='Operating Model - Monthly'!FC343*$G$27 -> 15371.24282 | FD27: ='Operating Model - Monthly'!FD343*$G$27 -> 21350.7572 | FE27: ='Operating Model - Monthly'!FE343*$G$27 -> 23642.84418 | FF27: ='Operating Model - Monthly'!FF343*$G$27 -> 24306.80578 | FG27: ='Operating Model - Monthly'!FG343*$G$27 -> 24366.33082 | FH27: ='Operating Model - Monthly'!FH343*$G$27 -> 21508.81148 | FI27: ='Operating Model - Monthly'!FI343*$G$27 -> 20859.29349 | FJ27: ='Operating Model - Monthly'!FJ343*$G$27 -> 11589.80312 | FK27: ='Operating Model - Monthly'!FK343*$G$27 -> 9961.595879 | FL27: ='Operating Model - Monthly'!FL343*$G$27 -> 7855.813762 | FM27: ='Operating Model - Monthly'!FM343*$G$27 -> 6634.96938 | FN27: ='Operating Model - Monthly'!FN343*$G$27 -> 10344.78339 | FO27: ='Operating Model - Monthly'!FO343*$G$27 -> 15600.66435 | FP27: ='Operating Model - Monthly'!FP343*$G$27 -> 21669.42522 | FQ27: ='Operating Model - Monthly'!FQ343*$G$27 -> 23995.72246 | FR27: ='Operating Model - Monthly'!FR343*$G$27 -> 24669.59392 | FS27: ='Operating Model - Monthly'!FS343*$G$27 -> 24730.0074 | FT27: ='Operating Model - Monthly'!FT343*$G$27 -> 21829.83851 | FU27: ='Operating Model - Monthly'!FU343*$G$27 -> 21170.62623 | FV27: ='Operating Model - Monthly'!FV343*$G$27 -> 11762.78525 | FW27: ='Operating Model - Monthly'!FW343*$G$27 -> 10110.27641 | FX27: ='Operating Model - Monthly'!FX343*$G$27 -> 7973.064714 | FY27: ='Operating Model - Monthly'!FY343*$G$27 -> 6733.998773 | FZ27: ='Operating Model - Monthly'!FZ343*$G$27 -> 10499.18315 | GA27: ='Operating Model - Monthly'!GA343*$G$27 -> 15833.51009 | GB27: ='Operating Model - Monthly'!GB343*$G$27 -> 21992.84947 | GC27: ='Operating Model - Monthly'!GC343*$G$27 -> 24353.86757 | GD27: ='Operating Model - Monthly'!GD343*$G$27 -> 25037.79682 | GE27: ='Operating Model - Monthly'!GE343*$G$27 -> 25099.11199 | GF27: ='Operating Model - Monthly'!GF343*$G$27 -> 22155.657 | GG27: ='Operating Model - Monthly'!GG343*$G$27 -> 21486.60572 | GH27: ='Operating Model - Monthly'!GH343*$G$27 -> 11938.34921 | GI27: ='Operating Model - Monthly'!GI343*$G$27 -> 10261.17606 | GJ27: ='Operating Model - Monthly'!GJ343*$G$27 -> 8092.06568 | GK27: ='Operating Model - Monthly'!GK343*$G$27 -> 6834.506218 | GL27: ='Operating Model - Monthly'!GL343*$G$27 -> 10655.88737 | GM27: ='Operating Model - Monthly'!GM343*$G$27 -> 16069.83113 | GN27: ='Operating Model - Monthly'!GN343*$G$27 -> 22321.10096 | GO27: ='Operating Model - Monthly'!GO343*$G$27 -> 24717.35813 | GP27: ='Operating Model - Monthly'!GP343*$G$27 -> 25411.49528 | GQ27: ='Operating Model - Monthly'!GQ343*$G$27 -> 25473.7256 | GR27: ='Operating Model - Monthly'!GR343*$G$27 -> 22486.33845 | GS27: ='Operating Model - Monthly'!GS343*$G$27 -> 21807.30133 | GT27: ='Operating Model - Monthly'!GT343*$G$27 -> 12116.53353 | GU27: ='Operating Model - Monthly'!GU343*$G$27 -> 10414.32794 | GV27: ='Operating Model - Monthly'!GV343*$G$27 -> 8212.842779 | GW27: ='Operating Model - Monthly'!GW343*$G$27 -> 6936.513773 | GX27: ='Operating Model - Monthly'!GX343*$G$27 -> 10814.93047 | GY27: ='Operating Model - Monthly'!GY343*$G$27 -> 16309.67936 | GZ27: ='Operating Model - Monthly'!GZ343*$G$27 -> 22654.25172 | HA27: ='Operating Model - Monthly'!HA343*$G$27 -> 25086.27392 | HB27: ='Operating Model - Monthly'!HB343*$G$27 -> 25790.77132 | HC27: ='Operating Model - Monthly'!HC343*$G$27 -> 25853.93046 | HD27: ='Operating Model - Monthly'!HD343*$G$27 -> 22821.95544 | HE27: ='Operating Model - Monthly'!HE343*$G$27 -> 22132.78344 | HF27: ='Operating Model - Monthly'!HF343*$G$27 -> 12297.37731 | HG27: ='Operating Model - Monthly'!HG343*$G$27 -> 10569.76567 | HH27: ='Operating Model - Monthly'!HH343*$G$27 -> 8335.422522 | HI27: ='Operating Model - Monthly'!HI343*$G$27 -> 7040.043829 | HJ27: ='Operating Model - Monthly'!HJ343*$G$27 -> 10976.34734 | HK27: ='Operating Model - Monthly'!HK343*$G$27 -> 16553.10741 | HL27: ='Operating Model - Monthly'!HL343*$G$27 -> 22992.37488 | HM27: ='Operating Model - Monthly'!HM343*$G$27 -> 25460.69592 | HN27: ='Operating Model - Monthly'!HN343*$G$27 -> 26175.70821 | HO27: ='Operating Model - Monthly'!HO343*$G$27 -> 26239.81002 | HP27: ='Operating Model - Monthly'!HP343*$G$27 -> 23162.58164 | HQ27: ='Operating Model - Monthly'!HQ343*$G$27 -> 22463.12349 | HR27: ='Operating Model - Monthly'!HR343*$G$27 -> 12480.92026 | HS27: ='Operating Model - Monthly'!HS343*$G$27 -> 10727.52337 | HT27: ='Operating Model - Monthly'!HT343*$G$27 -> 8459.831814 | HU27: ='Operating Model - Monthly'!HU343*$G$27 -> 7145.119111 | HV27: ='Operating Model - Monthly'!HV343*$G$27 -> 11140.17342 | HW27: ='Operating Model - Monthly'!HW343*$G$27 -> 16800.16871 | HX27: ='Operating Model - Monthly'!HX343*$G$27 -> 23335.54465 | HY27: ='Operating Model - Monthly'!HY343*$G$27 -> 25840.70631 | HZ27: ='Operating Model - Monthly'!HZ343*$G$27 -> 26566.39042 | IA27: ='Operating Model - Monthly'!IA343*$G$27 -> 26631.44898 | IB27: ='Operating Model - Monthly'!IB343*$G$27 -> 23508.29181 | IC27: ='Operating Model - Monthly'!IC343*$G$27 -> 22798.39399 | ID27: ='Operating Model - Monthly'!ID343*$G$27 -> 12667.20265 | IE27: ='Operating Model - Monthly'!IE343*$G$27 -> 10887.63566 | IF27: ='Operating Model - Monthly'!IF343*$G$27 -> 8586.09796 | IG27: ='Operating Model - Monthly'!IG343*$G$27 -> 7251.762679 | IH27: ='Operating Model - Monthly'!IH343*$G$27 -> 11306.44466 | II27: ='Operating Model - Monthly'!II343*$G$27 -> 17050.9175 | IJ27: ='Operating Model - Monthly'!IJ343*$G$27 -> 23683.83636 | IK27: ='Operating Model - Monthly'!IK343*$G$27 -> 26226.38849 | IL27: ='Operating Model - Monthly'!IL343*$G$27 -> 26962.90371 | IM27: ='Operating Model - Monthly'!IM343*$G$27 -> 27028.93329 | IN27: ='Operating Model - Monthly'!IN343*$G$27 -> 23859.16184 | IO27: ='Operating Model - Monthly'!IO343*$G$27 -> 23138.66853 | IP27: ='Operating Model - Monthly'!IP343*$G$27 -> 12856.26538 | IQ27: ='Operating Model - Monthly'!IQ343*$G$27 -> 11050.13768 | IR27: ='Operating Model - Monthly'!IR343*$G$27 -> 8714.248676 | IS27: ='Operating Model - Monthly'!IS343*$G$27 -> 7359.997943 | IT27: ='Operating Model - Monthly'!IT343*$G$27 -> 11475.19757 | IU27: ='Operating Model - Monthly'!IU343*$G$27 -> 17305.40881 | IV27: ='Operating Model - Monthly'!IV343*$G$27 -> 24037.32646 | IW27: ='Operating Model - Monthly'!IW343*$G$27 -> 26617.82712 | IX27: ='Operating Model - Monthly'!IX343*$G$27 -> 27365.33511 | IY27: ='Operating Model - Monthly'!IY343*$G$27 -> 27432.35021 | IZ27: ='Operating Model - Monthly'!IZ343*$G$27 -> 24215.26873 | JA27: ='Operating Model - Monthly'!JA343*$G$27 -> 23484.02179 | JB27: ='Operating Model - Monthly'!JB343*$G$27 -> 13048.14993 | JC27: ='Operating Model - Monthly'!JC343*$G$27 -> 11215.06511 | JD27: ='Operating Model - Monthly'!JD343*$G$27 -> 8844.312089 | JE27: ='Operating Model - Monthly'!JE343*$G$27 -> 7469.848659 | JF27: ='Operating Model - Monthly'!JF343*$G$27 -> 11646.46918 | JG27: ='Operating Model - Monthly'!JG343*$G$27 -> 17563.69849 | JH27: ='Operating Model - Monthly'!JH343*$G$27 -> 24396.09252 | JI27: ='Operating Model - Monthly'!JI343*$G$27 -> 27015.10813 | JJ27: ='Operating Model - Monthly'!JJ343*$G$27 -> 27773.77295 | JK27: ='Operating Model - Monthly'!JK343*$G$27 -> 27841.78827 | JL27: ='Operating Model - Monthly'!JL343*$G$27 -> 24576.69065 | JM27: ='Operating Model - Monthly'!JM343*$G$27 -> 23834.52958 | JN27: ='Operating Model - Monthly'!JN343*$G$27 -> 13242.89844 | JO27: ='Operating Model - Monthly'!JO343*$G$27 -> 11382.45414 | JP27: ='Operating Model - Monthly'!JP343*$G$27 -> 8976.316747 | JQ27: ='Operating Model - Monthly'!JQ343*$G$27 -> 7581.338937 | JR27: ='Operating Model - Monthly'!JR343*$G$27 -> 11820.29707 | JS27: ='Operating Model - Monthly'!JS343*$G$27 -> 17825.84324 | JT27: ='Operating Model - Monthly'!JT343*$G$27 -> 24760.21331 | JU27: ='Operating Model - Monthly'!JU343*$G$27 -> 27418.31869 | JV27: ='Operating Model - Monthly'!JV343*$G$27 -> 28188.30687 | JW27: ='Operating Model - Monthly'!JW343*$G$27 -> 28257.33735 | JX27: ='Operating Model - Monthly'!JX343*$G$27 -> 24943.50693 | JY27: ='Operating Model - Monthly'!JY343*$G$27 -> 0 | JZ27: ='Operating Model - Monthly'!JZ343*$G$27 -> 0 | KA27: ='Operating Model - Monthly'!KA343*$G$27 -> 0 | KB27: ='Operating Model - Monthly'!KB343*$G$27 -> 0 | KC27: ='Operating Model - Monthly'!KC343*$G$27 -> 0 | KD27: ='Operating Model - Monthly'!KD343*$G$27 -> 0 | KE27: ='Operating Model - Monthly'!KE343*$G$27 -> 0 | KF27: ='Operating Model - Monthly'!KF343*$G$27 -> 0 | KG27: ='Operating Model - Monthly'!KG343*$G$27 -> 0 | KH27: ='Operating Model - Monthly'!KH343*$G$27 -> 0 | KI27: ='Operating Model - Monthly'!KI343*$G$27 -> 0 | KJ27: ='Operating Model - Monthly'!KJ343*$G$27 -> 0 | KK27: ='Operating Model - Monthly'!KK343*$G$27 -> 0 | KL27: ='Operating Model - Monthly'!KL343*$G$27 -> 0 | KM27: ='Operating Model - Monthly'!KM343*$G$27 -> 0 | KN27: ='Operating Model - Monthly'!KN343*$G$27 -> 0 | KO27: ='Operating Model - Monthly'!KO343*$G$27 -> 0 | KP27: ='Operating Model - Monthly'!KP343*$G$27 -> 0 | KQ27: ='Operating Model - Monthly'!KQ343*$G$27 -> 0 | KR27: ='Operating Model - Monthly'!KR343*$G$27 -> 0 | KS27: ='Operating Model - Monthly'!KS343*$G$27 -> 0 | KT27: ='Operating Model - Monthly'!KT343*$G$27 -> 0 | KU27: ='Operating Model - Monthly'!KU343*$G$27 -> 0 | KV27: ='Operating Model - Monthly'!KV343*$G$27 -> 0 | KW27: ='Operating Model - Monthly'!KW343*$G$27 -> 0 | KX27: ='Operating Model - Monthly'!KX343*$G$27 -> 0 | KY27: ='Operating Model - Monthly'!KY343*$G$27 -> 0 | KZ27: ='Operating Model - Monthly'!KZ343*$G$27 -> 0 | LA27: ='Operating Model - Monthly'!LA343*$G$27 -> 0 | LB27: ='Operating Model - Monthly'!LB343*$G$27 -> 0 | LC27: ='Operating Model - Monthly'!LC343*$G$27 -> 0 | LD27: ='Operating Model - Monthly'!LD343*$G$27 -> 0 | LE27: ='Operating Model - Monthly'!LE343*$G$27 -> 0 | LF27: ='Operating Model - Monthly'!LF343*$G$27 -> 0 | LG27: ='Operating Model - Monthly'!LG343*$G$27 -> 0 | LH27: ='Operating Model - Monthly'!LH343*$G$27 -> 0 | LI27: ='Operating Model - Monthly'!LI343*$G$27 -> 0 | LJ27: ='Operating Model - Monthly'!LJ343*$G$27 -> 0 | LK27: ='Operating Model - Monthly'!LK343*$G$27 -> 0 | LL27: ='Operating Model - Monthly'!LL343*$G$27 -> 0 | LM27: ='Operating Model - Monthly'!LM343*$G$27 -> 0 | LN27: ='Operating Model - Monthly'!LN343*$G$27 -> 0 | LO27: ='Operating Model - Monthly'!LO343*$G$27 -> 0 | LP27: ='Operating Model - Monthly'!LP343*$G$27 -> 0 | LQ27: ='Operating Model - Monthly'!LQ343*$G$27 -> 0 | LR27: ='Operating Model - Monthly'!LR343*$G$27 -> 0 | LS27: ='Operating Model - Monthly'!LS343*$G$27 -> 0 | LT27: ='Operating Model - Monthly'!LT343*$G$27 -> 0 | LU27: ='Operating Model - Monthly'!LU343*$G$27 -> 0 | LV27: ='Operating Model - Monthly'!LV343*$G$27 -> 0 | LW27: ='Operating Model - Monthly'!LW343*$G$27 -> 0 | LX27: ='Operating Model - Monthly'!LX343*$G$27 -> 0 | LY27: ='Operating Model - Monthly'!LY343*$G$27 -> 0 | LZ27: ='Operating Model - Monthly'!LZ343*$G$27 -> 0 | MA27: ='Operating Model - Monthly'!MA343*$G$27 -> 0 | MB27: ='Operating Model - Monthly'!MB343*$G$27 -> 0 | MC27: ='Operating Model - Monthly'!MC343*$G$27 -> 0 | MD27: ='Operating Model - Monthly'!MD343*$G$27 -> 0 | ME27: ='Operating Model - Monthly'!ME343*$G$27 -> 0 | MF27: ='Operating Model - Monthly'!MF343*$G$27 -> 0 | MG27: ='Operating Model - Monthly'!MG343*$G$27 -> 0 | MH27: ='Operating Model - Monthly'!MH343*$G$27 -> 0 | MI27: ='Operating Model - Monthly'!MI343*$G$27 -> 0 | MJ27: ='Operating Model - Monthly'!MJ343*$G$27 -> 0 | MK27: ='Operating Model - Monthly'!MK343*$G$27 -> 0 | ML27: ='Operating Model - Monthly'!ML343*$G$27 -> 0 | MM27: ='Operating Model - Monthly'!MM343*$G$27 -> 0 | MN27: ='Operating Model - Monthly'!MN343*$G$27 -> 0 | MO27: ='Operating Model - Monthly'!MO343*$G$27 -> 0 | MP27: ='Operating Model - Monthly'!MP343*$G$27 -> 0 | MQ27: ='Operating Model - Monthly'!MQ343*$G$27 -> 0 | MR27: ='Operating Model - Monthly'!MR343*$G$27 -> 0 | MS27: ='Operating Model - Monthly'!MS343*$G$27 -> 0 | MT27: ='Operating Model - Monthly'!MT343*$G$27 -> 0 | MU27: ='Operating Model - Monthly'!MU343*$G$27 -> 0 | MV27: ='Operating Model - Monthly'!MV343*$G$27 -> 0 | MW27: ='Operating Model - Monthly'!MW343*$G$27 -> 0 | MX27: ='Operating Model - Monthly'!MX343*$G$27 -> 0 | MY27: ='Operating Model - Monthly'!MY343*$G$27 -> 0 | MZ27: ='Operating Model - Monthly'!MZ343*$G$27 -> 0 | NA27: ='Operating Model - Monthly'!NA343*$G$27 -> 0 | NB27: ='Operating Model - Monthly'!NB343*$G$27 -> 0 | NC27: ='Operating Model - Monthly'!NC343*$G$27 -> 0 | ND27: ='Operating Model - Monthly'!ND343*$G$27 -> 0 | NE27: ='Operating Model - Monthly'!NE343*$G$27 -> 0 | NF27: ='Operating Model - Monthly'!NF343*$G$27 -> 0 | NG27: ='Operating Model - Monthly'!NG343*$G$27 -> 0 | NH27: ='Operating Model - Monthly'!NH343*$G$27 -> 0 | NI27: ='Operating Model - Monthly'!NI343*$G$27 -> 0 | NJ27: ='Operating Model - Monthly'!NJ343*$G$27 -> 0 | NK27: ='Operating Model - Monthly'!NK343*$G$27 -> 0 | NL27: ='Operating Model - Monthly'!NL343*$G$27 -> 0 | NM27: ='Operating Model - Monthly'!NM343*$G$27 -> 0 | NN27: ='Operating Model - Monthly'!NN343*$G$27 -> 0 | NO27: ='Operating Model - Monthly'!NO343*$G$27 -> 0 | NP27: ='Operating Model - Monthly'!NP343*$G$27 -> 0 | NQ27: ='Operating Model - Monthly'!NQ343*$G$27 -> 0 | NR27: ='Operating Model - Monthly'!NR343*$G$27 -> 0 | NS27: ='Operating Model - Monthly'!NS343*$G$27 -> 0 | NT27: ='Operating Model - Monthly'!NT343*$G$27 -> 0 | NU27: ='Operating Model - Monthly'!NU343*$G$27 -> 0 | NV27: ='Operating Model - Monthly'!NV343*$G$27 -> 0 | NW27: ='Operating Model - Monthly'!NW343*$G$27 -> 0 | NX27: ='Operating Model - Monthly'!NX343*$G$27 -> 0 | NY27: ='Operating Model - Monthly'!NY343*$G$27 -> 0 | NZ27: ='Operating Model - Monthly'!NZ343*$G$27 -> 0 | OA27: ='Operating Model - Monthly'!OA343*$G$27 -> 0 | OB27: ='Operating Model - Monthly'!OB343*$G$27 -> 0 | OC27: ='Operating Model - Monthly'!OC343*$G$27 -> 0 | OD27: ='Operating Model - Monthly'!OD343*$G$27 -> 0 | OE27: ='Operating Model - Monthly'!OE343*$G$27 -> 0 | OF27: ='Operating Model - Monthly'!OF343*$G$27 -> 0 | OG27: ='Operating Model - Monthly'!OG343*$G$27 -> 0 | OH27: ='Operating Model - Monthly'!OH343*$G$27 -> 0 | OI27: ='Operating Model - Monthly'!OI343*$G$27 -> 0 | OJ27: ='Operating Model - Monthly'!OJ343*$G$27 -> 0 | OK27: ='Operating Model - Monthly'!OK343*$G$27 -> 0 | OL27: ='Operating Model - Monthly'!OL343*$G$27 -> 0 | OM27: ='Operating Model - Monthly'!OM343*$G$27 -> 0 | ON27: ='Operating Model - Monthly'!ON343*$G$27 -> 0 | OO27: ='Operating Model - Monthly'!OO343*$G$27 -> 0 | OP27: ='Operating Model - Monthly'!OP343*$G$27 -> 0 | OQ27: ='Operating Model - Monthly'!OQ343*$G$27 -> 0
D28: Combined Heat and Power | K28: =SUM(M28:XFD28) -> 0 | M28: =M389 -> 0 | N28: =N389 -> 0 | O28: 0 | P28: 0 | Q28: 0 | R28: 0 | S28: 0 | T28: 0 | U28: 0 | V28: 0 | W28: 0 | X28: 0 | Y28: 0 | Z28: 0 | AA28: 0 | AB28: 0 | AC28: 0 | AD28: 0 | AE28: 0 | AF28: 0 | AG28: 0 | AH28: 0 | AI28: 0 | AJ28: 0 | AK28: 0 | AL28: 0 | AM28: 0 | AN28: 0 | AO28: 0 | AP28: 0 | AQ28: 0 | AR28: 0 | AS28: 0 | AT28: 0 | AU28: 0 | AV28: 0 | AW28: 0 | AX28: 0 | AY28: 0 | AZ28: 0 | BA28: 0 | BB28: 0 | BC28: 0 | BD28: 0 | BE28: 0 | BF28: 0 | BG28: 0 | BH28: 0 | BI28: 0 | BJ28: 0 | BK28: 0 | BL28: 0 | BM28: 0 | BN28: 0 | BO28: 0 | BP28: 0 | BQ28: 0 | BR28: 0 | BS28: 0 | BT28: 0 | BU28: 0 | BV28: 0 | BW28: 0 | BX28: 0 | BY28: 0 | BZ28: =BZ389 -> 0 | CA28: 0 | CB28: 0 | CC28: 0 | CD28: 0 | CE28: 0 | CF28: 0 | CG28: 0 | CH28: 0 | CI28: 0 | CJ28: 0 | CK28: 0 | CL28: 0 | CM28: 0 | CN28: 0 | CO28: 0 | CP28: 0 | CQ28: 0 | CR28: 0 | CS28: 0 | CT28: 0 | CU28: 0 | CV28: 0 | CW28: 0 | CX28: 0 | CY28: 0 | CZ28: 0 | DA28: 0 | DB28: 0 | DC28: 0 | DD28: 0 | DE28: 0 | DF28: 0 | DG28: 0 | DH28: 0 | DI28: 0 | DJ28: 0 | DK28: 0 | DL28: 0 | DM28: 0 | DN28: 0 | DO28: 0 | DP28: 0 | DQ28: 0 | DR28: 0 | DS28: 0 | DT28: 0 | DU28: 0 | DV28: 0 | DW28: 0 | DX28: 0 | DY28: 0 | DZ28: 0 | EA28: 0 | EB28: 0 | EC28: 0 | ED28: 0 | EE28: 0 | EF28: 0 | EG28: 0 | EH28: 0 | EI28: 0 | EJ28: 0 | EK28: 0 | EL28: =EL389 -> 0 | EM28: 0 | EN28: 0 | EO28: 0 | EP28: 0 | EQ28: 0 | ER28: 0 | ES28: 0 | ET28: 0 | EU28: 0 | EV28: 0 | EW28: 0 | EX28: 0 | EY28: 0 | EZ28: 0 | FA28: 0 | FB28: 0 | FC28: 0 | FD28: 0 | FE28: 0 | FF28: 0 | FG28: 0 | FH28: 0 | FI28: 0 | FJ28: 0 | FK28: 0 | FL28: 0 | FM28: 0 | FN28: 0 | FO28: 0 | FP28: 0 | FQ28: 0 | FR28: 0 | FS28: 0 | FT28: 0 | FU28: 0 | FV28: 0 | FW28: 0 | FX28: 0 | FY28: 0 | FZ28: 0 | GA28: 0 | GB28: 0 | GC28: 0 | GD28: 0 | GE28: 0 | GF28: 0 | GG28: 0 | GH28: 0 | GI28: 0 | GJ28: 0 | GK28: 0 | GL28: 0 | GM28: 0 | GN28: 0 | GO28: 0 | GP28: 0 | GQ28: 0 | GR28: 0 | GS28: 0 | GT28: 0 | GU28: 0 | GV28: 0 | GW28: 0 | GX28: =GX389 -> 0 | GY28: 0 | GZ28: 0 | HA28: 0 | HB28: 0 | HC28: 0 | HD28: 0 | HE28: 0 | HF28: 0 | HG28: 0 | HH28: 0 | HI28: 0 | HJ28: 0 | HK28: 0 | HL28: 0 | HM28: 0 | HN28: 0 | HO28: 0 | HP28: 0 | HQ28: 0 | HR28: 0 | HS28: 0 | HT28: 0 | HU28: 0 | HV28: 0 | HW28: 0 | HX28: 0 | HY28: 0 | HZ28: 0 | IA28: 0 | IB28: 0 | IC28: 0 | ID28: 0 | IE28: 0 | IF28: 0 | IG28: 0 | IH28: 0 | II28: 0 | IJ28: 0 | IK28: 0 | IL28: 0 | IM28: 0 | IN28: 0 | IO28: 0 | IP28: 0 | IQ28: 0 | IR28: 0 | IS28: 0 | IT28: 0 | IU28: 0 | IV28: 0 | IW28: 0 | IX28: 0 | IY28: 0 | IZ28: 0 | JA28: 0 | JB28: 0 | JC28: 0 | JD28: 0 | JE28: 0 | JF28: 0 | JG28: 0 | JH28: 0 | JI28: 0 | JJ28: =JJ389 -> 0 | JK28: 0 | JL28: 0 | JM28: 0 | JN28: 0 | JO28: 0 | JP28: 0 | JQ28: 0 | JR28: 0 | JS28: 0 | JT28: 0 | JU28: 0 | JV28: 0 | JW28: 0 | JX28: 0 | JY28: 0 | JZ28: 0 | KA28: 0 | KB28: 0 | KC28: 0 | KD28: 0 | KE28: 0 | KF28: 0 | KG28: 0 | KH28: 0 | KI28: 0 | KJ28: 0 | KK28: 0 | KL28: 0 | KM28: 0 | KN28: 0 | KO28: 0 | KP28: 0 | KQ28: 0 | KR28: 0 | KS28: 0 | KT28: 0 | KU28: 0 | KV28: 0 | KW28: 0 | KX28: 0 | KY28: 0 | KZ28: 0 | LA28: 0 | LB28: 0 | LC28: 0 | LD28: 0 | LE28: 0 | LF28: 0 | LG28: 0 | LH28: 0 | LI28: 0 | LJ28: 0 | LK28: 0 | LL28: 0 | LM28: 0 | LN28: 0 | LO28: 0 | LP28: 0 | LQ28: 0 | LR28: 0 | LS28: 0 | LT28: 0 | LU28: 0 | LV28: =LV389 -> 0 | LW28: 0 | LX28: 0 | LY28: 0 | LZ28: 0 | MA28: 0 | MB28: 0 | MC28: 0 | MD28: 0 | ME28: 0 | MF28: 0 | MG28: 0 | MH28: 0 | MI28: 0 | MJ28: 0 | MK28: 0 | ML28: 0 | MM28: 0 | MN28: 0 | MO28: 0 | MP28: 0 | MQ28: 0 | MR28: 0 | MS28: 0 | MT28: 0 | MU28: 0 | MV28: 0 | MW28: 0 | MX28: 0 | MY28: 0 | MZ28: 0 | NA28: 0 | NB28: 0 | NC28: 0 | ND28: 0 | NE28: 0 | NF28: 0 | NG28: 0 | NH28: 0 | NI28: 0 | NJ28: 0 | NK28: 0 | NL28: 0 | NM28: 0 | NN28: 0 | NO28: 0 | NP28: 0 | NQ28: 0 | NR28: 0 | NS28: 0 | NT28: 0 | NU28: 0 | NV28: 0 | NW28: 0 | NX28: 0 | NY28: 0 | NZ28: 0 | OA28: 0 | OB28: 0 | OC28: 0 | OD28: 0 | OE28: 0 | OF28: 0 | OG28: 0 | OH28: =OH389 -> 0 | OI28: 0 | OJ28: 0 | OK28: 0 | OL28: 0 | OM28: 0 | ON28: 0 | OO28: 0 | OP28: 0 | OQ28: 0
D29: Battery | K29: =SUM(M29:XFD29) -> 245969.508 | M29: =M426 -> 0 | N29: =N426 -> 0 | O29: 0 | P29: 0 | Q29: 0 | R29: 0 | S29: 0 | T29: 0 | U29: 0 | V29: 0 | W29: 0 | X29: 0 | Y29: 0 | Z29: 0 | AA29: 0 | AB29: 0 | AC29: 0 | AD29: 0 | AE29: 0 | AF29: 0 | AG29: 0 | AH29: 0 | AI29: 1174.547061 | AJ29: 1176.486921 | AK29: 1178.429985 | AL29: 1180.376258 | AM29: 1182.325745 | AN29: 1184.278452 | AO29: 1186.234384 | AP29: 1188.193547 | AQ29: 1190.155945 | AR29: 1192.121584 | AS29: 1194.09047 | AT29: 1196.062608 | AU29: 1198.038002 | AV29: 1200.016659 | AW29: 1201.998584 | AX29: 1203.983783 | AY29: 1205.97226 | AZ29: 1207.964021 | BA29: 1209.959072 | BB29: 1211.957418 | BC29: 1213.959064 | BD29: 1215.964016 | BE29: 1217.97228 | BF29: 1219.98386 | BG29: 1221.998762 | BH29: 1224.016993 | BI29: 1226.038556 | BJ29: 1228.063459 | BK29: 1230.091705 | BL29: 1232.123302 | BM29: 1234.158253 | BN29: 1236.196566 | BO29: 1238.238245 | BP29: 1240.283296 | BQ29: 1242.331725 | BR29: 1244.383537 | BS29: 1246.438738 | BT29: 1248.497332 | BU29: 1250.559327 | BV29: 1252.624728 | BW29: 1254.693539 | BX29: 1256.765768 | BY29: 1258.841419 | BZ29: =BZ426 -> 1260.920497 | CA29: 1263.00301 | CB29: 1265.088962 | CC29: 1267.17836 | CD29: 1269.271208 | CE29: 1271.367512 | CF29: 1273.467279 | CG29: 1275.570514 | CH29: 1277.677222 | CI29: 1279.78741 | CJ29: 1281.901083 | CK29: 1284.018247 | CL29: 1286.138907 | CM29: 1288.26307 | CN29: 1290.390742 | CO29: 1292.521927 | CP29: 1294.656632 | CQ29: 1296.794863 | CR29: 1298.936625 | CS29: 1301.081924 | CT29: 1303.230767 | CU29: 1305.383158 | CV29: 1307.539105 | CW29: 1309.698612 | CX29: 1311.861686 | CY29: 1314.028332 | CZ29: 1316.198556 | DA29: 1318.372365 | DB29: 1320.549764 | DC29: 1322.73076 | DD29: 1324.915357 | DE29: 1327.103563 | DF29: 1329.295382 | DG29: 1331.490821 | DH29: 1333.689887 | DI29: 1335.892584 | DJ29: 1338.098919 | DK29: 1340.308898 | DL29: 1342.522528 | DM29: 1344.739813 | DN29: 1346.96076 | DO29: 1349.185375 | DP29: 1351.413664 | DQ29: 1353.645634 | DR29: 1355.88129 | DS29: 1358.120638 | DT29: 1360.363685 | DU29: 1362.610436 | DV29: 1364.860898 | DW29: 1367.115076 | DX29: 1369.372978 | DY29: 1371.634609 | DZ29: 1373.899975 | EA29: 1376.169082 | EB29: 1378.441938 | EC29: 1380.718547 | ED29: 1382.998915 | EE29: 1385.283051 | EF29: 1387.570958 | EG29: 1389.862644 | EH29: 1392.158116 | EI29: 1394.457378 | EJ29: 1396.760438 | EK29: 1399.067301 | EL29: =EL426 -> 1401.377974 | EM29: 1403.692464 | EN29: 1406.010776 | EO29: 1408.332917 | EP29: 1410.658894 | EQ29: 1412.988712 | ER29: 1415.322377 | ES29: 1417.659897 | ET29: 1420.001278 | EU29: 1422.346525 | EV29: 1424.695646 | EW29: 1427.048647 | EX29: 1429.405534 | EY29: 1431.766313 | EZ29: 1434.130992 | FA29: 1436.499576 | FB29: 1438.872072 | FC29: 1441.248486 | FD29: 1443.628825 | FE29: 1446.013095 | FF29: 1448.401303 | FG29: 1450.793456 | FH29: 1453.189559 | FI29: 1455.58962 | FJ29: 1457.993645 | FK29: 1460.40164 | FL29: 1462.813612 | FM29: 1465.229567 | FN29: 1467.649513 | FO29: 1470.073456 | FP29: 1472.501401 | FQ29: 1474.933357 | FR29: 1477.36933 | FS29: 1479.809325 | FT29: 1482.253351 | FU29: 1484.701412 | FV29: 1487.153518 | FW29: 1489.609672 | FX29: 1492.069884 | FY29: 1494.534159 | FZ29: 1497.002503 | GA29: 1499.474925 | GB29: 1501.951429 | GC29: 1504.432024 | GD29: 1506.916716 | GE29: 1509.405512 | GF29: 1511.898418 | GG29: 1514.395441 | GH29: 1516.896588 | GI29: 1519.401866 | GJ29: 1521.911282 | GK29: 1524.424842 | GL29: 1526.942553 | GM29: 1529.464423 | GN29: 1531.990458 | GO29: 1534.520665 | GP29: 1537.05505 | GQ29: 1539.593622 | GR29: 1542.136386 | GS29: 1544.68335 | GT29: 1547.23452 | GU29: 1549.789903 | GV29: 1552.349507 | GW29: 1554.913339 | GX29: =GX426 -> 1557.481404 | GY29: 1560.053712 | GZ29: 1562.630267 | HA29: 1565.211078 | HB29: 1567.796151 | HC29: 1570.385494 | HD29: 1572.979114 | HE29: 1575.577017 | HF29: 1578.17921 | HG29: 0 | HH29: 0 | HI29: 0 | HJ29: 0 | HK29: 0 | HL29: 0 | HM29: 0 | HN29: 0 | HO29: 0 | HP29: 0 | HQ29: 0 | HR29: 0 | HS29: 0 | HT29: 0 | HU29: 0 | HV29: 0 | HW29: 0 | HX29: 0 | HY29: 0 | HZ29: 0 | IA29: 0 | IB29: 0 | IC29: 0 | ID29: 0 | IE29: 0 | IF29: 0 | IG29: 0 | IH29: 0 | II29: 0 | IJ29: 0 | IK29: 0 | IL29: 0 | IM29: 0 | IN29: 0 | IO29: 0 | IP29: 0 | IQ29: 0 | IR29: 0 | IS29: 0 | IT29: 0 | IU29: 0 | IV29: 0 | IW29: 0 | IX29: 0 | IY29: 0 | IZ29: 0 | JA29: 0 | JB29: 0 | JC29: 0 | JD29: 0 | JE29: 0 | JF29: 0 | JG29: 0 | JH29: 0 | JI29: 0 | JJ29: =JJ426 -> 0 | JK29: 0 | JL29: 0 | JM29: 0 | JN29: 0 | JO29: 0 | JP29: 0 | JQ29: 0 | JR29: 0 | JS29: 0 | JT29: 0 | JU29: 0 | JV29: 0 | JW29: 0 | JX29: 0 | JY29: 0 | JZ29: 0 | KA29: 0 | KB29: 0 | KC29: 0 | KD29: 0 | KE29: 0 | KF29: 0 | KG29: 0 | KH29: 0 | KI29: 0 | KJ29: 0 | KK29: 0 | KL29: 0 | KM29: 0 | KN29: 0 | KO29: 0 | KP29: 0 | KQ29: 0 | KR29: 0 | KS29: 0 | KT29: 0 | KU29: 0 | KV29: 0 | KW29: 0 | KX29: 0 | KY29: 0 | KZ29: 0 | LA29: 0 | LB29: 0 | LC29: 0 | LD29: 0 | LE29: 0 | LF29: 0 | LG29: 0 | LH29: 0 | LI29: 0 | LJ29: 0 | LK29: 0 | LL29: 0 | LM29: 0 | LN29: 0 | LO29: 0 | LP29: 0 | LQ29: 0 | LR29: 0 | LS29: 0 | LT29: 0 | LU29: 0 | LV29: =LV426 -> 0 | LW29: 0 | LX29: 0 | LY29: 0 | LZ29: 0 | MA29: 0 | MB29: 0 | MC29: 0 | MD29: 0 | ME29: 0 | MF29: 0 | MG29: 0 | MH29: 0 | MI29: 0 | MJ29: 0 | MK29: 0 | ML29: 0 | MM29: 0 | MN29: 0 | MO29: 0 | MP29: 0 | MQ29: 0 | MR29: 0 | MS29: 0 | MT29: 0 | MU29: 0 | MV29: 0 | MW29: 0 | MX29: 0 | MY29: 0 | MZ29: 0 | NA29: 0 | NB29: 0 | NC29: 0 | ND29: 0 | NE29: 0 | NF29: 0 | NG29: 0 | NH29: 0 | NI29: 0 | NJ29: 0 | NK29: 0 | NL29: 0 | NM29: 0 | NN29: 0 | NO29: 0 | NP29: 0 | NQ29: 0 | NR29: 0 | NS29: 0 | NT29: 0 | NU29: 0 | NV29: 0 | NW29: 0 | NX29: 0 | NY29: 0 | NZ29: 0 | OA29: 0 | OB29: 0 | OC29: 0 | OD29: 0 | OE29: 0 | OF29: 0 | OG29: 0 | OH29: =OH426 -> 0 | OI29: 0 | OJ29: 0 | OK29: 0 | OL29: 0 | OM29: 0 | ON29: 0 | OO29: 0 | OP29: 0 | OQ29: 0
D31: Contribution from owner | G31: 0 | K31: =SUM(M31:KZ31) -> 0
D32: Contribution from tenant | K32: =SUM(M32:KZ32) -> 0
D33: Incentives from State or local entities
E34: Total Revenues | F34: USD | G34: 1 | K34: =SUM(M34:XFD34) -> 11859866.14 | M34: =SUM(M25:M33)*$G$34 -> 0 | N34: 0 | O34: 0 | P34: 0 | Q34: 0 | R34: 0 | S34: 0 | T34: 0 | U34: 0 | V34: 0 | W34: 0 | X34: 0 | Y34: 0 | Z34: 0 | AA34: 0 | AB34: 0 | AC34: 0 | AD34: 0 | AE34: 0 | AF34: 0 | AG34: 0 | AH34: 0 | AI34: 18999.79092 | AJ34: 18758.73404 | AK34: 23857.84717 | AL34: 27970.52856 | AM34: 37603.28216 | AN34: 37320.07874 | AO34: 36123.33852 | AP34: 34689.4594 | AQ34: 29498.90136 | AR34: 26589.9114 | AS34: 44736.97919 | AT34: 33062.5485 | AU34: 27938.0905 | AV34: 25836.94221 | AW34: 29869.44795 | AX34: 37178.22315 | AY34: 51573.32764 | AZ34: 56589.82876 | BA34: 57423.23186 | BB34: 56577.59295 | BC34: 51341.12833 | BD34: 45865.42211 | BE34: 45466.4075 | BF34: 33601.3799 | BG34: 28421.67128 | BH34: 26248.26242 | BI34: 30250.90622 | BJ34: 37604.48708 | BK34: 52302.03899 | BL34: 57464.58403 | BM34: 58352.58528 | BN34: 57522.92259 | BO34: 52187.27428 | BP34: 46607.02679 | BQ34: 46209.06204 | BR34: 34150.23098 | BS34: 28914.27307 | BT34: 26667.29595 | BU34: 30639.5603 | BV34: 38038.60065 | BW34: 53044.30567 | BX34: 58355.41914 | BY34: =SUM(BY25:BY33)*$G$34 -> 59298.95858 | BZ34: 58485.54761 | CA34: 53048.728 | CB34: 47362.03783 | CC34: 46965.18699 | CD34: 34709.29085 | CE34: 29416.06657 | CF34: 27094.18943 | CG34: 31035.54767 | CH34: 38480.71078 | CI34: 53800.38357 | CJ34: 59262.63458 | CK34: 60262.66877 | CL34: 59465.78988 | CM34: 53925.77154 | CN34: 48130.70208 | CO34: 47735.03112 | CP34: 35278.7522 | CQ34: 29927.22578 | CR34: 27529.09227 | CS34: 31439.00841 | CT34: 38930.96717 | CU34: 54570.53349 | CV34: 60186.5365 | CW34: 61244.03883 | CX34: 60463.97734 | CY34: 54818.69223 | CZ34: 48913.271 | DA34: 48518.84787 | DB34: 35858.81143 | DC34: 30447.928 | DD34: 27972.15678 | DE34: 31850.08533 | DF34: 39389.52234 | DG34: 55355.0212 | DH34: 61127.43688 | DI34: 62243.39788 | DJ34: 61480.44412 | DK34: 55727.78278 | DL34: 49710.00076 | DM34: 49316.89543 | DN34: 36449.66869 | DO34: 30978.35394 | DP34: 28423.53818 | DQ34: 32268.924 | DR34: 39856.53174 | DS34: 56154.11756 | DT34: 62085.65361 | DU34: 63261.08125 | DV34: 62515.53066 | DW34: 56653.34139 | DX34: 50521.15235 | DY34: 50129.43685 | DZ34: 37051.52794 | EA34: 31518.68776 | EB34: 28883.39469 | EC34: 32695.67278 | ED34: 40332.15375 | EE34: 56968.09861 | EF34: 63061.5106 | EG34: 64297.43058 | EH34: 63569.58386 | EI34: 57595.67183 | EJ34: 51346.9916 | EK34: =SUM(EK25:EK33)*$G$34 -> 50956.7401 | EL34: 37664.59708 | EM34: 32069.11718 | EN34: 29351.88755 | EO34: 33130.48292 | EP34: 40816.54976 | EQ34: 57797.24566 | ER34: 64055.33791 | ES34: 65352.79403 | ET34: 64642.95713 | EU34: 58555.08359 | EV34: 52187.78937 | EW34: 51799.07821 | EX34: 38289.08793 | EY34: 32629.83349 | EZ34: 29829.18114 | FA34: 33573.50857 | FB34: 41309.88423 | FC34: 58641.84541 | FD34: 65067.47186 | FE34: 66427.5263 | FF34: 65736.01061 | FG34: 59531.89194 | FH34: 53043.82157 | FI34: 52656.7293 | FJ34: 38925.21642 | FK34: 33201.03166 | FL34: 30315.44296 | FM34: 34024.90687 | FN34: 41812.32474 | FO34: 59502.19006 | FP34: 66098.25514 | FQ34: 67521.98883 | FR34: 66849.11121 | FS34: 60526.41808 | FT34: 53915.36928 | FU34: 53529.97675 | FV34: 39573.20256 | FW34: 33782.91038 | FX34: 30810.84377 | FY34: 34484.83798 | FZ34: 42324.04207 | GA34: 60378.57736 | GB34: 67148.03697 | GC34: 68636.54988 | GD34: 67982.63281 | GE34: 61538.98921 | GF34: 54802.71884 | GG34: 54419.10926 | GH34: 40233.2706 | GI34: 34375.67219 | GJ34: 31315.55759 | GK34: 34953.46519 | GL34: 42845.21022 | GM34: 61271.31081 | GN34: 68217.17318 | GO34: 69771.5847 | GP34: 69136.95635 | GQ34: 62569.9387 | GR34: 55706.16199 | GS34: 55324.42093 | GT34: 40905.64908 | GU34: 34979.52346 | GV34: 31829.7618 | GW34: =SUM(GW25:GW33)*$G$34 -> 35430.95489 | GX34: 43376.00651 | GY34: 62180.69968 | GZ34: 69306.02636 | HA34: 70927.47563 | HB34: 70312.46998 | HC34: 63619.60615 | HD34: 56625.99592 | HE34: 56246.21143 | HF34: 41590.57092 | HG34: 34013.88888 | HH34: 30770.24069 | HI34: 34331.46514 | HJ34: 42327.98062 | HK34: 61515.80441 | HL34: 68821.08311 | HM34: 70508.09698 | HN34: 69910.41713 | HO34: 63086.54436 | HP34: 55958.0847 | HQ34: 55577.69748 | HR34: 40678.53068 | HS34: 34608.93851 | HT34: 31272.30362 | HU34: 34795.47182 | HV34: 42846.80611 | HW34: 62427.63071 | HX34: 69918.60802 | HY34: 71674.946 | HZ34: 71097.52188 | IA34: 64142.65633 | IB34: 56879.5254 | IC34: 56501.22546 | ID34: 41357.06102 | IE34: 35215.08858 | IF34: 31783.77647 | IG34: 35268.22542 | IH34: 43375.17676 | II34: 63356.43979 | IJ34: 71036.34198 | IK34: 72863.20359 | IL34: 72306.38616 | IM34: 65217.90313 | IN34: 57817.64057 | IO34: 57441.52262 | IP34: 42048.21665 | IQ34: 35832.54914 | IR34: 32304.83803 | IS34: 35749.89291 | IT34: 43913.27105 | IU34: 64302.5526 | IV34: 72174.66316 | IW34: 74073.26913 | IX34: 73537.41557 | IY34: 66312.63777 | IZ34: 58772.7375 | JA34: 58398.89897 | JB34: 42752.23597 | JC34: 36461.53427 | JD34: 32835.6705 | JE34: 36240.64449 | JF34: 44461.27087 | JG34: 65266.29621 | JH34: 73333.95693 | JI34: =SUM(JI25:JI33)*$G$34 -> 75305.54959 | JJ34: 74791.02337 | JK34: 67427.21992 | JL34: 59745.12926 | JM34: 59373.67029 | JN34: 43469.36194 | JO34: 11382.45414 | JP34: 8976.316747 | JQ34: 7581.338937 | JR34: 11820.29707 | JS34: 17825.84324 | JT34: 24760.21331 | JU34: 27418.31869 | JV34: 28188.30687 | JW34: 28257.33735 | JX34: 24943.50693 | JY34: 0 | JZ34: 0 | KA34: 0 | KB34: 0 | KC34: 0 | KD34: 0 | KE34: 0 | KF34: 0 | KG34: 0 | KH34: 0 | KI34: 0 | KJ34: 0 | KK34: 0 | KL34: 0 | KM34: 0 | KN34: 0 | KO34: 0 | KP34: 0 | KQ34: 0 | KR34: 0 | KS34: 0 | KT34: 0 | KU34: 0 | KV34: 0 | KW34: 0 | KX34: 0 | KY34: 0 | KZ34: 0 | LA34: 0 | LB34: 0 | LC34: 0 | LD34: 0 | LE34: 0 | LF34: 0 | LG34: 0 | LH34: 0 | LI34: 0 | LJ34: 0 | LK34: 0 | LL34: 0 | LM34: 0 | LN34: 0 | LO34: 0 | LP34: 0 | LQ34: 0 | LR34: 0 | LS34: 0 | LT34: 0 | LU34: =SUM(LU25:LU33)*$G$34 -> 0 | LV34: 0 | LW34: 0 | LX34: 0 | LY34: 0 | LZ34: 0 | MA34: 0 | MB34: 0 | MC34: 0 | MD34: 0 | ME34: 0 | MF34: 0 | MG34: 0 | MH34: 0 | MI34: 0 | MJ34: 0 | MK34: 0 | ML34: 0 | MM34: 0 | MN34: 0 | MO34: 0 | MP34: 0 | MQ34: 0 | MR34: 0 | MS34: 0 | MT34: 0 | MU34: 0 | MV34: 0 | MW34: 0 | MX34: 0 | MY34: 0 | MZ34: 0 | NA34: 0 | NB34: 0 | NC34: 0 | ND34: 0 | NE34: 0 | NF34: 0 | NG34: 0 | NH34: 0 | NI34: 0 | NJ34: 0 | NK34: 0 | NL34: 0 | NM34: 0 | NN34: 0 | NO34: 0 | NP34: 0 | NQ34: 0 | NR34: 0 | NS34: 0 | NT34: 0 | NU34: 0 | NV34: 0 | NW34: 0 | NX34: 0 | NY34: 0 | NZ34: 0 | OA34: 0 | OB34: 0 | OC34: 0 | OD34: 0 | OE34: 0 | OF34: 0 | OG34: =SUM(OG25:OG33)*$G$34 -> 0 | OH34: 0 | OI34: 0 | OJ34: 0 | OK34: 0 | OL34: 0 | OM34: 0 | ON34: 0 | OO34: 0 | OP34: 0 | OQ34: 0
E36: Energy Services - Charged $/sq foot
C38: Expenses
D39: EV charging | I39: =SUM(M39:KZ39) -> 0 | M39: =M159 -> 0 | N39: 0 | O39: 0 | P39: 0 | Q39: 0 | R39: 0 | S39: 0 | T39: 0 | U39: 0 | V39: 0 | W39: 0 | X39: 0 | Y39: 0 | Z39: 0 | AA39: 0 | AB39: 0 | AC39: 0 | AD39: 0 | AE39: 0 | AF39: 0 | AG39: 0 | AH39: 0 | AI39: 0 | AJ39: 0 | AK39: 0 | AL39: 0 | AM39: 0 | AN39: 0 | AO39: 0 | AP39: 0 | AQ39: 0 | AR39: 0 | AS39: 0 | AT39: 0 | AU39: 0 | AV39: 0 | AW39: 0 | AX39: 0 | AY39: 0 | AZ39: 0 | BA39: 0 | BB39: 0 | BC39: 0 | BD39: 0 | BE39: 0 | BF39: 0 | BG39: 0 | BH39: 0 | BI39: 0 | BJ39: 0 | BK39: 0 | BL39: 0 | BM39: 0 | BN39: 0 | BO39: 0 | BP39: 0 | BQ39: 0 | BR39: 0 | BS39: 0 | BT39: 0 | BU39: 0 | BV39: 0 | BW39: 0 | BX39: 0 | BY39: =BY159 -> 0 | BZ39: 0 | CA39: 0 | CB39: 0 | CC39: 0 | CD39: 0 | CE39: 0 | CF39: 0 | CG39: 0 | CH39: 0 | CI39: 0 | CJ39: 0 | CK39: 0 | CL39: 0 | CM39: 0 | CN39: 0 | CO39: 0 | CP39: 0 | CQ39: 0 | CR39: 0 | CS39: 0 | CT39: 0 | CU39: 0 | CV39: 0 | CW39: 0 | CX39: 0 | CY39: 0 | CZ39: 0 | DA39: 0 | DB39: 0 | DC39: 0 | DD39: 0 | DE39: 0 | DF39: 0 | DG39: 0 | DH39: 0 | DI39: 0 | DJ39: 0 | DK39: 0 | DL39: 0 | DM39: 0 | DN39: 0 | DO39: 0 | DP39: 0 | DQ39: 0 | DR39: 0 | DS39: 0 | DT39: 0 | DU39: 0 | DV39: 0 | DW39: 0 | DX39: 0 | DY39: 0 | DZ39: 0 | EA39: 0 | EB39: 0 | EC39: 0 | ED39: 0 | EE39: 0 | EF39: 0 | EG39: 0 | EH39: 0 | EI39: 0 | EJ39: 0 | EK39: =EK159 -> 0 | EL39: 0 | EM39: 0 | EN39: 0 | EO39: 0 | EP39: 0 | EQ39: 0 | ER39: 0 | ES39: 0 | ET39: 0 | EU39: 0 | EV39: 0 | EW39: 0 | EX39: 0 | EY39: 0 | EZ39: 0 | FA39: 0 | FB39: 0 | FC39: 0 | FD39: 0 | FE39: 0 | FF39: 0 | FG39: 0 | FH39: 0 | FI39: 0 | FJ39: 0 | FK39: 0 | FL39: 0 | FM39: 0 | FN39: 0 | FO39: 0 | FP39: 0 | FQ39: 0 | FR39: 0 | FS39: 0 | FT39: 0 | FU39: 0 | FV39: 0 | FW39: 0 | FX39: 0 | FY39: 0 | FZ39: 0 | GA39: 0 | GB39: 0 | GC39: 0 | GD39: 0 | GE39: 0 | GF39: 0 | GG39: 0 | GH39: 0 | GI39: 0 | GJ39: 0 | GK39: 0 | GL39: 0 | GM39: 0 | GN39: 0 | GO39: 0 | GP39: 0 | GQ39: 0 | GR39: 0 | GS39: 0 | GT39: 0 | GU39: 0 | GV39: 0 | GW39: =GW159 -> 0 | GX39: 0 | GY39: 0 | GZ39: 0 | HA39: 0 | HB39: 0 | HC39: 0 | HD39: 0 | HE39: 0 | HF39: 0 | HG39: 0 | HH39: 0 | HI39: 0 | HJ39: 0 | HK39: 0 | HL39: 0 | HM39: 0 | HN39: 0 | HO39: 0 | HP39: 0 | HQ39: 0 | HR39: 0 | HS39: 0 | HT39: 0 | HU39: 0 | HV39: 0 | HW39: 0 | HX39: 0 | HY39: 0 | HZ39: 0 | IA39: 0 | IB39: 0 | IC39: 0 | ID39: 0 | IE39: 0 | IF39: 0 | IG39: 0 | IH39: 0 | II39: 0 | IJ39: 0 | IK39: 0 | IL39: 0 | IM39: 0 | IN39: 0 | IO39: 0 | IP39: 0 | IQ39: 0 | IR39: 0 | IS39: 0 | IT39: 0 | IU39: 0 | IV39: 0 | IW39: 0 | IX39: 0 | IY39: 0 | IZ39: 0 | JA39: 0 | JB39: 0 | JC39: 0 | JD39: 0 | JE39: 0 | JF39: 0 | JG39: 0 | JH39: 0 | JI39: =JI159 -> 0 | JJ39: 0 | JK39: 0 | JL39: 0 | JM39: 0 | JN39: 0 | JO39: 0 | JP39: 0 | JQ39: 0 | JR39: 0 | JS39: 0 | JT39: 0 | JU39: 0 | JV39: 0 | JW39: 0 | JX39: 0 | JY39: 0 | JZ39: 0 | KA39: 0 | KB39: 0 | KC39: 0 | KD39: 0 | KE39: 0 | KF39: 0 | KG39: 0 | KH39: 0 | KI39: 0 | KJ39: 0 | KK39: 0 | KL39: 0 | KM39: 0 | KN39: 0 | KO39: 0 | KP39: 0 | KQ39: 0 | KR39: 0 | KS39: 0 | KT39: 0 | KU39: 0 | KV39: 0 | KW39: 0 | KX39: 0 | KY39: 0 | KZ39: 0 | LA39: 0 | LB39: 0 | LC39: 0 | LD39: 0 | LE39: 0 | LF39: 0 | LG39: 0 | LH39: 0 | LI39: 0 | LJ39: 0 | LK39: 0 | LL39: 0 | LM39: 0 | LN39: 0 | LO39: 0 | LP39: 0 | LQ39: 0 | LR39: 0 | LS39: 0 | LT39: 0 | LU39: =LU159 -> 0 | LV39: 0 | LW39: 0 | LX39: 0 | LY39: 0 | LZ39: 0 | MA39: 0 | MB39: 0 | MC39: 0 | MD39: 0 | ME39: 0 | MF39: 0 | MG39: 0 | MH39: 0 | MI39: 0 | MJ39: 0 | MK39: 0 | ML39: 0 | MM39: 0 | MN39: 0 | MO39: 0 | MP39: 0 | MQ39: 0 | MR39: 0 | MS39: 0 | MT39: 0 | MU39: 0 | MV39: 0 | MW39: 0 | MX39: 0 | MY39: 0 | MZ39: 0 | NA39: 0 | NB39: 0 | NC39: 0 | ND39: 0 | NE39: 0 | NF39: 0 | NG39: 0 | NH39: 0 | NI39: 0 | NJ39: 0 | NK39: 0 | NL39: 0 | NM39: 0 | NN39: 0 | NO39: 0 | NP39: 0 | NQ39: 0 | NR39: 0 | NS39: 0 | NT39: 0 | NU39: 0 | NV39: 0 | NW39: 0 | NX39: 0 | NY39: 0 | NZ39: 0 | OA39: 0 | OB39: 0 | OC39: 0 | OD39: 0 | OE39: 0 | OF39: 0 | OG39: =OG159 -> 0 | OH39: 0 | OI39: 0 | OJ39: 0 | OK39: 0 | OL39: 0 | OM39: 0 | ON39: 0 | OO39: 0 | OP39: 0 | OQ39: 0
D40: Energy efficiency | I40: =SUM(M40:KZ40) -> 0 | M40: =M302 -> 0 | N40: =N302 -> 0 | O40: 0 | P40: 0 | Q40: 0 | R40: 0 | S40: 0 | T40: 0 | U40: 0 | V40: 0 | W40: 0 | X40: 0 | Y40: 0 | Z40: 0 | AA40: 0 | AB40: 0 | AC40: 0 | AD40: 0 | AE40: 0 | AF40: 0 | AG40: 0 | AH40: 0 | AI40: 0 | AJ40: 0 | AK40: 0 | AL40: 0 | AM40: 0 | AN40: 0 | AO40: 0 | AP40: 0 | AQ40: 0 | AR40: 0 | AS40: 0 | AT40: 0 | AU40: 0 | AV40: 0 | AW40: 0 | AX40: 0 | AY40: 0 | AZ40: 0 | BA40: 0 | BB40: 0 | BC40: 0 | BD40: 0 | BE40: 0 | BF40: 0 | BG40: 0 | BH40: 0 | BI40: 0 | BJ40: 0 | BK40: 0 | BL40: 0 | BM40: 0 | BN40: 0 | BO40: 0 | BP40: 0 | BQ40: 0 | BR40: 0 | BS40: 0 | BT40: 0 | BU40: 0 | BV40: 0 | BW40: 0 | BX40: 0 | BY40: 0 | BZ40: =BZ302 -> 0 | CA40: 0 | CB40: 0 | CC40: 0 | CD40: 0 | CE40: 0 | CF40: 0 | CG40: 0 | CH40: 0 | CI40: 0 | CJ40: 0 | CK40: 0 | CL40: 0 | CM40: 0 | CN40: 0 | CO40: 0 | CP40: 0 | CQ40: 0 | CR40: 0 | CS40: 0 | CT40: 0 | CU40: 0 | CV40: 0 | CW40: 0 | CX40: 0 | CY40: 0 | CZ40: 0 | DA40: 0 | DB40: 0 | DC40: 0 | DD40: 0 | DE40: 0 | DF40: 0 | DG40: 0 | DH40: 0 | DI40: 0 | DJ40: 0 | DK40: 0 | DL40: 0 | DM40: 0 | DN40: 0 | DO40: 0 | DP40: 0 | DQ40: 0 | DR40: 0 | DS40: 0 | DT40: 0 | DU40: 0 | DV40: 0 | DW40: 0 | DX40: 0 | DY40: 0 | DZ40: 0 | EA40: 0 | EB40: 0 | EC40: 0 | ED40: 0 | EE40: 0 | EF40: 0 | EG40: 0 | EH40: 0 | EI40: 0 | EJ40: 0 | EK40: 0 | EL40: =EL302 -> 0 | EM40: 0 | EN40: 0 | EO40: 0 | EP40: 0 | EQ40: 0 | ER40: 0 | ES40: 0 | ET40: 0 | EU40: 0 | EV40: 0 | EW40: 0 | EX40: 0 | EY40: 0 | EZ40: 0 | FA40: 0 | FB40: 0 | FC40: 0 | FD40: 0 | FE40: 0 | FF40: 0 | FG40: 0 | FH40: 0 | FI40: 0 | FJ40: 0 | FK40: 0 | FL40: 0 | FM40: 0 | FN40: 0 | FO40: 0 | FP40: 0 | FQ40: 0 | FR40: 0 | FS40: 0 | FT40: 0 | FU40: 0 | FV40: 0 | FW40: 0 | FX40: 0 | FY40: 0 | FZ40: 0 | GA40: 0 | GB40: 0 | GC40: 0 | GD40: 0 | GE40: 0 | GF40: 0 | GG40: 0 | GH40: 0 | GI40: 0 | GJ40: 0 | GK40: 0 | GL40: 0 | GM40: 0 | GN40: 0 | GO40: 0 | GP40: 0 | GQ40: 0 | GR40: 0 | GS40: 0 | GT40: 0 | GU40: 0 | GV40: 0 | GW40: 0 | GX40: =GX302 -> 0 | GY40: 0 | GZ40: 0 | HA40: 0 | HB40: 0 | HC40: 0 | HD40: 0 | HE40: 0 | HF40: 0 | HG40: 0 | HH40: 0 | HI40: 0 | HJ40: 0 | HK40: 0 | HL40: 0 | HM40: 0 | HN40: 0 | HO40: 0 | HP40: 0 | HQ40: 0 | HR40: 0 | HS40: 0 | HT40: 0 | HU40: 0 | HV40: 0 | HW40: 0 | HX40: 0 | HY40: 0 | HZ40: 0 | IA40: 0 | IB40: 0 | IC40: 0 | ID40: 0 | IE40: 0 | IF40: 0 | IG40: 0 | IH40: 0 | II40: 0 | IJ40: 0 | IK40: 0 | IL40: 0 | IM40: 0 | IN40: 0 | IO40: 0 | IP40: 0 | IQ40: 0 | IR40: 0 | IS40: 0 | IT40: 0 | IU40: 0 | IV40: 0 | IW40: 0 | IX40: 0 | IY40: 0 | IZ40: 0 | JA40: 0 | JB40: 0 | JC40: 0 | JD40: 0 | JE40: 0 | JF40: 0 | JG40: 0 | JH40: 0 | JI40: 0 | JJ40: =JJ302 -> 0 | JK40: 0 | JL40: 0 | JM40: 0 | JN40: 0 | JO40: 0 | JP40: 0 | JQ40: 0 | JR40: 0 | JS40: 0 | JT40: 0 | JU40: 0 | JV40: 0 | JW40: 0 | JX40: 0 | JY40: 0 | JZ40: 0 | KA40: 0 | KB40: 0 | KC40: 0 | KD40: 0 | KE40: 0 | KF40: 0 | KG40: 0 | KH40: 0 | KI40: 0 | KJ40: 0 | KK40: 0 | KL40: 0 | KM40: 0 | KN40: 0 | KO40: 0 | KP40: 0 | KQ40: 0 | KR40: 0 | KS40: 0 | KT40: 0 | KU40: 0 | KV40: 0 | KW40: 0 | KX40: 0 | KY40: 0 | KZ40: 0 | LA40: 0 | LB40: 0 | LC40: 0 | LD40: 0 | LE40: 0 | LF40: 0 | LG40: 0 | LH40: 0 | LI40: 0 | LJ40: 0 | LK40: 0 | LL40: 0 | LM40: 0 | LN40: 0 | LO40: 0 | LP40: 0 | LQ40: 0 | LR40: 0 | LS40: 0 | LT40: 0 | LU40: 0 | LV40: =LV302 -> 0 | LW40: 0 | LX40: 0 | LY40: 0 | LZ40: 0 | MA40: 0 | MB40: 0 | MC40: 0 | MD40: 0 | ME40: 0 | MF40: 0 | MG40: 0 | MH40: 0 | MI40: 0 | MJ40: 0 | MK40: 0 | ML40: 0 | MM40: 0 | MN40: 0 | MO40: 0 | MP40: 0 | MQ40: 0 | MR40: 0 | MS40: 0 | MT40: 0 | MU40: 0 | MV40: 0 | MW40: 0 | MX40: 0 | MY40: 0 | MZ40: 0 | NA40: 0 | NB40: 0 | NC40: 0 | ND40: 0 | NE40: 0 | NF40: 0 | NG40: 0 | NH40: 0 | NI40: 0 | NJ40: 0 | NK40: 0 | NL40: 0 | NM40: 0 | NN40: 0 | NO40: 0 | NP40: 0 | NQ40: 0 | NR40: 0 | NS40: 0 | NT40: 0 | NU40: 0 | NV40: 0 | NW40: 0 | NX40: 0 | NY40: 0 | NZ40: 0 | OA40: 0 | OB40: 0 | OC40: 0 | OD40: 0 | OE40: 0 | OF40: 0 | OG40: 0 | OH40: =OH302 -> 0 | OI40: 0 | OJ40: 0 | OK40: 0 | OL40: 0 | OM40: 0 | ON40: 0 | OO40: 0 | OP40: 0 | OQ40: 0
D41: Solar | I41: -157900.7254 | M41: =-M347 -> 0 | N41: =-N347 -> 0 | O41: 0 | P41: 0 | Q41: 0 | R41: 0 | S41: 0 | T41: 0 | U41: 0 | V41: 0 | W41: 0 | X41: 0 | Y41: 0 | Z41: 0 | AA41: 0 | AB41: 0 | AC41: 0 | AD41: 0 | AE41: 0 | AF41: 0 | AG41: 0 | AH41: 0 | AI41: 0 | AJ41: 0 | AK41: 0 | AL41: 0 | AM41: 0 | AN41: 0 | AO41: 0 | AP41: 0 | AQ41: 0 | AR41: 0 | AS41: -483.0918729 | AT41: -484.2833078 | AU41: -485.4776811 | AV41: -486.675 | AW41: -487.8752718 | AX41: -489.0785039 | AY41: -490.2847034 | AZ41: -491.4938778 | BA41: -492.7060342 | BB41: -493.9211802 | BC41: -495.1393231 | BD41: -496.3604703 | BE41: -497.5846291 | BF41: -498.811807 | BG41: -500.0420115 | BH41: -501.27525 | BI41: -502.51153 | BJ41: -503.750859 | BK41: -504.9932445 | BL41: -506.2386941 | BM41: -507.4872153 | BN41: -508.7388157 | BO41: -509.9935028 | BP41: -511.2512844 | BQ41: -512.512168 | BR41: -513.7761612 | BS41: -515.0432718 | BT41: -516.3135075 | BU41: -517.5868759 | BV41: -518.8633848 | BW41: -520.1430418 | BX41: -521.4258549 | BY41: -522.7118317 | BZ41: =-BZ347 -> -524.0009801 | CA41: -525.2933079 | CB41: -526.5888229 | CC41: -527.887533 | CD41: -529.1894461 | CE41: -530.49457 | CF41: -531.8029127 | CG41: -533.1144822 | CH41: -534.4292863 | CI41: -535.7473331 | CJ41: -537.0686306 | CK41: -538.3931867 | CL41: -539.7210095 | CM41: -541.0521071 | CN41: -542.3864876 | CO41: -543.724159 | CP41: -545.0651295 | CQ41: -546.4094071 | CR41: -547.7570001 | CS41: -549.1079166 | CT41: -550.4621649 | CU41: -551.8197531 | CV41: -553.1806895 | CW41: -554.5449823 | CX41: -555.9126398 | CY41: -557.2836703 | CZ41: -558.6580822 | DA41: -560.0358838 | DB41: -561.4170833 | DC41: -562.8016893 | DD41: -564.1897101 | DE41: -565.5811541 | DF41: -566.9760298 | DG41: -568.3743457 | DH41: -569.7761102 | DI41: -571.1813318 | DJ41: -572.590019 | DK41: -574.0021805 | DL41: -575.4178247 | DM41: -576.8369603 | DN41: -578.2595958 | DO41: -579.68574 | DP41: -581.1154014 | DQ41: -582.5485888 | DR41: -583.9853107 | DS41: -585.4255761 | DT41: -586.8693935 | DU41: -588.3167717 | DV41: -589.7677196 | DW41: -591.2222459 | DX41: -592.6803594 | DY41: -594.1420691 | DZ41: -595.6073837 | EA41: -597.0763122 | EB41: -598.5488635 | EC41: -600.0250464 | ED41: -601.5048701 | EE41: -602.9883433 | EF41: -604.4754753 | EG41: -605.9662749 | EH41: -607.4607512 | EI41: -608.9589133 | EJ41: -610.4607702 | EK41: -611.9663312 | EL41: =-EL347 -> -613.4756052 | EM41: -614.9886016 | EN41: -616.5053294 | EO41: -618.0257978 | EP41: -619.5500162 | EQ41: -621.0779936 | ER41: -622.6097395 | ES41: -624.1452631 | ET41: -625.6845737 | EU41: -627.2276806 | EV41: -628.7745933 | EW41: -630.3253211 | EX41: -631.8798734 | EY41: -633.4382596 | EZ41: -635.0004892 | FA41: -636.5665718 | FB41: -638.1365166 | FC41: -639.7103334 | FD41: -641.2880317 | FE41: -642.869621 | FF41: -644.4551109 | FG41: -646.0445111 | FH41: -647.6378311 | FI41: -649.2350807 | FJ41: -650.8362696 | FK41: -652.4414074 | FL41: -654.0505039 | FM41: -655.6635689 | FN41: -657.2806121 | FO41: -658.9016435 | FP41: -660.5266727 | FQ41: -662.1557096 | FR41: -663.7887642 | FS41: -665.4258464 | FT41: -667.0669661 | FU41: -668.7121331 | FV41: -670.3613577 | FW41: -672.0146496 | FX41: -673.672019 | FY41: -675.333476 | FZ41: -676.9990305 | GA41: -678.6686928 | GB41: -680.3424728 | GC41: -682.0203809 | GD41: -683.7024272 | GE41: -685.3886218 | GF41: -687.078975 | GG41: -688.7734971 | GH41: -690.4721984 | GI41: -692.1750891 | GJ41: -693.8821796 | GK41: -695.5934803 | GL41: -697.3090014 | GM41: -699.0287535 | GN41: -700.752747 | GO41: -702.4809923 | GP41: -704.2135 | GQ41: -705.9502804 | GR41: -707.6913443 | GS41: -709.4367021 | GT41: -711.1863643 | GU41: -712.9403418 | GV41: -714.698645 | GW41: -716.4612847 | GX41: =-GX347 -> -718.2282715 | GY41: -719.9996161 | GZ41: -721.7753294 | HA41: -723.5554221 | HB41: -725.339905 | HC41: -727.1287889 | HD41: -728.9220846 | HE41: -730.7198031 | HF41: -732.5219553 | HG41: -734.328552 | HH41: -736.1396043 | HI41: -737.9551232 | HJ41: -739.7751196 | HK41: -741.5996046 | HL41: -743.4285893 | HM41: -745.2620848 | HN41: -747.1001021 | HO41: -748.9426525 | HP41: -750.7897471 | HQ41: -752.6413972 | HR41: -754.4976139 | HS41: -756.3584086 | HT41: -758.2237925 | HU41: -760.0937769 | HV41: -761.9683732 | HW41: -763.8475928 | HX41: -765.731447 | HY41: -767.6199473 | HZ41: -769.5131052 | IA41: -771.4109321 | IB41: -773.3134396 | IC41: -775.2206391 | ID41: -777.1325424 | IE41: -779.0491609 | IF41: -780.9705062 | IG41: -782.8965902 | IH41: -784.8274244 | II41: -786.7630205 | IJ41: -788.7033904 | IK41: -790.6485457 | IL41: -792.5984983 | IM41: -794.5532601 | IN41: -796.5128428 | IO41: -798.4772583 | IP41: -800.4465186 | IQ41: -802.4206357 | IR41: -804.3996214 | IS41: -806.3834879 | IT41: -808.3722471 | IU41: -810.3659112 | IV41: -812.3644921 | IW41: -814.3680021 | IX41: -816.3764533 | IY41: -818.3898579 | IZ41: -820.408228 | JA41: -822.431576 | JB41: -824.4599142 | JC41: -826.4932547 | JD41: -828.5316101 | JE41: -830.5749925 | JF41: -832.6234145 | JG41: -834.6768885 | JH41: -836.7354269 | JI41: -838.7990422 | JJ41: =-JJ347 -> -840.8677469 | JK41: -842.9415536 | JL41: -845.0204749 | JM41: -847.1045233 | JN41: -849.1937116 | JO41: -851.2880524 | JP41: -853.3875584 | JQ41: -855.4922423 | JR41: -857.602117 | JS41: -859.7171952 | JT41: -861.8374897 | JU41: -863.9630134 | JV41: -866.0937793 | JW41: -868.2298002 | JX41: -870.3710891 | JY41: 0 | JZ41: 0 | KA41: 0 | KB41: 0 | KC41: 0 | KD41: 0 | KE41: 0 | KF41: 0 | KG41: 0 | KH41: 0 | KI41: 0 | KJ41: 0 | KK41: 0 | KL41: 0 | KM41: 0 | KN41: 0 | KO41: 0 | KP41: 0 | KQ41: 0 | KR41: 0 | KS41: 0 | KT41: 0 | KU41: 0 | KV41: 0 | KW41: 0 | KX41: 0 | KY41: 0 | KZ41: 0 | LA41: 0 | LB41: 0 | LC41: 0 | LD41: 0 | LE41: 0 | LF41: 0 | LG41: 0 | LH41: 0 | LI41: 0 | LJ41: 0 | LK41: 0 | LL41: 0 | LM41: 0 | LN41: 0 | LO41: 0 | LP41: 0 | LQ41: 0 | LR41: 0 | LS41: 0 | LT41: 0 | LU41: 0 | LV41: =-LV347 -> 0 | LW41: 0 | LX41: 0 | LY41: 0 | LZ41: 0 | MA41: 0 | MB41: 0 | MC41: 0 | MD41: 0 | ME41: 0 | MF41: 0 | MG41: 0 | MH41: 0 | MI41: 0 | MJ41: 0 | MK41: 0 | ML41: 0 | MM41: 0 | MN41: 0 | MO41: 0 | MP41: 0 | MQ41: 0 | MR41: 0 | MS41: 0 | MT41: 0 | MU41: 0 | MV41: 0 | MW41: 0 | MX41: 0 | MY41: 0 | MZ41: 0 | NA41: 0 | NB41: 0 | NC41: 0 | ND41: 0 | NE41: 0 | NF41: 0 | NG41: 0 | NH41: 0 | NI41: 0 | NJ41: 0 | NK41: 0 | NL41: 0 | NM41: 0 | NN41: 0 | NO41: 0 | NP41: 0 | NQ41: 0 | NR41: 0 | NS41: 0 | NT41: 0 | NU41: 0 | NV41: 0 | NW41: 0 | NX41: 0 | NY41: 0 | NZ41: 0 | OA41: 0 | OB41: 0 | OC41: 0 | OD41: 0 | OE41: 0 | OF41: 0 | OG41: 0 | OH41: =-OH347 -> 0 | OI41: 0 | OJ41: 0 | OK41: 0 | OL41: 0 | OM41: 0 | ON41: 0 | OO41: 0 | OP41: 0 | OQ41: 0
D42: Combined Heat and Power | I42: =SUM(M42:XFD42) -> 0 | M42: =M394+M395 -> 0 | N42: =N394+N395 -> 0 | O42: 0 | P42: 0 | Q42: 0 | R42: 0 | S42: 0 | T42: 0 | U42: 0 | V42: 0 | W42: 0 | X42: 0 | Y42: 0 | Z42: 0 | AA42: 0 | AB42: 0 | AC42: 0 | AD42: 0 | AE42: 0 | AF42: 0 | AG42: 0 | AH42: 0 | AI42: 0 | AJ42: 0 | AK42: 0 | AL42: 0 | AM42: 0 | AN42: 0 | AO42: 0 | AP42: 0 | AQ42: 0 | AR42: 0 | AS42: 0 | AT42: 0 | AU42: 0 | AV42: 0 | AW42: 0 | AX42: 0 | AY42: 0 | AZ42: 0 | BA42: 0 | BB42: 0 | BC42: 0 | BD42: 0 | BE42: 0 | BF42: 0 | BG42: 0 | BH42: 0 | BI42: 0 | BJ42: 0 | BK42: 0 | BL42: 0 | BM42: 0 | BN42: 0 | BO42: 0 | BP42: 0 | BQ42: 0 | BR42: 0 | BS42: 0 | BT42: 0 | BU42: 0 | BV42: 0 | BW42: 0 | BX42: 0 | BY42: 0 | BZ42: =BZ394+BZ395 -> 0 | CA42: 0 | CB42: 0 | CC42: 0 | CD42: 0 | CE42: 0 | CF42: 0 | CG42: 0 | CH42: 0 | CI42: 0 | CJ42: 0 | CK42: 0 | CL42: 0 | CM42: 0 | CN42: 0 | CO42: 0 | CP42: 0 | CQ42: 0 | CR42: 0 | CS42: 0 | CT42: 0 | CU42: 0 | CV42: 0 | CW42: 0 | CX42: 0 | CY42: 0 | CZ42: 0 | DA42: 0 | DB42: 0 | DC42: 0 | DD42: 0 | DE42: 0 | DF42: 0 | DG42: 0 | DH42: 0 | DI42: 0 | DJ42: 0 | DK42: 0 | DL42: 0 | DM42: 0 | DN42: 0 | DO42: 0 | DP42: 0 | DQ42: 0 | DR42: 0 | DS42: 0 | DT42: 0 | DU42: 0 | DV42: 0 | DW42: 0 | DX42: 0 | DY42: 0 | DZ42: 0 | EA42: 0 | EB42: 0 | EC42: 0 | ED42: 0 | EE42: 0 | EF42: 0 | EG42: 0 | EH42: 0 | EI42: 0 | EJ42: 0 | EK42: 0 | EL42: =EL394+EL395 -> 0 | EM42: 0 | EN42: 0 | EO42: 0 | EP42: 0 | EQ42: 0 | ER42: 0 | ES42: 0 | ET42: 0 | EU42: 0 | EV42: 0 | EW42: 0 | EX42: 0 | EY42: 0 | EZ42: 0 | FA42: 0 | FB42: 0 | FC42: 0 | FD42: 0 | FE42: 0 | FF42: 0 | FG42: 0 | FH42: 0 | FI42: 0 | FJ42: 0 | FK42: 0 | FL42: 0 | FM42: 0 | FN42: 0 | FO42: 0 | FP42: 0 | FQ42: 0 | FR42: 0 | FS42: 0 | FT42: 0 | FU42: 0 | FV42: 0 | FW42: 0 | FX42: 0 | FY42: 0 | FZ42: 0 | GA42: 0 | GB42: 0 | GC42: 0 | GD42: 0 | GE42: 0 | GF42: 0 | GG42: 0 | GH42: 0 | GI42: 0 | GJ42: 0 | GK42: 0 | GL42: 0 | GM42: 0 | GN42: 0 | GO42: 0 | GP42: 0 | GQ42: 0 | GR42: 0 | GS42: 0 | GT42: 0 | GU42: 0 | GV42: 0 | GW42: 0 | GX42: =GX394+GX395 -> 0 | GY42: 0 | GZ42: 0 | HA42: 0 | HB42: 0 | HC42: 0 | HD42: 0 | HE42: 0 | HF42: 0 | HG42: 0 | HH42: 0 | HI42: 0 | HJ42: 0 | HK42: 0 | HL42: 0 | HM42: 0 | HN42: 0 | HO42: 0 | HP42: 0 | HQ42: 0 | HR42: 0 | HS42: 0 | HT42: 0 | HU42: 0 | HV42: 0 | HW42: 0 | HX42: 0 | HY42: 0 | HZ42: 0 | IA42: 0 | IB42: 0 | IC42: 0 | ID42: 0 | IE42: 0 | IF42: 0 | IG42: 0 | IH42: 0 | II42: 0 | IJ42: 0 | IK42: 0 | IL42: 0 | IM42: 0 | IN42: 0 | IO42: 0 | IP42: 0 | IQ42: 0 | IR42: 0 | IS42: 0 | IT42: 0 | IU42: 0 | IV42: 0 | IW42: 0 | IX42: 0 | IY42: 0 | IZ42: 0 | JA42: 0 | JB42: 0 | JC42: 0 | JD42: 0 | JE42: 0 | JF42: 0 | JG42: 0 | JH42: 0 | JI42: 0 | JJ42: =JJ394+JJ395 -> 0 | JK42: 0 | JL42: 0 | JM42: 0 | JN42: 0 | JO42: 0 | JP42: 0 | JQ42: 0 | JR42: 0 | JS42: 0 | JT42: 0 | JU42: 0 | JV42: 0 | JW42: 0 | JX42: 0 | JY42: 0 | JZ42: 0 | KA42: 0 | KB42: 0 | KC42: 0 | KD42: 0 | KE42: 0 | KF42: 0 | KG42: 0 | KH42: 0 | KI42: 0 | KJ42: 0 | KK42: 0 | KL42: 0 | KM42: 0 | KN42: 0 | KO42: 0 | KP42: 0 | KQ42: 0 | KR42: 0 | KS42: 0 | KT42: 0 | KU42: 0 | KV42: 0 | KW42: 0 | KX42: 0 | KY42: 0 | KZ42: 0 | LA42: 0 | LB42: 0 | LC42: 0 | LD42: 0 | LE42: 0 | LF42: 0 | LG42: 0 | LH42: 0 | LI42: 0 | LJ42: 0 | LK42: 0 | LL42: 0 | LM42: 0 | LN42: 0 | LO42: 0 | LP42: 0 | LQ42: 0 | LR42: 0 | LS42: 0 | LT42: 0 | LU42: 0 | LV42: =LV394+LV395 -> 0 | LW42: 0 | LX42: 0 | LY42: 0 | LZ42: 0 | MA42: 0 | MB42: 0 | MC42: 0 | MD42: 0 | ME42: 0 | MF42: 0 | MG42: 0 | MH42: 0 | MI42: 0 | MJ42: 0 | MK42: 0 | ML42: 0 | MM42: 0 | MN42: 0 | MO42: 0 | MP42: 0 | MQ42: 0 | MR42: 0 | MS42: 0 | MT42: 0 | MU42: 0 | MV42: 0 | MW42: 0 | MX42: 0 | MY42: 0 | MZ42: 0 | NA42: 0 | NB42: 0 | NC42: 0 | ND42: 0 | NE42: 0 | NF42: 0 | NG42: 0 | NH42: 0 | NI42: 0 | NJ42: 0 | NK42: 0 | NL42: 0 | NM42: 0 | NN42: 0 | NO42: 0 | NP42: 0 | NQ42: 0 | NR42: 0 | NS42: 0 | NT42: 0 | NU42: 0 | NV42: 0 | NW42: 0 | NX42: 0 | NY42: 0 | NZ42: 0 | OA42: 0 | OB42: 0 | OC42: 0 | OD42: 0 | OE42: 0 | OF42: 0 | OG42: 0 | OH42: =OH394+OH395 -> 0 | OI42: 0 | OJ42: 0 | OK42: 0 | OL42: 0 | OM42: 0 | ON42: 0 | OO42: 0 | OP42: 0 | OQ42: 0
D43: Battery | I43: =SUM(M43:XFD43) -> 0 | M43: =M427 -> 0 | N43: =N427 -> 0 | O43: 0 | P43: 0 | Q43: 0 | R43: 0 | S43: 0 | T43: 0 | U43: 0 | V43: 0 | W43: 0 | X43: 0 | Y43: 0 | Z43: 0 | AA43: 0 | AB43: 0 | AC43: 0 | AD43: 0 | AE43: 0 | AF43: 0 | AG43: 0 | AH43: 0 | AI43: 0 | AJ43: 0 | AK43: 0 | AL43: 0 | AM43: 0 | AN43: 0 | AO43: 0 | AP43: 0 | AQ43: 0 | AR43: 0 | AS43: 0 | AT43: 0 | AU43: 0 | AV43: 0 | AW43: 0 | AX43: 0 | AY43: 0 | AZ43: 0 | BA43: 0 | BB43: 0 | BC43: 0 | BD43: 0 | BE43: 0 | BF43: 0 | BG43: 0 | BH43: 0 | BI43: 0 | BJ43: 0 | BK43: 0 | BL43: 0 | BM43: 0 | BN43: 0 | BO43: 0 | BP43: 0 | BQ43: 0 | BR43: 0 | BS43: 0 | BT43: 0 | BU43: 0 | BV43: 0 | BW43: 0 | BX43: 0 | BY43: 0 | BZ43: =BZ427 -> 0 | CA43: 0 | CB43: 0 | CC43: 0 | CD43: 0 | CE43: 0 | CF43: 0 | CG43: 0 | CH43: 0 | CI43: 0 | CJ43: 0 | CK43: 0 | CL43: 0 | CM43: 0 | CN43: 0 | CO43: 0 | CP43: 0 | CQ43: 0 | CR43: 0 | CS43: 0 | CT43: 0 | CU43: 0 | CV43: 0 | CW43: 0 | CX43: 0 | CY43: 0 | CZ43: 0 | DA43: 0 | DB43: 0 | DC43: 0 | DD43: 0 | DE43: 0 | DF43: 0 | DG43: 0 | DH43: 0 | DI43: 0 | DJ43: 0 | DK43: 0 | DL43: 0 | DM43: 0 | DN43: 0 | DO43: 0 | DP43: 0 | DQ43: 0 | DR43: 0 | DS43: 0 | DT43: 0 | DU43: 0 | DV43: 0 | DW43: 0 | DX43: 0 | DY43: 0 | DZ43: 0 | EA43: 0 | EB43: 0 | EC43: 0 | ED43: 0 | EE43: 0 | EF43: 0 | EG43: 0 | EH43: 0 | EI43: 0 | EJ43: 0 | EK43: 0 | EL43: =EL427 -> 0 | EM43: 0 | EN43: 0 | EO43: 0 | EP43: 0 | EQ43: 0 | ER43: 0 | ES43: 0 | ET43: 0 | EU43: 0 | EV43: 0 | EW43: 0 | EX43: 0 | EY43: 0 | EZ43: 0 | FA43: 0 | FB43: 0 | FC43: 0 | FD43: 0 | FE43: 0 | FF43: 0 | FG43: 0 | FH43: 0 | FI43: 0 | FJ43: 0 | FK43: 0 | FL43: 0 | FM43: 0 | FN43: 0 | FO43: 0 | FP43: 0 | FQ43: 0 | FR43: 0 | FS43: 0 | FT43: 0 | FU43: 0 | FV43: 0 | FW43: 0 | FX43: 0 | FY43: 0 | FZ43: 0 | GA43: 0 | GB43: 0 | GC43: 0 | GD43: 0 | GE43: 0 | GF43: 0 | GG43: 0 | GH43: 0 | GI43: 0 | GJ43: 0 | GK43: 0 | GL43: 0 | GM43: 0 | GN43: 0 | GO43: 0 | GP43: 0 | GQ43: 0 | GR43: 0 | GS43: 0 | GT43: 0 | GU43: 0 | GV43: 0 | GW43: 0 | GX43: =GX427 -> 0 | GY43: 0 | GZ43: 0 | HA43: 0 | HB43: 0 | HC43: 0 | HD43: 0 | HE43: 0 | HF43: 0 | HG43: 0 | HH43: 0 | HI43: 0 | HJ43: 0 | HK43: 0 | HL43: 0 | HM43: 0 | HN43: 0 | HO43: 0 | HP43: 0 | HQ43: 0 | HR43: 0 | HS43: 0 | HT43: 0 | HU43: 0 | HV43: 0 | HW43: 0 | HX43: 0 | HY43: 0 | HZ43: 0 | IA43: 0 | IB43: 0 | IC43: 0 | ID43: 0 | IE43: 0 | IF43: 0 | IG43: 0 | IH43: 0 | II43: 0 | IJ43: 0 | IK43: 0 | IL43: 0 | IM43: 0 | IN43: 0 | IO43: 0 | IP43: 0 | IQ43: 0 | IR43: 0 | IS43: 0 | IT43: 0 | IU43: 0 | IV43: 0 | IW43: 0 | IX43: 0 | IY43: 0 | IZ43: 0 | JA43: 0 | JB43: 0 | JC43: 0 | JD43: 0 | JE43: 0 | JF43: 0 | JG43: 0 | JH43: 0 | JI43: 0 | JJ43: =JJ427 -> 0 | JK43: 0 | JL43: 0 | JM43: 0 | JN43: 0 | JO43: 0 | JP43: 0 | JQ43: 0 | JR43: 0 | JS43: 0 | JT43: 0 | JU43: 0 | JV43: 0 | JW43: 0 | JX43: 0 | JY43: 0 | JZ43: 0 | KA43: 0 | KB43: 0 | KC43: 0 | KD43: 0 | KE43: 0 | KF43: 0 | KG43: 0 | KH43: 0 | KI43: 0 | KJ43: 0 | KK43: 0 | KL43: 0 | KM43: 0 | KN43: 0 | KO43: 0 | KP43: 0 | KQ43: 0 | KR43: 0 | KS43: 0 | KT43: 0 | KU43: 0 | KV43: 0 | KW43: 0 | KX43: 0 | KY43: 0 | KZ43: 0 | LA43: 0 | LB43: 0 | LC43: 0 | LD43: 0 | LE43: 0 | LF43: 0 | LG43: 0 | LH43: 0 | LI43: 0 | LJ43: 0 | LK43: 0 | LL43: 0 | LM43: 0 | LN43: 0 | LO43: 0 | LP43: 0 | LQ43: 0 | LR43: 0 | LS43: 0 | LT43: 0 | LU43: 0 | LV43: =LV427 -> 0 | LW43: 0 | LX43: 0 | LY43: 0 | LZ43: 0 | MA43: 0 | MB43: 0 | MC43: 0 | MD43: 0 | ME43: 0 | MF43: 0 | MG43: 0 | MH43: 0 | MI43: 0 | MJ43: 0 | MK43: 0 | ML43: 0 | MM43: 0 | MN43: 0 | MO43: 0 | MP43: 0 | MQ43: 0 | MR43: 0 | MS43: 0 | MT43: 0 | MU43: 0 | MV43: 0 | MW43: 0 | MX43: 0 | MY43: 0 | MZ43: 0 | NA43: 0 | NB43: 0 | NC43: 0 | ND43: 0 | NE43: 0 | NF43: 0 | NG43: 0 | NH43: 0 | NI43: 0 | NJ43: 0 | NK43: 0 | NL43: 0 | NM43: 0 | NN43: 0 | NO43: 0 | NP43: 0 | NQ43: 0 | NR43: 0 | NS43: 0 | NT43: 0 | NU43: 0 | NV43: 0 | NW43: 0 | NX43: 0 | NY43: 0 | NZ43: 0 | OA43: 0 | OB43: 0 | OC43: 0 | OD43: 0 | OE43: 0 | OF43: 0 | OG43: 0 | OH43: =OH427 -> 0 | OI43: 0 | OJ43: 0 | OK43: 0 | OL43: 0 | OM43: 0 | ON43: 0 | OO43: 0 | OP43: 0 | OQ43: 0
D44: Energy efficiency - demand response | I44: =SUM(M44:KZ44) -> 0 | M44: 0 | N44: 0 | O44: 0 | P44: 0 | Q44: 0 | R44: 0 | S44: 0 | T44: 0 | U44: 0 | V44: 0 | W44: 0 | X44: 0 | Y44: 0 | Z44: 0 | AA44: 0 | AB44: 0 | AC44: 0 | AD44: 0 | AE44: 0 | AF44: 0 | AG44: 0 | AH44: 0 | AI44: 0 | AJ44: 0 | AK44: 0 | AL44: 0 | AM44: 0 | AN44: 0 | AO44: 0 | AP44: 0 | AQ44: 0 | AR44: 0 | AS44: 0 | AT44: 0 | AU44: 0 | AV44: 0 | AW44: 0 | AX44: 0 | AY44: 0 | AZ44: 0 | BA44: 0 | BB44: 0 | BC44: 0 | BD44: 0 | BE44: 0 | BF44: 0 | BG44: 0 | BH44: 0 | BI44: 0 | BJ44: 0 | BK44: 0 | BL44: 0 | BM44: 0 | BN44: 0 | BO44: 0 | BP44: 0 | BQ44: 0 | BR44: 0 | BS44: 0 | BT44: 0 | BU44: 0 | BV44: 0 | BW44: 0 | BX44: 0 | BY44: 0 | BZ44: 0 | CA44: 0 | CB44: 0 | CC44: 0 | CD44: 0 | CE44: 0 | CF44: 0 | CG44: 0 | CH44: 0 | CI44: 0 | CJ44: 0 | CK44: 0 | CL44: 0 | CM44: 0 | CN44: 0 | CO44: 0 | CP44: 0 | CQ44: 0 | CR44: 0 | CS44: 0 | CT44: 0 | CU44: 0 | CV44: 0 | CW44: 0 | CX44: 0 | CY44: 0 | CZ44: 0 | DA44: 0 | DB44: 0 | DC44: 0 | DD44: 0 | DE44: 0 | DF44: 0 | DG44: 0 | DH44: 0 | DI44: 0 | DJ44: 0 | DK44: 0 | DL44: 0 | DM44: 0 | DN44: 0 | DO44: 0 | DP44: 0 | DQ44: 0 | DR44: 0 | DS44: 0 | DT44: 0 | DU44: 0 | DV44: 0 | DW44: 0 | DX44: 0 | DY44: 0 | DZ44: 0 | EA44: 0 | EB44: 0 | EC44: 0 | ED44: 0 | EE44: 0 | EF44: 0 | EG44: 0 | EH44: 0 | EI44: 0 | EJ44: 0 | EK44: 0 | EL44: 0 | EM44: 0 | EN44: 0 | EO44: 0 | EP44: 0 | EQ44: 0 | ER44: 0 | ES44: 0 | ET44: 0 | EU44: 0 | EV44: 0 | EW44: 0 | EX44: 0 | EY44: 0 | EZ44: 0 | FA44: 0 | FB44: 0 | FC44: 0 | FD44: 0 | FE44: 0 | FF44: 0 | FG44: 0 | FH44: 0 | FI44: 0 | FJ44: 0 | FK44: 0 | FL44: 0 | FM44: 0 | FN44: 0 | FO44: 0 | FP44: 0 | FQ44: 0 | FR44: 0 | FS44: 0 | FT44: 0 | FU44: 0 | FV44: 0 | FW44: 0 | FX44: 0 | FY44: 0 | FZ44: 0 | GA44: 0 | GB44: 0 | GC44: 0 | GD44: 0 | GE44: 0 | GF44: 0 | GG44: 0 | GH44: 0 | GI44: 0 | GJ44: 0 | GK44: 0 | GL44: 0 | GM44: 0 | GN44: 0 | GO44: 0 | GP44: 0 | GQ44: 0 | GR44: 0 | GS44: 0 | GT44: 0 | GU44: 0 | GV44: 0 | GW44: 0 | GX44: 0 | GY44: 0 | GZ44: 0 | HA44: 0 | HB44: 0 | HC44: 0 | HD44: 0 | HE44: 0 | HF44: 0 | HG44: 0 | HH44: 0 | HI44: 0 | HJ44: 0 | HK44: 0 | HL44: 0 | HM44: 0 | HN44: 0 | HO44: 0 | HP44: 0 | HQ44: 0 | HR44: 0 | HS44: 0 | HT44: 0 | HU44: 0 | HV44: 0 | HW44: 0 | HX44: 0 | HY44: 0 | HZ44: 0 | IA44: 0 | IB44: 0 | IC44: 0 | ID44: 0 | IE44: 0 | IF44: 0 | IG44: 0 | IH44: 0 | II44: 0 | IJ44: 0 | IK44: 0 | IL44: 0 | IM44: 0 | IN44: 0 | IO44: 0 | IP44: 0 | IQ44: 0 | IR44: 0 | IS44: 0 | IT44: 0 | IU44: 0 | IV44: 0 | IW44: 0 | IX44: 0 | IY44: 0 | IZ44: 0 | JA44: 0 | JB44: 0 | JC44: 0 | JD44: 0 | JE44: 0 | JF44: 0 | JG44: 0 | JH44: 0 | JI44: 0 | JJ44: 0 | JK44: 0 | JL44: 0 | JM44: 0 | JN44: 0 | JO44: 0 | JP44: 0 | JQ44: 0 | JR44: 0 | JS44: 0 | JT44: 0 | JU44: 0 | JV44: 0 | JW44: 0 | JX44: 0 | JY44: 0 | JZ44: 0 | KA44: 0 | KB44: 0 | KC44: 0 | KD44: 0 | KE44: 0 | KF44: 0 | KG44: 0 | KH44: 0 | KI44: 0 | KJ44: 0 | KK44: 0 | KL44: 0 | KM44: 0 | KN44: 0 | KO44: 0 | KP44: 0 | KQ44: 0 | KR44: 0 | KS44: 0 | KT44: 0 | KU44: 0 | KV44: 0 | KW44: 0 | KX44: 0 | KY44: 0 | KZ44: 0 | LA44: 0 | LB44: 0 | LC44: 0 | LD44: 0 | LE44: 0 | LF44: 0 | LG44: 0 | LH44: 0 | LI44: 0 | LJ44: 0 | LK44: 0 | LL44: 0 | LM44: 0 | LN44: 0 | LO44: 0 | LP44: 0 | LQ44: 0 | LR44: 0 | LS44: 0 | LT44: 0 | LU44: 0 | LV44: 0 | LW44: 0 | LX44: 0 | LY44: 0 | LZ44: 0 | MA44: 0 | MB44: 0 | MC44: 0 | MD44: 0 | ME44: 0 | MF44: 0 | MG44: 0 | MH44: 0 | MI44: 0 | MJ44: 0 | MK44: 0 | ML44: 0 | MM44: 0 | MN44: 0 | MO44: 0 | MP44: 0 | MQ44: 0 | MR44: 0 | MS44: 0 | MT44: 0 | MU44: 0 | MV44: 0 | MW44: 0 | MX44: 0 | MY44: 0 | MZ44: 0 | NA44: 0 | NB44: 0 | NC44: 0 | ND44: 0 | NE44: 0 | NF44: 0 | NG44: 0 | NH44: 0 | NI44: 0 | NJ44: 0 | NK44: 0 | NL44: 0 | NM44: 0 | NN44: 0 | NO44: 0 | NP44: 0 | NQ44: 0 | NR44: 0 | NS44: 0 | NT44: 0 | NU44: 0 | NV44: 0 | NW44: 0 | NX44: 0 | NY44: 0 | NZ44: 0 | OA44: 0 | OB44: 0 | OC44: 0 | OD44: 0 | OE44: 0 | OF44: 0 | OG44: 0 | OH44: 0 | OI44: 0 | OJ44: 0 | OK44: 0 | OL44: 0 | OM44: 0 | ON44: 0 | OO44: 0 | OP44: 0 | OQ44: 0
D45: Building owner lease payment | G45: ='Constant Inputs - Operation'!G69 -> 0 | I45: 0 | M45: 0 | N45: 0 | O45: 0 | P45: 0 | Q45: 0 | R45: 0 | S45: 0 | T45: 0 | U45: 0 | V45: 0 | W45: 0 | X45: 0 | Y45: 0 | Z45: 0 | AA45: 0 | AB45: 0 | AC45: 0 | AD45: 0 | AE45: 0 | AF45: 0 | AG45: 0 | AH45: 0 | AI45: 0 | AJ45: 0 | AK45: 0 | AL45: 0 | AM45: 0 | AN45: 0 | AO45: 0 | AP45: 0 | AQ45: 0 | AR45: 0 | AS45: 0 | AT45: 0 | AU45: 0 | AV45: 0 | AW45: 0 | AX45: 0 | AY45: 0 | AZ45: 0 | BA45: 0 | BB45: 0 | BC45: 0 | BD45: 0 | BE45: 0 | BF45: 0 | BG45: 0 | BH45: 0 | BI45: 0 | BJ45: 0 | BK45: 0 | BL45: 0 | BM45: 0 | BN45: 0 | BO45: 0 | BP45: 0 | BQ45: 0 | BR45: 0 | BS45: 0 | BT45: 0 | BU45: 0 | BV45: 0 | BW45: 0 | BX45: 0 | BY45: 0 | BZ45: 0 | CA45: 0 | CB45: 0 | CC45: 0 | CD45: 0 | CE45: 0 | CF45: 0 | CG45: 0 | CH45: 0 | CI45: 0 | CJ45: 0 | CK45: 0 | CL45: 0 | CM45: 0 | CN45: 0 | CO45: 0 | CP45: 0 | CQ45: 0 | CR45: 0 | CS45: 0 | CT45: 0 | CU45: 0 | CV45: 0 | CW45: 0 | CX45: 0 | CY45: 0 | CZ45: 0 | DA45: 0 | DB45: 0 | DC45: 0 | DD45: 0 | DE45: 0 | DF45: 0 | DG45: 0 | DH45: 0 | DI45: 0 | DJ45: 0 | DK45: 0 | DL45: 0 | DM45: 0 | DN45: 0 | DO45: 0 | DP45: 0 | DQ45: 0 | DR45: 0 | DS45: 0 | DT45: 0 | DU45: 0 | DV45: 0 | DW45: 0 | DX45: 0 | DY45: 0 | DZ45: 0 | EA45: 0 | EB45: 0 | EC45: 0 | ED45: 0 | EE45: 0 | EF45: 0 | EG45: 0 | EH45: 0 | EI45: 0 | EJ45: 0 | EK45: 0 | EL45: 0 | EM45: 0 | EN45: 0 | EO45: 0 | EP45: 0 | EQ45: 0 | ER45: 0 | ES45: 0 | ET45: 0 | EU45: 0 | EV45: 0 | EW45: 0 | EX45: 0 | EY45: 0 | EZ45: 0 | FA45: 0 | FB45: 0 | FC45: 0 | FD45: 0 | FE45: 0 | FF45: 0 | FG45: 0 | FH45: 0 | FI45: 0 | FJ45: 0 | FK45: 0 | FL45: 0 | FM45: 0 | FN45: 0 | FO45: 0 | FP45: 0 | FQ45: 0 | FR45: 0 | FS45: 0 | FT45: 0 | FU45: 0 | FV45: 0 | FW45: 0 | FX45: 0 | FY45: 0 | FZ45: 0 | GA45: 0 | GB45: 0 | GC45: 0 | GD45: 0 | GE45: 0 | GF45: 0 | GG45: 0 | GH45: 0 | GI45: 0 | GJ45: 0 | GK45: 0 | GL45: 0 | GM45: 0 | GN45: 0 | GO45: 0 | GP45: 0 | GQ45: 0 | GR45: 0 | GS45: 0 | GT45: 0 | GU45: 0 | GV45: 0 | GW45: 0 | GX45: 0 | GY45: 0 | GZ45: 0 | HA45: 0 | HB45: 0 | HC45: 0 | HD45: 0 | HE45: 0 | HF45: 0 | HG45: 0 | HH45: 0 | HI45: 0 | HJ45: 0 | HK45: 0 | HL45: 0 | HM45: 0 | HN45: 0 | HO45: 0 | HP45: 0 | HQ45: 0 | HR45: 0 | HS45: 0 | HT45: 0 | HU45: 0 | HV45: 0 | HW45: 0 | HX45: 0 | HY45: 0 | HZ45: 0 | IA45: 0 | IB45: 0 | IC45: 0 | ID45: 0 | IE45: 0 | IF45: 0 | IG45: 0 | IH45: 0 | II45: 0 | IJ45: 0 | IK45: 0 | IL45: 0 | IM45: 0 | IN45: 0 | IO45: 0 | IP45: 0 | IQ45: 0 | IR45: 0 | IS45: 0 | IT45: 0 | IU45: 0 | IV45: 0 | IW45: 0 | IX45: 0 | IY45: 0 | IZ45: 0 | JA45: 0 | JB45: 0 | JC45: 0 | JD45: 0 | JE45: 0 | JF45: 0 | JG45: 0 | JH45: 0 | JI45: 0 | JJ45: 0 | JK45: 0 | JL45: 0 | JM45: 0 | JN45: 0 | JO45: 0 | JP45: 0 | JQ45: 0 | JR45: 0 | JS45: 0 | JT45: 0 | JU45: 0 | JV45: 0 | JW45: 0 | JX45: 0 | JY45: 0 | JZ45: 0 | KA45: 0 | KB45: 0 | KC45: 0 | KD45: 0 | KE45: 0 | KF45: 0 | KG45: 0 | KH45: 0 | KI45: 0 | KJ45: 0 | KK45: 0 | KL45: 0 | KM45: 0 | KN45: 0 | KO45: 0 | KP45: 0 | KQ45: 0 | KR45: 0 | KS45: 0 | KT45: 0 | KU45: 0 | KV45: 0 | KW45: 0 | KX45: 0 | KY45: 0 | KZ45: 0 | LA45: 0 | LB45: 0 | LC45: 0 | LD45: 0 | LE45: 0 | LF45: 0 | LG45: 0 | LH45: 0 | LI45: 0 | LJ45: 0 | LK45: 0 | LL45: 0 | LM45: 0 | LN45: 0 | LO45: 0 | LP45: 0 | LQ45: 0 | LR45: 0 | LS45: 0 | LT45: 0 | LU45: 0 | LV45: 0 | LW45: 0 | LX45: 0 | LY45: 0 | LZ45: 0 | MA45: 0 | MB45: 0 | MC45: 0 | MD45: 0 | ME45: 0 | MF45: 0 | MG45: 0 | MH45: 0 | MI45: 0 | MJ45: 0 | MK45: 0 | ML45: 0 | MM45: 0 | MN45: 0 | MO45: 0 | MP45: 0 | MQ45: 0 | MR45: 0 | MS45: 0 | MT45: 0 | MU45: 0 | MV45: 0 | MW45: 0 | MX45: 0 | MY45: 0 | MZ45: 0 | NA45: 0 | NB45: 0 | NC45: 0 | ND45: 0 | NE45: 0 | NF45: 0 | NG45: 0 | NH45: 0 | NI45: 0 | NJ45: 0 | NK45: 0 | NL45: 0 | NM45: 0 | NN45: 0 | NO45: 0 | NP45: 0 | NQ45: 0 | NR45: 0 | NS45: 0 | NT45: 0 | NU45: 0 | NV45: 0 | NW45: 0 | NX45: 0 | NY45: 0 | NZ45: 0 | OA45: 0 | OB45: 0 | OC45: 0 | OD45: 0 | OE45: 0 | OF45: 0 | OG45: 0 | OH45: 0 | OI45: 0 | OJ45: 0 | OK45: 0 | OL45: 0 | OM45: 0 | ON45: 0 | OO45: 0 | OP45: 0 | OQ45: 0
D46: Managing partner/asset management fees | G46: ='Constant Inputs - Operation'!G70 -> 0 | I46: 0 | M46: 0 | N46: 0 | O46: 0 | P46: 0 | Q46: 0 | R46: 0 | S46: 0 | T46: 0 | U46: 0 | V46: 0 | W46: 0 | X46: 0 | Y46: 0 | Z46: 0 | AA46: 0 | AB46: 0 | AC46: 0 | AD46: 0 | AE46: 0 | AF46: 0 | AG46: 0 | AH46: 0 | AI46: 0 | AJ46: 0 | AK46: 0 | AL46: 0 | AM46: 0 | AN46: 0 | AO46: 0 | AP46: 0 | AQ46: 0 | AR46: 0 | AS46: 0 | AT46: 0 | AU46: 0 | AV46: 0 | AW46: 0 | AX46: 0 | AY46: 0 | AZ46: 0 | BA46: 0 | BB46: 0 | BC46: 0 | BD46: 0 | BE46: 0 | BF46: 0 | BG46: 0 | BH46: 0 | BI46: 0 | BJ46: 0 | BK46: 0 | BL46: 0 | BM46: 0 | BN46: 0 | BO46: 0 | BP46: 0 | BQ46: 0 | BR46: 0 | BS46: 0 | BT46: 0 | BU46: 0 | BV46: 0 | BW46: 0 | BX46: 0 | BY46: 0 | BZ46: 0 | CA46: 0 | CB46: 0 | CC46: 0 | CD46: 0 | CE46: 0 | CF46: 0 | CG46: 0 | CH46: 0 | CI46: 0 | CJ46: 0 | CK46: 0 | CL46: 0 | CM46: 0 | CN46: 0 | CO46: 0 | CP46: 0 | CQ46: 0 | CR46: 0 | CS46: 0 | CT46: 0 | CU46: 0 | CV46: 0 | CW46: 0 | CX46: 0 | CY46: 0 | CZ46: 0 | DA46: 0 | DB46: 0 | DC46: 0 | DD46: 0 | DE46: 0 | DF46: 0 | DG46: 0 | DH46: 0 | DI46: 0 | DJ46: 0 | DK46: 0 | DL46: 0 | DM46: 0 | DN46: 0 | DO46: 0 | DP46: 0 | DQ46: 0 | DR46: 0 | DS46: 0 | DT46: 0 | DU46: 0 | DV46: 0 | DW46: 0 | DX46: 0 | DY46: 0 | DZ46: 0 | EA46: 0 | EB46: 0 | EC46: 0 | ED46: 0 | EE46: 0 | EF46: 0 | EG46: 0 | EH46: 0 | EI46: 0 | EJ46: 0 | EK46: 0 | EL46: 0 | EM46: 0 | EN46: 0 | EO46: 0 | EP46: 0 | EQ46: 0 | ER46: 0 | ES46: 0 | ET46: 0 | EU46: 0 | EV46: 0 | EW46: 0 | EX46: 0 | EY46: 0 | EZ46: 0 | FA46: 0 | FB46: 0 | FC46: 0 | FD46: 0 | FE46: 0 | FF46: 0 | FG46: 0 | FH46: 0 | FI46: 0 | FJ46: 0 | FK46: 0 | FL46: 0 | FM46: 0 | FN46: 0 | FO46: 0 | FP46: 0 | FQ46: 0 | FR46: 0 | FS46: 0 | FT46: 0 | FU46: 0 | FV46: 0 | FW46: 0 | FX46: 0 | FY46: 0 | FZ46: 0 | GA46: 0 | GB46: 0 | GC46: 0 | GD46: 0 | GE46: 0 | GF46: 0 | GG46: 0 | GH46: 0 | GI46: 0 | GJ46: 0 | GK46: 0 | GL46: 0 | GM46: 0 | GN46: 0 | GO46: 0 | GP46: 0 | GQ46: 0 | GR46: 0 | GS46: 0 | GT46: 0 | GU46: 0 | GV46: 0 | GW46: 0 | GX46: 0 | GY46: 0 | GZ46: 0 | HA46: 0 | HB46: 0 | HC46: 0 | HD46: 0 | HE46: 0 | HF46: 0 | HG46: 0 | HH46: 0 | HI46: 0 | HJ46: 0 | HK46: 0 | HL46: 0 | HM46: 0 | HN46: 0 | HO46: 0 | HP46: 0 | HQ46: 0 | HR46: 0 | HS46: 0 | HT46: 0 | HU46: 0 | HV46: 0 | HW46: 0 | HX46: 0 | HY46: 0 | HZ46: 0 | IA46: 0 | IB46: 0 | IC46: 0 | ID46: 0 | IE46: 0 | IF46: 0 | IG46: 0 | IH46: 0 | II46: 0 | IJ46: 0 | IK46: 0 | IL46: 0 | IM46: 0 | IN46: 0 | IO46: 0 | IP46: 0 | IQ46: 0 | IR46: 0 | IS46: 0 | IT46: 0 | IU46: 0 | IV46: 0 | IW46: 0 | IX46: 0 | IY46: 0 | IZ46: 0 | JA46: 0 | JB46: 0 | JC46: 0 | JD46: 0 | JE46: 0 | JF46: 0 | JG46: 0 | JH46: 0 | JI46: 0 | JJ46: 0 | JK46: 0 | JL46: 0 | JM46: 0 | JN46: 0 | JO46: 0 | JP46: 0 | JQ46: 0 | JR46: 0 | JS46: 0 | JT46: 0 | JU46: 0 | JV46: 0 | JW46: 0 | JX46: 0 | JY46: 0 | JZ46: 0 | KA46: 0 | KB46: 0 | KC46: 0 | KD46: 0 | KE46: 0 | KF46: 0 | KG46: 0 | KH46: 0 | KI46: 0 | KJ46: 0 | KK46: 0 | KL46: 0 | KM46: 0 | KN46: 0 | KO46: 0 | KP46: 0 | KQ46: 0 | KR46: 0 | KS46: 0 | KT46: 0 | KU46: 0 | KV46: 0 | KW46: 0 | KX46: 0 | KY46: 0 | KZ46: 0 | LA46: 0 | LB46: 0 | LC46: 0 | LD46: 0 | LE46: 0 | LF46: 0 | LG46: 0 | LH46: 0 | LI46: 0 | LJ46: 0 | LK46: 0 | LL46: 0 | LM46: 0 | LN46: 0 | LO46: 0 | LP46: 0 | LQ46: 0 | LR46: 0 | LS46: 0 | LT46: 0 | LU46: 0 | LV46: 0 | LW46: 0 | LX46: 0 | LY46: 0 | LZ46: 0 | MA46: 0 | MB46: 0 | MC46: 0 | MD46: 0 | ME46: 0 | MF46: 0 | MG46: 0 | MH46: 0 | MI46: 0 | MJ46: 0 | MK46: 0 | ML46: 0 | MM46: 0 | MN46: 0 | MO46: 0 | MP46: 0 | MQ46: 0 | MR46: 0 | MS46: 0 | MT46: 0 | MU46: 0 | MV46: 0 | MW46: 0 | MX46: 0 | MY46: 0 | MZ46: 0 | NA46: 0 | NB46: 0 | NC46: 0 | ND46: 0 | NE46: 0 | NF46: 0 | NG46: 0 | NH46: 0 | NI46: 0 | NJ46: 0 | NK46: 0 | NL46: 0 | NM46: 0 | NN46: 0 | NO46: 0 | NP46: 0 | NQ46: 0 | NR46: 0 | NS46: 0 | NT46: 0 | NU46: 0 | NV46: 0 | NW46: 0 | NX46: 0 | NY46: 0 | NZ46: 0 | OA46: 0 | OB46: 0 | OC46: 0 | OD46: 0 | OE46: 0 | OF46: 0 | OG46: 0 | OH46: 0 | OI46: 0 | OJ46: 0 | OK46: 0 | OL46: 0 | OM46: 0 | ON46: 0 | OO46: 0 | OP46: 0 | OQ46: 0
